Workbook

Sheet Information
C3: INTRODUCTION TO BEIT 2018 (Version 1.1 updated on 27 July 2018)
C4: BEIT (Building Energy Intensity Tool) is a software tool meant to assess energy use in buildings and has been developed by the
C5: Association of Consulting Engineers Malaysia (ACEM) in 2010. BEIT is essentially a modification of the BEET (Building Energy
C6: Estimation Tool) owned by IEN Consultants Sdn Bhd. Grateful acknowledgement is made to IEN Consultants for their kind
C7: permission to allow the BEET to be used as a basis of the development of the BEIT by ACEM. The BEIT and all updates are the
C8: copyright of ACEM in which ACEM reserves all rights. While every care has been taken by ACEM in the development of the BEIT
C9: to establish and acknowledge copyright of the materials used, and contact the copyright owners known to ACEM, ACEM tenders
C10: its apologies for any accidental copyright infringement. BEIT is now assigned to Greenbuildingindex Sdn. Bhd. (GSB) for updating
C11: into BEIT 2018 and for the use of the public free of charge. No part of the BEIT including any latest version may be modified or
C12: reproduced without the prior written permission of ACEM.
C14: This software tool allows GBI practitioners and Energy Auditors to perform easy OTTV, RTTV and BEI calculations, and to make
C15: quick and reliable predictions of energy savings that can be achieved for various new design and retrofit measures. BEIT is
C16: developed specifically for use under the equatorial climatic conditions found in Malaysia. It may also provide reasonable results
C17: in other hot and humid climate parts of the ASEAN region.
C19: BEIT makes comparison between two (2) building scenarios, the baseline building and the proposed building. The baseline
C20: building represents the building as it is (or as currently designed), while the proposed building is the same building to be
C21: retrofitted (or to be enhanced in design).
C23: INSTRUCTION TO USE
C24: Efforts have been put into this tool to ensure that it is both easy and simple to use while providing reasonably reliable and
C25: accurate results.
C27: In order to keep the software simple, the building shape is always represented as a shoe-box model. The advantage of this is
C28: that it simplifies the problem of defining the building significantly while providing reasonable accuracy on the results for energy
C29: used in that building.
C31: STEP 1
C32: The main sheet to key-in all the data input is on the Input Data folder.
C33: Data are requested on all coloured boxes.
D34: This colour indicates input data for the Baseline Building.
D35: This colour indicates input data for the Proposed Building.
D36: This colour indicates capital cost required to improve from the Baseline Building to the Proposed Building.
C38: STEP 2
C39: This is an option to use simplified data for the OTTV calculation.
C40: If this option is selected, only one façade needs to be described and it will then automatically be applied to all 4 façades.
C41: If this option is not selected, then the following folders need to be used to provide proper calculations for OTTV:
C42: 1. OTTV Baseline Folder
C43: 2. OTTV Proposed Folder
C45: STEP 3 - Outputs
C46: A summary result is provided in the Input Data folder to provide an indication of energy use for both buildings.
C47: A detailed result providing step-by-step retrofit measures is provided in the Detailed Results folder.
C48: Select Print Report folder to read the report and to print out report.
C50: That's it. A simple 1-2-3 Step to using this tool.
C52: THANK YOU.
C54: Green Building Index

Sheet Input Data
A3: 1 | B3: Building Information (Rectangular Box Assumed)
B4: Total AC Floor Area (m2) | C4: 1200
B5: No of Floors (including Ground) (floors) | C5: 6
B6: Floor to Floor Height (m) | C6: 4.75
B7: Aspect Ratio | C7: 2
B8: Building Orientation (Local North facing where?) | C8: 1
B9: Floor Area per floor/Roof Area (Box building assumed) (m2) | C9: =C4/C5 -> 200
B10: Building Length (Local North) (m) | C10: =SQRT(C9*C7) -> 20
B11: Building Width (m) | C11: =C10/C7 -> 10
B12: Average Electricity Cost (RM/kWh) | C12: 0.36
B13: Occupancy (m2/person) | C13: 10
B14: Total No of People in the Building | C14: =C4/C13 -> 120
B16: AC Operating Hours
B17: Hours of Operation (hours/day) | C17: 10
B18: Working Days (days/year) | C18: 270
B19: AC operating Hours (hours/year) | C19: =C17*C18 -> 2700
B20: Note: For BEIT cals, AC Operating Hours to be fixed at 2700 hrs/year
A22: 2 | B22: OTTV (Heat Gain from Building Walls and Glazing)
B23: Use Simplified Data (same data for all 4 façades)? | C23: 2
B24: =INDEX(Menu!$J$8:$J$9,'Input Data'!$C$23) -> Data in OTTV Folder is used for each façade orientation. Will NOT use data below !
C25: Baseline Building | D25: Proposed Building | E25: Estimated Cost (RM)
B26: Windows to Wall Ratio | C26: 0.8 | D26: 0.5 | E26: 0
B27: Alpha (Colour of opaque Wall) | C27: 1 | D27: 1 | E27: 0
B28: U-value of Walls (W/m2K) | C28: 1.5 | D28: 1.5 | E28: 0
B29: U-value of Glazing (W/m2K) | C29: 4.5 | D29: 4.5 | E29: 0
B30: SC of glazing | C30: 0.6 | D30: 0.3 | E30: 0
B31: Horizontal Shading
B32: Width of Horizontal Projection (HP) (m) | C32: 0 | D32: 1 | E32: 30000
B33: Height of fenestration (Z) (m) | C33: 1.8 | D33: 1.8 | E33: 0
B34: Height of top of fenestration to bottom of projection (Y) (m) | C34: 0.8 | D34: 0.8 | E34: 0
B35: Vertical Shading
B36: Width of Vertical Projection (VP) (m) | C36: 0 | D36: 0 | E36: 0
B37: Length of fenestration (L) (m) | C37: 2.6 | D37: 2.6 | E37: 0
B39: OTTV Calculated (W/m2) must < 50 | C39: =IF(C23=1,'OTTV Simplified Base'!G3,'OTTV Baseline'!G3) -> 50.090105 | D39: =IF(C23=1,'OTTV Simplified Proposed '!G3,'OTTV Proposed'!G3) -> 29.29642755 | E39: =SUM(E26:E37) -> 30000
B40: =INDEX(Menu!$J$12:$J$13,'Input Data'!$C$23) -> Please remember to use Folder OTTV Baseline & Proposed to compute OTTV here!
A43: 3 | B43: RTTV (Heat Gain from Roof) | G43: SUMMARY RESULTS
C44: Baseline Building | D44: Proposed Building | E44: Estimated Cost (RM) | I44: Baseline Building | J44: Proposed Building | K44: Reduction | L44: % Reduction
B45: Percentage of Roof comprising Skylight (%) | C45: 0 | D45: 0 | E45: 0 | H45: BEI (kWh/m2/year) | I45: ='Building Energy Base'!$K$30 -> 243.7631558 | J45: ='Building Energy Proposed'!K30 -> 165.1203727 | K45: =I45-J45 -> 78.64278311 | L45: =K45/I45 -> 0.3226196463 | N45: Energy Intensity Breakdowns (kWh/m2/year) | O45: Baseline Bldg | P45: Proposed Bldg | Q45: Reduction | R45: % Reduction
B46: U-value of Opaque Roof (W/m2K) | C46: 2.533 | D46: 0.592 | E46: 30000 | H46: Total Building Energy Consumption (MWh/year) | I46: ='Building Energy Base'!$H$29 -> 292.515787 | J46: ='Building Energy Proposed'!H29 -> 198.1444473 | K46: 94.37133973 | L46: 0.3226196463 | N46: Cooling Energy | O46: ='Building Energy Base'!H33 -> 129.1256517 | P46: ='Building Energy Proposed'!H33 -> 91.14011114 | Q46: =O46-P46 -> 37.98554056 | R46: =Q46/O46 -> 0.2941750152
B47: U-value of Skylight (W/m2K) | C47: 5.7 | D47: 5.7 | E47: 0 | H47: Estimated Running Cost (RM/year) | I47: =I46*$C$12*1000 -> 105305.6833 | J47: =J46*$C$12*1000 -> 71332.00101 | K47: 33973.6823 | L47: 0.3226196463 | N47: Fan Energy | O47: ='Building Energy Base'!H34 -> 13.39950413 | P47: ='Building Energy Proposed'!H34 -> 8.448261574 | Q47: 4.951242553 | R47: 0.3695093868
B48: Shading Coefficient of Skylight | C48: 0.67 | D48: 0.67 | E48: 0 | N48: Lighting Energy | O48: ='Building Energy Base'!H35 -> 39.672 | P48: ='Building Energy Proposed'!H35 -> 20.496 | Q48: 19.176 | R48: 0.4833635814
B49: Type of Roof (refer to MS1525) | C49: 2 | D49: 2 | E49: 0 | N49: Plug Load Energy | O49: ='Building Energy Base'!H36 -> 49.59 | P49: ='Building Energy Proposed'!H36 -> 33.06 | Q49: 16.53 | R49: 0.3333333333
N50: Misc Load Energy | O50: ='Building Energy Base'!K27 -> 11.976 | P50: ='Building Energy Proposed'!K27 -> 11.976 | Q50: 0 | R50: 0
B51: RTTV Calculated (W/m2) | C51: =' RTTV Base'!D16 -> 50.66 | D51: =' RTTV Proposed'!D16 -> 11.84 | E51: =SUM(E45:E49) -> 30000
N52: Cooling Load Breakdowns (kW) | O52: Baseline Bldg | P52: Proposed Bldg | Q52: Reduction | R52: % Reduction
N53: Heat Gain from Roof | O53: ='Building Energy Base'!C198 -> 10.132 | P53: ='Building Energy Proposed'!C198 -> 2.368 | Q53: =O53-P53 -> 7.764 | R53: =Q53/O53 -> 0.7662850375
A54: 4 | B54: Lighting Power | N54: Heat Gain from Façades | O54: ='Building Energy Base'!C197 -> 85.65407955 | P54: ='Building Energy Proposed'!C197 -> 50.09689111 | Q54: 35.55718844 | R54: 0.4151254514
C55: Baseline Building | D55: Proposed Building | E55: Estimated Cost (RM) | N55: Q sensible air intake (AC Hours) | O55: ='Building Energy Base'!C199 -> 13.92870823 | P55: ='Building Energy Proposed'!C199 -> 13.92870823 | Q55: 0 | R55: 0
B56: Lighting load during AC hours (W/m2) | C56: 12 | D56: 7 | E56: 20000 | N56: Q latent air intake (AC Hours) | O56: ='Building Energy Base'!C200 -> 35.34493394 | P56: ='Building Energy Proposed'!C200 -> 35.34493394 | Q56: 0 | R56: 0
B57: Lighting load during non AC hours (W/m2) | C57: 1.2 | D57: 0.7 | E57: 0 | N57: People Sensible Heat Gain | O57: ='Building Energy Base'!C201 -> 10.8 | P57: ='Building Energy Proposed'!C201 -> 10.8 | Q57: 0 | R57: 0
B58: Daylighting | N58: People Latent Heat Gain | O58: ='Building Energy Base'!C202 -> 7.2 | P58: ='Building Energy Proposed'!C202 -> 7.2 | Q58: 0 | R58: 0
B59: Daylighting Used? | C59: 2 | D59: 1 | E59: 20000 | N59: Equip Sensible Heat Gain | O59: ='Building Energy Base'!C203 -> 22.04 | P59: ='Building Energy Proposed'!C203 -> 14.69333333 | Q59: 7.346666667 | R59: 0.3333333333
B60: Percentage (%) of AC Floor Area using Daylight | C60: 0 | D60: 0.2 | E60: 0 | N60: Lighting Sensible Heat Gain | O60: ='Building Energy Base'!C204 -> 17.632 | P60: ='Building Energy Proposed'!C204 -> 9.109333333 | Q60: 8.522666667 | R60: 0.4833635814
N61: Fan Sensible Heat Gain | O61: ='Building Energy Base'!C205 -> 5.947957039 | P61: ='Building Energy Proposed'!C205 -> 3.75013113 | Q61: 2.197825909 | R61: 0.3695093785
B62: Lighting Energy Intensity (kWh/m2/year) | C62: =O48 -> 39.672 | D62: =P48 -> 20.496 | E62: =SUM(E56:E60) -> 40000
B63: Lighting Power Percentage of Total | C63: =C62/C$108 -> 0.1627481391 | D63: =D62/D$108 -> 0.1241276268 | N63: Total Investment Cost (RM) | O63: =E39+E51+E62+E70+E100+E105 -> 260000
N64: Simple Payback (Years) | O64: =O63/K47 -> 7.652982614
A65: 5 | B65: Plug Load
C66: Baseline Building | D66: Proposed Building | E66: Estimated Cost (RM)
B67: Plug Load during AC hours (W/m2) | C67: 15 | D67: 10 | E67: 0
B68: Plug Load during non AC hours (W/m2) | C68: 1.5 | D68: 1 | E68: 0
B70: Plug Load Energy Intensity (kWh/m2/year) | C70: =O49 -> 49.59 | D70: =P49 -> 33.06 | E70: =SUM(E67:E68) -> 0
B71: Plug Load Percentage of Total | C71: =C70/C$108 -> 0.2034351739 | D71: =D70/D$108 -> 0.2002175713
A74: 6 | B74: Miscellaneous Loads
C75: Baseline Building | D75: Proposed Building | E75: Estimated Cost (RM)
B76: Elevators and Escalators
B77: Elevators and Escalators during AC hours (kW/building) | C77: 25 | D77: 25 | E77: 0
B78: Hydraulic systems
B79: Hydraulic systems during AC hours (kW/building) | C79: 2 | D79: 2 | E79: 0
B80: Facade lighting
B81: Facade lighting (kW/building) | C81: 2 | D81: 2 | E81: 0
B83: Misc Energy Intensity (kWh/m2/year) | C83: ='Building Energy Base'!K27 -> 11.976 | D83: ='Building Energy Proposed'!K27 -> 11.976 | E83: =SUM(E75:E81) -> 0
B84: Misc Loads Percentage of Total | C84: =C83/C$108 -> 0.04912965604 | D84: =D83/D$108 -> 0.07252890605
A87: 7 | B87: ACMV System (Air-Conditioning & Mechanical Ventilation)
C88: Baseline Building | D88: Proposed Building | E88: Estimated Cost (RM)
B89: COP of chiller/compressor | C89: 4.4 | D89: 4.4 | E89: 100000
B90: Water side eqpt load as a percentage of AC system | C90: 0.1 | D90: 0.1 | E90: 0
B91: Computed Coefficient of System Performance | C91: ='Building Energy Base'!P15 -> 3.63622 | D91: ='Building Energy Proposed'!P15 -> 3.63622
B92: CO2 control of Fresh Air Inlet used? | C92: 2 | D92: 2 | E92: 60000
B93: Indoor Environment
B94: Indoor Air Temperature (degree Celcius) (Air-Cond Hours) | C94: 24 | D94: 24 | E94: 0
B95: Indoor AC Relative Humidity (%) (Air-Cond Hours) | C95: 0.65 | D95: 0.65 | E95: 0
B96: AHU Fan Data
B97: Average Combined Fan & Motor Efficiency (%) | C97: 0.65 | D97: 0.65 | E97: 0
B98: Average Fan Total Static Pressure (Pa) | C98: 350 | D98: 350 | E98: 0
B100: ACMV Energy Intensity (kWh/m2/year) | C100: =O46+O47 -> 142.5251558 | D100: =P46+P47 -> 99.58837271 | E100: =SUM(E89:E98) -> 160000
B101: ACMV Percentage of Total | C101: =C100/C$108 -> 0.5846870309 | D101: =D100/D$108 -> 0.6031258958
A103: 8 | B103: Infiltration Data
C104: Baseline Building | D104: Proposed Building | E104: Estimated Cost (RM)
B105: Air Change Rate per hour (ach) | C105: 1 | D105: 1 | E105: 0
B108: BEI for AC floor area (kWh/m2/year) | C108: =C100+C83+C70+C62 -> 243.7631558 | D108: =D100+D83+D70+D62 -> 165.1203727 | E108: =E100+E83+E70+E62+E51+E39 -> 260000

Sheet Print Report
A1: INTRODUCTION | AE1: INPUT DATA | AM1: OTTV PROPOSED INPUT DATA
A2: BEIT (Building Energy Intensity Tool) is a software tool meant to assess energy use in buildings and has been | V2: RESULTS & REMARKS
A3: developed for the Green Building Index (GBI) Malaysia by the Association of Consulting Engineers Malaysia | AE3: ='Input Data'!A54 -> 4 | AF3: ='Input Data'!B54 -> Lighting Power | AN3: ='OTTV Proposed'!D1 -> OTTV cals is DEPENDENT on This Page input
A4: (ACEM). BEIT is based upon and is essentially a modification of the BEET (Building Energy Estimation Tool); the | AG4: ='Input Data'!C55 -> Baseline Building | AH4: ='Input Data'!D55 -> Proposed Building | AI4: Est. Cost (RM)
A5: copyright of which is held by IEN Consultants Sdn Bhd. Grateful acknowledgement is made to IEN Consultants | X5: ='Detailed Results'!C16 -> Incremental Savings | Y5: ='Detailed Results'!D16 -> BEI Saved (kWh/m2/year) | Z5: ='Detailed Results'!E16 -> Energy Saved (MWh/year) | AA5: ='Detailed Results'!F16 -> Estimated Cost Savings (RM/Year) | AB5: ='Detailed Results'!G16 -> Capital Cost of Improvement (RM) | AC5: ='Detailed Results'!H16 -> Simple Payback (Years) | AF5: ='Input Data'!B56 -> Lighting load during AC hours (W/m2) | AG5: ='Input Data'!C56 -> 12 | AH5: ='Input Data'!D56 -> 7 | AI5: ='Input Data'!E56 -> 20000 | AN5: ='OTTV Proposed'!C14 -> Actual Façade Direction | AO5: ='OTTV Proposed'!D14 -> North | AP5: ='OTTV Proposed'!E14 -> South | AQ5: ='OTTV Proposed'!F14 -> East | AR5: ='OTTV Proposed'!G14 -> West
A6: for their kind permission to allow the BEET to be used as a basisof the development of the BEIT by ACEM. While | AF6: ='Input Data'!B57 -> Lighting load during non AC hours (W/m2) | AG6: ='Input Data'!C57 -> 1.2 | AH6: ='Input Data'!D57 -> 0.7 | AI6: ='Input Data'!E57 -> 0 | AN6: ='OTTV Proposed'!C15 -> Descriptions | AO6: ='OTTV Proposed'!D15 -> Local North | AP6: ='OTTV Proposed'!E15 -> Local South | AQ6: ='OTTV Proposed'!F15 -> Local East | AR6: ='OTTV Proposed'!G15 -> Local West
A7: every care has been taken by ACEM in the development of the BEIT to establish and acknowledge copyright of | W7: 1 | X7: ='Detailed Results'!C17 -> OTTV improvement | Y7: ='Detailed Results'!D17 -> 25.79317174 | Z7: ='Detailed Results'!E17 -> 30.95180609 | AA7: ='Detailed Results'!F17 -> 11142.65019 | AB7: ='Detailed Results'!G17 -> 30000 | AC7: ='Detailed Results'!H17 -> 2.692357696 | AF7: ='Input Data'!B58 -> Daylighting | AN7: ='OTTV Proposed'!C16 -> Solar Correction Factor | AO7: ='OTTV Proposed'!D16 -> 0.9 | AP7: ='OTTV Proposed'!E16 -> 0.92 | AQ7: ='OTTV Proposed'!F16 -> 1.23 | AR7: ='OTTV Proposed'!G16 -> 0.94
A8: the materials used, and contact the copyright owners known to ACEM, ACEM tender their apologies for any | W8: 2 | X8: ='Detailed Results'!C18 -> RTTV improvement | Y8: ='Detailed Results'!D18 -> 5.632002839 | Z8: ='Detailed Results'!E18 -> 6.758403406 | AA8: ='Detailed Results'!F18 -> 2433.025226 | AB8: ='Detailed Results'!G18 -> 30000 | AC8: ='Detailed Results'!H18 -> 12.33032838 | AF8: ='Input Data'!B59 -> Daylighting Used? | AG8: =INDEX(Menu!I3:I4,'Input Data'!C59) -> No | AH8: =INDEX(Menu!I3:I4,'Input Data'!D59) -> Yes | AI8: ='Input Data'!E59 -> 20000 | AN8: ='OTTV Proposed'!C17 -> WWR | AO8: ='OTTV Proposed'!D17 -> 0.39 | AP8: ='OTTV Proposed'!E17 -> 0 | AQ8: ='OTTV Proposed'!F17 -> 0.39 | AR8: ='OTTV Proposed'!G17 -> 0.39
A9: accidental copyright infringement. The BEIT is a copyright of ACEM in which ACEM reserves all rights. No part of | W9: 3 | X9: ='Detailed Results'!C19 -> Daylighting only | Y9: ='Detailed Results'!D19 -> 5.998405595 | Z9: ='Detailed Results'!E19 -> 7.198086714 | AA9: ='Detailed Results'!F19 -> 2591.311217 | AB9: ='Detailed Results'!G19 -> 20000 | AC9: ='Detailed Results'!H19 -> 7.718100345 | AF9: ='Input Data'!B60 -> Percentage (%) of AC Floor Area using Daylight | AG9: ='Input Data'!C60 -> 0 | AH9: ='Input Data'!D60 -> 0.2 | AI9: ='Input Data'!E60 -> 0 | AN9: ='OTTV Proposed'!C18 -> Alpha (Colour of opaque Wall) | AO9: ='OTTV Proposed'!D18 -> 0.3 | AP9: ='OTTV Proposed'!E18 -> 0.3 | AQ9: ='OTTV Proposed'!F18 -> 0.3 | AR9: ='OTTV Proposed'!G18 -> 0.3
A10: the BEIT may be used, modified, reproduced, stored in a retrieval system or transmitted in any form, or by any | W10: 4 | X10: ='Detailed Results'!C20 -> Lighting improvement wtout daylighting | Y10: ='Detailed Results'!D20 -> 21.85926899 | Z10: ='Detailed Results'!E20 -> 26.23112279 | AA10: ='Detailed Results'!F20 -> 9443.204205 | AB10: ='Detailed Results'!G20 -> 20000 | AC10: ='Detailed Results'!H20 -> 2.117925184 | AN10: ='OTTV Proposed'!C19 -> U-value of Walls | AO10: ='OTTV Proposed'!D19 -> 2.6 | AP10: ='OTTV Proposed'!E19 -> 2.6 | AQ10: ='OTTV Proposed'!F19 -> 2.6 | AR10: ='OTTV Proposed'!G19 -> 2.6
A11: means, electronic, mechanical, photocopying, recording or otherwise, without the prior written permission of | W11: 5 | X11: ='Detailed Results'!C21 -> Lighting improvement wt daylighting | Y11: ='Detailed Results'!D21 -> 25.35833953 | Z11: ='Detailed Results'!E21 -> 30.43000744 | AA11: ='Detailed Results'!F21 -> 10954.80268 | AB11: ='Detailed Results'!G21 -> 40000 | AC11: ='Detailed Results'!H21 -> 3.651366544 | AF11: ='Input Data'!B62 -> Lighting Energy Intensity (kWh/m2/year) | AG11: ='Input Data'!C62 -> 39.672 | AH11: ='Input Data'!D62 -> 20.496 | AI11: ='Input Data'!E62 -> 40000 | AN11: ='OTTV Proposed'!C20 -> U-value of Glazing | AO11: ='OTTV Proposed'!D20 -> 4.1 | AP11: ='OTTV Proposed'!E20 -> 5.7 | AQ11: ='OTTV Proposed'!F20 -> 4.1 | AR11: ='OTTV Proposed'!G20 -> 4.1
A12: ACEM. | W12: 6 | X12: ='Detailed Results'!C22 -> Plug Load improvement | Y12: ='Detailed Results'!D22 -> 21.85926899 | Z12: ='Detailed Results'!E22 -> 26.23112279 | AA12: ='Detailed Results'!F22 -> 9443.204205 | AB12: ='Detailed Results'!G22 -> 0 | AC12: ='Detailed Results'!H22 -> Free | AF12: ='Input Data'!B63 -> Lighting Power Percentage of Total | AG12: ='Input Data'!C63 -> 0.1627481391 | AH12: ='Input Data'!D63 -> 0.1241276268 | AN12: ='OTTV Proposed'!C21 -> SC of glazing | AO12: ='OTTV Proposed'!D21 -> 0.45 | AP12: ='OTTV Proposed'!E21 -> 0.65 | AQ12: ='OTTV Proposed'!F21 -> 0.45 | AR12: ='OTTV Proposed'!G21 -> 0.45
W13: 7 | X13: ='Detailed Results'!C23 -> ACMV improvement | Y13: ='Detailed Results'!D23 -> 0 | Z13: ='Detailed Results'!E23 -> 0 | AA13: ='Detailed Results'!F23 -> 0 | AB13: ='Detailed Results'!G23 -> 160000 | AC13: ='Detailed Results'!H23 -> NA | AN13: ='OTTV Proposed'!C22 -> Opaque Wall Area (m2) | AO13: ='OTTV Proposed'!D22 -> 347.7 | AP13: ='OTTV Proposed'!E22 -> 570 | AQ13: ='OTTV Proposed'!F22 -> 173.85 | AR13: ='OTTV Proposed'!G22 -> 173.85
A14: This software tool allows GBI practitioners and Energy Auditors to perform easy OTTV and RTTV calculations, | W14: 8 | X14: ='Detailed Results'!C24 -> Infiltration improvement | Y14: ='Detailed Results'!D24 -> 0 | Z14: ='Detailed Results'!E24 -> 0 | AA14: ='Detailed Results'!F24 -> 0 | AB14: ='Detailed Results'!G24 -> 0 | AC14: ='Detailed Results'!H24 -> NA | AN14: ='OTTV Proposed'!C23 -> Glazing Area (m2) | AO14: ='OTTV Proposed'!D23 -> 222.3 | AP14: ='OTTV Proposed'!E23 -> 0 | AQ14: ='OTTV Proposed'!F23 -> 111.15 | AR14: ='OTTV Proposed'!G23 -> 111.15
A15: and to make quick and reliable predictions of energy savings that can be achieved for various new design and | X15: ='Detailed Results'!C25 -> Total Savings with Daylighting | Y15: ='Detailed Results'!D25 -> 78.64278311 | Z15: ='Detailed Results'!E25 -> 94.37133973 | AA15: ='Detailed Results'!F25 -> 33973.6823 | AB15: ='Detailed Results'!G25 -> 260000 | AC15: ='Detailed Results'!H25 -> 7.652982614 | AE15: ='Input Data'!A65 -> 5 | AF15: ='Input Data'!B65 -> Plug Load | AN15: ='OTTV Proposed'!C24 -> Totall Wall area (m2) | AO15: ='OTTV Proposed'!D24 -> 570 | AP15: ='OTTV Proposed'!E24 -> 570 | AQ15: ='OTTV Proposed'!F24 -> 285 | AR15: ='OTTV Proposed'!G24 -> 285
A16: retrofit measures. BEIT is developed specifically for use under the equatorial climatic conditions found in | X16: ='Detailed Results'!C26 -> Total Savings without Daylighting | Y16: ='Detailed Results'!D26 -> 75.14371257 | Z16: ='Detailed Results'!E26 -> 90.17245508 | AA16: ='Detailed Results'!F26 -> 32462.08383 | AB16: ='Detailed Results'!G26 -> 240000 | AC16: ='Detailed Results'!H26 -> 7.393240719 | AG16: ='Input Data'!C66 -> Baseline Building | AH16: ='Input Data'!D66 -> Proposed Building | AI16: Est. Cost (RM)
A17: Malaysia. It may also provide reasonable results in other hot and humid climate parts of the ASEAN region. | W17: Note: Negative figures denote performance to be worse than the Baseline Case | AF17: ='Input Data'!B67 -> Plug Load during AC hours (W/m2) | AG17: ='Input Data'!C67 -> 15 | AH17: ='Input Data'!D67 -> 10 | AI17: ='Input Data'!E67 -> 0
AF18: ='Input Data'!B68 -> Plug Load during non AC hours (W/m2) | AG18: ='Input Data'!C68 -> 1.5 | AH18: ='Input Data'!D68 -> 1 | AI18: ='Input Data'!E68 -> 0 | AN18: Horizontal Shading
A19: BEIT makes comparison between two (2) building scenarios, the baseline building and the proposed building. | W19: Remarks | AN19: Width of Horizontal Projection (HP) | AO19: ='OTTV Proposed'!D28 -> 0 | AP19: ='OTTV Proposed'!E28 -> 0 | AQ19: ='OTTV Proposed'!F28 -> 750 | AR19: ='OTTV Proposed'!G28 -> 750
A20: The baseline building represents the building as it is (or as currently designed), while the proposed building is the | W20: 1 | X20: Improvements on OTTV and RTTV typically need longer payback periods. However, improvements made to | AF20: ='Input Data'!B70 -> Plug Load Energy Intensity (kWh/m2/year) | AG20: ='Input Data'!C70 -> 49.59 | AH20: ='Input Data'!D70 -> 33.06 | AI20: ='Input Data'!E70 -> 0 | AN20: Height of fenestration (Z) | AO20: ='OTTV Proposed'!D29 -> 1.2 | AP20: ='OTTV Proposed'!E29 -> 1.5 | AQ20: ='OTTV Proposed'!F29 -> 1.86 | AR20: ='OTTV Proposed'!G29 -> 1.86
A21: same building to be retrofitted (or to be enhanced in design). | X21: the building envelope would normally last the lifetime of the building. | AF21: ='Input Data'!B71 -> Plug Load Percentage of Total | AG21: ='Input Data'!C71 -> 0.2034351739 | AH21: ='Input Data'!D71 -> 0.2002175713 | AN21: Height of top of fenestration to bottom of projection (Y) | AO21: ='OTTV Proposed'!D30 -> 0 | AP21: ='OTTV Proposed'!E30 -> 0 | AQ21: ='OTTV Proposed'!F30 -> 0 | AR21: ='OTTV Proposed'!G30 -> 0
A23: SUMMARY | W23: 2 | X23: Improvement with daylighting needs careful consideration. Glare protection for building occupants needs to
A24: The baseline building BEI of | I24: ='Input Data'!I45 -> 243.7631558 | K24: =IF(I24>Menu!$W$41,Menu!$U$50,IF(I24>Menu!$V$42,Menu!$U$51,IF(I24>Menu!$V$43,Menu!$U$52,Menu!$U$53))) -> kWh/m2/year represents a building with high energy consumption. | X24: be addressed to avoid discomfort of glare from natural light. | AE24: ='Input Data'!A74 -> 6 | AF24: ='Input Data'!B74 -> Miscellaneous Loads | AN24: Vertical Shading
A25: energy consumption. | AG25: ='Input Data'!C75 -> Baseline Building | AH25: ='Input Data'!D75 -> Proposed Building | AI25: ='Input Data'!E75 -> Estimated Cost (RM) | AN25: Width of Vertical Projection (VP) | AO25: ='OTTV Proposed'!D41 -> 750 | AP25: ='OTTV Proposed'!E41 -> 0 | AQ25: ='OTTV Proposed'!F41 -> 0 | AR25: ='OTTV Proposed'!G41 -> 0
V26: This report is automatically generated by BEIT on | Z26: =TODAY() -> 2018-07-27 | AF26: ='Input Data'!B76 -> Elevators and Escalators | AG26: ='Input Data'!C76 -> 0 | AH26: ='Input Data'!D76 -> 0 | AI26: ='Input Data'!E76 -> 0 | AN26: Length of fenestration (L) | AO26: ='OTTV Proposed'!D42 -> 2 | AP26: ='OTTV Proposed'!E42 -> 1 | AQ26: ='OTTV Proposed'!F42 -> 1 | AR26: ='OTTV Proposed'!G42 -> 1
A27: The proposed building BEI of | I27: ='Input Data'!J45 -> 165.1203727 | K27: =IF(I27>Menu!$W$41,Menu!$U$50,IF(I27>Menu!$V$42,Menu!$U$51,IF(I27>Menu!$V$43,Menu!$U$52,Menu!$U$53))) -> kWh/m2/year represents a building with average energy consumption. | AF27: ='Input Data'!B77 -> Elevators and Escalators during AC hours (kW/building) | AG27: ='Input Data'!C77 -> 25 | AH27: ='Input Data'!D77 -> 25 | AI27: ='Input Data'!E77 -> 0
A28: energy consumption. | V28: BEIT is a software tool to perform easy OTTV, RTTV and BEI calculations, and to make quick and reliable prediction | AF28: ='Input Data'!B78 -> Hydraulic systems | AG28: ='Input Data'!C78 -> 0 | AH28: ='Input Data'!D78 -> 0 | AI28: ='Input Data'!E78 -> 0 | AN28: Calculated OTTV (W/m2) | AO28: ='OTTV Proposed'!G3 -> 29.29642755
V29: of energy savings that can be achieved for various new design and retrofit measures. | AF29: ='Input Data'!B79 -> Hydraulic systems during AC hours (kW/building) | AG29: ='Input Data'!C79 -> 2 | AH29: ='Input Data'!D79 -> 2 | AI29: ='Input Data'!E79 -> 0
A30: The predicted energy saving of | J30: =(I24-I27)/I24 -> 0.3226196463 | L30: , represented a total saving of | O30: ='Input Data'!K46 -> 94.37133973 | Q30: MWh/year. At the average | V30: BEIT is a copyright software of the Association of Consulting Engineers Malaysia. | AF30: ='Input Data'!B80 -> Facade lighting | AG30: ='Input Data'!C80 -> 0 | AH30: ='Input Data'!D80 -> 0 | AI30: ='Input Data'!E80 -> 0 | AN30: Depth of Daylight Factor of 1.5% (m) from façade | AO30: ='OTTV Proposed'!D67 -> 0.2 | AP30: ='OTTV Proposed'!E67 -> 1 | AQ30: ='OTTV Proposed'!F67 -> 3 | AR30: ='OTTV Proposed'!G67 -> 2
A31: electricity tarriff assumed at | I31: ='Input Data'!C12*100 -> 36 | K31: sen/kWh, the total predicted savings for the building is RM | R31: ='Input Data'!K47 -> 33973.6823 | AF31: ='Input Data'!B81 -> Facade lighting (kW/building) | AG31: ='Input Data'!C81 -> 2 | AH31: ='Input Data'!D81 -> 2 | AI31: ='Input Data'!E81 -> 0
A32: per year.
AF33: ='Input Data'!B83 -> Misc Energy Intensity (kWh/m2/year) | AG33: ='Input Data'!C83 -> 11.976 | AH33: ='Input Data'!D83 -> 11.976 | AI33: ='Input Data'!E83 -> 0 | AN33: % area added to skylight area covered by daylight | AO33: ='OTTV Proposed'!D74 -> 0.15
A34: Total investment cost of the building to achieve projected energy savings is RM | P34: ='Input Data'!O63 -> 260000 | R34: , | AF34: ='Input Data'!B84 -> Misc Loads Percentage of Total | AG34: ='Input Data'!C84 -> 0.04912965604 | AH34: ='Input Data'!D84 -> 0.07252890605
A35: providing a Simple Payback of | J35: ='Input Data'!O64 -> 7.652982614 | L35: years.
AE37: ='Input Data'!A87 -> 7 | AF37: ='Input Data'!B87 -> ACMV System (Air-Conditioning & Mechanical Ventilation)
AG38: ='Input Data'!C88 -> Baseline Building | AH38: ='Input Data'!D88 -> Proposed Building | AI38: Est. Cost (RM)
AF39: ='Input Data'!B89 -> COP of chiller/compressor | AG39: ='Input Data'!C89 -> 4.4 | AH39: ='Input Data'!D89 -> 4.4 | AI39: ='Input Data'!E89 -> 100000
AF40: ='Input Data'!B90 -> Water side eqpt load as a percentage of AC system | AG40: ='Input Data'!C90 -> 0.1 | AH40: ='Input Data'!D90 -> 0.1
AF41: ='Input Data'!B91 -> Computed Coefficient of System Performance | AG41: ='Input Data'!C91 -> 3.63622 | AH41: ='Input Data'!D91 -> 3.63622
AF42: ='Input Data'!B92 -> CO2 control of Fresh Air Inlet used? | AG42: =INDEX(Menu!I3:I4,'Input Data'!C92) -> No | AH42: =INDEX(Menu!I3:I4,'Input Data'!D92) -> No | AI42: ='Input Data'!E92 -> 60000
AF43: ='Input Data'!B93 -> Indoor Environment
AF44: ='Input Data'!B94 -> Indoor Air Temperature (degree Celcius) (Air-Cond Hours) | AG44: ='Input Data'!C94 -> 24 | AH44: ='Input Data'!D94 -> 24 | AI44: ='Input Data'!E94 -> 0
AF45: ='Input Data'!B95 -> Indoor AC Relative Humidity (%) (Air-Cond Hours) | AG45: ='Input Data'!C95 -> 0.65 | AH45: ='Input Data'!D95 -> 0.65 | AI45: ='Input Data'!E95 -> 0
AF46: ='Input Data'!B96 -> AHU Fan Data
AF47: ='Input Data'!B97 -> Average Combined Fan & Motor Efficiency (%) | AG47: ='Input Data'!C97 -> 0.65 | AH47: ='Input Data'!D97 -> 0.65 | AI47: ='Input Data'!E97 -> 0
AF48: ='Input Data'!B98 -> Average Fan Total Static Pressure (Pa) | AG48: ='Input Data'!C98 -> 350 | AH48: ='Input Data'!D98 -> 350 | AI48: ='Input Data'!E98 -> 0
AF50: ='Input Data'!B100 -> ACMV Energy Intensity (kWh/m2/year) | AG50: ='Input Data'!C100 -> 142.5251558 | AH50: ='Input Data'!D100 -> 99.58837271 | AI50: ='Input Data'!E100 -> 160000
AF51: ='Input Data'!B101 -> ACMV Percentage of Total | AG51: ='Input Data'!C101 -> 0.5846870309 | AH51: ='Input Data'!D101 -> 0.6031258958
AE53: ='Input Data'!A103 -> 8 | AF53: ='Input Data'!B103 -> Infiltration Data
AG54: ='Input Data'!C104 -> Baseline Building | AH54: ='Input Data'!D104 -> Proposed Building | AI54: Est. Cost (RM)
AF55: ='Input Data'!B105 -> Air Change Rate per hour (ach) | AG55: ='Input Data'!C105 -> 1 | AH55: ='Input Data'!D105 -> 1 | AI55: ='Input Data'!E105 -> 0
V61: APPENDIX | AE61: OTTV BASE INPUT DATA
V63: INPUT DATA | AF63: ='OTTV Baseline'!D1 -> OTTV cals is DEPENDENT on This Page input
W64: ='Input Data'!A3 -> 1 | X64: ='Input Data'!B3 -> Building Information (Rectangular Box Assumed)
X65: ='Input Data'!B4 -> Total AC Floor Area (m2) | AA65: ='Input Data'!C4 -> 1200 | AF65: ='OTTV Baseline'!C14 -> Actual Façade Direction | AG65: ='OTTV Baseline'!D14 -> North | AH65: ='OTTV Baseline'!E14 -> South | AI65: ='OTTV Baseline'!F14 -> East | AJ65: ='OTTV Baseline'!G14 -> West
X66: ='Input Data'!B5 -> No of Floors (including Ground) (floors) | AA66: ='Input Data'!C5 -> 6 | AF66: ='OTTV Baseline'!C15 -> Descriptions | AG66: ='OTTV Baseline'!D15 -> Local North | AH66: ='OTTV Baseline'!E15 -> Local South | AI66: ='OTTV Baseline'!F15 -> Local East | AJ66: ='OTTV Baseline'!G15 -> Local West
X67: ='Input Data'!B6 -> Floor to Floor Height (m) | AA67: ='Input Data'!C6 -> 4.75 | AF67: ='OTTV Baseline'!C16 -> Solar Correction Factor | AG67: ='OTTV Baseline'!D16 -> 0.9 | AH67: ='OTTV Baseline'!E16 -> 0.92 | AI67: ='OTTV Baseline'!F16 -> 1.23 | AJ67: ='OTTV Baseline'!G16 -> 0.94
X68: ='Input Data'!B7 -> Aspect Ratio | AA68: ='Input Data'!C7 -> 2 | AF68: ='OTTV Baseline'!C17 -> WWR | AG68: ='OTTV Baseline'!D17 -> 0.39 | AH68: ='OTTV Baseline'!E17 -> 0 | AI68: ='OTTV Baseline'!F17 -> 0.39 | AJ68: ='OTTV Baseline'!G17 -> 0.39
X69: ='Input Data'!B8 -> Building Orientation (Local North facing where?) | AA69: =INDEX(Menu!A3:A18,'Input Data'!C8) -> North | AF69: ='OTTV Baseline'!C18 -> Alpha (Colour of opaque Wall) | AG69: ='OTTV Baseline'!D18 -> 0.3 | AH69: ='OTTV Baseline'!E18 -> 0.3 | AI69: ='OTTV Baseline'!F18 -> 0.3 | AJ69: ='OTTV Baseline'!G18 -> 0.3
X70: ='Input Data'!B9 -> Floor Area per floor/Roof Area (Box building assumed) (m2) | AA70: ='Input Data'!C9 -> 200 | AF70: ='OTTV Baseline'!C19 -> U-value of Walls | AG70: ='OTTV Baseline'!D19 -> 2.6 | AH70: ='OTTV Baseline'!E19 -> 2.6 | AI70: ='OTTV Baseline'!F19 -> 2.6 | AJ70: ='OTTV Baseline'!G19 -> 2.6 | AN70: Blank Page
X71: ='Input Data'!B10 -> Building Length (Local North) (m) | AA71: ='Input Data'!C10 -> 20 | AF71: ='OTTV Baseline'!C20 -> U-value of Glazing | AG71: ='OTTV Baseline'!D20 -> 5.7 | AH71: ='OTTV Baseline'!E20 -> 5.7 | AI71: ='OTTV Baseline'!F20 -> 5.7 | AJ71: ='OTTV Baseline'!G20 -> 5.7
X72: ='Input Data'!B11 -> Building Width (m) | AA72: ='Input Data'!C11 -> 10 | AF72: ='OTTV Baseline'!C21 -> SC of glazing | AG72: ='OTTV Baseline'!D21 -> 0.65 | AH72: ='OTTV Baseline'!E21 -> 0.65 | AI72: ='OTTV Baseline'!F21 -> 0.65 | AJ72: ='OTTV Baseline'!G21 -> 0.65
X73: ='Input Data'!B12 -> Average Electricity Cost (RM/kWh) | AA73: ='Input Data'!C12 -> 0.36 | AF73: ='OTTV Baseline'!C22 -> Opaque Wall Area (m2) | AG73: ='OTTV Baseline'!D22 -> 347.7 | AH73: ='OTTV Baseline'!E22 -> 570 | AI73: ='OTTV Baseline'!F22 -> 173.85 | AJ73: ='OTTV Baseline'!G22 -> 173.85
X74: ='Input Data'!B13 -> Occupancy (m2/person) | AA74: ='Input Data'!C13 -> 10 | AF74: ='OTTV Baseline'!C23 -> Glazing Area (m2) | AG74: ='OTTV Baseline'!D23 -> 222.3 | AH74: ='OTTV Baseline'!E23 -> 0 | AI74: ='OTTV Baseline'!F23 -> 111.15 | AJ74: ='OTTV Baseline'!G23 -> 111.15
X75: ='Input Data'!B14 -> Total No of People in the Building | AA75: ='Input Data'!C14 -> 120 | AF75: ='OTTV Baseline'!C24 -> Totall Wall area (m2) | AG75: ='OTTV Baseline'!D24 -> 570 | AH75: ='OTTV Baseline'!E24 -> 570 | AI75: ='OTTV Baseline'!F24 -> 285 | AJ75: ='OTTV Baseline'!G24 -> 285
X77: ='Input Data'!B16 -> AC Operating Hours | AA77: ='Input Data'!C17 -> 10
X78: ='Input Data'!B17 -> Hours of Operation (hours/day) | AA78: ='Input Data'!C18 -> 270 | AF78: Horizontal Shading
X79: ='Input Data'!B18 -> Working Days (days/year) | AA79: ='Input Data'!C19 -> 2700 | AF79: Width of Horizontal Projection (HP) | AG79: ='OTTV Baseline'!D28 -> 0 | AH79: ='OTTV Baseline'!E28 -> 0 | AI79: ='OTTV Baseline'!F28 -> 0 | AJ79: ='OTTV Baseline'!G28 -> 0
AF80: Height of fenestration (Z) | AG80: ='OTTV Baseline'!D29 -> 1.2 | AH80: ='OTTV Baseline'!E29 -> 1.5 | AI80: ='OTTV Baseline'!F29 -> 1.5 | AJ80: ='OTTV Baseline'!G29 -> 1.5
AF81: Height of top of fenestration to bottom of projection (Y) | AG81: ='OTTV Baseline'!D30 -> 0 | AH81: ='OTTV Baseline'!E30 -> 3 | AI81: ='OTTV Baseline'!F30 -> 3 | AJ81: ='OTTV Baseline'!G30 -> 3
W82: ='Input Data'!A22 -> 2 | X82: ='Input Data'!B22 -> OTTV (Heat Gain from Building Walls and Glazing)
X83: ='Input Data'!B23 -> Use Simplified Data (same data for all 4 façades)? | AA83: =INDEX(Menu!I3:I4,'Input Data'!C23) -> No
A84: BASELINE BUILDING | X84: ='Input Data'!B24 -> Data in OTTV Folder is used for each façade orientation. Will NOT use data below ! | AF84: Vertical Shading
A85: BEI of | B85: =I24 -> 243.7631558 | E85: =IF(B85>Menu!W41,Menu!U56,IF(B85>Menu!V42,Menu!U57,IF(B85>Menu!V43,Menu!U58,Menu!U59))) -> kWh/m2/year represents a building with high energy consumption. | AA85: ='Input Data'!C25 -> Baseline Building | AB85: ='Input Data'!D25 -> Proposed Building | AC85: Est. Cost (RM) | AF85: Width of Vertical Projection (VP) | AG85: ='OTTV Baseline'!D41 -> 0 | AH85: ='OTTV Baseline'!E41 -> 0 | AI85: ='OTTV Baseline'!F41 -> 0 | AJ85: ='OTTV Baseline'!G41 -> 0
X86: ='Input Data'!B26 -> Windows to Wall Ratio | AA86: ='Input Data'!C26 -> 0.8 | AB86: ='Input Data'!D26 -> 0.5 | AC86: ='Input Data'!E26 -> 0 | AF86: Length of fenestration (L) | AG86: ='OTTV Baseline'!D42 -> 1 | AH86: ='OTTV Baseline'!E42 -> 1 | AI86: ='OTTV Baseline'!F42 -> 1 | AJ86: ='OTTV Baseline'!G42 -> 1
A87: The OTTV of | E87: ='Input Data'!C39 -> 50.090105 | F87: =IF(E87>Menu!W5,Menu!U62,IF(E87>Menu!V6,Menu!U63,IF(E87>Menu!V7,Menu!U64,Menu!U65))) -> W/m2 indicates a building with poor façade insulation. | X87: ='Input Data'!B27 -> Alpha (Colour of opaque Wall) | AA87: ='Input Data'!C27 -> 1 | AB87: ='Input Data'!D27 -> 1 | AC87: ='Input Data'!E27 -> 0
A88: =IF(E87>Menu!V7,Menu!U68,Menu!U69) -> be made with improved glazing properties, shading, lighter colour of walls and wall insulation. | X88: ='Input Data'!B28 -> U-value of Walls (W/m2K) | AA88: ='Input Data'!C28 -> 1.5 | AB88: ='Input Data'!D28 -> 1.5 | AC88: ='Input Data'!E28 -> 0 | AF88: Calculated OTTV (W/m2) | AG88: ='OTTV Baseline'!G3 -> 50.090105
X89: ='Input Data'!B29 -> U-value of Glazing (W/m2K) | AA89: ='Input Data'!C29 -> 4.5 | AB89: ='Input Data'!D29 -> 4.5 | AC89: ='Input Data'!E29 -> 0
A90: The RTTV of | E90: ='Input Data'!C51 -> 50.66 | F90: =IF(E90>Menu!W11,Menu!U72,IF(E90>Menu!V12,Menu!U73,IF(E90>Menu!V13,Menu!U74,Menu!U75))) -> W/m2 indicates a roof that is very poorly insulated. Increasing insulation of the roof is | X90: ='Input Data'!B30 -> SC of glazing | AA90: ='Input Data'!C30 -> 0.6 | AB90: ='Input Data'!D30 -> 0.3 | AC90: ='Input Data'!E30 -> 0 | AF90: Depth of Daylight Factor of 1.5% (m) from façade | AG90: ='OTTV Baseline'!D67 -> 0 | AH90: ='OTTV Baseline'!E67 -> 4 | AI90: ='OTTV Baseline'!F67 -> 2 | AJ90: ='OTTV Baseline'!G67 -> 2
A91: =IF(E90>Menu!V13,Menu!U78,Menu!U79) -> recommended. | X91: ='Input Data'!B31 -> Horizontal Shading
X92: ='Input Data'!B32 -> Width of Horizontal Projection (HP) (m) | AA92: ='Input Data'!C32 -> 0 | AB92: ='Input Data'!D32 -> 1 | AC92: ='Input Data'!E32 -> 30000
A93: Lighting Energy Intensity of | H93: ='Input Data'!C62 -> 39.672 | J93: =IF(H93>Menu!W17,Menu!U82,IF(H93>Menu!V18,Menu!U83,IF(H93>Menu!V19,Menu!U84,Menu!U85))) -> kWh/m2/year indicates low energy use by lighting in the building. | X93: ='Input Data'!B33 -> Height of fenestration (Z) (m) | AA93: ='Input Data'!C33 -> 1.8 | AB93: ='Input Data'!D33 -> 1.8 | AC93: ='Input Data'!E33 -> 0 | AF93: % area added to skylight area covered by daylight | AG93: ='OTTV Baseline'!D74 -> 0.15
X94: ='Input Data'!B34 -> Height of top of fenestration to bottom of projection (Y) (m) | AA94: ='Input Data'!C34 -> 0.8 | AB94: ='Input Data'!D34 -> 0.8 | AC94: ='Input Data'!E34 -> 0
A95: Plug Load Energy Intensity of | I95: ='Input Data'!C70 -> 49.59 | K95: =IF(I95>Menu!W23,Menu!U95,IF(I95>Menu!V24,Menu!U96,IF(I95>Menu!V25,Menu!U97,Menu!U98))) -> kWh/m2/year indicate average energy use of plug loads in the building. | X95: ='Input Data'!B35 -> Vertical Shading
X96: ='Input Data'!B36 -> Width of Vertical Projection (VP) (m) | AA96: ='Input Data'!C36 -> 0 | AB96: ='Input Data'!D36 -> 0 | AC96: ='Input Data'!E36 -> 0
A97: ACMV Energy Intensity of | H97: ='Input Data'!C100 -> 142.5251558 | J97: =IF(H97>Menu!W29,Menu!U117,IF(H97>Menu!V30,Menu!U118,IF(H97>Menu!V31,Menu!U119,Menu!U120))) -> kWh/m2/year indicates very high energy use by cooling system | X97: ='Input Data'!B37 -> Length of fenestration (L) (m) | AA97: ='Input Data'!C37 -> 2.6 | AB97: ='Input Data'!D37 -> 2.6 | AC97: ='Input Data'!E37 -> 0
A98: =IF(H97>Menu!V31,Menu!U123,Menu!U124) -> serving the building. It is possible to reduce energy use of the cooling system by installing EE chiller/s, improve
A99: =IF(H97>Menu!V31,Menu!U127,Menu!U125) -> fan efficiency, reduce fan static pressure by enlarging the duct or reducing cooling load, reducing infiltration, | X99: ='Input Data'!B39 -> OTTV Calculated (W/m2) must < 50 | AA99: ='Input Data'!C39 -> 50.090105 | AB99: ='Input Data'!D39 -> 29.29642755 | AC99: ='Input Data'!E39 -> 30000
A100: =IF(H97>Menu!V31,Menu!U131,Menu!U125) -> use of CO2 sensor/s to control fresh air inlet and etc. | X100: ='Input Data'!B40 -> Please remember to use Folder OTTV Baseline & Proposed to compute OTTV here!
A102: PROPOSED BUILDING
A103: BEI of | B103: ='Input Data'!J45 -> 165.1203727 | D103: =IF(B103>Menu!W41,Menu!U56,IF(B103>Menu!V42,Menu!U57,IF(B103>Menu!V43,Menu!U58,Menu!U59))) -> kWh/m2/year represents a building with average energy consumption. | W103: ='Input Data'!A43 -> 3 | X103: ='Input Data'!B43 -> RTTV (Heat Gain from Roof)
AA104: =AA85 -> Baseline Building | AB104: Proposed Building | AC104: Est. Cost (RM)
A105: The OTTV of | E105: ='Input Data'!D39 -> 29.29642755 | F105: =IF(E105>Menu!W5,Menu!U62,IF(E105>Menu!V6,Menu!U63,IF(E105>Menu!V7,Menu!U64,Menu!U65))) -> W/m2 indicates a building with good façade insulation. | X105: ='Input Data'!B45 -> Percentage of Roof comprising Skylight (%) | AA105: ='Input Data'!C45 -> 0 | AB105: ='Input Data'!D45 -> 0 | AC105: ='Input Data'!E45 -> 0
X106: ='Input Data'!B46 -> U-value of Opaque Roof (W/m2K) | AA106: ='Input Data'!C46 -> 2.533 | AB106: ='Input Data'!D46 -> 0.592 | AC106: ='Input Data'!E46 -> 30000
A107: The RTTV of | E107: ='Input Data'!D51 -> 11.84 | F107: =IF(E107>Menu!W11,Menu!U72,IF(E107>Menu!V12,Menu!U73,IF(E107>Menu!V13,Menu!U74,Menu!U75))) -> W/m2 indicates a roof that is well insulated. | X107: ='Input Data'!B47 -> U-value of Skylight (W/m2K) | AA107: ='Input Data'!C47 -> 5.7 | AB107: ='Input Data'!D47 -> 5.7 | AC107: ='Input Data'!E47 -> 0
A108: =IF(E107>Menu!V13,Menu!U78,Menu!U79) -> - | X108: ='Input Data'!B48 -> Shading Coefficient of Skylight | AA108: ='Input Data'!C48 -> 0.67 | AB108: ='Input Data'!D48 -> 0.67 | AC108: ='Input Data'!E48 -> 0
X109: ='Input Data'!B49 -> Type of Roof (refer to MS1525) | AA109: =INDEX(Menu!E3:E4,'Input Data'!C49) -> Heavy Weight | AB109: =INDEX(Menu!E3:E4,'Input Data'!D49) -> Heavy Weight | AC109: ='Input Data'!E49 -> 0
A110: Lighting Energy Intensity of | H110: ='Input Data'!D62 -> 20.496 | J110: =IF(H110>Menu!W17,Menu!U82,IF(H110>Menu!V18,Menu!U83,IF(H110>Menu!V19,Menu!U84,Menu!U85))) -> kWh/m2/year indicates low energy use by lighting in the building.
X111: ='Input Data'!B51 -> RTTV Calculated (W/m2) | AA111: ='Input Data'!C51 -> 50.66 | AB111: ='Input Data'!D51 -> 11.84 | AC111: ='Input Data'!E51 -> 30000
A112: Plug Load Energy Intensity of | I112: ='Input Data'!D70 -> 33.06 | K112: =IF(I112>Menu!W23,Menu!U95,IF(I112>Menu!V24,Menu!U96,IF(I112>Menu!V25,Menu!U97,Menu!U98))) -> kWh/m2/year indicates low energy use of plug loads in the building.
A114: ACMV Energy Intensity of | H114: ='Input Data'!D100 -> 99.58837271 | J114: =IF(H114>Menu!W29,Menu!U117,IF(H114>Menu!V30,Menu!U118,IF(H114>Menu!V31,Menu!U119,Menu!U120))) -> kWh/m2/year indicates average energy use by cooling system
A115: =IF(H114>Menu!V31,Menu!U123,Menu!U124) -> serving the building. It is possible to reduce energy use of the cooling system by installing EE chiller/s, improve
A116: =IF(H114>Menu!V31,Menu!U127,Menu!U125) -> fan efficiency, reduce fan static pressure by enlarging the duct or reducing cooling load, reducing infiltration,
A117: =IF(H114>Menu!V31,Menu!U131,Menu!U125) -> use of CO2 sensor/s to control fresh air inlet and etc.

Sheet Detailed Results
B4: No | C4: Description | D4: BEI (kWh/m2/year) | E4: Total Energy Consumption (MWh/year) | F4: Estimated Energy Cost (RM/Year)
B5: 1 | C5: Baseline Building | D5: ='Building Energy Base'!K30 -> 243.7631558 | E5: =D5*'Input Data'!$C$4/1000 -> 292.515787 | F5: =E5*1000*'Input Data'!$C$12 -> 105305.6833
B6: 2 | C6: OTTV improvement | D6: ='BE 1.OTTV'!K30 -> 217.9699841 | E6: =D6*'Input Data'!$C$4/1000 -> 261.5639809 | F6: =E6*1000*'Input Data'!$C$12 -> 94163.03312
B7: 3 | C7: RTTV improvement | D7: ='BE 2.RTTV'!K30 -> 212.3379812 | E7: =D7*'Input Data'!$C$4/1000 -> 254.8055775 | F7: =E7*1000*'Input Data'!$C$12 -> 91730.0079
B8: 4 | C8: Daylighting only | D8: ='BE 3.Daylight'!K30 -> 206.3395756 | E8: =D8*'Input Data'!$C$4/1000 -> 247.6074908 | F8: =E8*1000*'Input Data'!$C$12 -> 89138.69668
B9: 5 | C9: Lighting improvement wtout daylighting | D9: ='BE 4.Lgt wtout Daylight'!K30 -> 190.4787122 | E9: =D9*'Input Data'!$C$4/1000 -> 228.5744547 | F9: =E9*1000*'Input Data'!$C$12 -> 82286.80369
B10: 6 | C10: Lighting improvement wt daylighting | D10: ='BE 5.Lgt wt Daylight'!K30 -> 186.9796417 | E10: =D10*'Input Data'!$C$4/1000 -> 224.37557 | F10: =E10*1000*'Input Data'!$C$12 -> 80775.20522
B11: 7 | C11: Plug Load improvement | D11: ='BE 6.Plug Load'!K30 -> 165.1203727 | E11: =D11*'Input Data'!$C$4/1000 -> 198.1444473 | F11: =E11*1000*'Input Data'!$C$12 -> 71332.00101
B12: 8 | C12: ACMV improvement | D12: ='BE 7.ACMV'!K30 -> 165.1203727 | E12: =D12*'Input Data'!$C$4/1000 -> 198.1444473 | F12: =E12*1000*'Input Data'!$C$12 -> 71332.00101
B13: 9 | C13: Infiltration improvement | D13: ='BE 8.infil'!K30 -> 165.1203727 | E13: =D13*'Input Data'!$C$4/1000 -> 198.1444473 | F13: =E13*1000*'Input Data'!$C$12 -> 71332.00101
B16: No | C16: Incremental Savings | D16: BEI Saved (kWh/m2/year) | E16: Energy Saved (MWh/year) | F16: Estimated Cost Savings (RM/Year) | G16: Capital Cost of Improvement (RM) | H16: Simple Payback (Years)
B17: 1 | C17: =C6 -> OTTV improvement | D17: =D5-D6 -> 25.79317174 | E17: 30.95180609 | F17: 11142.65019 | G17: ='Input Data'!E39 -> 30000 | H17: =IF($F17=0,Menu!J$20,IF(G17=0,Menu!J$21,G17/F17)) -> 2.692357696
B18: 2 | C18: RTTV improvement | D18: =D6-D7 -> 5.632002839 | E18: 6.758403406 | F18: 2433.025226 | G18: ='Input Data'!E51 -> 30000 | H18: =IF($F18=0,Menu!J$20,IF(G18=0,Menu!J$21,G18/F18)) -> 12.33032838
B19: 3 | C19: Daylighting only | D19: =D7-D8 -> 5.998405595 | E19: 7.198086714 | F19: 2591.311217 | G19: ='Input Data'!E59+'Input Data'!E60 -> 20000 | H19: =IF($F19=0,Menu!J$20,IF(G19=0,Menu!J$21,G19/F19)) -> 7.718100345
B20: 4 | C20: Lighting improvement wtout daylighting | D20: =D7-D9 -> 21.85926899 | E20: 26.23112279 | F20: 9443.204205 | G20: =SUM('Input Data'!E56:E57) -> 20000 | H20: =IF($F20=0,Menu!J$20,IF(G20=0,Menu!J$21,G20/F20)) -> 2.117925184
B21: 5 | C21: Lighting improvement wt daylighting | D21: =D7-D10 -> 25.35833953 | E21: 30.43000744 | F21: 10954.80268 | G21: ='Input Data'!E62 -> 40000 | H21: =IF($F21=0,Menu!J$20,IF(G21=0,Menu!J$21,G21/F21)) -> 3.651366544
B22: 6 | C22: Plug Load improvement | D22: =D10-D11 -> 21.85926899 | E22: 26.23112279 | F22: 9443.204205 | G22: ='Input Data'!E70 -> 0 | H22: =IF($F22=0,Menu!J$20,IF(G22=0,Menu!J$21,G22/F22)) -> Free
B23: 7 | C23: ACMV improvement | D23: 0 | E23: 0 | F23: 0 | G23: ='Input Data'!E100 -> 160000 | H23: =IF($F23=0,Menu!J$20,IF(G23=0,Menu!J$21,G23/F23)) -> NA
B24: 8 | C24: Infiltration improvement | D24: 0 | E24: 0 | F24: 0 | G24: ='Input Data'!E105 -> 0 | H24: =IF($F24=0,Menu!J$20,IF(G24=0,Menu!J$21,G24/F24)) -> NA
C25: Total Savings with Daylighting | D25: =SUM(D17:D24)-D20-D19 -> 78.64278311 | E25: 94.37133973 | F25: 33973.6823 | G25: 260000 | H25: =IF($F25=0,Menu!J$20,IF(G25=0,Menu!J$21,G25/F25)) -> 7.652982614
C26: Total Savings without Daylighting | D26: =SUM(D17:D24)-D19-D21 -> 75.14371257 | E26: 90.17245508 | F26: 32462.08383 | G26: 240000 | H26: =IF($F26=0,Menu!J$20,IF(G26=0,Menu!J$21,G26/F26)) -> 7.393240719

Sheet OTTV Baseline
B1: Shoe Box Shaped Building Assumed | D1: =IF('Input Data'!C23=1,Menu!J18,Menu!J17) -> OTTV cals is DEPENDENT on This Page input
C2: Total AC Floor Area | D2: ='Input Data'!C4 -> 1200 | E2: m2 | G2: Calculated OTTV | J2: OTTV Constants for Malaysia
C3: No of Floors (including Ground) | D3: ='Input Data'!C5 -> 6 | E3: floors | G3: =H64 -> 50.090105 | H3: W/m2 | J3: Solar Factor | K3: 194
C4: Floor to Floor Height | D4: ='Input Data'!C6 -> 4.75 | E4: m | J4: DT wall | K4: 15
C5: Aspect Ratio | D5: ='Input Data'!C7 -> 2 | E5: to 1 | J5: DT glazing | K5: 6
C6: Building Orientation (Index) | D6: ='Input Data'!C8 -> 1
C7: Building Orientation (Local North facing where?) | D7: =INDEX(Menu!A3:A18,'OTTV Baseline'!D6) -> North
C8: Floor Area per floor (Roof Area) | D8: =D2/D3 -> 200 | E8: m2
C9: Building Length (Local North) | D9: =SQRT(D8*D5) -> 20 | E9: m
C10: Building Width | D10: =D9/D5 -> 10 | E10: m
C11: Total Wall Area | D11: =(D9*D4*D3*2)+(D10*D4*D3*2) -> 1710 | E11: m2
C14: Actual Façade Direction | D14: =INDEX(Menu!$A3:$A18,'OTTV Baseline'!$D6) -> North | E14: =INDEX(Menu!$A3:$A18,'OTTV Baseline'!$D6+4) -> South | F14: =INDEX(Menu!$A3:$A18,'OTTV Baseline'!$D6+2) -> East | G14: =INDEX(Menu!$A3:$A18,'OTTV Baseline'!$D6+6) -> West
C15: Descriptions | D15: Local North | E15: Local South | F15: Local East | G15: Local West | H15: Total
C16: Solar Correction Factor | D16: =INDEX(Menu!$B3:$B18,'OTTV Baseline'!$D6) -> 0.9 | E16: =INDEX(Menu!$B3:$B18,'OTTV Baseline'!$D6+4) -> 0.92 | F16: =INDEX(Menu!$B3:$B18,'OTTV Baseline'!$D6+2) -> 1.23 | G16: =INDEX(Menu!$B3:$B18,'OTTV Baseline'!$D6+6) -> 0.94
C17: WWR | D17: 0.39 | E17: 0 | F17: 0.39 | G17: 0.39
C18: Alpha (Colour of opaque Wall) | D18: 0.3 | E18: 0.3 | F18: 0.3 | G18: 0.3
C19: U-value of Walls | D19: 2.6 | E19: 2.6 | F19: 2.6 | G19: 2.6
C20: U-value of Glazing | D20: 5.7 | E20: 5.7 | F20: 5.7 | G20: 5.7
C21: SC of glazing | D21: 0.65 | E21: 0.65 | F21: 0.65 | G21: 0.65
C22: Opaque Wall Area (m2) | D22: =D24-D23 -> 347.7 | E22: 570 | F22: 173.85 | G22: 173.85
C23: Glazing Area (m2) | D23: =D24*D17 -> 222.3 | E23: 0 | F23: 111.15 | G23: 111.15
C24: Totall Wall area (m2) | D24: =D9*D4*D3 -> 570 | E24: =D24 -> 570 | F24: =D10*D4*D3 -> 285 | G24: =F24 -> 285 | H24: =SUM(D24:G24) -> 1710
C27: External Shading of Glazing
B28: Horizontal Shading | C28: Width of Horizontal Projection (HP) | D28: 0 | E28: 0 | F28: 0 | G28: 0
C29: Height of fenestration (Z) | D29: 1.2 | E29: 1.5 | F29: 1.5 | G29: 1.5
C30: Height of top of fenestration to bottom of projection (Y) | D30: 0 | E30: 3 | F30: 3 | G30: 3
C31: R1 normal | D31: =D28/D29 -> 0 | E31: 0 | F31: 0 | G31: 0
C32: R1 (T) | D32: =D28/(D29+D30) -> 0 | E32: 0 | F32: 0 | G32: 0
C33: R1 (Y) | D33: =IF(D30>0,D28/D30,0) -> 0 | E33: 0 | F33: 0 | G33: 0
C34: SC t | D34: =LOOKUP(D32,' Shading CF'!$B7:$B15,' Shading CF'!K7:K15) -> 1 | E34: =LOOKUP(E32,' Shading CF'!$B7:$B15,' Shading CF'!L7:L15) -> 1 | F34: =LOOKUP(F32,' Shading CF'!$B7:$B15,' Shading CF'!M7:M15) -> 1 | G34: =LOOKUP(G32,' Shading CF'!$B7:$B15,' Shading CF'!N7:N15) -> 1
C35: SC y | D35: =LOOKUP(D33,' Shading CF'!$B7:$B15,' Shading CF'!K7:K15) -> 1 | E35: =LOOKUP(E33,' Shading CF'!$B7:$B15,' Shading CF'!L7:L15) -> 1 | F35: =LOOKUP(F33,' Shading CF'!$B7:$B15,' Shading CF'!M7:M15) -> 1 | G35: =LOOKUP(G33,' Shading CF'!$B7:$B15,' Shading CF'!N7:N15) -> 1
C36: SC z computed | D36: =((D30+D29)*D34-(D30*D35))/D29 -> 1 | E36: 1 | F36: 1 | G36: 1
C37: SC z | D37: =IF(D36<1,D36,1) -> 1 | E37: 1 | F37: 1 | G37: 1
C38: SC 1 normal | D38: =LOOKUP(D31,' Shading CF'!$B7:$B15,' Shading CF'!K7:K15) -> 1 | E38: =LOOKUP(E31,' Shading CF'!$B7:$B15,' Shading CF'!L7:L15) -> 1 | F38: =LOOKUP(F31,' Shading CF'!$B7:$B15,' Shading CF'!M7:M15) -> 1 | G38: =LOOKUP(G31,' Shading CF'!$B7:$B15,' Shading CF'!N7:N15) -> 1
C39: SC R1 | D39: =IF(D30>0,D37,D38) -> 1 | E39: 1 | F39: 1 | G39: 1
B41: Vertical Shading | C41: Width of Vertical Projection (VP) | D41: 0 | E41: 0 | F41: 0 | G41: 0
C42: Length of fenestration (L) | D42: 1 | E42: 1 | F42: 1 | G42: 1
C43: R2 | D43: =D41/D42 -> 0 | E43: 0 | F43: 0 | G43: 0
C44: SC R2 | D44: =LOOKUP(D43,' Shading CF'!$B20:$B28,' Shading CF'!K20:K28) -> 1 | E44: =LOOKUP(E43,' Shading CF'!$B20:$B28,' Shading CF'!L20:L28) -> 1 | F44: =LOOKUP(F43,' Shading CF'!$B20:$B28,' Shading CF'!M20:M28) -> 1 | G44: =LOOKUP(G43,' Shading CF'!$B20:$B28,' Shading CF'!N20:N28) -> 1
B46: Combined Shading | C46: Horizontal + Vertical Shading? (Eggcrate) | D46: =AND(IF(D28>0,TRUE,FALSE),IF(D41>0,TRUE,FALSE)) -> FALSE | E46: FALSE | F46: FALSE | G46: FALSE
C47: R1 (refer to MS 1525) | D47: =D31 -> 0 | E47: 0 | F47: 0 | G47: 0
C48: R2 (refer to MS 1525) | D48: =D43 -> 0 | E48: =E43 -> 0 | F48: 0 | G48: 0
B49: 0 | C49: SC R1 0 | D49: 1 | E49: 1 | F49: 1 | G49: 1
B50: 0.2 | C50: SC R1 0.2 | D50: =LOOKUP(D48,' Shading CF'!$C34:$C37,' Shading CF'!K34:K37) -> 0.885 | E50: =LOOKUP(E48,' Shading CF'!$C34:$C37,' Shading CF'!L34:L37) -> 0.885 | F50: =LOOKUP(F48,' Shading CF'!$C34:$C37,' Shading CF'!M34:M37) -> 0.885 | G50: =LOOKUP(G48,' Shading CF'!$C34:$C37,' Shading CF'!N34:N37) -> 0.895
B51: 0.4 | C51: SC R1 0.4 | D51: =LOOKUP(D48,' Shading CF'!$C39:$C42,' Shading CF'!K39:K42) -> 0.77 | E51: =LOOKUP(E48,' Shading CF'!$C39:$C42,' Shading CF'!L39:L42) -> 0.77 | F51: =LOOKUP(F48,' Shading CF'!$C39:$C42,' Shading CF'!M39:M42) -> 0.77 | G51: =LOOKUP(G48,' Shading CF'!$C39:$C42,' Shading CF'!N39:N42) -> 0.79
B52: 0.6 | C52: SC R1 0.6 | D52: =LOOKUP(D48,' Shading CF'!$C44:$C46,' Shading CF'!K44:K46) -> 0.71 | E52: =LOOKUP(E48,' Shading CF'!$C44:$C46,' Shading CF'!L44:L46) -> 0.71 | F52: =LOOKUP(F48,' Shading CF'!$C44:$C46,' Shading CF'!M44:M46) -> 0.68 | G52: =LOOKUP(G48,' Shading CF'!$C44:$C46,' Shading CF'!N44:N46) -> 0.71
B53: 0.8 | C53: SC R1 0.8 | D53: =LOOKUP(D48,' Shading CF'!$C48:$C50,' Shading CF'!K48:K50) -> 0.67 | E53: =LOOKUP(E48,' Shading CF'!$C48:$C50,' Shading CF'!L48:L50) -> 0.67 | F53: =LOOKUP(F48,' Shading CF'!$C48:$C50,' Shading CF'!M48:M50) -> 0.6 | G53: =LOOKUP(G48,' Shading CF'!$C48:$C50,' Shading CF'!N48:N50) -> 0.65
B54: 1 | C54: SC R1 1.0 | D54: =LOOKUP(D48,' Shading CF'!$C52:$C55,' Shading CF'!K52:K55) -> 0.67 | E54: =LOOKUP(E48,' Shading CF'!$C52:$C55,' Shading CF'!L52:L55) -> 0.67 | F54: =LOOKUP(F48,' Shading CF'!$C52:$C55,' Shading CF'!M52:M55) -> 0.6 | G54: =LOOKUP(G48,' Shading CF'!$C52:$C55,' Shading CF'!N52:N55) -> 0.65
B55: 1.2 | C55: SC R1 1.2 | D55: =LOOKUP(D48,' Shading CF'!$C58:$C60,' Shading CF'!K58:K60) -> 0.67 | E55: =LOOKUP(E48,' Shading CF'!$C58:$C60,' Shading CF'!L58:L60) -> 0.67 | F55: =LOOKUP(F48,' Shading CF'!$C58:$C60,' Shading CF'!M58:M60) -> 0.6 | G55: =LOOKUP(G48,' Shading CF'!$C58:$C60,' Shading CF'!N58:N60) -> 0.65
C56: SC R1 + R2 combined | D56: =LOOKUP(D47,$B49:$B55,D49:D55) -> 1 | E56: =LOOKUP(E47,$B49:$B55,E49:E55) -> 1 | F56: =LOOKUP(F47,$B49:$B55,F49:F55) -> 1 | G56: =LOOKUP(G47,$B49:$B55,G49:G55) -> 1
C58: SC of External Shades | D58: =IF(D46=TRUE,D56,IF(D41>0,D44,D39)) -> 1 | E58: 1 | F58: 1 | G58: 1
C61: Total SC | D61: =D21*D58 -> 0.65 | E61: 0.65 | F61: 0.65 | G61: 0.65
C62: OTTVi | D62: =($K$4*D18*(1-D17)*D19)+($K$5*D17*D20)+($K$3*D16*D17*D61) -> 64.7361 | E62: 11.7 | F62: 80.96517 | G62: 66.70326
C63: OTTVi x Area | D63: =D62*D24 -> 36899.577 | E63: 6669 | F63: 23075.07345 | G63: 19010.4291 | H63: =SUM(D63:G63) -> 85654.07955
H64: =H63/H24 -> 50.090105
C66: Calculation of Daylight Area
C67: Depth of Daylight Factor of 1.5% (m) from façade | D67: ='Input Data'!C60 -> 0 | E67: 4 | F67: 2 | G67: 2
C68: Glazing Length (m) | D68: =D23/D29 -> 185.25 | E68: 0 | F68: 74.1 | G68: 74.1
C69: Area Daylight (m2) | D69: =D68*D$67 -> 0 | E69: 0 | F69: 148.2 | G69: 148.2
C70: Total Daylight Area (m2) | D70: =SUM(D69:G69)+D75 -> 296.4
C71: Percentage of Possible Daylight Area (%) | D71: =D70/D2 -> 0.247
C73: Skylight Area | D73: ='Input Data'!C45*D8 -> 0 | E73: m2
C74: % area added to skylight area covered by daylight | D74: 0.15
C75: Total Daylight Area covered by Skylight | D75: =D73+D73*D74 -> 0 | E75: m2

Sheet OTTV Proposed
B1: Shoe Box Shaped Building Assumed | D1: =IF('Input Data'!C23=1,Menu!J18,Menu!J17) -> OTTV cals is DEPENDENT on This Page input
C2: Total AC Floor Area | D2: ='Input Data'!C4 -> 1200 | E2: m2 | G2: Calculated OTTV | J2: OTTV Constants for Malaysia
C3: No of Floors (including Ground) | D3: ='Input Data'!C5 -> 6 | E3: floors | G3: =H64 -> 29.29642755 | H3: W/m2 | J3: Solar Factor | K3: 194
C4: Floor to Floor Height | D4: ='Input Data'!C6 -> 4.75 | E4: m | J4: DT wall | K4: 15
C5: Aspect Ratio | D5: ='Input Data'!C7 -> 2 | E5: to 1 | J5: DT glazing | K5: 6
C6: Building Orientation (Index) | D6: ='Input Data'!C8 -> 1
C7: Building Orientation (Local North facing where?) | D7: =INDEX(Menu!A3:A18,'OTTV Proposed'!D6) -> North
C8: Floor Area per floor (Roof Area) | D8: =D2/D3 -> 200 | E8: m2
C9: Building Length (Local North) | D9: =SQRT(D8*D5) -> 20 | E9: m
C10: Building Width | D10: =D9/D5 -> 10 | E10: m
C11: Total Wall Area | D11: =(D9*D4*D3*2)+(D10*D4*D3*2) -> 1710 | E11: m2
C14: Actual Façade Direction | D14: =INDEX(Menu!$A3:$A18,'OTTV Proposed'!$D6) -> North | E14: =INDEX(Menu!$A3:$A18,'OTTV Proposed'!$D6+4) -> South | F14: =INDEX(Menu!$A3:$A18,'OTTV Proposed'!$D6+2) -> East | G14: =INDEX(Menu!$A3:$A18,'OTTV Proposed'!$D6+6) -> West
C15: Descriptions | D15: Local North | E15: Local South | F15: Local East | G15: Local West | H15: Total
C16: Solar Correction Factor | D16: =INDEX(Menu!$B3:$B18,'OTTV Proposed'!$D6) -> 0.9 | E16: =INDEX(Menu!$B3:$B18,'OTTV Proposed'!$D6+4) -> 0.92 | F16: =INDEX(Menu!$B3:$B18,'OTTV Proposed'!$D6+2) -> 1.23 | G16: =INDEX(Menu!$B3:$B18,'OTTV Proposed'!$D6+6) -> 0.94
C17: WWR | D17: 0.39 | E17: 0 | F17: 0.39 | G17: 0.39
C18: Alpha (Colour of opaque Wall) | D18: 0.3 | E18: 0.3 | F18: 0.3 | G18: 0.3
C19: U-value of Walls | D19: 2.6 | E19: 2.6 | F19: 2.6 | G19: 2.6
C20: U-value of Glazing | D20: 4.1 | E20: 5.7 | F20: 4.1 | G20: 4.1
C21: SC of glazing | D21: 0.45 | E21: 0.65 | F21: 0.45 | G21: 0.45
C22: Opaque Wall Area (m2) | D22: =D24-D23 -> 347.7 | E22: 570 | F22: 173.85 | G22: 173.85
C23: Glazing Area (m2) | D23: =D24*D17 -> 222.3 | E23: 0 | F23: 111.15 | G23: 111.15
C24: Totall Wall area (m2) | D24: =D9*D4*D3 -> 570 | E24: =D24 -> 570 | F24: =D10*D4*D3 -> 285 | G24: =F24 -> 285 | H24: =SUM(D24:G24) -> 1710
C27: External Shading of Glazing
B28: Horizontal Shading | C28: Width of Horizontal Projection (HP) | D28: 0 | E28: 0 | F28: 750 | G28: 750
C29: Height of fenestration (Z) | D29: 1.2 | E29: 1.5 | F29: 1.86 | G29: 1.86
C30: Height of top of fenestration to bottom of projection (Y) | D30: 0 | E30: 0 | F30: 0 | G30: 0
C31: R1 normal | D31: =D28/D29 -> 0 | E31: 0 | F31: 403.2258065 | G31: 403.2258065
C32: R1 (T) | D32: =D28/(D29+D30) -> 0 | E32: 0 | F32: 403.2258065 | G32: 403.2258065
C33: R1 (Y) | D33: =IF(D30>0,D28/D30,0) -> 0 | E33: 0 | F33: 0 | G33: 0
C34: SC t | D34: =LOOKUP(D32,' Shading CF'!$B7:$B15,' Shading CF'!K7:K15) -> 1 | E34: =LOOKUP(E32,' Shading CF'!$B7:$B15,' Shading CF'!L7:L15) -> 1 | F34: =LOOKUP(F32,' Shading CF'!$B7:$B15,' Shading CF'!M7:M15) -> 0.55 | G34: =LOOKUP(G32,' Shading CF'!$B7:$B15,' Shading CF'!N7:N15) -> 0.61
C35: SC y | D35: =LOOKUP(D33,' Shading CF'!$B7:$B15,' Shading CF'!K7:K15) -> 1 | E35: =LOOKUP(E33,' Shading CF'!$B7:$B15,' Shading CF'!L7:L15) -> 1 | F35: =LOOKUP(F33,' Shading CF'!$B7:$B15,' Shading CF'!M7:M15) -> 1 | G35: =LOOKUP(G33,' Shading CF'!$B7:$B15,' Shading CF'!N7:N15) -> 1
C36: SC z computed | D36: =((D30+D29)*D34-(D30*D35))/D29 -> 1 | E36: 1 | F36: 0.55 | G36: 0.61
C37: SC z | D37: =IF(D36<1,D36,1) -> 1 | E37: 1 | F37: 0.55 | G37: 0.61
C38: SC 1 normal | D38: =LOOKUP(D31,' Shading CF'!$B7:$B15,' Shading CF'!K7:K15) -> 1 | E38: =LOOKUP(E31,' Shading CF'!$B7:$B15,' Shading CF'!L7:L15) -> 1 | F38: =LOOKUP(F31,' Shading CF'!$B7:$B15,' Shading CF'!M7:M15) -> 0.55 | G38: =LOOKUP(G31,' Shading CF'!$B7:$B15,' Shading CF'!N7:N15) -> 0.61
C39: SC R1 | D39: =IF(D30>0,D37,D38) -> 1 | E39: 1 | F39: 0.55 | G39: 0.61
B41: Vertical Shading | C41: Width of Vertical Projection (VP) | D41: 750 | E41: 0 | F41: 0 | G41: 0
C42: Length of fenestration (L) | D42: 2 | E42: 1 | F42: 1 | G42: 1
C43: R2 | D43: =D41/D42 -> 375 | E43: 0 | F43: 0 | G43: 0
C44: SC R2 | D44: =LOOKUP(D43,' Shading CF'!$B20:$B28,' Shading CF'!K20:K28) -> 0.7 | E44: =LOOKUP(E43,' Shading CF'!$B20:$B28,' Shading CF'!L20:L28) -> 1 | F44: =LOOKUP(F43,' Shading CF'!$B20:$B28,' Shading CF'!M20:M28) -> 1 | G44: =LOOKUP(G43,' Shading CF'!$B20:$B28,' Shading CF'!N20:N28) -> 1
B46: Combined Shading | C46: Horizontal + Vertical Shading? (Eggcrate) | D46: =AND(IF(D28>0,TRUE,FALSE),IF(D41>0,TRUE,FALSE)) -> FALSE | E46: FALSE | F46: FALSE | G46: FALSE
C47: R1 (refer to MS 1525) | D47: =D31 -> 0 | E47: 0 | F47: 403.2258065 | G47: 403.2258065
C48: R2 (refer to MS 1525) | D48: =D43 -> 375 | E48: 0 | F48: 0 | G48: 0
B49: 0 | C49: SC R1 0 | D49: 0.7 | E49: 1 | F49: 1 | G49: 1
B50: 0.2 | C50: SC R1 0.2 | D50: =LOOKUP(D48,' Shading CF'!$C34:$C37,' Shading CF'!K34:K37) -> 0.56 | E50: =LOOKUP(E48,' Shading CF'!$C34:$C37,' Shading CF'!L34:L37) -> 0.885 | F50: =LOOKUP(F48,' Shading CF'!$C34:$C37,' Shading CF'!M34:M37) -> 0.885 | G50: =LOOKUP(G48,' Shading CF'!$C34:$C37,' Shading CF'!N34:N37) -> 0.895
B51: 0.4 | C51: SC R1 0.4 | D51: =LOOKUP(D48,' Shading CF'!$C39:$C42,' Shading CF'!K39:K42) -> 0.46 | E51: =LOOKUP(E48,' Shading CF'!$C39:$C42,' Shading CF'!L39:L42) -> 0.77 | F51: =LOOKUP(F48,' Shading CF'!$C39:$C42,' Shading CF'!M39:M42) -> 0.77 | G51: =LOOKUP(G48,' Shading CF'!$C39:$C42,' Shading CF'!N39:N42) -> 0.79
B52: 0.6 | C52: SC R1 0.6 | D52: =LOOKUP(D48,' Shading CF'!$C44:$C46,' Shading CF'!K44:K46) -> 0.43 | E52: =LOOKUP(E48,' Shading CF'!$C44:$C46,' Shading CF'!L44:L46) -> 0.71 | F52: =LOOKUP(F48,' Shading CF'!$C44:$C46,' Shading CF'!M44:M46) -> 0.68 | G52: =LOOKUP(G48,' Shading CF'!$C44:$C46,' Shading CF'!N44:N46) -> 0.71
B53: 0.8 | C53: SC R1 0.8 | D53: =LOOKUP(D48,' Shading CF'!$C48:$C50,' Shading CF'!K48:K50) -> 0.4 | E53: =LOOKUP(E48,' Shading CF'!$C48:$C50,' Shading CF'!L48:L50) -> 0.67 | F53: =LOOKUP(F48,' Shading CF'!$C48:$C50,' Shading CF'!M48:M50) -> 0.6 | G53: =LOOKUP(G48,' Shading CF'!$C48:$C50,' Shading CF'!N48:N50) -> 0.65
B54: 1 | C54: SC R1 1.0 | D54: =LOOKUP(D48,' Shading CF'!$C52:$C55,' Shading CF'!K52:K55) -> 0.38 | E54: =LOOKUP(E48,' Shading CF'!$C52:$C55,' Shading CF'!L52:L55) -> 0.67 | F54: =LOOKUP(F48,' Shading CF'!$C52:$C55,' Shading CF'!M52:M55) -> 0.6 | G54: =LOOKUP(G48,' Shading CF'!$C52:$C55,' Shading CF'!N52:N55) -> 0.65
B55: 1.2 | C55: SC R1 1.2 | D55: =LOOKUP(D48,' Shading CF'!$C58:$C60,' Shading CF'!K58:K60) -> 0.38 | E55: =LOOKUP(E48,' Shading CF'!$C58:$C60,' Shading CF'!L58:L60) -> 0.67 | F55: =LOOKUP(F48,' Shading CF'!$C58:$C60,' Shading CF'!M58:M60) -> 0.6 | G55: =LOOKUP(G48,' Shading CF'!$C58:$C60,' Shading CF'!N58:N60) -> 0.65
C56: SC R1 + R2 combined | D56: =LOOKUP(D47,$B49:$B55,D49:D55) -> 0.7 | E56: =LOOKUP(E47,$B49:$B55,E49:E55) -> 1 | F56: =LOOKUP(F47,$B49:$B55,F49:F55) -> 0.6 | G56: =LOOKUP(G47,$B49:$B55,G49:G55) -> 0.65
C58: SC of External Shades | D58: =IF(D46=TRUE,D56,IF(D41>0,D44,D39)) -> 0.7 | E58: 1 | F58: 0.55 | G58: 0.61
C61: Total SC | D61: =D21*D58 -> 0.315 | E61: 0.65 | F61: 0.2475 | G61: 0.2745
C62: OTTVi | D62: =($K$4*D18*(1-D17)*D19)+($K$5*D17*D20)+($K$3*D16*D17*D61) -> 38.18061 | E62: 11.7 | F62: 39.7637955 | G62: 36.2535498
C63: OTTVi x Area | D63: =D62*D24 -> 21762.9477 | E63: 6669 | F63: 11332.68172 | G63: 10332.26169 | H63: =SUM(D63:G63) -> 50096.89111
H64: =H63/H24 -> 29.29642755
C66: Calculation of Daylight Area
C67: Depth of Daylight Factor of 1.5% (m) from façade | D67: ='Input Data'!D60 -> 0.2 | E67: 1 | F67: 3 | G67: 2
C68: Estimated Glazing Length (m) | D68: =D23/D29 -> 185.25 | E68: 0 | F68: 59.75806452 | G68: 59.75806452
C69: Area Daylight (m2) | D69: =D68*D$67 -> 37.05 | E69: 0 | F69: 179.2741935 | G69: 119.516129
C70: Total Daylight Area (m2) | D70: =SUM(D69:G69)+D75 -> 335.8403226
C71: Percentage of Possible Daylight Area (%) | D71: =D70/D2 -> 0.2798669355
C73: Skylight Area | D73: ='Input Data'!D45*D8 -> 0 | E73: m2
C74: % area added to skylight area covered by daylight | D74: 0.15
C75: Total Daylight Area covered by Skylight | D75: =D73+D73*D74 -> 0 | E75: m2

Sheet OTTV Simplified Base (hidden)
B1: Shoe Box Shaped Building Assumed
C2: Total AC Floor Area | D2: ='Input Data'!C4 -> 1200 | E2: m2 | G2: Calculated OTTV | J2: OTTV Constants for Malaysia
C3: No of Floors (including Ground) | D3: ='Input Data'!C5 -> 6 | E3: floors | G3: =H64 -> 116.2712 | H3: W/m2 | J3: Solar Factor | K3: 194
C4: Floor to Floor Height | D4: ='Input Data'!C6 -> 4.75 | E4: m | J4: DT wall | K4: 15
C5: Aspect Ratio | D5: ='Input Data'!C7 -> 2 | E5: to 1 | J5: DT glazing | K5: 6
C6: Building Orientation Index | D6: ='OTTV Baseline'!D6 -> 1
C7: Building Orientation (Local North facing where?) | D7: =INDEX(Menu!A3:A18,'OTTV Baseline'!D6) -> North
C8: Floor Area per floor (Roof Area) | D8: =D2/D3 -> 200 | E8: m2
C9: Building Length (Local North) | D9: =SQRT(D8*D5) -> 20 | E9: m
C10: Building Width | D10: =D9/D5 -> 10 | E10: m
C11: Total Wall Area | D11: =(D9*D4*D3*2)+(D10*D4*D3*2) -> 1710 | E11: m2
C14: Actual Façade Direction | D14: =INDEX(Menu!$A3:$A18,'OTTV Simplified Base'!$D6) -> North | E14: =INDEX(Menu!$A3:$A18,'OTTV Simplified Base'!$D6+4) -> South | F14: =INDEX(Menu!$A3:$A18,'OTTV Simplified Base'!$D6+2) -> East | G14: =INDEX(Menu!$A3:$A18,'OTTV Simplified Base'!$D6+6) -> West
C15: Descriptions | D15: Local North | E15: Local South | F15: Local East | G15: Local West | H15: Total
C16: Solar Correction Factor | D16: =INDEX(Menu!$B3:$B18,'OTTV Simplified Base'!$D6) -> 0.9 | E16: =INDEX(Menu!$B3:$B18,'OTTV Simplified Base'!$D6+4) -> 0.92 | F16: =INDEX(Menu!$B3:$B18,'OTTV Simplified Base'!$D6+2) -> 1.23 | G16: =INDEX(Menu!$B3:$B18,'OTTV Simplified Base'!$D6+6) -> 0.94
C17: WWR | D17: ='Input Data'!C26 -> 0.8 | E17: =D17 -> 0.8 | F17: 0.8 | G17: 0.8
C18: Alpha (Colour of opaque Wall) | D18: ='Input Data'!C27 -> 1 | E18: =D18 -> 1 | F18: 1 | G18: 1
C19: U-value of Walls | D19: ='Input Data'!C28 -> 1.5 | E19: 1.5 | F19: 1.5 | G19: 1.5
C20: U-value of Glazing | D20: ='Input Data'!C29 -> 4.5 | E20: 4.5 | F20: 4.5 | G20: 4.5
C21: SC of glazing | D21: ='Input Data'!C30 -> 0.6 | E21: 0.6 | F21: 0.6 | G21: 0.6
C22: Opaque Wall Area (m2) | D22: =D24-D23 -> 114 | E22: 114 | F22: 57 | G22: 57
C23: Glazing Area (m2) | D23: =D24*D17 -> 456 | E23: 456 | F23: 228 | G23: 228
C24: Totall Wall area (m2) | D24: =D9*D4*D3 -> 570 | E24: =D24 -> 570 | F24: =D10*D4*D3 -> 285 | G24: =F24 -> 285 | H24: =SUM(D24:G24) -> 1710
C27: External Shading of Glazing
B28: Horizontal Shading | C28: Width of Horizontal Projection (HP) | D28: ='Input Data'!C32 -> 0 | E28: =D28 -> 0 | F28: 0 | G28: 0
C29: Height of fenestration (Z) | D29: ='Input Data'!C33 -> 1.8 | E29: =D29 -> 1.8 | F29: 1.8 | G29: 1.8
C30: Height of top of fenestration to bottom of projection (Y) | D30: ='Input Data'!C34 -> 0.8 | E30: 0.8 | F30: 0.8 | G30: 0.8
C31: R1 normal | D31: =D28/D29 -> 0 | E31: 0 | F31: 0 | G31: 0
C32: R1 (T) | D32: =D28/(D29+D30) -> 0 | E32: 0 | F32: 0 | G32: 0
C33: R1 (Y) | D33: =IF(D30>0,D28/D30,0) -> 0 | E33: 0 | F33: 0 | G33: 0
C34: SC t | D34: =LOOKUP(D32,' Shading CF'!$B7:$B15,' Shading CF'!K7:K15) -> 1 | E34: =LOOKUP(E32,' Shading CF'!$B7:$B15,' Shading CF'!L7:L15) -> 1 | F34: =LOOKUP(F32,' Shading CF'!$B7:$B15,' Shading CF'!M7:M15) -> 1 | G34: =LOOKUP(G32,' Shading CF'!$B7:$B15,' Shading CF'!N7:N15) -> 1
C35: SC y | D35: =LOOKUP(D33,' Shading CF'!$B7:$B15,' Shading CF'!K7:K15) -> 1 | E35: =LOOKUP(E33,' Shading CF'!$B7:$B15,' Shading CF'!L7:L15) -> 1 | F35: =LOOKUP(F33,' Shading CF'!$B7:$B15,' Shading CF'!M7:M15) -> 1 | G35: =LOOKUP(G33,' Shading CF'!$B7:$B15,' Shading CF'!N7:N15) -> 1
C36: SC z computed | D36: =((D30+D29)*D34-(D30*D35))/D29 -> 1 | E36: 1 | F36: 1 | G36: 1
C37: SC z | D37: =IF(D36<1,D36,1) -> 1 | E37: 1 | F37: 1 | G37: 1
C38: SC 1 normal | D38: =LOOKUP(D31,' Shading CF'!$B7:$B15,' Shading CF'!K7:K15) -> 1 | E38: =LOOKUP(E31,' Shading CF'!$B7:$B15,' Shading CF'!L7:L15) -> 1 | F38: =LOOKUP(F31,' Shading CF'!$B7:$B15,' Shading CF'!M7:M15) -> 1 | G38: =LOOKUP(G31,' Shading CF'!$B7:$B15,' Shading CF'!N7:N15) -> 1
C39: SC R1 | D39: =IF(D30>0,D37,D38) -> 1 | E39: 1 | F39: 1 | G39: 1
B41: Vertical Shading | C41: Width of Vertical Projection (VP) | D41: ='Input Data'!C36 -> 0 | E41: =D41 -> 0 | F41: 0 | G41: 0
C42: Length of fenestration (L) | D42: ='Input Data'!C37 -> 2.6 | E42: 2.6 | F42: 2.6 | G42: 2.6
C43: R2 | D43: =D41/D42 -> 0 | E43: 0 | F43: 0 | G43: 0
C44: SC R2 | D44: =LOOKUP(D43,' Shading CF'!$B20:$B28,' Shading CF'!K20:K28) -> 1 | E44: =LOOKUP(E43,' Shading CF'!$B20:$B28,' Shading CF'!L20:L28) -> 1 | F44: =LOOKUP(F43,' Shading CF'!$B20:$B28,' Shading CF'!M20:M28) -> 1 | G44: =LOOKUP(G43,' Shading CF'!$B20:$B28,' Shading CF'!N20:N28) -> 1
B46: Combined Shading | C46: Horizontal + Vertical Shading? (Eggcrate) | D46: =AND(IF(D28>0,TRUE,FALSE),IF(D41>0,TRUE,FALSE)) -> FALSE | E46: FALSE | F46: FALSE | G46: FALSE
C47: R1 (refer to MS 1525) | D47: =D31 -> 0 | E47: 0 | F47: 0 | G47: 0
C48: R2 (refer to MS 1525) | D48: =D43 -> 0 | E48: 0 | F48: 0 | G48: 0
B49: 0 | C49: SC R1 0 | D49: 1 | E49: 1 | F49: 1 | G49: 1
B50: 0.2 | C50: SC R1 0.2 | D50: =LOOKUP(D48,' Shading CF'!$C34:$C37,' Shading CF'!K34:K37) -> 0.885 | E50: =LOOKUP(E48,' Shading CF'!$C34:$C37,' Shading CF'!L34:L37) -> 0.885 | F50: =LOOKUP(F48,' Shading CF'!$C34:$C37,' Shading CF'!M34:M37) -> 0.885 | G50: =LOOKUP(G48,' Shading CF'!$C34:$C37,' Shading CF'!N34:N37) -> 0.895
B51: 0.4 | C51: SC R1 0.4 | D51: =LOOKUP(D48,' Shading CF'!$C39:$C42,' Shading CF'!K39:K42) -> 0.77 | E51: =LOOKUP(E48,' Shading CF'!$C39:$C42,' Shading CF'!L39:L42) -> 0.77 | F51: =LOOKUP(F48,' Shading CF'!$C39:$C42,' Shading CF'!M39:M42) -> 0.77 | G51: =LOOKUP(G48,' Shading CF'!$C39:$C42,' Shading CF'!N39:N42) -> 0.79
B52: 0.6 | C52: SC R1 0.6 | D52: =LOOKUP(D48,' Shading CF'!$C44:$C46,' Shading CF'!K44:K46) -> 0.71 | E52: =LOOKUP(E48,' Shading CF'!$C44:$C46,' Shading CF'!L44:L46) -> 0.71 | F52: =LOOKUP(F48,' Shading CF'!$C44:$C46,' Shading CF'!M44:M46) -> 0.68 | G52: =LOOKUP(G48,' Shading CF'!$C44:$C46,' Shading CF'!N44:N46) -> 0.71
B53: 0.8 | C53: SC R1 0.8 | D53: =LOOKUP(D48,' Shading CF'!$C48:$C50,' Shading CF'!K48:K50) -> 0.67 | E53: =LOOKUP(E48,' Shading CF'!$C48:$C50,' Shading CF'!L48:L50) -> 0.67 | F53: =LOOKUP(F48,' Shading CF'!$C48:$C50,' Shading CF'!M48:M50) -> 0.6 | G53: =LOOKUP(G48,' Shading CF'!$C48:$C50,' Shading CF'!N48:N50) -> 0.65
B54: 1 | C54: SC R1 1.0 | D54: =LOOKUP(D48,' Shading CF'!$C52:$C55,' Shading CF'!K52:K55) -> 0.67 | E54: =LOOKUP(E48,' Shading CF'!$C52:$C55,' Shading CF'!L52:L55) -> 0.67 | F54: =LOOKUP(F48,' Shading CF'!$C52:$C55,' Shading CF'!M52:M55) -> 0.6 | G54: =LOOKUP(G48,' Shading CF'!$C52:$C55,' Shading CF'!N52:N55) -> 0.65
B55: 1.2 | C55: SC R1 1.2 | D55: =LOOKUP(D48,' Shading CF'!$C58:$C60,' Shading CF'!K58:K60) -> 0.67 | E55: =LOOKUP(E48,' Shading CF'!$C58:$C60,' Shading CF'!L58:L60) -> 0.67 | F55: =LOOKUP(F48,' Shading CF'!$C58:$C60,' Shading CF'!M58:M60) -> 0.6 | G55: =LOOKUP(G48,' Shading CF'!$C58:$C60,' Shading CF'!N58:N60) -> 0.65
C56: SC R1 + R2 combined | D56: =LOOKUP(D47,$B49:$B55,D49:D55) -> 1 | E56: =LOOKUP(E47,$B49:$B55,E49:E55) -> 1 | F56: =LOOKUP(F47,$B49:$B55,F49:F55) -> 1 | G56: =LOOKUP(G47,$B49:$B55,G49:G55) -> 1
C58: SC of External Shades | D58: =IF(D46=TRUE,D56,IF(D41>0,D44,D39)) -> 1 | E58: 1 | F58: 1 | G58: 1
C61: Total SC | D61: =D21*D58 -> 0.6 | E61: 0.6 | F61: 0.6 | G61: 0.6
C62: OTTVi | D62: =($K$4*D18*(1-D17)*D19)+($K$5*D17*D20)+($K$3*D16*D17*D61) -> 109.908 | E62: 111.7704 | F62: 140.6376 | G62: 113.6328
C63: OTTVi x Area | D63: =D62*D24 -> 62647.56 | E63: 63709.128 | F63: 40081.716 | G63: 32385.348 | H63: =SUM(D63:G63) -> 198823.752
H64: =H63/H24 -> 116.2712
C66: Calculation of Daylight Area
C67: Depth of Daylight Factor of 1.5% (m) | D67: ='Input Data'!C60 -> 0
C68: Glazing Length (m) | D68: =D23/D29 -> 253.3333333 | E68: 253.3333333 | F68: 126.6666667 | G68: 126.6666667
C69: Area Daylight (m2) | D69: =D68*$D$67 -> 0 | E69: =E68*$D$67 -> 0 | F69: =F68*$D$67 -> 0 | G69: =G68*$D$67 -> 0
C70: Total Daylight Area (m2) | D70: =SUM(D69:G69)+D75 -> 0
C71: Percentage of Possible Daylight Area (%) | D71: =D70/D2 -> 0
C73: Skylight Area | D73: ='Input Data'!C45*D8 -> 0 | E73: m2
C74: Add % of area to skylight area covered by daylight | D74: 0.15
C75: Total Skylight Area covered by Daylighting | D75: =D73+D73*D74 -> 0 | E75: m2

Sheet OTTV Simplified Proposed (hidden)
B1: Shoe Box Shaped Building Assumed
C2: Total AC Floor Area | D2: ='Input Data'!C4 -> 1200 | E2: m2 | G2: Calculated OTTV | J2: OTTV Constants for Malaysia
C3: No of Floors (including Ground) | D3: ='Input Data'!C5 -> 6 | E3: floors | G3: =H64 -> 48.057645 | H3: W/m2 | J3: Solar Factor | K3: 194
C4: Floor to Floor Height | D4: ='Input Data'!C6 -> 4.75 | E4: m | J4: DT wall | K4: 15
C5: Aspect Ratio | D5: ='Input Data'!C7 -> 2 | E5: to 1 | J5: DT glazing | K5: 6
C6: Building Orientation Index | D6: ='OTTV Baseline'!D6 -> 1
C7: Building Orientation (Local North facing where?) | D7: =INDEX(Menu!A3:A18,'OTTV Baseline'!D6) -> North
C8: Floor Area per floor (Roof Area) | D8: =D2/D3 -> 200 | E8: m2
C9: Building Length (Local North) | D9: =SQRT(D8*D5) -> 20 | E9: m
C10: Building Width | D10: =D9/D5 -> 10 | E10: m
C11: Total Wall Area | D11: =(D9*D4*D3*2)+(D10*D4*D3*2) -> 1710 | E11: m2
C14: Actual Façade Direction | D14: =INDEX(Menu!$A3:$A18,'OTTV Simplified Proposed '!$D6) -> North | E14: =INDEX(Menu!$A3:$A18,'OTTV Simplified Proposed '!$D6+4) -> South | F14: =INDEX(Menu!$A3:$A18,'OTTV Simplified Proposed '!$D6+2) -> East | G14: =INDEX(Menu!$A3:$A18,'OTTV Simplified Proposed '!$D6+6) -> West
C15: Descriptions | D15: Local North | E15: Local South | F15: Local East | G15: Local West | H15: Total
C16: Solar Correction Factor | D16: =INDEX(Menu!$B3:$B18,'OTTV Simplified Proposed '!$D6) -> 0.9 | E16: =INDEX(Menu!$B3:$B18,'OTTV Simplified Proposed '!$D6+4) -> 0.92 | F16: =INDEX(Menu!$B3:$B18,'OTTV Simplified Proposed '!$D6+2) -> 1.23 | G16: =INDEX(Menu!$B3:$B18,'OTTV Simplified Proposed '!$D6+6) -> 0.94
C17: WWR | D17: ='Input Data'!D26 -> 0.5 | E17: =D17 -> 0.5 | F17: 0.5 | G17: 0.5
C18: Alpha (Colour of opaque Wall) | D18: ='Input Data'!D27 -> 1 | E18: 1 | F18: 1 | G18: 1
C19: U-value of Walls | D19: ='Input Data'!D28 -> 1.5 | E19: 1.5 | F19: 1.5 | G19: 1.5
C20: U-value of Glazing | D20: ='Input Data'!D29 -> 4.5 | E20: 4.5 | F20: 4.5 | G20: 4.5
C21: SC of glazing | D21: ='Input Data'!D30 -> 0.3 | E21: 0.3 | F21: 0.3 | G21: 0.3
C22: Opaque Wall Area (m2) | D22: =D24-D23 -> 285 | E22: 285 | F22: 142.5 | G22: 142.5
C23: Glazing Area (m2) | D23: =D24*D17 -> 285 | E23: 285 | F23: 142.5 | G23: 142.5
C24: Totall Wall area (m2) | D24: =D9*D4*D3 -> 570 | E24: =D24 -> 570 | F24: =D10*D4*D3 -> 285 | G24: =F24 -> 285 | H24: =SUM(D24:G24) -> 1710
C27: External Shading of Glazing
B28: Horizontal Shading | C28: Width of Horizontal Projection (HP) | D28: ='Input Data'!D32 -> 1 | E28: =D28 -> 1 | F28: 1 | G28: 1
C29: Height of fenestration (Z) | D29: ='Input Data'!D33 -> 1.8 | E29: 1.8 | F29: 1.8 | G29: 1.8
C30: Height of top of fenestration to bottom of projection (Y) | D30: ='Input Data'!D34 -> 0.8 | E30: 0.8 | F30: 0.8 | G30: 0.8
C31: R1 normal | D31: =D28/D29 -> 0.5555555556 | E31: 0.5555555556 | F31: 0.5555555556 | G31: 0.5555555556
C32: R1 (T) | D32: =D28/(D29+D30) -> 0.3846153846 | E32: 0.3846153846 | F32: 0.3846153846 | G32: 0.3846153846
C33: R1 (Y) | D33: =IF(D30>0,D28/D30,0) -> 1.25 | E33: 1.25 | F33: 1.25 | G33: 1.25
C34: SC t | D34: =LOOKUP(D32,' Shading CF'!$B7:$B15,' Shading CF'!K7:K15) -> 0.77 | E34: =LOOKUP(E32,' Shading CF'!$B7:$B15,' Shading CF'!L7:L15) -> 0.77 | F34: =LOOKUP(F32,' Shading CF'!$B7:$B15,' Shading CF'!M7:M15) -> 0.77 | G34: =LOOKUP(G32,' Shading CF'!$B7:$B15,' Shading CF'!N7:N15) -> 0.79
C35: SC y | D35: =LOOKUP(D33,' Shading CF'!$B7:$B15,' Shading CF'!K7:K15) -> 0.67 | E35: =LOOKUP(E33,' Shading CF'!$B7:$B15,' Shading CF'!L7:L15) -> 0.67 | F35: =LOOKUP(F33,' Shading CF'!$B7:$B15,' Shading CF'!M7:M15) -> 0.6 | G35: =LOOKUP(G33,' Shading CF'!$B7:$B15,' Shading CF'!N7:N15) -> 0.65
C36: SC z computed | D36: =((D30+D29)*D34-(D30*D35))/D29 -> 0.8144444444 | E36: 0.8144444444 | F36: 0.8455555556 | G36: 0.8522222222
C37: SC z | D37: =IF(D36<1,D36,1) -> 0.8144444444 | E37: 0.8144444444 | F37: 0.8455555556 | G37: 0.8522222222
C38: SC 1 normal | D38: =LOOKUP(D31,' Shading CF'!$B7:$B15,' Shading CF'!K7:K15) -> 0.71 | E38: =LOOKUP(E31,' Shading CF'!$B7:$B15,' Shading CF'!L7:L15) -> 0.71 | F38: =LOOKUP(F31,' Shading CF'!$B7:$B15,' Shading CF'!M7:M15) -> 0.68 | G38: =LOOKUP(G31,' Shading CF'!$B7:$B15,' Shading CF'!N7:N15) -> 0.71
C39: SC R1 | D39: =IF(D30>0,D37,D38) -> 0.8144444444 | E39: 0.8144444444 | F39: 0.8455555556 | G39: 0.8522222222
B41: Vertical Shading | C41: Width of Vertical Projection (VP) | D41: ='Input Data'!D36 -> 0 | E41: =D41 -> 0 | F41: 0 | G41: 0
C42: Length of fenestration (L) | D42: ='Input Data'!D37 -> 2.6 | E42: 2.6 | F42: 2.6 | G42: 2.6
C43: R2 | D43: =D41/D42 -> 0 | E43: 0 | F43: 0 | G43: 0
C44: SC R2 | D44: =LOOKUP(D43,' Shading CF'!$B20:$B28,' Shading CF'!K20:K28) -> 1 | E44: =LOOKUP(E43,' Shading CF'!$B20:$B28,' Shading CF'!L20:L28) -> 1 | F44: =LOOKUP(F43,' Shading CF'!$B20:$B28,' Shading CF'!M20:M28) -> 1 | G44: =LOOKUP(G43,' Shading CF'!$B20:$B28,' Shading CF'!N20:N28) -> 1
B46: Combined Shading | C46: Horizontal + Vertical Shading? (Eggcrate) | D46: =AND(IF(D28>0,TRUE,FALSE),IF(D41>0,TRUE,FALSE)) -> FALSE | E46: FALSE | F46: FALSE | G46: FALSE
C47: R1 (refer to MS 1525) | D47: =D31 -> 0.5555555556 | E47: 0.5555555556 | F47: 0.5555555556 | G47: 0.5555555556
C48: R2 (refer to MS 1525) | D48: =D43 -> 0 | E48: 0 | F48: 0 | G48: 0
B49: 0 | C49: SC R1 0 | D49: 1 | E49: 1 | F49: 1 | G49: 1
B50: 0.2 | C50: SC R1 0.2 | D50: =LOOKUP(D48,' Shading CF'!$C34:$C37,' Shading CF'!K34:K37) -> 0.885 | E50: =LOOKUP(E48,' Shading CF'!$C34:$C37,' Shading CF'!L34:L37) -> 0.885 | F50: =LOOKUP(F48,' Shading CF'!$C34:$C37,' Shading CF'!M34:M37) -> 0.885 | G50: =LOOKUP(G48,' Shading CF'!$C34:$C37,' Shading CF'!N34:N37) -> 0.895
B51: 0.4 | C51: SC R1 0.4 | D51: =LOOKUP(D48,' Shading CF'!$C39:$C42,' Shading CF'!K39:K42) -> 0.77 | E51: =LOOKUP(E48,' Shading CF'!$C39:$C42,' Shading CF'!L39:L42) -> 0.77 | F51: =LOOKUP(F48,' Shading CF'!$C39:$C42,' Shading CF'!M39:M42) -> 0.77 | G51: =LOOKUP(G48,' Shading CF'!$C39:$C42,' Shading CF'!N39:N42) -> 0.79
B52: 0.6 | C52: SC R1 0.6 | D52: =LOOKUP(D48,' Shading CF'!$C44:$C46,' Shading CF'!K44:K46) -> 0.71 | E52: =LOOKUP(E48,' Shading CF'!$C44:$C46,' Shading CF'!L44:L46) -> 0.71 | F52: =LOOKUP(F48,' Shading CF'!$C44:$C46,' Shading CF'!M44:M46) -> 0.68 | G52: =LOOKUP(G48,' Shading CF'!$C44:$C46,' Shading CF'!N44:N46) -> 0.71
B53: 0.8 | C53: SC R1 0.8 | D53: =LOOKUP(D48,' Shading CF'!$C48:$C50,' Shading CF'!K48:K50) -> 0.67 | E53: =LOOKUP(E48,' Shading CF'!$C48:$C50,' Shading CF'!L48:L50) -> 0.67 | F53: =LOOKUP(F48,' Shading CF'!$C48:$C50,' Shading CF'!M48:M50) -> 0.6 | G53: =LOOKUP(G48,' Shading CF'!$C48:$C50,' Shading CF'!N48:N50) -> 0.65
B54: 1 | C54: SC R1 1.0 | D54: =LOOKUP(D48,' Shading CF'!$C52:$C55,' Shading CF'!K52:K55) -> 0.67 | E54: =LOOKUP(E48,' Shading CF'!$C52:$C55,' Shading CF'!L52:L55) -> 0.67 | F54: =LOOKUP(F48,' Shading CF'!$C52:$C55,' Shading CF'!M52:M55) -> 0.6 | G54: =LOOKUP(G48,' Shading CF'!$C52:$C55,' Shading CF'!N52:N55) -> 0.65
B55: 1.2 | C55: SC R1 1.2 | D55: =LOOKUP(D48,' Shading CF'!$C58:$C60,' Shading CF'!K58:K60) -> 0.67 | E55: =LOOKUP(E48,' Shading CF'!$C58:$C60,' Shading CF'!L58:L60) -> 0.67 | F55: =LOOKUP(F48,' Shading CF'!$C58:$C60,' Shading CF'!M58:M60) -> 0.6 | G55: =LOOKUP(G48,' Shading CF'!$C58:$C60,' Shading CF'!N58:N60) -> 0.65
C56: SC R1 + R2 combined | D56: =LOOKUP(D47,$B49:$B55,D49:D55) -> 0.77 | E56: =LOOKUP(E47,$B49:$B55,E49:E55) -> 0.77 | F56: =LOOKUP(F47,$B49:$B55,F49:F55) -> 0.77 | G56: =LOOKUP(G47,$B49:$B55,G49:G55) -> 0.79
C58: SC of External Shades | D58: =IF(D46=TRUE,D56,IF(D41>0,D44,D39)) -> 0.8144444444 | E58: 0.8144444444 | F58: 0.8455555556 | G58: 0.8522222222
C61: Total SC | D61: =D21*D58 -> 0.2443333333 | E61: 0.2443333333 | F61: 0.2536666667 | G61: 0.2556666667
C62: OTTVi | D62: =($K$4*D18*(1-D17)*D19)+($K$5*D17*D20)+($K$3*D16*D17*D61) -> 46.0803 | E62: 46.55430667 | F62: 55.01497 | G62: 48.06168667
C63: OTTVi x Area | D63: =D62*D24 -> 26265.771 | E63: 26535.9548 | F63: 15679.26645 | G63: 13697.5807 | H63: =SUM(D63:G63) -> 82178.57295
H64: =H63/H24 -> 48.057645
C66: Calculation of Daylight Area
C67: Depth of Daylight Factor of 1.5% (m) | D67: ='Input Data'!D60 -> 0.2
C68: Glazing Length (m) | D68: =D23/D29 -> 158.3333333 | E68: 158.3333333 | F68: 79.16666667 | G68: 79.16666667
C69: Area Daylight (m2) | D69: =D68*$D$67 -> 31.66666667 | E69: =E68*$D$67 -> 31.66666667 | F69: =F68*$D$67 -> 15.83333333 | G69: =G68*$D$67 -> 15.83333333
C70: Total Daylight Area (m2) | D70: =SUM(D69:G69)+D75 -> 95
C71: Percentage of Possible Daylight Area (%) | D71: =D70/D2 -> 0.07916666667
C73: Skylight Area | D73: ='Input Data'!D45*D8 -> 0 | E73: m2
C74: Add % of area to skylight area covered by daylight | D74: 0.15
C75: Total Skylight Area covered by Daylighting | D75: =D73+D73*D74 -> 0 | E75: m2

Sheet RTTV Base (hidden)
B1: ShoeBox Shape building assumed
C3: Total Roof Area | D3: ='OTTV Baseline'!D8 -> 200 | E3: m2
C4: Percentage of Skylight | D4: ='Input Data'!C45 -> 0
C5: Area of Skylight | D5: =D4*D3 -> 0 | E5: m2
C6: Area of Opaque Roof | D6: =D3-D5 -> 200 | E6: m2
C7: U-value of Opaque Roof | D7: ='Input Data'!C46 -> 2.533 | E7: W/m2K
C8: Roof Category Index | D8: ='Input Data'!C49 -> 2
C9: Roof Category | D9: =INDEX(Menu!E3:E4,' RTTV Base'!D8) -> Heavy Weight
C10: TDeq | D10: =INDEX(Menu!F3:F4,D8) -> 20
C11: U-value of Skylight | D11: ='Input Data'!C47 -> 5.7 | E11: W/m2K
C12: DT | D12: ='Building Energy Base'!C94 -> 5.3 | E12: deg Celcius
C13: Shading Coefficient of Skylight | D13: ='Input Data'!C48 -> 0.67
C14: SF | D14: 323 | E14: W/m2
C16: RTTV | D16: =((D6*D7*D10)+(D5*D11*D12)+(D5*D13*D14))/D3 -> 50.66 | E16: W/m2

Sheet RTTV Proposed (hidden)
B1: ShoeBox Shape building assumed
C3: Total Roof Area | D3: ='OTTV Proposed'!D8 -> 200 | E3: m2
C4: Percentage of Skylight | D4: ='Input Data'!D45 -> 0
C5: Area of Skylight | D5: =D4*D3 -> 0 | E5: m2
C6: Area of Opaque Roof | D6: =D3-D5 -> 200 | E6: m2
C7: U-value of Opaque Roof | D7: ='Input Data'!D46 -> 0.592 | E7: W/m2K
C8: Roof Category Index | D8: ='Input Data'!D49 -> 2
C9: Roof Category | D9: =INDEX(Menu!E3:E4,' RTTV Proposed'!D8) -> Heavy Weight
C10: TDeq | D10: =INDEX(Menu!F3:F4,D8) -> 20
C11: U-value of Skylight | D11: ='Input Data'!D47 -> 5.7 | E11: W/m2K
C12: DT | D12: ='Building Energy Proposed'!C94 -> 5.3 | E12: deg Celcius
C13: Shading Coefficient of Skylight | D13: ='Input Data'!D48 -> 0.67
C14: SF | D14: 323 | E14: W/m2
C16: RTTV | D16: =((D6*D7*D10)+(D5*D11*D12)+(D5*D13*D14))/D3 -> 11.84 | E16: W/m2

Sheet Building Energy Base (hidden)
A1: Energy & Cooling Load Calculation based on Steady State Conditions
A2: Assumptions | O2: Calculation Method based on UK Guidance for the use of the Carbon Emissions Calculation Method
G3: Misc Loads | H3: Non AC hrs | I3: =8760-C9 -> 6060
G4: Elevators and Escalators | I4: kWh/year | J4: Input Data | K4: Diversity Factor | O4: Full Load Chiller COP | Q4: =C46 -> 4.4
A5: Operating Hours | G5: Elevators and Escalators during AC hours (kW/building) | H5: =J5*K5 -> 1.125 | I5: =H5*8760 -> 9855 | J5: ='Input Data'!C77 -> 25 | K5: =(0.3*0.15) -> 0.045 | O5: 50% Capacity COP | Q5: =Q4*5/6 -> 3.666666667 | R5: Based on GPG59, Effi. of screw compressor, 60% full load power at 50% capacity.
G6: Elevators and Escalators during non AC hours (kW/building) | H6: 0 | I6: =H6*$I$3 -> 0
B7: Hours of Operation | C7: ='Input Data'!C17 -> 10 | D7: hours/day | G7: Hydraulic systems | O7: %total load | P7: Compressor 1 | Q7: Compressor 2 | R7: Overall CoP | S7: ARI weighting 1st approximation
B8: Working Days | C8: ='Input Data'!C18 -> 270 | D8: days/year | G8: Hydraulic systems during AC hours (kW/building) | H8: =J8*K8 -> 0.3 | I8: =H8*$C$9 -> 810 | J8: ='Input Data'!C79 -> 2 | K8: 0.15 | O8: 1 | P8: 1 | Q8: 1 | R8: =(0.5*Q4)+(0.5*Q4) -> 4.4 | S8: 0.01 | T8: =R8*S8 -> 0.044 | U8: =O8*S8 -> 0.01
B9: AC operating Hours | C9: =C7*C8 -> 2700 | D9: hours/year | G9: Hydraulic systems during non AC hours (kW/building) | H9: 0 | I9: =H9*$I$3 -> 0 | O9: 0.75 | P9: 1 | Q9: 0.5 | R9: =(0.67*Q4)+(0.33*Q5) -> 4.158 | S9: 0.42 | T9: 1.74636 | U9: 0.315
A10: Outside Conditions | G10: External lighting | L10: hours/day | M10: Days | O10: 0.5 | P10: 1 | Q10: 0 | R10: =1*Q4 -> 4.4 | S10: 0.45 | T10: 1.98 | U10: 0.225
B11: Outside Average Temp during AC hours | C11: 29.3 | D11: Celcius | E11: Fixed | G11: External lighting prorated (kW/building) | H11: =J11 -> 2 | I11: =H11*K11*L11*M11+H11*K12*L12*M12 -> 3706.2 | J11: ='Input Data'!C81 -> 2 | K11: 1 | L11: 5 | M11: 261 | N11: 7-midnite | O11: 0.25 | P11: 0.5 | Q11: 0 | R11: =1*Q5 -> 3.666666667 | S11: 0.12 | T11: 0.44 | U11: 0.03
B12: Outside Average Temp during None AC hours | C12: 24.8 | D12: Celcius | E12: Fixed | G12: External lighting during non AC hours (kW/building) | H12: 0 | I12: =H12*$I$3 -> 0 | K12: 0.3 | L12: 7 | M12: 261 | N12: mid-7am | S12: =SUM(S8:S11) -> 1 | T12: 4.21036 | U12: 0.58 | W12: =T12/Q4 -> 0.9569
B13: Outside Average Humidity during AC hours | C13: 0.01817402242 | D13: kg/kg | E13: Fixed | G13: Others
G14: Others during AC hours (kW/building) | H14: 0 | I14: =H14*$C$9 -> 0
G15: Others during non AC hours (kW/building) | H15: 0 | I15: =H15*$I$3 -> 0 | O15: COSP | P15: =(P20*P18)/(1+T18) -> 3.63622
H16: Total Misc | I16: =SUM(I5:I15) -> 14371.2
O17: CD | P17: 1 | S17: Dist Losses | T17: Heat Rejection Power
O18: Fdl | P18: =1-S18 -> 0.95 | Q18: distribution losses | S18: 0.05 | T18: ='Input Data'!C90 -> 0.1
A19: Input Data | G19: Results Summary | O19: Fhr | P19: =T18 -> 0.1 | Q19: heat rejection losses based on GPG256. Water Pump load at 22W/kW of rejected heat. Fan power of dry cooler 25 W/kW of rejected Heat.
H20: Total Energy Used | J20: % | K20: Energy Index | O20: CoPav | P20: =T12 -> 4.21036
A21: Building Data | G21: =B249 -> Cooling Energy | H21: 154.950782 | I21: MWh/year | J21: =H21/H$29 -> 0.5297176731 | K21: =J21*K$30 -> 129.1256517 | L21: =L30 -> kWh/m2/year
B22: AC Floor Area | C22: ='Input Data'!C4 -> 1200 | D22: m2 | G22: Fan Energy | H22: 16.07940495 | I22: MWh/year | J22: 0.05496935778 | K22: 13.39950413 | L22: =L21 -> kWh/m2/year
B23: Floor to Floor height | C23: ='OTTV Baseline'!D4 -> 4.75 | D23: m | G23: Total Air-Conditioning Energy Used | H23: 171.030187 | I23: MWh/year | J23: 0.5846870309 | K23: 142.5251558 | L23: kWh/m2/year | O23: CD*Fdl/CoPav | P23: =P17*P18/P20 -> 0.2256339125
B24: AC Volume | C24: =C22*C23 -> 5700 | D24: m3 | O24: (1+1/CoPav) | P24: =(1/P20)+1 -> 1.237509382
B25: Total AC External Wall Area | C25: ='OTTV Baseline'!D11 -> 1710 | D25: m2 | E25: ='OTTV Baseline'!D11 -> 1710 | F25: m2 | G25: =B253 -> Lighting Energy Used | H25: =C253 -> 47.6064 | I25: MWh/year | J25: =H25/H$29 -> 0.1627481391 | K25: =J25*K$30 -> 39.672 | L25: =L23 -> kWh/m2/year | O25: CD*FDS*Fhr*add | P25: =P17*P18*P24*P19 -> 0.1175633913
B26: Total AC Roof Area | C26: ='OTTV Baseline'!D8 -> 200 | D26: m2 | G26: Plug Load Energy Used | H26: 59.508 | I26: MWh/year | J26: =H26/H$29 -> 0.2034351739 | K26: 49.59 | L26: kWh/m2/year
G27: Misc Load Energy Used | H27: =I16/1000 -> 14.3712 | I27: MWh/year | J27: =C255/H$29 -> 0.04912965604 | K27: 11.976 | L27: kWh/m2/year
B28: Calculated OTTV | C28: ='Input Data'!C39 -> 50.090105 | D28: W/m2 | E28: ='OTTV Baseline'!G3 -> 50.090105 | F28: W/m2
B29: Calculated RTTV | C29: =' RTTV Base'!D16 -> 50.66 | D29: W/m2 | G29: =B257 -> Total Building Energy used | H29: 292.515787 | I29: MWh/year
G30: Building Energy Index | K30: =C258 -> 243.7631558 | L30: =D258 -> kWh/m2/year
A33: Plug Load Heat Gain | G33: =G21 -> Cooling Energy | H33: =K21 -> 129.1256517 | I33: =L30 -> kWh/m2/year
B34: Plug Load Heat Gain during AC hours | C34: ='Input Data'!C67 -> 15 | D34: W/m2 | G34: =G22 -> Fan Energy | H34: =K22 -> 13.39950413 | I34: =I33 -> kWh/m2/year
B35: Plug Load Heat Gain during none AC hours | C35: ='Input Data'!C68 -> 1.5 | D35: W/m2 | G35: =G25 -> Lighting Energy Used | H35: =K25 -> 39.672 | I35: kWh/m2/year
B36: Total Heat Gain during AC hours | C36: =C34*C$22/1000 -> 18 | D36: kW | G36: =G26 -> Plug Load Energy Used | H36: =K26 -> 49.59 | I36: kWh/m2/year
B37: Total Heat Gain during None AC hours | C37: 1.8 | D37: kW
A38: Lighting Heat Gain
B39: Lighting Heat Gain during AC hours | C39: ='Input Data'!C56 -> 12 | D39: W/m2
B40: Lighting Heat Gain during none AC hours | C40: ='Input Data'!C57 -> 1.2 | D40: W/m2
B41: Total Heat Gain during AC hours | C41: 14.4 | D41: kW
B42: Total Heat Gain during None AC hours | C42: 1.44 | D42: kW
A44: System Used
B45: CO2 control of Fresh Air Inlet used? | C45: =IF('Input Data'!C92=1,1,0) -> 0 | D45: 1=yes, 0=no
B46: COP of chiller | C46: ='Input Data'!C89 -> 4.4
B47: COSP (Coefficient of System Performance) | C47: =P15 -> 3.63622
A49: Fan Data
B50: Combined Fan&Motor Efficiency | C50: ='Input Data'!C97 -> 0.65 | D50: efficiency
B51: Static Pressure | C51: ='Input Data'!C98 -> 350 | D51: Pa
B52: Supply Air Temperature (off coil temperature) | C52: 13 | D52: Celcius | E52: Fixed Data
A55: Indoor Air Conditions
B56: Indoor AC Temperature | C56: ='Input Data'!C94 -> 24 | D56: Celcius
B57: Indoor AC Relative Humidity | C57: ='Input Data'!C95 -> 0.65 | D57: Percentage
B58: =B57 -> Indoor AC Relative Humidity | C58: =C57*100 -> 65 | D58: %
B59: Indoor Abs Humidity Ratio (kg/kg) | C59: =g_t_rh(C56,C58) -> 0.01218784321 | D59: kg/kg
A63: Infiltration
B64: ACH | C64: ='Input Data'!C105 -> 1 | D64: ach
A66: Occupants Data
B67: Occupant Density | C67: ='Input Data'!C13 -> 10 | D67: m2/person
B68: No of Occupants | C68: =C95/C67 -> 120 | D68: persons
B69: People Sensible Heat per person | C69: 90 | D69: W/person
B70: People Latent Heat per person | C70: 60 | D70: W/person
B71: Min Fresh Air per person | C71: =C72*C22/C68+C73 -> 5.5 | D71: l/s/person
B72: ASHRAE 62. Area requirement | C72: 0.3 | D72: l/s/m2
B73: People requirement | C73: 2.5 | D73: l/s/person
A76: CALCULATION DATA | T76: latent heat of vaprorization of water (kJ/kg) at atmos | U76: = | V76: 2257.92
B78: OTTV Calculation (Fabric Heat Load) | T78: = | U78: =T97 -> 1.205
B79: Total Heat Gain from Façade | C79: =C25*C28/1000 -> 85.65407955 | D79: kW
T80: = | U80: air change rate
B81: RTTV Calculation (Roof Heat Load)
B82: Total Heat Gain from Roof | C82: =C26*C29/1000 -> 10.132 | D82: kW | T82: = | V82: kg/kg
B84: Air Infiltration during AC hours (8am to 6pm - 10 hours everyday)
B86: Inside Average Temp during AC hours | C86: =C56 -> 24 | D86: Celcius
A87: Iterated | B87: Inside Average Temp during None AC Hours | C87: =E87 -> 25.51675224 | D87: Celcius | E87: =C190 -> 25.51675224 | F87: Celcius
B88: Outside Average Humidity during AC hours | C88: =C13 -> 0.01817402242 | D88: kg/kg | E88: Fixed
B89: Inside Average Humidity during AC hours | C89: =C59 -> 0.01218784321 | D89: kg/kg
B90: Latent Heat of Vaporisation of Water at Atmos | C90: 2257.92 | D90: kJ/kg | E90: Fixed
B91: Air Density at Room Condition | C91: =rho_t_g(C86,C89) -> 1.165668607 | D91: kg/m3 | E91: Fixed
B92: Specific heat of air at Room Condition | C92: 1.005 | D92: kJ/kg.K | E92: Fixed
B93: Delta Humidity Ratio during AC hours | C93: =C88-C89 -> 0.005986179205 | D93: kg/kg
B94: Delta Temperature diff during AC hours | C94: =C11-C86 -> 5.3 | D94: Celcius
B95: Floor Area | C95: =C22 -> 1200 | D95: m2 | R95: = | S95: 1.005 | T95: kJ/kg.K
B97: Flow Rate of Infiltrated Air | C97: =C24*C64 -> 5700 | D97: m3/h | S97: = | T97: 1.205 | U97: kg/m3
B99: Min Fresh Air Flow Rate required for occupants | C99: =C68*C71 -> 660 | D99: l/s
B100: Min Fresh Air Flow Rate required for occupants | C100: =C99*3.6 -> 2376 | D100: m3/h
Q101: = | R101: =H100 -> 0
A102: No Control of Fresh Air Intake (Infiltration + Mech Fresh Air)
B104: Flow rate of Fresh air is | C104: =C100+C97 -> 8076 | D104: m3/h
B105: Flow rate of Fresh air is | C105: =C104/3.6 -> 2243.333333 | D105: l/s
B106: Flow rate of Fresh air is | C106: =C104/C$24 -> 1.416842105 | D106: ach
A107: Heat due to Fresh air intake
B108: Q sensible air intake (AC Hours) | C108: =C$92*C$91*C104*C$94/3600 -> 13.92870823 | D108: kW | E108: 10 | F108: hours
B109: Q sensible air intake (none AC Hours) | C109: =C$92*C$91*C104*(C$12-C$87)/3600 -> -1.883666579 | D109: kW | E109: 14 | F109: hours
B110: Nett Sensible air intake | C110: =((C108*10)+(C109*14))/10 -> 11.29157502 | D110: kW | E110: =C110*1000/C$22 -> 9.409645853 | F110: W/m2
B111: Q latent air intake (AC Hours) | C111: =C$90*C$91*C104*C$93/3600 -> 35.34493394 | D111: kW | E111: =C111*1000/C$22 -> 29.45411162 | F111: W/m2
A114: Control of Fresh Air Intake wt CO2 sensor
B116: Flow rate of Fresh air intake is | C116: =IF(C100>C97,C100,C97) -> 5700 | D116: m3/h
B117: Flow rate of Fresh air intake is | C117: =C116/3.6 -> 1583.333333 | D117: l/s
B118: Flow rate of Fresh air intake is | C118: =C116/C24 -> 1 | D118: ach
A119: Heat due to Fresh air intake
B120: Q sensible air intake (AC Hours) | C120: =C$92*C$91*C116*C$94/3600 -> 9.830811904 | D120: kW
B121: Q sensible air intake (none AC Hours) | C121: =C$92*C$91*C97*(C$12-C$87)/3600 -> -1.329482355 | D121: kW
B122: Nett Sensible air intake | C122: =((C120*10)+(C121*14))/10 -> 7.969536606 | D122: kW | E122: =C122*1000/C$22 -> 6.641280505 | F122: W/m2
B123: Q latent air intake | C123: =C$90*C$91*C116*C$93/3600 -> 24.94627581 | D123: kW | E123: =C123*1000/C$22 -> 20.78856318 | F123: W/m2
B127: People Heat Gain
B129: Occupant Density | C129: =C67 -> 10 | D129: m2/person
B130: Floor Area | C130: =C22 -> 1200 | D130: m2
B131: No of Occupant | C131: =C130/C129 -> 120 | D131: persons
B132: People Sensible Heat | C132: =C69 -> 90 | D132: W/person
B133: People Latent Heat | C133: =C70 -> 60 | D133: W/person
B135: Total People Sensible Heat Gain | C135: =C132*C131/1000 -> 10.8 | D135: kW | E135: =C135*1000/C$22 -> 9 | F135: W/m2
B136: Total People Latent Heat Gain | C136: =C133*C131/1000 -> 7.2 | D136: kW | E136: =C136*1000/C$22 -> 6 | F136: W/m2
B140: Plug Load Heat Gain
B142: Plug Load Heat Gain during AC hours | C142: =C34 -> 15 | D142: W/m2 | E142: =C$9 -> 2700 | F142: hours | G142: =C142*E142*C144+C143*E143*C144 -> 59508000
B143: Plug Load Heat Gain during none AC hours | C143: =C35 -> 1.5 | D143: W/m2 | E143: =8760-E142 -> 6060 | F143: hours | G143: =G142/1000/1000 -> 59.508 | H143: MWh
B144: Floor Area | C144: =C130 -> 1200 | D144: m2
B146: Total Equip Sensible Heat Gain | C146: =(C142*C144*E142+C143*C144*E143)/1000/E142 -> 22.04 | D146: kW | E146: =C146*1000/C$22 -> 18.36666667 | F146: W/m2
B147: Occupant Density | C147: =C67 -> 10 | D147: m2/person
B148: No of Occupant | C148: =C144/C147 -> 120 | D148: persons
B149: Equip Heat Gain per person | C149: =C146*1000/C148 -> 183.6666667 | D149: W/person
B151: Heat Generated at night | C151: =C143*C144/1000 -> 1.8 | D151: kW
B154: Lighting Heat Gain
B156: Lighting Heat Gain during AC hours | C156: =C39 -> 12 | D156: W/m2 | E156: =C$9 -> 2700 | F156: hours
B157: Lighting Heat Gain during none AC hours | C157: =C40 -> 1.2 | D157: W/m2 | E157: =8760-E156 -> 6060 | F157: hours
B158: Floor Area | C158: =C144 -> 1200 | D158: m2
B159: Total Lighting Sensible Heat Gain | C159: =((C156*E156)+(C157*E157))/E156*C158/1000 -> 17.632 | D159: kW | E159: =C159*1000/C$22 -> 14.69333333 | F159: W/m2
B160: Daylighting | C160: ='Input Data'!C59 -> 2 | D160: 1=Yes, 2=No
B161: Daylight Percentage | C161: ='Input Data'!C60 -> 0
B162: Floor Area Not Daylighted | C162: =C22*(1-C161) -> 1200 | D162: m2
B163: Floor Area Daylighted | C163: =C22*C161 -> 0 | D163: m2 | E163: =E156-E164 -> 810 | F163: hours | H163: =C7 -> 10 | I163: Hours per day
B164: Percentage of Daylight Hours during AC hours | C164: 0.7 | E164: =(C164)*H166 -> 1890 | F164: hours | G164: None Daylighted Hours | H164: =C8 -> 270 | I164: Work days per year
B165: Lighting Heat Gain during AC hours (None Daylight Area) | C165: =C162*C156*E156 -> 38880000 | D165: Wh | G165: Daylighted Hours | H165: =IF(H163>10,10,H163) -> 10 | I165: if condition
B166: Lighting Heat Gain during AC hours (Daylight Area) | C166: =C163*E163*C156 -> 0 | D166: Wh | H166: =H164*H165 -> 2700
B167: Average Lighting Heat Gain during AC hours | C167: =(C165+C166)/E156/C158 -> 12 | D167: W/m2 | E167: =E156 -> 2700 | F167: hours
B168: =B157 -> Lighting Heat Gain during none AC hours | C168: =C157 -> 1.2 | D168: W/m2 | E168: 6060 | F168: hours
B169: Floor Area | C169: =C158 -> 1200 | D169: m2
B170: Total Lighting Sensible Heat Gain wt Daylighting | C170: =((C167*E167)+(C168*E168))/E167*C169/1000 -> 17.632 | D170: kW | E170: =C170*1000/C$22 -> 14.69333333 | F170: W/m2
B171: Potential Saving Due to Daylighting | C171: =C159-C170 -> 0 | D171: kW | E171: 2900 | F171: hours
B173: Total Lighting Sensible Heat Gain | C173: =IF('Input Data'!C59=1,'Building Energy Base'!C170,'Building Energy Base'!C159) -> 17.632 | D173: kW | E173: =C173*1000/C$22 -> 14.69333333 | F173: W/m2
B174: Occupant Density | C174: =C147 -> 10 | D174: m2/person
B175: No of Occupant | C175: =C158/C174 -> 120 | D175: persons
B176: Equip Heat Gain per person | C176: =C173*1000/C175 -> 146.9333333 | D176: W/person
B178: Heat Generated at night | C178: =C157*C158/1000 -> 1.44 | D178: kW
B182: Estimated Average Night Temp
B183: Sensible (light+equip) heat | C183: =C178+C151 -> 3.24 | D183: kW
B184: Total Heat Internally Generated (excluding conduction) | C184: =(C178+C151+C121) -> 1.910517645 | D184: kW
B185: Volume of Air | C185: =C24 -> 5700 | D185: m3
B186: =B91 -> Air Density at Room Condition | C186: =C91 -> 1.165668607 | D186: kg/m3
B187: Specific heat of air at Room Condition | C187: =C92 -> 1.005 | D187: kJ/kg.K
B188: =B86 -> Inside Average Temp during AC hours | C188: =C86 -> 24 | D188: =D86 -> Celcius
B189: Delta Temp | C189: =C184/(C187*C186*C185/3600) -> 1.030000738 | D189: deg Celcius
B190: Inside Average Temp during NON AC hours | C190: =nt_t(C12,C92,C91,C97,C183,C185,C86) -> 25.51675224 | D190: deg Celcius
B194: Total Cooling Load
B195: CO2 used? | C195: =C45 -> 0
B197: =B79 -> Total Heat Gain from Façade | C197: =C79 -> 85.65407955 | D197: =D79 -> kW
B198: =B82 -> Total Heat Gain from Roof | C198: =C82 -> 10.132 | D198: =D82 -> kW | G198: est from below
B199: =B108 -> Q sensible air intake (AC Hours) | C199: =IF(C195=1,C120,C108) -> 13.92870823 | D199: =D108 -> kW
B200: =B111 -> Q latent air intake (AC Hours) | C200: =IF(C195=1,C123,C111) -> 35.34493394 | D200: =D111 -> kW
B201: =B135 -> Total People Sensible Heat Gain | C201: =C135 -> 10.8 | D201: kW
B202: Total People Latent Heat Gain | C202: =C136 -> 7.2 | D202: kW
B203: =B146 -> Total Equip Sensible Heat Gain | C203: =C146 -> 22.04 | D203: =D146 -> kW
B204: =B173 -> Total Lighting Sensible Heat Gain | C204: =C173 -> 17.632 | D204: =D173 -> kW
A205: Iterated | B205: Total Fan Sensible Heat Gain | C205: =f_p(C207,C229,C230,C234,C225,C224) -> 5.947957039 | D205: kW | E205: =C242 -> 5.955335168
B207: Sum of Sensible excluding Fan | C207: =C197+C198+C199+C201+C203+C204 -> 160.1867878 | D207: kW
B208: Total Average Load (AC hours) | C208: =SUM(C197:C205) -> 208.6796788 | D208: kW
B209: Latent Load | C209: =C200+C202 -> 42.54493394 | D209: kW
B210: Sensible Load | C210: =C208-C209 -> 166.1347448 | D210: kW | E210: =C207+C205 -> 166.1347448
B211: AC Load for full year | C211: =C208*C$9/1000 -> 563.4351327 | D211: MWh
B212: Cooling Index | C212: =C211*1000/C$22 -> 469.5292772 | D212: kWh/m2/year
B213: COSP | C213: =C$47 -> 3.63622
B214: Cooling Energy | C214: =C212/C213 -> 129.1256517 | D214: kWh/m2/year
B215: Cooling Energy | C215: =C214*C$22/1000 -> 154.950782 | D215: MWh/year
B222: FAN Power Heat Gain - VAV system | G222: FAN Power Heat Gain - CAV system
B224: Combined Fan&Motor Efficiency | C224: =C50 -> 0.65 | D224: efficiency
B225: Static Pressure | C225: =C51 -> 350 | D225: Pa
B226: CO2 Used? | C226: =C45 -> 0
B227: =B86 -> Inside Average Temp during AC hours | C227: =C86 -> 24 | D227: =D86 -> Celcius
B228: Supply Air Temperature | C228: =C52 -> 13 | D228: Celcius | E228: Note: to reduce Chiller COP and room humidity if supply temp < 12 deg Celcius
B229: =B92 -> Specific heat of air at Room Condition | C229: =C92 -> 1.005 | D229: =D92 -> kJ/kg.K
B230: =B91 -> Air Density at Room Condition | C230: =C91 -> 1.165668607 | D230: =D91 -> kg/m3
B233: Total Average Sensible Load (AC hours) | C233: =C210 -> 166.1347448 | D233: kW
B234: Temperature Difference | C234: =C227-C228 -> 11 | D234: Celcius
B235: Volume to be cooled | C235: =C24 -> 5700 | D235: =D24 -> m3
B237: Flow Rate Required | C237: =C233*3600/(C229*C230*C234) -> 46411.87588 | D237: m3/h
B238: Flow Rate Required | C238: =C237/C235 -> 8.142434366 | D238: ach | E238: check figure
B239: Flow Rate Required | C239: =C237/3.6 -> 12892.18775 | D239: l/s
B240: Flow Rate Required | C240: =C237/3600 -> 12.89218775 | D240: m3/s
E241: Ave.
B242: Fan Power used | C242: =C240*C225/C224/1000/C230 -> 5.955335168 | D242: kW VAV | E242: =U12 -> 0.58 | G242: =B242 -> Fan Power used | H242: =C242/E242 -> 10.26781925 | I242: kW CAV
B247: Total Energy Use in Building
B248: =B226 -> CO2 Used? | C248: =C226 -> 0
B249: Cooling Energy | C249: =C215 -> 154.950782 | D249: MWh/year
B250: Fan Energy | C250: =C242*C9/1000 -> 16.07940495 | D250: MWh/year
B251: Total Air-Conditioning Energy Used | C251: =C249+C250 -> 171.030187 | D251: MWh/year
B253: Lighting Energy Used | C253: =C173*C9/1000 -> 47.6064 | D253: MWh/year
B254: Plug Load Energy Used | C254: =C146*C9/1000 -> 59.508 | D254: MWh/year
B255: Misc Load Energy Used | C255: =I16/1000 -> 14.3712 | D255: MWh/year
B257: Total Building Energy used | C257: =C251+C253+C254+C255 -> 292.515787 | D257: =D254 -> MWh/year
B258: Building Energy Index | C258: =C257/C22*1000 -> 243.7631558 | D258: kWh/m2/year

Sheet Building Energy Proposed (hidden)
A1: Energy & Cooling Load Calculation based on Steady State Conditions
A2: Assumptions | O2: Calculation Method based on UK Guidance for the use of the Carabon Emissions Calculation Method
G3: Misc Loads | H3: Non AC hrs | I3: =8760-C9 -> 6060
G4: Elevators and Escalators | I4: kWh/year | J4: Input Data | K4: Diversity Factor | O4: Full Load Chiller COP | Q4: =C46 -> 4.4
A5: Operating Hours | G5: Elevators and Escalators during AC hours (kW/building) | H5: =J5*K5 -> 1.125 | I5: =H5*8760 -> 9855 | J5: ='Input Data'!D77 -> 25 | K5: =(0.3*0.15) -> 0.045 | O5: 50% Capacity COP | Q5: =Q4*5/6 -> 3.666666667 | R5: Based on GPG59, Effi. of screw compressor, 60% full load power at 50% capacity.
B6: Operation Hours Assumed | C6: 8 am to 6pm | G6: Elevators and Escalators during non AC hours (kW/building) | H6: 0 | I6: =H6*$I$3 -> 0
B7: Hours of Operation | C7: ='Input Data'!C17 -> 10 | D7: hours/day | G7: Hydraulic systems | O7: %total load | P7: Compressor 1 | Q7: Compressor 2 | R7: Overall CoP | S7: ARI weighting 1st approximation
B8: Working Days | C8: ='Input Data'!C18 -> 270 | D8: days/year | G8: Hydraulic systems during AC hours (kW/building) | H8: =J8*K8 -> 0.3 | I8: =H8*$C$9 -> 810 | J8: ='Input Data'!D79 -> 2 | K8: 0.15 | O8: 1 | P8: 1 | Q8: 1 | R8: =(0.5*Q4)+(0.5*Q4) -> 4.4 | S8: 0.01 | T8: =R8*S8 -> 0.044
B9: AC operating Hours | C9: =C7*C8 -> 2700 | D9: hours/year | G9: Hydraulic systems during non AC hours (kW/building) | H9: 0 | I9: =H9*$I$3 -> 0 | O9: 0.75 | P9: 1 | Q9: 0.5 | R9: =(0.67*Q4)+(0.33*Q5) -> 4.158 | S9: 0.42 | T9: 1.74636
A10: Outside Conditions | G10: External lighting | L10: hours/day | M10: Days | O10: 0.5 | P10: 1 | Q10: 0 | R10: =1*Q4 -> 4.4 | S10: 0.45 | T10: 1.98
B11: Outside Average Temp during AC hours | C11: 29.3 | D11: Celcius | E11: Fixed | G11: External lighting prorated (kW/building) | H11: =J11 -> 2 | I11: =H11*K11*L11*M11+H11*K12*L12*M12 -> 3706.2 | J11: ='Input Data'!D81 -> 2 | K11: 1 | L11: 5 | M11: 261 | N11: 7-midnite | O11: 0.25 | P11: 0.5 | Q11: 0 | R11: =1*Q5 -> 3.666666667 | S11: 0.12 | T11: 0.44
B12: Outside Average Temp during None AC hours | C12: 24.8 | D12: Celcius | E12: Fixed | G12: External lighting during non AC hours (kW/building) | H12: 0 | I12: =H12*$I$3 -> 0 | K12: 0.3 | L12: 7 | M12: 261 | N12: mid-7am | S12: =SUM(S8:S11) -> 1 | T12: =SUM(T8:T11) -> 4.21036 | W12: =T12/Q4 -> 0.9569
B13: Outside Average Humidity during AC hours | C13: 0.01817402242 | D13: kg/kg | E13: Fixed | G13: Others
G14: Others during AC hours (kW/building) | H14: 0 | I14: =H14*$C$9 -> 0
G15: Others during non AC hours (kW/building) | H15: 0 | I15: =H15*$I$3 -> 0 | O15: COSP | P15: =(P20*P18)/(1+S18) -> 3.63622
H16: Total Misc | I16: =SUM(I5:I15) -> 14371.2
O17: CD | P17: 1 | R17: Dist Losses | S17: Heat Rejection Power
O18: Fdl | P18: 0.95 | Q18: distribution losses | R18: 0.05 | S18: ='Input Data'!D90 -> 0.1
A19: Input Data | G19: Results Summary | O19: Fhr | P19: =S18 -> 0.1 | Q19: heat rejection losses based on GPG256. Water Pump load at 22W/kW of rejected heat. Fan power of dry cooler 25 W/kW of rejected Heat.
H20: Total Energy Used | J20: % | K20: Energy Index | O20: CoPav | P20: =T12 -> 4.21036
A21: Building Data | G21: =B249 -> Cooling Energy | H21: 109.3681334 | I21: MWh/year | J21: =H21/H$29 -> 0.5519616365 | K21: =J21*K$30 -> 91.14011114 | L21: =L30 -> kWh/m2/year
B22: AC Floor Area | C22: ='Input Data'!C4 -> 1200 | D22: m2 | G22: Fan Energy | H22: 10.13791389 | I22: MWh/year | J22: 0.05116425935 | K22: 8.448261574 | L22: =L21 -> kWh/m2/year
B23: Floor to Floor height | C23: ='OTTV Baseline'!D4 -> 4.75 | D23: m | G23: Total Air-Conditioning Energy Used | H23: 119.5060473 | I23: MWh/year | J23: 0.6031258958 | K23: 99.58837271 | L23: kWh/m2/year | O23: CD*Fdl/CoPav | P23: =P17*P18/P20 -> 0.2256339125
B24: AC Volume | C24: =C22*C23 -> 5700 | D24: m3 | O24: (1+1/CoPav) | P24: =(1/P20)+1 -> 1.237509382
B25: Total AC External Wall Area | C25: ='OTTV Baseline'!D11 -> 1710 | D25: m2 | E25: ='OTTV Baseline'!D11 -> 1710 | F25: m2 | G25: =B253 -> Lighting Energy Used | H25: 24.5952 | I25: MWh/year | J25: =H25/H$29 -> 0.1241276268 | K25: =J25*K$30 -> 20.496 | L25: =L23 -> kWh/m2/year | O25: CD*FDS*Fhr*add | P25: =P17*P18*P24*P19 -> 0.1175633913
B26: Total AC Roof Area | C26: ='OTTV Baseline'!D8 -> 200 | D26: m2 | G26: Plug Load Energy Used | H26: 39.672 | I26: MWh/year | J26: 0.2002175713 | K26: 33.06 | L26: kWh/m2/year
G27: Misc Load Energy Used | H27: =I16/1000 -> 14.3712 | I27: MWh/year | J27: 0.07252890605 | K27: 11.976 | L27: kWh/m2/year
B28: Calculated OTTV | C28: ='Input Data'!D39 -> 29.29642755 | D28: W/m2 | E28: ='OTTV Baseline'!G3 -> 50.090105 | F28: W/m2
B29: Calculated RTTV | C29: ='Input Data'!D51 -> 11.84 | D29: W/m2 | G29: =B257 -> Total Building Energy used | H29: =C257 -> 198.1444473 | I29: =D257 -> MWh/year
G30: =B258 -> Building Energy Intensity | K30: =C258 -> 165.1203727 | L30: =D258 -> kWh/m2/year
A33: Plug Load Heat Gain | G33: =G21 -> Cooling Energy | H33: =K21 -> 91.14011114 | I33: =L30 -> kWh/m2/year
B34: Plug Load Heat Gain during AC hours | C34: ='Input Data'!D67 -> 10 | D34: W/m2 | G34: =G22 -> Fan Energy | H34: =K22 -> 8.448261574 | I34: =I33 -> kWh/m2/year
B35: Plug Load Heat Gain during none AC hours | C35: ='Input Data'!D68 -> 1 | D35: W/m2 | G35: =G25 -> Lighting Energy Used | H35: =K25 -> 20.496 | I35: kWh/m2/year
B36: Total Heat Gain during AC hours | C36: =C34*C$22/1000 -> 12 | D36: kW | G36: =G26 -> Plug Load Energy Used | H36: =K26 -> 33.06 | I36: kWh/m2/year
B37: Total Heat Gain during None AC hours | C37: 1.2 | D37: kW
A38: Lighting Heat Gain
B39: Lighting Heat Gain during AC hours | C39: ='Input Data'!D56 -> 7 | D39: W/m2
B40: Lighting Heat Gain during none AC hours | C40: ='Input Data'!D57 -> 0.7 | D40: W/m2
B41: Total Heat Gain during AC hours | C41: 8.4 | D41: kW
B42: Total Heat Gain during None AC hours | C42: 0.84 | D42: kW
A44: System Used
B45: CO2 control of Fresh Air Inlet used? | C45: =IF('Input Data'!D92=1,1,0) -> 0 | D45: 1=yes, 0=no
B46: COP of chiller | C46: ='Input Data'!D89 -> 4.4
B47: COSP (Coefficient of System Performance) | C47: =P15 -> 3.63622
A49: Fan Data
B50: Combined Fan&Motor Efficiency | C50: ='Input Data'!D97 -> 0.65 | D50: efficiency
B51: Static Pressure | C51: ='Input Data'!D98 -> 350 | D51: Pa
B52: Supply Air Temperature (off coil temperature) | C52: 13 | D52: Celcius | E52: Fixed Data
A55: Indoor Air Conditions
B56: Indoor AC Temperature | C56: ='Input Data'!D94 -> 24 | D56: Celcius
B57: Indoor AC Relative Humidity | C57: ='Input Data'!D95 -> 0.65 | D57: Percentage
B58: =B57 -> Indoor AC Relative Humidity | C58: =C57*100 -> 65 | D58: %
B59: Indoor Abs Humidity Ratio (kg/kg) | C59: =g_t_rh(C56,C58) -> 0.01218784321 | D59: kg/kg
A63: Infiltration
B64: ACH | C64: ='Input Data'!D105 -> 1 | D64: ach
A66: Occupants Data
B67: Occupant Density | C67: ='Input Data'!C13 -> 10 | D67: m2/person
B68: No of Occupants | C68: =C95/C67 -> 120 | D68: persons
B69: People Sensible Heat per person | C69: 90 | D69: W/person
B70: People Latent Heat per person | C70: 60 | D70: W/person
B71: Min Fresh Air per person | C71: =C72*C22/C68+C73 -> 5.5 | D71: l/s/person
B72: Ashrea 62. Area requirement | C72: 0.3 | D72: l/s/m2
B73: People requirement | C73: 2.5 | D73: l/s/person
A76: CALCULATION DATA | T76: latent heat of vaprorization of water (kJ/kg) at atmos | U76: = | V76: 2257.92
B78: OTTV Calculation (Fabric Heat Load) | T78: = | U78: =T97 -> 1.205
B79: Total Heat Gain from Façade | C79: =C25*C28/1000 -> 50.09689111 | D79: kW
T80: = | U80: air change rate
B81: RTTV Calculation (Roof Heat Load)
B82: Total Heat Gain from Roof | C82: =C26*C29/1000 -> 2.368 | D82: kW | T82: = | V82: kg/kg
B84: Air Infiltration during AC hours (8am to 6pm - 10 hours everyday)
B86: Inside Average Temp during AC hours | C86: =C56 -> 24 | D86: Celcius
A87: Iterated | B87: Inside Average Temp during None AC Hours | C87: =E87 -> 25.19980621 | D87: Celcius | E87: =C190 -> 25.19980621 | F87: Celcius
B88: Outside Average Humidity during AC hours | C88: =C13 -> 0.01817402242 | D88: kg/kg | E88: Fixed
B89: Inside Average Humidity during AC hours | C89: =C59 -> 0.01218784321 | D89: kg/kg
B90: Latent Heat of Vaporisation of Water at Atmos | C90: 2257.92 | D90: kJ/kg | E90: Fixed
B91: Air Density at Room Condition | C91: =rho_t_g(C86,C89) -> 1.165668607 | D91: kg/m3 | E91: Fixed
B92: Specific heat of air at Room Condition | C92: 1.005 | D92: kJ/kg.K | E92: Fixed
B93: Delta Humidity Ratio during AC hours | C93: =C88-C89 -> 0.005986179205 | D93: kg/kg
B94: Delta Temperature diff during AC hours | C94: =C11-C86 -> 5.3 | D94: Celcius
B95: Floor Area | C95: =C22 -> 1200 | D95: m2 | R95: = | S95: 1.005 | T95: kJ/kg.K
B97: Flow Rate of Infiltrated Air | C97: =C24*C64 -> 5700 | D97: m3/h | S97: = | T97: 1.205 | U97: kg/m3
B99: Min Fresh Air Flow Rate required for occupants | C99: =C68*C71 -> 660 | D99: l/s
B100: Min Fresh Air Flow Rate required for occupants | C100: =C99*3.6 -> 2376 | D100: m3/h
Q101: = | R101: =H100 -> 0
A102: No Control of Fresh Air Intake (Infiltration + Mech Fresh Air)
B104: Flow rate of Fresh air is | C104: =C100+C97 -> 8076 | D104: m3/h
B105: Flow rate of Fresh air is | C105: =C104/3.6 -> 2243.333333 | D105: l/s
B106: Flow rate of Fresh air is | C106: =C104/C$24 -> 1.416842105 | D106: ach
A107: Heat due to Fresh air intake
B108: Q sensible air intake (AC Hours) | C108: =C$92*C$91*C104*C$94/3600 -> 13.92870823 | D108: kW | E108: 10 | F108: hours
B109: Q sensible air intake (none AC Hours) | C109: =C$92*C$91*C104*(C$12-C$87)/3600 -> -1.05071398 | D109: kW | E109: 14 | F109: hours
B110: Nett Sensible air intake | C110: =((C108*10)+(C109*14))/10 -> 12.45770866 | D110: kW | E110: =C110*1000/C$22 -> 10.38142388 | F110: W/m2
B111: Q latent air intake (AC Hours) | C111: =C$90*C$91*C104*C$93/3600 -> 35.34493394 | D111: kW | E111: =C111*1000/C$22 -> 29.45411162 | F111: W/m2
A114: Control of Fresh Air Intake wt CO2 sensor
B116: Flow rate of Fresh air intake is | C116: =IF(C100>C97,C100,C97) -> 5700 | D116: m3/h
B117: Flow rate of Fresh air intake is | C117: =C116/3.6 -> 1583.333333 | D117: l/s
B118: Flow rate of Fresh air intake is | C118: =C116/C24 -> 1 | D118: ach
A119: Heat due to Fresh air intake
B120: Q sensible air intake (AC Hours) | C120: =C$92*C$91*C116*C$94/3600 -> 9.830811904 | D120: kW
B121: Q sensible air intake (none AC Hours) | C121: =C$92*C$91*C97*(C$12-C$87)/3600 -> -0.7415886192 | D121: kW
B122: Nett Sensible air intake | C122: =((C120*10)+(C121*14))/10 -> 8.792587837 | D122: kW | E122: =C122*1000/C$22 -> 7.327156531 | F122: W/m2
B123: Q latent air intake | C123: =C$90*C$91*C116*C$93/3600 -> 24.94627581 | D123: kW | E123: =C123*1000/C$22 -> 20.78856318 | F123: W/m2
B127: People Heat Gain
B129: Occupant Density | C129: =C67 -> 10 | D129: m2/person
B130: Floor Area | C130: =C22 -> 1200 | D130: m2
B131: No of Occupant | C131: =C130/C129 -> 120 | D131: persons
B132: People Sensible Heat | C132: =C69 -> 90 | D132: W/person
B133: People Latent Heat | C133: =C70 -> 60 | D133: W/person
B135: Total People Sensible Heat Gain | C135: =C132*C131/1000 -> 10.8 | D135: kW | E135: =C135*1000/C$22 -> 9 | F135: W/m2
B136: Total People Latent Heat Gain | C136: =C133*C131/1000 -> 7.2 | D136: kW | E136: =C136*1000/C$22 -> 6 | F136: W/m2
B140: Plug Load Heat Gain
B142: Plug Load Heat Gain during AC hours | C142: =C34 -> 10 | D142: W/m2 | E142: =C$9 -> 2700 | F142: hours | G142: =C142*E142*C144+C143*E143*C144 -> 39672000
B143: Plug Load Heat Gain during none AC hours | C143: =C35 -> 1 | D143: W/m2 | E143: =8760-E142 -> 6060 | F143: hours | G143: =G142/1000/1000 -> 39.672 | H143: MWh
B144: Floor Area | C144: =C130 -> 1200 | D144: m2
B146: Total Equip Sensible Heat Gain | C146: =(C142*C144*E142+C143*C144*E143)/1000/E142 -> 14.69333333 | D146: kW | E146: =C146*1000/C$22 -> 12.24444444 | F146: W/m2
B147: Occupant Density | C147: =C67 -> 10 | D147: m2/person
B148: No of Occupant | C148: =C144/C147 -> 120 | D148: persons
B149: Equip Heat Gain per person | C149: =C146*1000/C148 -> 122.4444444 | D149: W/person
B151: Heat Generated at night | C151: =C143*C144/1000 -> 1.2 | D151: kW
B154: Lighting Heat Gain
B156: Lighting Heat Gain during AC hours | C156: =C39 -> 7 | D156: W/m2 | E156: =C$9 -> 2700 | F156: hours
B157: Lighting Heat Gain during none AC hours | C157: =C40 -> 0.7 | D157: W/m2 | E157: =8760-E156 -> 6060 | F157: hours
B158: Floor Area | C158: =C144 -> 1200 | D158: m2
B159: Total Lighting Sensible Heat Gain | C159: =((C156*E156)+(C157*E157))/E156*C158/1000 -> 10.28533333 | D159: kW | E159: =C159*1000/C$22 -> 8.571111111 | F159: W/m2
B160: Daylighting | C160: ='Input Data'!D59 -> 1 | D160: 1=Yes, 2=No
B161: Daylight Percentage | C161: ='Input Data'!D60 -> 0.2
B162: Floor Area Not Daylighted | C162: =C22*(1-C161) -> 960 | D162: m2
B163: Floor Area Daylighted | C163: =C22*C161 -> 240 | D163: m2 | E163: =E156-E164 -> 810 | F163: hours | H163: =C7 -> 10 | I163: Hours per day
B164: Percentage of Daylight Hours during AC hours | C164: 0.7 | E164: =(C164)*H166 -> 1890 | F164: hours | G164: None Daylighted Hours | H164: =C8 -> 270 | I164: Work days per year
B165: Lighting Heat Gain during AC hours (None Daylight Area) | C165: =C162*C156*E156 -> 18144000 | D165: Wh | G165: Daylighted Hours | H165: =IF(H163>10,10,H163) -> 10 | I165: if condition
B166: Lighting Heat Gain during AC hours (Daylight Area) | C166: =C163*E163*C156 -> 1360800 | D166: Wh | H166: =H164*H165 -> 2700
B167: Average Lighting Heat Gain during AC hours | C167: =(C165+C166)/E156/C158 -> 6.02 | D167: W/m2 | E167: =E156 -> 2700 | F167: hours
B168: =B157 -> Lighting Heat Gain during none AC hours | C168: 0.7 | D168: W/m2 | E168: 6060 | F168: hours
B169: Floor Area | C169: =C158 -> 1200 | D169: m2
B170: Total Lighting Sensible Heat Gain | C170: =((C167*E167)+(C168*E168))/E167*C169/1000 -> 9.109333333 | D170: kW | E170: =C170*1000/C$22 -> 7.591111111 | F170: W/m2
B171: Potential Saving Due to Daylighting | C171: =C159-C170 -> 1.176 | D171: kW | E171: 2900 | F171: hours
B173: Total Lighting Sensible Heat Gain | C173: =IF('Input Data'!D59=1,'Building Energy Proposed'!C170,'Building Energy Proposed'!C159) -> 9.109333333 | D173: kW | E173: =C173*1000/C$22 -> 7.591111111 | F173: W/m2
B174: Occupant Density | C174: =C147 -> 10 | D174: m2/person
B175: No of Occupant | C175: =C158/C174 -> 120 | D175: persons
B176: Equip Heat Gain per person | C176: =C173*1000/C175 -> 75.91111111 | D176: W/person
B178: Heat Generated at night | C178: =C157*C158/1000 -> 0.84 | D178: kW
B182: Estimated Average Night Temp
B183: Sensible (light+equip) heat | C183: =C178+C151 -> 2.04 | D183: kW
B184: Total Heat Internally Generated (excluding conduction) | C184: =(C178+C151+C121) -> 1.298411381 | D184: kW
B185: Volume of Air | C185: =C24 -> 5700 | D185: m3
B186: =B91 -> Air Density at Room Condition | C186: 1.165668607 | D186: kg/m3
B187: Specific heat of air at Room Condition | C187: 1.005 | D187: kJ/kg.K
B188: =B86 -> Inside Average Temp during AC hours | C188: =C86 -> 24 | D188: =D86 -> Celcius
B189: Delta Temp | C189: =C184/(C187*C186*C185/3600) -> 0.7000012192 | D189: deg Celcius
B190: Inside Average Temp during NON AC hours | C190: =nt_t(C12,C92,C91,C97,C183,C185,C86) -> 25.19980621 | D190: deg Celcius
B194: Total Cooling Load
B195: CO2 used? | C195: =C45 -> 0
B197: =B79 -> Total Heat Gain from Façade | C197: =C79 -> 50.09689111 | D197: =D79 -> kW
B198: =B82 -> Total Heat Gain from Roof | C198: =C82 -> 2.368 | D198: =D82 -> kW | G198: est from below
B199: =B108 -> Q sensible air intake (AC Hours) | C199: =IF(C195=1,C120,C108) -> 13.92870823 | D199: =D108 -> kW
B200: =B111 -> Q latent air intake (AC Hours) | C200: =IF(C195=1,C123,C111) -> 35.34493394 | D200: =D111 -> kW
B201: =B135 -> Total People Sensible Heat Gain | C201: 10.8 | D201: kW
B202: Total People Latent Heat Gain | C202: 7.2 | D202: kW
B203: =B146 -> Total Equip Sensible Heat Gain | C203: =C146 -> 14.69333333 | D203: =D146 -> kW
B204: =B173 -> Total Lighting Sensible Heat Gain | C204: =C173 -> 9.109333333 | D204: =D173 -> kW
A205: Iterated | B205: Total Fan Sensible Heat Gain | C205: =f_p(C207,C229,C230,C234,C225,C224) -> 3.75013113 | D205: kW | E205: =C242 -> 3.754782922
B207: Sum of Sensible excluding Fan | C207: =C197+C198+C199+C201+C203+C204 -> 100.996266 | D207: kW
B208: Total Average Load (AC hours) | C208: =SUM(C197:C205) -> 147.2913311 | D208: kW
B209: Latent Load | C209: =C200+C202 -> 42.54493394 | D209: kW
B210: Sensible Load | C210: =C208-C209 -> 104.7463971 | D210: kW | E210: =C207+C205 -> 104.7463971
B211: AC Load for full year | C211: =C208*C$9/1000 -> 397.6865939 | D211: MWh
B212: Cooling Index | C212: =C211*1000/C$22 -> 331.4054949 | D212: kWh/m2/year
B213: COSP | C213: =C$47 -> 3.63622
B214: Cooling Energy | C214: =C212/C213 -> 91.14011114 | D214: kWh/m2/year
B215: Cooling Energy | C215: =C214*C$22/1000 -> 109.3681334 | D215: MWh/year
B222: FAN Power Heat Gain
B224: Combined Fan&Motor Efficiency | C224: =C50 -> 0.65 | D224: efficiency
B225: Static Pressure | C225: =C51 -> 350 | D225: Pa
B226: CO2 Used? | C226: =C45 -> 0
B227: =B86 -> Inside Average Temp during AC hours | C227: =C86 -> 24 | D227: =D86 -> Celcius
B228: Supply Air Temperature | C228: =C52 -> 13 | D228: Celcius | E228: Note: to reduce Chiller COP and room humidity if supply temp < 12 deg Celcius
B229: =B92 -> Specific heat of air at Room Condition | C229: =C92 -> 1.005 | D229: =D92 -> kJ/kg.K
B230: =B91 -> Air Density at Room Condition | C230: =C91 -> 1.165668607 | D230: =D91 -> kg/m3
B233: Total Average Sensible Load (AC hours) | C233: =C210 -> 104.7463971 | D233: kW
B234: Temperature Difference | C234: =C227-C228 -> 11 | D234: Celcius
B235: Volume to be cooled | C235: =C24 -> 5700 | D235: =D24 -> m3
B237: Flow Rate Required | C237: =C233*3600/(C229*C230*C234) -> 29262.25209 | D237: m3/h
B238: Flow Rate Required | C238: =C237/C235 -> 5.133728436 | D238: ach | E238: check figure
B239: Flow Rate Required | C239: =C237/3.6 -> 8128.403358 | D239: l/s
B240: Flow Rate Required | C240: =C237/3600 -> 8.128403358 | D240: m3/s
B242: Fan Power used | C242: =C240*C225/C224/1000/C230 -> 3.754782922 | D242: kW
B247: Total Energy Use in Building
B248: =B226 -> CO2 Used? | C248: =C226 -> 0
B249: Cooling Energy | C249: =C215 -> 109.3681334 | D249: MWh/year
B250: Fan Energy | C250: =C242*C9/1000 -> 10.13791389 | D250: MWh/year
B251: Total Air-Conditioning Energy Used | C251: =C249+C250 -> 119.5060473 | D251: MWh/year
B253: Lighting Energy Used | C253: =C173*C9/1000 -> 24.5952 | D253: MWh/year
B254: Plug Load Energy Used | C254: =C146*C9/1000 -> 39.672 | D254: MWh/year
B255: Misc Load Energy Used | C255: =I16/1000 -> 14.3712 | D255: MWh/year
B257: Total Building Energy used | C257: =C251+C253+C254+C255 -> 198.1444473 | D257: =D254 -> MWh/year
B258: Building Energy Intensity | C258: =C257/C22*1000 -> 165.1203727 | D258: kWh/m2/year

Sheet BE 1.OTTV (hidden)
A1: Energy & Cooling Load Calculation based on Steady State Conditions
A2: Assumptions | O2: Calculation Method based on UK Guidance for the use of the Carbon Emissions Calculation Method
G3: Misc Loads | H3: Non AC hrs | I3: =8760-C9 -> 6060
G4: Elevators and Escalators | I4: kWh/year | J4: Input Data | K4: Diversity Factor | O4: Full Load Chiller COP | Q4: =C46 -> 4.4
A5: Operating Hours | G5: Elevators and Escalators during AC hours (kW/building) | H5: =J5*K5 -> 1.125 | I5: =H5*8760 -> 9855 | J5: ='Input Data'!C77 -> 25 | K5: =(0.3*0.15) -> 0.045 | O5: 50% Capacity COP | Q5: =Q4*5/6 -> 3.666666667 | R5: Base on GPG59, Effi. Of screw compressor, 60% full load power at 50% capacity.
G6: Elevators and Escalators during non AC hours (kW/building) | H6: 0 | I6: =H6*$I$3 -> 0
B7: Hours of Operation | C7: ='Input Data'!C17 -> 10 | D7: hours/day | G7: Hydraulic systems | O7: %total load | P7: Compressor 1 | Q7: Compressor 2 | R7: Overall CoP | S7: ARI weighting 1st approximation
B8: Working Days | C8: ='Input Data'!C18 -> 270 | D8: days/year | G8: Hydraulic systems during AC hours (kW/building) | H8: =J8*K8 -> 0.3 | I8: =H8*$C$9 -> 810 | J8: ='Input Data'!C79 -> 2 | K8: 0.15 | O8: 1 | P8: 1 | Q8: 1 | R8: =(0.5*Q4)+(0.5*Q4) -> 4.4 | S8: 0.01 | T8: =R8*S8 -> 0.044 | U8: =O8*S8 -> 0.01
B9: AC operating Hours | C9: =C7*C8 -> 2700 | D9: hours/year | G9: Hydraulic systems during non AC hours (kW/building) | H9: 0 | I9: =H9*$I$3 -> 0 | O9: 0.75 | P9: 1 | Q9: 0.5 | R9: =(0.67*Q4)+(0.33*Q5) -> 4.158 | S9: 0.42 | T9: 1.74636 | U9: 0.315
A10: Outside Conditions | G10: External lighting | L10: hours/day | M10: Days | O10: 0.5 | P10: 1 | Q10: 0 | R10: =1*Q4 -> 4.4 | S10: 0.45 | T10: 1.98 | U10: 0.225
B11: Outside Average Temp during AC hours | C11: 29.3 | D11: Celcius | E11: Fixed | G11: External lighting prorated (kW/building) | H11: =J11 -> 2 | I11: =H11*K11*L11*M11+H11*K12*L12*M12 -> 3706.2 | J11: ='Input Data'!C81 -> 2 | K11: 1 | L11: 5 | M11: 261 | N11: 7-midnite | O11: 0.25 | P11: 0.5 | Q11: 0 | R11: =1*Q5 -> 3.666666667 | S11: 0.12 | T11: 0.44 | U11: 0.03
B12: Outside Average Temp during None AC hours | C12: 24.8 | D12: Celcius | E12: Fixed | G12: External lighting during non AC hours (kW/building) | H12: 0 | I12: =H12*$I$3 -> 0 | K12: 0.3 | L12: 7 | M12: 261 | N12: mid-7am | S12: =SUM(S8:S11) -> 1 | T12: 4.21036 | U12: 0.58 | W12: =T12/Q4 -> 0.9569
B13: Outside Average Humidity during AC hours | C13: 0.01817402242 | D13: kg/kg | E13: Fixed | G13: Others
G14: Others during AC hours (kW/building) | H14: 0 | I14: =H14*$C$9 -> 0
G15: Others during non AC hours (kW/building) | H15: 0 | I15: =H15*$I$3 -> 0 | O15: COSP | P15: =(P20*P18)/(1+T18) -> 3.63622
H16: Total Misc | I16: =SUM(I5:I15) -> 14371.2
O17: CD | P17: 1 | S17: Dist Losses | T17: Heat Rejection Power
O18: Fdl | P18: =1-S18 -> 0.95 | Q18: distribution losses | S18: 0.05 | T18: ='Input Data'!C90 -> 0.1
A19: Input Data | G19: Results Summary | O19: Fhr | P19: =T18 -> 0.1 | Q19: heat rejection losses base on GPG256. Water Pump load at 22W/kW of rejected heat. Fan power of dry cooler 25 W/kW of rejected Heat.
H20: Total Energy Used | J20: % | K20: Energy Index | O20: CoPav | P20: =T12 -> 4.21036
A21: Building Data | G21: =B249 -> Cooling Energy | H21: 127.5681744 | I21: MWh/year | J21: =H21/H$29 -> 0.4877130787 | K21: =J21*K$30 -> 106.306812 | L21: =L30 -> kWh/m2/year
B22: AC Floor Area | C22: ='Input Data'!C4 -> 1200 | D22: m2 | G22: Fan Energy | H22: 12.51020651 | I22: MWh/year | J22: 0.04782847572 | K22: 10.42517209 | L22: =L21 -> kWh/m2/year
B23: Floor to Floor height | C23: ='OTTV Baseline'!D4 -> 4.75 | D23: m | G23: Total Air-Conditioning Energy Used | H23: 140.0783809 | I23: MWh/year | J23: 0.5355415544 | K23: 116.7319841 | L23: kWh/m2/year | O23: CD*Fdl/CoPav | P23: =P17*P18/P20 -> 0.2256339125
B24: AC Volume | C24: =C22*C23 -> 5700 | D24: m3 | O24: (1+1/CoPav) | P24: =(1/P20)+1 -> 1.237509382
B25: Total AC External Wall Area | C25: ='OTTV Baseline'!D11 -> 1710 | D25: m2 | E25: ='OTTV Baseline'!D11 -> 1710 | F25: m2 | G25: =B253 -> Lighting Energy Used | H25: =C253 -> 47.6064 | I25: MWh/year | J25: =H25/H$29 -> 0.1820067115 | K25: =J25*K$30 -> 39.672 | L25: =L23 -> kWh/m2/year | O25: CD*FDS*Fhr*add | P25: =P17*P18*P24*P19 -> 0.1175633913
B26: Total AC Roof Area | C26: ='OTTV Baseline'!D8 -> 200 | D26: m2 | G26: Plug Load Energy Used | H26: 59.508 | I26: MWh/year | J26: =H26/H$29 -> 0.2275083893 | K26: 49.59 | L26: kWh/m2/year
G27: Misc Load Energy Used | H27: =I16/1000 -> 14.3712 | I27: MWh/year | J27: =C255/H$29 -> 0.05494334484 | K27: 11.976 | L27: kWh/m2/year
B28: Calculated OTTV | C28: ='Input Data'!D39 -> 29.29642755 | D28: W/m2 | E28: ='OTTV Baseline'!G3 -> 50.090105 | F28: W/m2
B29: Calculated RTTV | C29: =' RTTV Base'!D16 -> 50.66 | D29: W/m2 | G29: =B257 -> Total Building Energy used | H29: 261.5639809 | I29: MWh/year
G30: Building Energy Index | K30: =C258 -> 217.9699841 | L30: =D258 -> kWh/m2/year
A33: Plug Load Heat Gain | G33: =G21 -> Cooling Energy | H33: =K21 -> 106.306812 | I33: =L30 -> kWh/m2/year
B34: Plug Load Heat Gain during AC hours | C34: ='Input Data'!C67 -> 15 | D34: W/m2 | G34: =G22 -> Fan Energy | H34: =K22 -> 10.42517209 | I34: =I33 -> kWh/m2/year
B35: Plug Load Heat Gain during none AC hours | C35: ='Input Data'!C68 -> 1.5 | D35: W/m2 | G35: =G25 -> Lighting Energy Used | H35: =K25 -> 39.672 | I35: kWh/m2/year
B36: Total Heat Gain during AC hours | C36: =C34*C$22/1000 -> 18 | D36: kW | G36: =G26 -> Plug Load Energy Used | H36: =K26 -> 49.59 | I36: kWh/m2/year
B37: Total Heat Gain during None AC hours | C37: 1.8 | D37: kW
A38: Lighting Heat Gain
B39: Lighting Heat Gain during AC hours | C39: ='Input Data'!C56 -> 12 | D39: W/m2
B40: Lighting Heat Gain during none AC hours | C40: ='Input Data'!C57 -> 1.2 | D40: W/m2
B41: Total Heat Gain during AC hours | C41: 14.4 | D41: kW
B42: Total Heat Gain during None AC hours | C42: 1.44 | D42: kW
A44: System Used
B45: CO2 control of Fresh Air Inlet used? | C45: =IF('Input Data'!C92=1,1,0) -> 0 | D45: 1=yes, 0=no
B46: COP of chiller | C46: ='Input Data'!C89 -> 4.4
B47: COSP (Coefficient of System Performance) | C47: =P15 -> 3.63622
A49: Fan Data
B50: Combined Fan&Motor Efficiency | C50: ='Input Data'!C97 -> 0.65 | D50: efficiency
B51: Static Pressure | C51: ='Input Data'!C98 -> 350 | D51: Pa
B52: Supply Air Temperature (off coil temperature) | C52: 13 | D52: Celcius | E52: Fixed Data
A55: Indoor Air Conditions
B56: Indoor AC Temperature | C56: ='Input Data'!C94 -> 24 | D56: Celcius
B57: Indoor AC Relative Humidity | C57: ='Input Data'!C95 -> 0.65 | D57: Percentage
B58: =B57 -> Indoor AC Relative Humidity | C58: =C57*100 -> 65 | D58: %
B59: Indoor Abs Humidity Ratio (kg/kg) | C59: =g_t_rh(C56,C58) -> 0.01218784321 | D59: kg/kg
A63: Infiltration
B64: ACH | C64: ='Input Data'!C105 -> 1 | D64: ach
A66: Occupants Data
B67: Occupant Density | C67: ='Input Data'!C13 -> 10 | D67: m2/person
B68: No of Occupants | C68: =C95/C67 -> 120 | D68: persons
B69: People Sensible Heat per person | C69: 90 | D69: W/person
B70: People Latent Heat per person | C70: 60 | D70: W/person
B71: Min Fresh Air per person | C71: =C72*C22/C68+C73 -> 5.5 | D71: l/s/person
B72: ASHRAE 62. Area requirement | C72: 0.3 | D72: l/s/m2
B73: People requirement | C73: 2.5 | D73: l/s/person
A76: CALCULATION DATA | T76: latent heat of vaprorization of water (kJ/kg) at atmos | U76: = | V76: 2257.92
B78: OTTV Calculation (Fabric Heat Load) | T78: = | U78: =T97 -> 1.205
B79: Total Heat Gain from Façade | C79: =C25*C28/1000 -> 50.09689111 | D79: kW
T80: = | U80: air change rate
B81: RTTV Calculation (Roof Heat Load)
B82: Total Heat Gain from Roof | C82: =C26*C29/1000 -> 10.132 | D82: kW | T82: = | V82: kg/kg
B84: Air Infiltration during AC hours (8am to 6pm - 10 hours everyday)
B86: Inside Average Temp during AC hours | C86: =C56 -> 24 | D86: Celcius
A87: Iterated | B87: Inside Average Temp during None AC Hours | C87: =E87 -> 25.51675224 | D87: Celcius | E87: =C190 -> 25.51675224 | F87: Celcius
B88: Outside Average Humidity during AC hours | C88: =C13 -> 0.01817402242 | D88: kg/kg | E88: Fixed
B89: Inside Average Humidity during AC hours | C89: =C59 -> 0.01218784321 | D89: kg/kg
B90: Latent Heat of Vaporisation of Water at Atmos | C90: 2257.92 | D90: kJ/kg | E90: Fixed
B91: Air Density at Room Condition | C91: =rho_t_g(C86,C89) -> 1.165668607 | D91: kg/m3 | E91: Fixed
B92: Specific heat of air at Room Condition | C92: 1.005 | D92: kJ/kg.K | E92: Fixed
B93: Delta Humidity Ratio during AC hours | C93: =C88-C89 -> 0.005986179205 | D93: kg/kg
B94: Delta Temperature diff during AC hours | C94: =C11-C86 -> 5.3 | D94: Celcius
B95: Floor Area | C95: =C22 -> 1200 | D95: m2 | R95: = | S95: 1.005 | T95: kJ/kg.K
B97: Flow Rate of Infiltrated Air | C97: =C24*C64 -> 5700 | D97: m3/h | S97: = | T97: 1.205 | U97: kg/m3
B99: Min Fresh Air Flow Rate required for occupants | C99: =C68*C71 -> 660 | D99: l/s
B100: Min Fresh Air Flow Rate required for occupants | C100: =C99*3.6 -> 2376 | D100: m3/h
Q101: = | R101: =H100 -> 0
A102: No Control of Fresh Air Intake (Infiltration + Mech Fresh Air)
B104: Flow rate of Fresh air is | C104: =C100+C97 -> 8076 | D104: m3/h
B105: Flow rate of Fresh air is | C105: =C104/3.6 -> 2243.333333 | D105: l/s
B106: Flow rate of Fresh air is | C106: =C104/C$24 -> 1.416842105 | D106: ach
A107: Heat due to Fresh air intake
B108: Q sensible air intake (AC Hours) | C108: =C$92*C$91*C104*C$94/3600 -> 13.92870823 | D108: kW | E108: 10 | F108: hours
B109: Q sensible air intake (none AC Hours) | C109: =C$92*C$91*C104*(C$12-C$87)/3600 -> -1.883666579 | D109: kW | E109: 14 | F109: hours
B110: Nett Sensible air intake | C110: =((C108*10)+(C109*14))/10 -> 11.29157502 | D110: kW | E110: =C110*1000/C$22 -> 9.409645853 | F110: W/m2
B111: Q latent air intake (AC Hours) | C111: =C$90*C$91*C104*C$93/3600 -> 35.34493394 | D111: kW | E111: =C111*1000/C$22 -> 29.45411162 | F111: W/m2
A114: Control of Fresh Air Intake wt CO2 sensor
B116: Flow rate of Fresh air intake is | C116: =IF(C100>C97,C100,C97) -> 5700 | D116: m3/h
B117: Flow rate of Fresh air intake is | C117: =C116/3.6 -> 1583.333333 | D117: l/s
B118: Flow rate of Fresh air intake is | C118: =C116/C24 -> 1 | D118: ach
A119: Heat due to Fresh air intake
B120: Q sensible air intake (AC Hours) | C120: =C$92*C$91*C116*C$94/3600 -> 9.830811904 | D120: kW
B121: Q sensible air intake (none AC Hours) | C121: =C$92*C$91*C97*(C$12-C$87)/3600 -> -1.329482355 | D121: kW
B122: Nett Sensible air intake | C122: =((C120*10)+(C121*14))/10 -> 7.969536606 | D122: kW | E122: =C122*1000/C$22 -> 6.641280505 | F122: W/m2
B123: Q latent air intake | C123: =C$90*C$91*C116*C$93/3600 -> 24.94627581 | D123: kW | E123: =C123*1000/C$22 -> 20.78856318 | F123: W/m2
B127: People Heat Gain
B129: Occupant Density | C129: =C67 -> 10 | D129: m2/person
B130: Floor Area | C130: =C22 -> 1200 | D130: m2
B131: No of Occupant | C131: =C130/C129 -> 120 | D131: persons
B132: People Sensible Heat | C132: =C69 -> 90 | D132: W/person
B133: People Latent Heat | C133: =C70 -> 60 | D133: W/person
B135: Total People Sensible Heat Gain | C135: =C132*C131/1000 -> 10.8 | D135: kW | E135: =C135*1000/C$22 -> 9 | F135: W/m2
B136: Total People Latent Heat Gain | C136: =C133*C131/1000 -> 7.2 | D136: kW | E136: =C136*1000/C$22 -> 6 | F136: W/m2
B140: Plug Load Heat Gain
B142: Plug Load Heat Gain during AC hours | C142: =C34 -> 15 | D142: W/m2 | E142: =C$9 -> 2700 | F142: hours | G142: =C142*E142*C144+C143*E143*C144 -> 59508000
B143: Plug Load Heat Gain during none AC hours | C143: =C35 -> 1.5 | D143: W/m2 | E143: =8760-E142 -> 6060 | F143: hours | G143: =G142/1000/1000 -> 59.508 | H143: MWh
B144: Floor Area | C144: =C130 -> 1200 | D144: m2
B146: Total Equip Sensible Heat Gain | C146: =(C142*C144*E142+C143*C144*E143)/1000/E142 -> 22.04 | D146: kW | E146: =C146*1000/C$22 -> 18.36666667 | F146: W/m2
B147: Occupant Density | C147: =C67 -> 10 | D147: m2/person
B148: No of Occupant | C148: =C144/C147 -> 120 | D148: persons
B149: Equip Heat Gain per person | C149: =C146*1000/C148 -> 183.6666667 | D149: W/person
B151: Heat Generated at night | C151: =C143*C144/1000 -> 1.8 | D151: kW
B154: Lighting Heat Gain
B156: Lighting Heat Gain during AC hours | C156: =C39 -> 12 | D156: W/m2 | E156: =C$9 -> 2700 | F156: hours
B157: Lighting Heat Gain during none AC hours | C157: =C40 -> 1.2 | D157: W/m2 | E157: =8760-E156 -> 6060 | F157: hours
B158: Floor Area | C158: =C144 -> 1200 | D158: m2
B159: Total Lighting Sensible Heat Gain | C159: =((C156*E156)+(C157*E157))/E156*C158/1000 -> 17.632 | D159: kW | E159: =C159*1000/C$22 -> 14.69333333 | F159: W/m2
B160: Daylighting | C160: ='Input Data'!C59 -> 2 | D160: 1=Yes, 2=No
B161: Daylight Percentage | C161: ='Input Data'!C60 -> 0
B162: Floor Area Not Daylighted | C162: =C22*(1-C161) -> 1200 | D162: m2
B163: Floor Area Daylighted | C163: =C22*C161 -> 0 | D163: m2 | E163: =E156-E164 -> 810 | F163: hours | H163: =C7 -> 10 | I163: Hours per day
B164: Percentage of Daylight Hours during AC hours | C164: 0.7 | E164: =(C164)*H166 -> 1890 | F164: hours | G164: None Daylighted Hours | H164: =C8 -> 270 | I164: Work days per year
B165: Lighting Heat Gain during AC hours (None Daylight Area) | C165: =C162*C156*E156 -> 38880000 | D165: Wh | G165: Daylighted Hours | H165: =IF(H163>10,10,H163) -> 10 | I165: if condition
B166: Lighting Heat Gain during AC hours (Daylight Area) | C166: =C163*E163*C156 -> 0 | D166: Wh | H166: =H164*H165 -> 2700
B167: Average Lighting Heat Gain during AC hours | C167: =(C165+C166)/E156/C158 -> 12 | D167: W/m2 | E167: =E156 -> 2700 | F167: hours
B168: =B157 -> Lighting Heat Gain during none AC hours | C168: =C157 -> 1.2 | D168: W/m2 | E168: 6060 | F168: hours
B169: Floor Area | C169: =C158 -> 1200 | D169: m2
B170: Total Lighting Sensible Heat Gain wt Daylighting | C170: =((C167*E167)+(C168*E168))/E167*C169/1000 -> 17.632 | D170: kW | E170: =C170*1000/C$22 -> 14.69333333 | F170: W/m2
B171: Potential Saving Due to Daylighting | C171: =C159-C170 -> 0 | D171: kW | E171: 2900 | F171: hours
B173: Total Lighting Sensible Heat Gain | C173: =IF('Input Data'!C59=1,'BE 1.OTTV'!C170,'BE 1.OTTV'!C159) -> 17.632 | D173: kW | E173: =C173*1000/C$22 -> 14.69333333 | F173: W/m2
B174: Occupant Density | C174: =C147 -> 10 | D174: m2/person
B175: No of Occupant | C175: =C158/C174 -> 120 | D175: persons
B176: Equip Heat Gain per person | C176: =C173*1000/C175 -> 146.9333333 | D176: W/person
B178: Heat Generated at night | C178: =C157*C158/1000 -> 1.44 | D178: kW
B182: Estimated Average Night Temp
B183: Sensible (light+equip) heat | C183: =C178+C151 -> 3.24 | D183: kW
B184: Total Heat Internally Generated (excluding conduction) | C184: =(C178+C151+C121) -> 1.910517645 | D184: kW
B185: Volume of Air | C185: =C24 -> 5700 | D185: m3
B186: =B91 -> Air Density at Room Condition | C186: =C91 -> 1.165668607 | D186: kg/m3
B187: Specific heat of air at Room Condition | C187: =C92 -> 1.005 | D187: kJ/kg.K
B188: =B86 -> Inside Average Temp during AC hours | C188: =C86 -> 24 | D188: =D86 -> Celcius
B189: Delta Temp | C189: =C184/(C187*C186*C185/3600) -> 1.030000738 | D189: deg Celcius
B190: Inside Average Temp during NON AC hours | C190: =nt_t(C12,C92,C91,C97,C183,C185,C86) -> 25.51675224 | D190: deg Celcius
B194: Total Cooling Load
B195: CO2 used? | C195: =C45 -> 0
B197: =B79 -> Total Heat Gain from Façade | C197: =C79 -> 50.09689111 | D197: =D79 -> kW
B198: =B82 -> Total Heat Gain from Roof | C198: =C82 -> 10.132 | D198: =D82 -> kW | G198: est from below
B199: =B108 -> Q sensible air intake (AC Hours) | C199: =IF(C195=1,C120,C108) -> 13.92870823 | D199: =D108 -> kW
B200: =B111 -> Q latent air intake (AC Hours) | C200: =IF(C195=1,C123,C111) -> 35.34493394 | D200: =D111 -> kW
B201: =B135 -> Total People Sensible Heat Gain | C201: =C135 -> 10.8 | D201: kW
B202: Total People Latent Heat Gain | C202: =C136 -> 7.2 | D202: kW
B203: =B146 -> Total Equip Sensible Heat Gain | C203: =C146 -> 22.04 | D203: =D146 -> kW
B204: =B173 -> Total Lighting Sensible Heat Gain | C204: =C173 -> 17.632 | D204: =D173 -> kW
A205: Iterated | B205: Total Fan Sensible Heat Gain | C205: =f_p(C207,C229,C230,C234,C225,C224) -> 4.627669334 | D205: kW | E205: =C242 -> 4.633409818
B207: Sum of Sensible excluding Fan | C207: =C197+C198+C199+C201+C203+C204 -> 124.6295993 | D207: kW
B208: Total Average Load (AC hours) | C208: =SUM(C197:C205) -> 171.8022026 | D208: kW
B209: Latent Load | C209: =C200+C202 -> 42.54493394 | D209: kW
B210: Sensible Load | C210: =C208-C209 -> 129.2572687 | D210: kW | E210: =C207+C205 -> 129.2572687
B211: AC Load for full year | C211: =C208*C$9/1000 -> 463.8659471 | D211: MWh
B212: Cooling Index | C212: =C211*1000/C$22 -> 386.5549559 | D212: kWh/m2/year
B213: COSP | C213: =C$47 -> 3.63622
B214: Cooling Energy | C214: =C212/C213 -> 106.306812 | D214: kWh/m2/year
B215: Cooling Energy | C215: =C214*C$22/1000 -> 127.5681744 | D215: MWh/year
B222: FAN Power Heat Gain - VAV system | G222: FAN Power Heat Gain - CAV system
B224: Combined Fan&Motor Efficiency | C224: =C50 -> 0.65 | D224: efficiency
B225: Static Pressure | C225: =C51 -> 350 | D225: Pa
B226: CO2 Used? | C226: =C45 -> 0
B227: =B86 -> Inside Average Temp during AC hours | C227: =C86 -> 24 | D227: =D86 -> Celcius
B228: Supply Air Temperature | C228: =C52 -> 13 | D228: Celcius | E228: Note: to reduce Chiller COP and room humidity if supply temp < 12 deg Celcius
B229: =B92 -> Specific heat of air at Room Condition | C229: =C92 -> 1.005 | D229: =D92 -> kJ/kg.K
B230: =B91 -> Air Density at Room Condition | C230: =C91 -> 1.165668607 | D230: =D91 -> kg/m3
B233: Total Average Sensible Load (AC hours) | C233: =C210 -> 129.2572687 | D233: kW
B234: Temperature Difference | C234: =C227-C228 -> 11 | D234: Celcius
B235: Volume to be cooled | C235: =C24 -> 5700 | D235: =D24 -> m3
B237: Flow Rate Required | C237: =C233*3600/(C229*C230*C234) -> 36109.67903 | D237: m3/h
B238: Flow Rate Required | C238: =C237/C235 -> 6.335031409 | D238: ach | E238: check figure
B239: Flow Rate Required | C239: =C237/3.6 -> 10030.4664 | D239: l/s
B240: Flow Rate Required | C240: =C237/3600 -> 10.0304664 | D240: m3/s
E241: Ave.
B242: Fan Power used | C242: =C240*C225/C224/1000/C230 -> 4.633409818 | D242: kW VAV | E242: =U12 -> 0.58 | G242: =B242 -> Fan Power used | H242: =C242/E242 -> 7.988637618 | I242: kW CAV
B247: Total Energy Use in Building
B248: =B226 -> CO2 Used? | C248: =C226 -> 0
B249: Cooling Energy | C249: =C215 -> 127.5681744 | D249: MWh/year
B250: Fan Energy | C250: =C242*C9/1000 -> 12.51020651 | D250: MWh/year
B251: Total Air-Conditioning Energy Used | C251: =C249+C250 -> 140.0783809 | D251: MWh/year
B253: Lighting Energy Used | C253: =C173*C9/1000 -> 47.6064 | D253: MWh/year
B254: Plug Load Energy Used | C254: =C146*C9/1000 -> 59.508 | D254: MWh/year
B255: Misc Load Energy Used | C255: =I16/1000 -> 14.3712 | D255: MWh/year
B257: Total Building Energy used | C257: =C251+C253+C254+C255 -> 261.5639809 | D257: =D254 -> MWh/year
B258: Building Energy Index | C258: =C257/C22*1000 -> 217.9699841 | D258: kWh/m2/year

Sheet BE 2.RTTV (hidden)
A1: Energy & Cooling Load Calculation based on Steady State Conditions
A2: Assumptions | O2: Calculation Method based on UK Guidance for the use of the Carbon Emissions Calculation Method
G3: Misc Loads | H3: Non AC hrs | I3: =8760-C9 -> 6060
G4: Elevators and Escalators | I4: kWh/year | J4: Input Data | K4: Diversity Factor | O4: Full Load Chiller COP | Q4: =C46 -> 4.4
A5: Operating Hours | G5: Elevators and Escalators during AC hours (kW/building) | H5: =J5*K5 -> 1.125 | I5: =H5*8760 -> 9855 | J5: ='Input Data'!C77 -> 25 | K5: =(0.3*0.15) -> 0.045 | O5: 50% Capacity COP | Q5: =Q4*5/6 -> 3.666666667 | R5: Base on GPG59, Effi. Of screw compressor, 60% full load power at 50% capacity.
G6: Elevators and Escalators during non AC hours (kW/building) | H6: 0 | I6: =H6*$I$3 -> 0
B7: Hours of Operation | C7: ='Input Data'!C17 -> 10 | D7: hours/day | G7: Hydraulic systems | O7: %total load | P7: Compressor 1 | Q7: Compressor 2 | R7: Overall CoP | S7: ARI weighting 1st approximation
B8: Working Days | C8: ='Input Data'!C18 -> 270 | D8: days/year | G8: Hydraulic systems during AC hours (kW/building) | H8: =J8*K8 -> 0.3 | I8: =H8*$C$9 -> 810 | J8: ='Input Data'!C79 -> 2 | K8: 0.15 | O8: 1 | P8: 1 | Q8: 1 | R8: =(0.5*Q4)+(0.5*Q4) -> 4.4 | S8: 0.01 | T8: =R8*S8 -> 0.044 | U8: =O8*S8 -> 0.01
B9: AC operating Hours | C9: =C7*C8 -> 2700 | D9: hours/year | G9: Hydraulic systems during non AC hours (kW/building) | H9: 0 | I9: =H9*$I$3 -> 0 | O9: 0.75 | P9: 1 | Q9: 0.5 | R9: =(0.67*Q4)+(0.33*Q5) -> 4.158 | S9: 0.42 | T9: 1.74636 | U9: 0.315
A10: Outside Conditions | G10: External lighting | L10: hours/day | M10: Days | O10: 0.5 | P10: 1 | Q10: 0 | R10: =1*Q4 -> 4.4 | S10: 0.45 | T10: 1.98 | U10: 0.225
B11: Outside Average Temp during AC hours | C11: 29.3 | D11: Celcius | E11: Fixed | G11: External lighting prorated (kW/building) | H11: =J11 -> 2 | I11: =H11*K11*L11*M11+H11*K12*L12*M12 -> 3706.2 | J11: ='Input Data'!C81 -> 2 | K11: 1 | L11: 5 | M11: 261 | N11: 7-midnite | O11: 0.25 | P11: 0.5 | Q11: 0 | R11: =1*Q5 -> 3.666666667 | S11: 0.12 | T11: 0.44 | U11: 0.03
B12: Outside Average Temp during None AC hours | C12: 24.8 | D12: Celcius | E12: Fixed | G12: External lighting during non AC hours (kW/building) | H12: 0 | I12: =H12*$I$3 -> 0 | K12: 0.3 | L12: 7 | M12: 261 | N12: mid-7am | S12: =SUM(S8:S11) -> 1 | T12: 4.21036 | U12: 0.58 | W12: =T12/Q4 -> 0.9569
B13: Outside Average Humidity during AC hours | C13: 0.01817402242 | D13: kg/kg | E13: Fixed | G13: Others
G14: Others during AC hours (kW/building) | H14: 0 | I14: =H14*$C$9 -> 0
G15: Others during non AC hours (kW/building) | H15: 0 | I15: =H15*$I$3 -> 0 | O15: COSP | P15: =(P20*P18)/(1+T18) -> 3.63622
H16: Total Misc | I16: =SUM(I5:I15) -> 14371.2
O17: CD | P17: 1 | S17: Dist Losses | T17: Heat Rejection Power
O18: Fdl | P18: =1-S18 -> 0.95 | Q18: distribution losses | S18: 0.05 | T18: ='Input Data'!C90 -> 0.1
A19: Input Data | G19: Results Summary | O19: Fhr | P19: =T18 -> 0.1 | Q19: heat rejection losses base on GPG256. Water Pump load at 22W/kW of rejected heat. Fan power of dry cooler 25 W/kW of rejected Heat.
H20: Total Energy Used | J20: % | K20: Energy Index | O20: CoPav | P20: =T12 -> 4.21036
A21: Building Data | G21: =B249 -> Cooling Energy | H21: 121.5891143 | I21: MWh/year | J21: =H21/H$29 -> 0.4771838807 | K21: =J21*K$30 -> 101.3242619 | L21: =L30 -> kWh/m2/year
B22: AC Floor Area | C22: ='Input Data'!C4 -> 1200 | D22: m2 | G22: Fan Energy | H22: 11.7308632 | I22: MWh/year | J22: 0.04603848675 | K22: 9.775719336 | L22: =L21 -> kWh/m2/year
B23: Floor to Floor height | C23: ='OTTV Baseline'!D4 -> 4.75 | D23: m | G23: Total Air-Conditioning Energy Used | H23: 133.3199775 | I23: MWh/year | J23: 0.5232223674 | K23: 111.0999812 | L23: kWh/m2/year | O23: CD*Fdl/CoPav | P23: =P17*P18/P20 -> 0.2256339125
B24: AC Volume | C24: =C22*C23 -> 5700 | D24: m3 | O24: (1+1/CoPav) | P24: =(1/P20)+1 -> 1.237509382
B25: Total AC External Wall Area | C25: ='OTTV Baseline'!D11 -> 1710 | D25: m2 | E25: ='OTTV Baseline'!D11 -> 1710 | F25: m2 | G25: =B253 -> Lighting Energy Used | H25: =C253 -> 47.6064 | I25: MWh/year | J25: =H25/H$29 -> 0.1868342148 | K25: =J25*K$30 -> 39.672 | L25: =L23 -> kWh/m2/year | O25: CD*FDS*Fhr*add | P25: =P17*P18*P24*P19 -> 0.1175633913
B26: Total AC Roof Area | C26: ='OTTV Baseline'!D8 -> 200 | D26: m2 | G26: Plug Load Energy Used | H26: 59.508 | I26: MWh/year | J26: =H26/H$29 -> 0.2335427685 | K26: 49.59 | L26: kWh/m2/year
G27: Misc Load Energy Used | H27: =I16/1000 -> 14.3712 | I27: MWh/year | J27: =C255/H$29 -> 0.05640064924 | K27: 11.976 | L27: kWh/m2/year
B28: Calculated OTTV | C28: ='Input Data'!D39 -> 29.29642755 | D28: W/m2 | E28: ='OTTV Baseline'!G3 -> 50.090105 | F28: W/m2
B29: Calculated RTTV | C29: ='Building Energy Proposed'!C29 -> 11.84 | D29: W/m2 | G29: =B257 -> Total Building Energy used | H29: 254.8055775 | I29: MWh/year
G30: Building Energy Index | K30: =C258 -> 212.3379812 | L30: =D258 -> kWh/m2/year
A33: Plug Load Heat Gain | G33: =G21 -> Cooling Energy | H33: =K21 -> 101.3242619 | I33: =L30 -> kWh/m2/year
B34: Plug Load Heat Gain during AC hours | C34: ='Input Data'!C67 -> 15 | D34: W/m2 | G34: =G22 -> Fan Energy | H34: =K22 -> 9.775719336 | I34: =I33 -> kWh/m2/year
B35: Plug Load Heat Gain during none AC hours | C35: ='Input Data'!C68 -> 1.5 | D35: W/m2 | G35: =G25 -> Lighting Energy Used | H35: =K25 -> 39.672 | I35: kWh/m2/year
B36: Total Heat Gain during AC hours | C36: =C34*C$22/1000 -> 18 | D36: kW | G36: =G26 -> Plug Load Energy Used | H36: =K26 -> 49.59 | I36: kWh/m2/year
B37: Total Heat Gain during None AC hours | C37: 1.8 | D37: kW
A38: Lighting Heat Gain
B39: Lighting Heat Gain during AC hours | C39: ='Input Data'!C56 -> 12 | D39: W/m2
B40: Lighting Heat Gain during none AC hours | C40: ='Input Data'!C57 -> 1.2 | D40: W/m2
B41: Total Heat Gain during AC hours | C41: 14.4 | D41: kW
B42: Total Heat Gain during None AC hours | C42: 1.44 | D42: kW
A44: System Used
B45: CO2 control of Fresh Air Inlet used? | C45: =IF('Input Data'!C92=1,1,0) -> 0 | D45: 1=yes, 0=no
B46: COP of chiller | C46: ='Input Data'!C89 -> 4.4
B47: COSP (Coefficient of System Performance) | C47: =P15 -> 3.63622
A49: Fan Data
B50: Combined Fan&Motor Efficiency | C50: ='Input Data'!C97 -> 0.65 | D50: efficiency
B51: Static Pressure | C51: ='Input Data'!C98 -> 350 | D51: Pa
B52: Supply Air Temperature (off coil temperature) | C52: 13 | D52: Celcius | E52: Fixed Data
A55: Indoor Air Conditions
B56: Indoor AC Temperature | C56: ='Input Data'!C94 -> 24 | D56: Celcius
B57: Indoor AC Relative Humidity | C57: ='Input Data'!C95 -> 0.65 | D57: Percentage
B58: =B57 -> Indoor AC Relative Humidity | C58: =C57*100 -> 65 | D58: %
B59: Indoor Abs Humidity Ratio (kg/kg) | C59: =g_t_rh(C56,C58) -> 0.01218784321 | D59: kg/kg
A63: Infiltration
B64: ACH | C64: ='Input Data'!C105 -> 1 | D64: ach
A66: Occupants Data
B67: Occupant Density | C67: ='Input Data'!C13 -> 10 | D67: m2/person
B68: No of Occupants | C68: =C95/C67 -> 120 | D68: persons
B69: People Sensible Heat per person | C69: 90 | D69: W/person
B70: People Latent Heat per person | C70: 60 | D70: W/person
B71: Min Fresh Air per person | C71: =C72*C22/C68+C73 -> 5.5 | D71: l/s/person
B72: ASHRAE 62. Area requirement | C72: 0.3 | D72: l/s/m2
B73: People requirement | C73: 2.5 | D73: l/s/person
A76: CALCULATION DATA | T76: latent heat of vaprorization of water (kJ/kg) at atmos | U76: = | V76: 2257.92
B78: OTTV Calculation (Fabric Heat Load) | T78: = | U78: =T97 -> 1.205
B79: Total Heat Gain from Façade | C79: =C25*C28/1000 -> 50.09689111 | D79: kW
T80: = | U80: air change rate
B81: RTTV Calculation (Roof Heat Load)
B82: Total Heat Gain from Roof | C82: =C26*C29/1000 -> 2.368 | D82: kW | T82: = | V82: kg/kg
B84: Air Infiltration during AC hours (8am to 6pm - 10 hours everyday)
B86: Inside Average Temp during AC hours | C86: =C56 -> 24 | D86: Celcius
A87: Iterated | B87: Inside Average Temp during None AC Hours | C87: =E87 -> 25.51675224 | D87: Celcius | E87: =C190 -> 25.51675224 | F87: Celcius
B88: Outside Average Humidity during AC hours | C88: =C13 -> 0.01817402242 | D88: kg/kg | E88: Fixed
B89: Inside Average Humidity during AC hours | C89: =C59 -> 0.01218784321 | D89: kg/kg
B90: Latent Heat of Vaporisation of Water at Atmos | C90: 2257.92 | D90: kJ/kg | E90: Fixed
B91: Air Density at Room Condition | C91: =rho_t_g(C86,C89) -> 1.165668607 | D91: kg/m3 | E91: Fixed
B92: Specific heat of air at Room Condition | C92: 1.005 | D92: kJ/kg.K | E92: Fixed
B93: Delta Humidity Ratio during AC hours | C93: =C88-C89 -> 0.005986179205 | D93: kg/kg
B94: Delta Temperature diff during AC hours | C94: =C11-C86 -> 5.3 | D94: Celcius
B95: Floor Area | C95: =C22 -> 1200 | D95: m2 | R95: = | S95: 1.005 | T95: kJ/kg.K
B97: Flow Rate of Infiltrated Air | C97: =C24*C64 -> 5700 | D97: m3/h | S97: = | T97: 1.205 | U97: kg/m3
B99: Min Fresh Air Flow Rate required for occupants | C99: =C68*C71 -> 660 | D99: l/s
B100: Min Fresh Air Flow Rate required for occupants | C100: =C99*3.6 -> 2376 | D100: m3/h
Q101: = | R101: =H100 -> 0
A102: No Control of Fresh Air Intake (Infiltration + Mech Fresh Air)
B104: Flow rate of Fresh air is | C104: =C100+C97 -> 8076 | D104: m3/h
B105: Flow rate of Fresh air is | C105: =C104/3.6 -> 2243.333333 | D105: l/s
B106: Flow rate of Fresh air is | C106: =C104/C$24 -> 1.416842105 | D106: ach
A107: Heat due to Fresh air intake
B108: Q sensible air intake (AC Hours) | C108: =C$92*C$91*C104*C$94/3600 -> 13.92870823 | D108: kW | E108: 10 | F108: hours
B109: Q sensible air intake (none AC Hours) | C109: =C$92*C$91*C104*(C$12-C$87)/3600 -> -1.883666579 | D109: kW | E109: 14 | F109: hours
B110: Nett Sensible air intake | C110: =((C108*10)+(C109*14))/10 -> 11.29157502 | D110: kW | E110: =C110*1000/C$22 -> 9.409645853 | F110: W/m2
B111: Q latent air intake (AC Hours) | C111: =C$90*C$91*C104*C$93/3600 -> 35.34493394 | D111: kW | E111: =C111*1000/C$22 -> 29.45411162 | F111: W/m2
A114: Control of Fresh Air Intake wt CO2 sensor
B116: Flow rate of Fresh air intake is | C116: =IF(C100>C97,C100,C97) -> 5700 | D116: m3/h
B117: Flow rate of Fresh air intake is | C117: =C116/3.6 -> 1583.333333 | D117: l/s
B118: Flow rate of Fresh air intake is | C118: =C116/C24 -> 1 | D118: ach
A119: Heat due to Fresh air intake
B120: Q sensible air intake (AC Hours) | C120: =C$92*C$91*C116*C$94/3600 -> 9.830811904 | D120: kW
B121: Q sensible air intake (none AC Hours) | C121: =C$92*C$91*C97*(C$12-C$87)/3600 -> -1.329482355 | D121: kW
B122: Nett Sensible air intake | C122: =((C120*10)+(C121*14))/10 -> 7.969536606 | D122: kW | E122: =C122*1000/C$22 -> 6.641280505 | F122: W/m2
B123: Q latent air intake | C123: =C$90*C$91*C116*C$93/3600 -> 24.94627581 | D123: kW | E123: =C123*1000/C$22 -> 20.78856318 | F123: W/m2
B127: People Heat Gain
B129: Occupant Density | C129: =C67 -> 10 | D129: m2/person
B130: Floor Area | C130: =C22 -> 1200 | D130: m2
B131: No of Occupant | C131: =C130/C129 -> 120 | D131: persons
B132: People Sensible Heat | C132: =C69 -> 90 | D132: W/person
B133: People Latent Heat | C133: =C70 -> 60 | D133: W/person
B135: Total People Sensible Heat Gain | C135: =C132*C131/1000 -> 10.8 | D135: kW | E135: =C135*1000/C$22 -> 9 | F135: W/m2
B136: Total People Latent Heat Gain | C136: =C133*C131/1000 -> 7.2 | D136: kW | E136: =C136*1000/C$22 -> 6 | F136: W/m2
B140: Plug Load Heat Gain
B142: Plug Load Heat Gain during AC hours | C142: =C34 -> 15 | D142: W/m2 | E142: =C$9 -> 2700 | F142: hours | G142: =C142*E142*C144+C143*E143*C144 -> 59508000
B143: Plug Load Heat Gain during none AC hours | C143: =C35 -> 1.5 | D143: W/m2 | E143: =8760-E142 -> 6060 | F143: hours | G143: =G142/1000/1000 -> 59.508 | H143: MWh
B144: Floor Area | C144: =C130 -> 1200 | D144: m2
B146: Total Equip Sensible Heat Gain | C146: =(C142*C144*E142+C143*C144*E143)/1000/E142 -> 22.04 | D146: kW | E146: =C146*1000/C$22 -> 18.36666667 | F146: W/m2
B147: Occupant Density | C147: =C67 -> 10 | D147: m2/person
B148: No of Occupant | C148: =C144/C147 -> 120 | D148: persons
B149: Equip Heat Gain per person | C149: =C146*1000/C148 -> 183.6666667 | D149: W/person
B151: Heat Generated at night | C151: =C143*C144/1000 -> 1.8 | D151: kW
B154: Lighting Heat Gain
B156: Lighting Heat Gain during AC hours | C156: =C39 -> 12 | D156: W/m2 | E156: =C$9 -> 2700 | F156: hours
B157: Lighting Heat Gain during none AC hours | C157: =C40 -> 1.2 | D157: W/m2 | E157: =8760-E156 -> 6060 | F157: hours
B158: Floor Area | C158: =C144 -> 1200 | D158: m2
B159: Total Lighting Sensible Heat Gain | C159: =((C156*E156)+(C157*E157))/E156*C158/1000 -> 17.632 | D159: kW | E159: =C159*1000/C$22 -> 14.69333333 | F159: W/m2
B160: Daylighting | C160: ='Input Data'!C59 -> 2 | D160: 1=Yes, 2=No
B161: Daylight Percentage | C161: ='Input Data'!C60 -> 0
B162: Floor Area Not Daylighted | C162: =C22*(1-C161) -> 1200 | D162: m2
B163: Floor Area Daylighted | C163: =C22*C161 -> 0 | D163: m2 | E163: =E156-E164 -> 810 | F163: hours | H163: =C7 -> 10 | I163: Hours per day
B164: Percentage of Daylight Hours during AC hours | C164: 0.7 | E164: =(C164)*H166 -> 1890 | F164: hours | G164: None Daylighted Hours | H164: =C8 -> 270 | I164: Work days per year
B165: Lighting Heat Gain during AC hours (None Daylight Area) | C165: =C162*C156*E156 -> 38880000 | D165: Wh | G165: Daylighted Hours | H165: =IF(H163>10,10,H163) -> 10 | I165: if condition
B166: Lighting Heat Gain during AC hours (Daylight Area) | C166: =C163*E163*C156 -> 0 | D166: Wh | H166: =H164*H165 -> 2700
B167: Average Lighting Heat Gain during AC hours | C167: =(C165+C166)/E156/C158 -> 12 | D167: W/m2 | E167: =E156 -> 2700 | F167: hours
B168: =B157 -> Lighting Heat Gain during none AC hours | C168: =C157 -> 1.2 | D168: W/m2 | E168: 6060 | F168: hours
B169: Floor Area | C169: =C158 -> 1200 | D169: m2
B170: Total Lighting Sensible Heat Gain wt Daylighting | C170: =((C167*E167)+(C168*E168))/E167*C169/1000 -> 17.632 | D170: kW | E170: =C170*1000/C$22 -> 14.69333333 | F170: W/m2
B171: Potential Saving Due to Daylighting | C171: =C159-C170 -> 0 | D171: kW | E171: 2900 | F171: hours
B173: Total Lighting Sensible Heat Gain | C173: =IF('Input Data'!C59=1,'BE 2.RTTV'!C170,'BE 2.RTTV'!C159) -> 17.632 | D173: kW | E173: =C173*1000/C$22 -> 14.69333333 | F173: W/m2
B174: Occupant Density | C174: =C147 -> 10 | D174: m2/person
B175: No of Occupant | C175: =C158/C174 -> 120 | D175: persons
B176: Equip Heat Gain per person | C176: =C173*1000/C175 -> 146.9333333 | D176: W/person
B178: Heat Generated at night | C178: =C157*C158/1000 -> 1.44 | D178: kW
B182: Estimated Average Night Temp
B183: Sensible (light+equip) heat | C183: =C178+C151 -> 3.24 | D183: kW
B184: Total Heat Internally Generated (excluding conduction) | C184: =(C178+C151+C121) -> 1.910517645 | D184: kW
B185: Volume of Air | C185: =C24 -> 5700 | D185: m3
B186: =B91 -> Air Density at Room Condition | C186: =C91 -> 1.165668607 | D186: kg/m3
B187: Specific heat of air at Room Condition | C187: =C92 -> 1.005 | D187: kJ/kg.K
B188: =B86 -> Inside Average Temp during AC hours | C188: =C86 -> 24 | D188: =D86 -> Celcius
B189: Delta Temp | C189: =C184/(C187*C186*C185/3600) -> 1.030000738 | D189: deg Celcius
B190: Inside Average Temp during NON AC hours | C190: =nt_t(C12,C92,C91,C97,C183,C185,C86) -> 25.51675224 | D190: deg Celcius
B194: Total Cooling Load
B195: CO2 used? | C195: =C45 -> 0
B197: =B79 -> Total Heat Gain from Façade | C197: =C79 -> 50.09689111 | D197: =D79 -> kW
B198: =B82 -> Total Heat Gain from Roof | C198: =C82 -> 2.368 | D198: =D82 -> kW | G198: est from below
B199: =B108 -> Q sensible air intake (AC Hours) | C199: =IF(C195=1,C120,C108) -> 13.92870823 | D199: =D108 -> kW
B200: =B111 -> Q latent air intake (AC Hours) | C200: =IF(C195=1,C123,C111) -> 35.34493394 | D200: =D111 -> kW
B201: =B135 -> Total People Sensible Heat Gain | C201: =C135 -> 10.8 | D201: kW
B202: Total People Latent Heat Gain | C202: =C136 -> 7.2 | D202: kW
B203: =B146 -> Total Equip Sensible Heat Gain | C203: =C146 -> 22.04 | D203: =D146 -> kW
B204: =B173 -> Total Lighting Sensible Heat Gain | C204: =C173 -> 17.632 | D204: =D173 -> kW
A205: Iterated | B205: Total Fan Sensible Heat Gain | C205: =f_p(C207,C229,C230,C234,C225,C224) -> 4.339381218 | D205: kW | E205: =C242 -> 4.344764149
B207: Sum of Sensible excluding Fan | C207: =C197+C198+C199+C201+C203+C204 -> 116.8655993 | D207: kW
B208: Total Average Load (AC hours) | C208: =SUM(C197:C205) -> 163.7499145 | D208: kW
B209: Latent Load | C209: =C200+C202 -> 42.54493394 | D209: kW
B210: Sensible Load | C210: =C208-C209 -> 121.2049806 | D210: kW | E210: =C207+C205 -> 121.2049806
B211: AC Load for full year | C211: =C208*C$9/1000 -> 442.1247692 | D211: MWh
B212: Cooling Index | C212: =C211*1000/C$22 -> 368.4373076 | D212: kWh/m2/year
B213: COSP | C213: =C$47 -> 3.63622
B214: Cooling Energy | C214: =C212/C213 -> 101.3242619 | D214: kWh/m2/year
B215: Cooling Energy | C215: =C214*C$22/1000 -> 121.5891143 | D215: MWh/year
B222: FAN Power Heat Gain - VAV system | G222: FAN Power Heat Gain - CAV system
B224: Combined Fan&Motor Efficiency | C224: =C50 -> 0.65 | D224: efficiency
B225: Static Pressure | C225: =C51 -> 350 | D225: Pa
B226: CO2 Used? | C226: =C45 -> 0
B227: =B86 -> Inside Average Temp during AC hours | C227: =C86 -> 24 | D227: =D86 -> Celcius
B228: Supply Air Temperature | C228: =C52 -> 13 | D228: Celcius | E228: Note: to reduce Chiller COP and room humidity if supply temp < 12 deg Celcius
B229: =B92 -> Specific heat of air at Room Condition | C229: =C92 -> 1.005 | D229: =D92 -> kJ/kg.K
B230: =B91 -> Air Density at Room Condition | C230: =C91 -> 1.165668607 | D230: =D91 -> kg/m3
B233: Total Average Sensible Load (AC hours) | C233: =C210 -> 121.2049806 | D233: kW
B234: Temperature Difference | C234: =C227-C228 -> 11 | D234: Celcius
B235: Volume to be cooled | C235: =C24 -> 5700 | D235: =D24 -> m3
B237: Flow Rate Required | C237: =C233*3600/(C229*C230*C234) -> 33860.16887 | D237: m3/h
B238: Flow Rate Required | C238: =C237/C235 -> 5.940380503 | D238: ach | E238: check figure
B239: Flow Rate Required | C239: =C237/3.6 -> 9405.602463 | D239: l/s
B240: Flow Rate Required | C240: =C237/3600 -> 9.405602463 | D240: m3/s
E241: Ave.
B242: Fan Power used | C242: =C240*C225/C224/1000/C230 -> 4.344764149 | D242: kW VAV | E242: =U12 -> 0.58 | G242: =B242 -> Fan Power used | H242: =C242/E242 -> 7.490972671 | I242: kW CAV
B247: Total Energy Use in Building
B248: =B226 -> CO2 Used? | C248: =C226 -> 0
B249: Cooling Energy | C249: =C215 -> 121.5891143 | D249: MWh/year
B250: Fan Energy | C250: =C242*C9/1000 -> 11.7308632 | D250: MWh/year
B251: Total Air-Conditioning Energy Used | C251: =C249+C250 -> 133.3199775 | D251: MWh/year
B253: Lighting Energy Used | C253: =C173*C9/1000 -> 47.6064 | D253: MWh/year
B254: Plug Load Energy Used | C254: =C146*C9/1000 -> 59.508 | D254: MWh/year
B255: Misc Load Energy Used | C255: =I16/1000 -> 14.3712 | D255: MWh/year
B257: Total Building Energy used | C257: =C251+C253+C254+C255 -> 254.8055775 | D257: =D254 -> MWh/year
B258: Building Energy Index | C258: =C257/C22*1000 -> 212.3379812 | D258: kWh/m2/year

Sheet BE 3.Daylight (hidden)
A1: Energy & Cooling Load Calculation based on Steady State Conditions
A2: Assumptions | O2: Calculation Method based on UK Guidance for the use of the Carbon Emissions Calculation Method
G3: Misc Loads | H3: Non AC hrs | I3: =8760-C9 -> 6060
G4: Elevators and Escalators | I4: kWh/year | J4: Input Data | K4: Diversity Factor | O4: Full Load Chiller COP | Q4: =C46 -> 4.4
A5: Operating Hours | G5: Elevators and Escalators during AC hours (kW/building) | H5: =J5*K5 -> 1.125 | I5: =H5*8760 -> 9855 | J5: ='Input Data'!C77 -> 25 | K5: =(0.3*0.15) -> 0.045 | O5: 50% Capacity COP | Q5: =Q4*5/6 -> 3.666666667 | R5: Base on GPG59, Effi. Of screw compressor, 60% full load power at 50% capacity.
G6: Elevators and Escalators during non AC hours (kW/building) | H6: 0 | I6: =H6*$I$3 -> 0
B7: Hours of Operation | C7: ='Input Data'!C17 -> 10 | D7: hours/day | G7: Hydraulic systems | O7: %total load | P7: Compressor 1 | Q7: Compressor 2 | R7: Overall CoP | S7: ARI weighting 1st approximation
B8: Working Days | C8: ='Input Data'!C18 -> 270 | D8: days/year | G8: Hydraulic systems during AC hours (kW/building) | H8: =J8*K8 -> 0.3 | I8: =H8*$C$9 -> 810 | J8: ='Input Data'!C79 -> 2 | K8: 0.15 | O8: 1 | P8: 1 | Q8: 1 | R8: =(0.5*Q4)+(0.5*Q4) -> 4.4 | S8: 0.01 | T8: =R8*S8 -> 0.044 | U8: =O8*S8 -> 0.01
B9: AC operating Hours | C9: =C7*C8 -> 2700 | D9: hours/year | G9: Hydraulic systems during non AC hours (kW/building) | H9: 0 | I9: =H9*$I$3 -> 0 | O9: 0.75 | P9: 1 | Q9: 0.5 | R9: =(0.67*Q4)+(0.33*Q5) -> 4.158 | S9: 0.42 | T9: 1.74636 | U9: 0.315
A10: Outside Conditions | G10: External lighting | L10: hours/day | M10: Days | O10: 0.5 | P10: 1 | Q10: 0 | R10: =1*Q4 -> 4.4 | S10: 0.45 | T10: 1.98 | U10: 0.225
B11: Outside Average Temp during AC hours | C11: 29.3 | D11: Celcius | E11: Fixed | G11: External lighting prorated (kW/building) | H11: =J11 -> 2 | I11: =H11*K11*L11*M11+H11*K12*L12*M12 -> 3706.2 | J11: ='Input Data'!C81 -> 2 | K11: 1 | L11: 5 | M11: 261 | N11: 7-midnite | O11: 0.25 | P11: 0.5 | Q11: 0 | R11: =1*Q5 -> 3.666666667 | S11: 0.12 | T11: 0.44 | U11: 0.03
B12: Outside Average Temp during None AC hours | C12: 24.8 | D12: Celcius | E12: Fixed | G12: External lighting during non AC hours (kW/building) | H12: 0 | I12: =H12*$I$3 -> 0 | K12: 0.3 | L12: 7 | M12: 261 | N12: mid-7am | S12: =SUM(S8:S11) -> 1 | T12: 4.21036 | U12: 0.58 | W12: =T12/Q4 -> 0.9569
B13: Outside Average Humidity during AC hours | C13: 0.01817402242 | D13: kg/kg | E13: Fixed | G13: Others
G14: Others during AC hours (kW/building) | H14: 0 | I14: =H14*$C$9 -> 0
G15: Others during non AC hours (kW/building) | H15: 0 | I15: =H15*$I$3 -> 0 | O15: COSP | P15: =(P20*P18)/(1+T18) -> 3.63622
H16: Total Misc | I16: =SUM(I5:I15) -> 14371.2
O17: CD | P17: 1 | S17: Dist Losses | T17: Heat Rejection Power
O18: Fdl | P18: =1-S18 -> 0.95 | Q18: distribution losses | S18: 0.05 | T18: ='Input Data'!C90 -> 0.1
A19: Input Data | G19: Results Summary | O19: Fhr | P19: =T18 -> 0.1 | Q19: heat rejection losses base on GPG256. Water Pump load at 22W/kW of rejected heat. Fan power of dry cooler 25 W/kW of rejected Heat.
H20: Total Energy Used | J20: % | K20: Energy Index | O20: CoPav | P20: =T12 -> 4.21036
A21: Building Data | G21: =B249 -> Cooling Energy | H21: 120.0365918 | I21: MWh/year | J21: =H21/H$29 -> 0.4847857851 | K21: =J21*K$30 -> 100.0304932 | L21: =L30 -> kWh/m2/year
B22: AC Floor Area | C22: ='Input Data'!C4 -> 1200 | D22: m2 | G22: Fan Energy | H22: 11.52849896 | I22: MWh/year | J22: 0.04655957265 | K22: 9.607082463 | L22: =L21 -> kWh/m2/year
B23: Floor to Floor height | C23: ='OTTV Baseline'!D4 -> 4.75 | D23: m | G23: Total Air-Conditioning Energy Used | H23: 131.5650908 | I23: MWh/year | J23: 0.5313453578 | K23: 109.6375756 | L23: kWh/m2/year | O23: CD*Fdl/CoPav | P23: =P17*P18/P20 -> 0.2256339125
B24: AC Volume | C24: =C22*C23 -> 5700 | D24: m3 | O24: (1+1/CoPav) | P24: =(1/P20)+1 -> 1.237509382
B25: Total AC External Wall Area | C25: ='OTTV Baseline'!D11 -> 1710 | D25: m2 | E25: ='OTTV Baseline'!D11 -> 1710 | F25: m2 | G25: =B253 -> Lighting Energy Used | H25: =C253 -> 42.1632 | I25: MWh/year | J25: =H25/H$29 -> 0.1702824089 | K25: =J25*K$30 -> 35.136 | L25: =L23 -> kWh/m2/year | O25: CD*FDS*Fhr*add | P25: =P17*P18*P24*P19 -> 0.1175633913
B26: Total AC Roof Area | C26: ='OTTV Baseline'!D8 -> 200 | D26: m2 | G26: Plug Load Energy Used | H26: 59.508 | I26: MWh/year | J26: =H26/H$29 -> 0.240331986 | K26: 49.59 | L26: kWh/m2/year
G27: Misc Load Energy Used | H27: =I16/1000 -> 14.3712 | I27: MWh/year | J27: =C255/H$29 -> 0.05804024731 | K27: 11.976 | L27: kWh/m2/year
B28: Calculated OTTV | C28: ='Input Data'!D39 -> 29.29642755 | D28: W/m2 | E28: ='OTTV Baseline'!G3 -> 50.090105 | F28: W/m2
B29: Calculated RTTV | C29: ='Building Energy Proposed'!C29 -> 11.84 | D29: W/m2 | G29: =B257 -> Total Building Energy used | H29: 247.6074908 | I29: MWh/year
G30: Building Energy Index | K30: =C258 -> 206.3395756 | L30: =D258 -> kWh/m2/year
A33: Plug Load Heat Gain | G33: =G21 -> Cooling Energy | H33: =K21 -> 100.0304932 | I33: =L30 -> kWh/m2/year
B34: Plug Load Heat Gain during AC hours | C34: ='Input Data'!C67 -> 15 | D34: W/m2 | G34: =G22 -> Fan Energy | H34: =K22 -> 9.607082463 | I34: =I33 -> kWh/m2/year
B35: Plug Load Heat Gain during none AC hours | C35: ='Input Data'!C68 -> 1.5 | D35: W/m2 | G35: =G25 -> Lighting Energy Used | H35: =K25 -> 35.136 | I35: kWh/m2/year
B36: Total Heat Gain during AC hours | C36: =C34*C$22/1000 -> 18 | D36: kW | G36: =G26 -> Plug Load Energy Used | H36: =K26 -> 49.59 | I36: kWh/m2/year
B37: Total Heat Gain during None AC hours | C37: 1.8 | D37: kW
A38: Lighting Heat Gain
B39: Lighting Heat Gain during AC hours | C39: ='Input Data'!C56 -> 12 | D39: W/m2
B40: Lighting Heat Gain during none AC hours | C40: ='Input Data'!C57 -> 1.2 | D40: W/m2
B41: Total Heat Gain during AC hours | C41: 14.4 | D41: kW
B42: Total Heat Gain during None AC hours | C42: 1.44 | D42: kW
A44: System Used
B45: CO2 control of Fresh Air Inlet used? | C45: =IF('Input Data'!C92=1,1,0) -> 0 | D45: 1=yes, 0=no
B46: COP of chiller | C46: ='Input Data'!C89 -> 4.4
B47: COSP (Coefficient of System Performance) | C47: =P15 -> 3.63622
A49: Fan Data
B50: Combined Fan&Motor Efficiency | C50: ='Input Data'!C97 -> 0.65 | D50: efficiency
B51: Static Pressure | C51: ='Input Data'!C98 -> 350 | D51: Pa
B52: Supply Air Temperature (off coil temperature) | C52: 13 | D52: Celcius | E52: Fixed Data
A55: Indoor Air Conditions
B56: Indoor AC Temperature | C56: ='Input Data'!C94 -> 24 | D56: Celcius
B57: Indoor AC Relative Humidity | C57: ='Input Data'!C95 -> 0.65 | D57: Percentage
B58: =B57 -> Indoor AC Relative Humidity | C58: =C57*100 -> 65 | D58: %
B59: Indoor Abs Humidity Ratio (kg/kg) | C59: =g_t_rh(C56,C58) -> 0.01218784321 | D59: kg/kg
A63: Infiltration
B64: ACH | C64: ='Input Data'!C105 -> 1 | D64: ach
A66: Occupants Data
B67: Occupant Density | C67: ='Input Data'!C13 -> 10 | D67: m2/person
B68: No of Occupants | C68: =C95/C67 -> 120 | D68: persons
B69: People Sensible Heat per person | C69: 90 | D69: W/person
B70: People Latent Heat per person | C70: 60 | D70: W/person
B71: Min Fresh Air per person | C71: =C72*C22/C68+C73 -> 5.5 | D71: l/s/person
B72: ASHRAE 62. Area requirement | C72: 0.3 | D72: l/s/m2
B73: People requirement | C73: 2.5 | D73: l/s/person
A76: CALCULATION DATA | T76: latent heat of vaprorization of water (kJ/kg) at atmos | U76: = | V76: 2257.92
B78: OTTV Calculation (Fabric Heat Load) | T78: = | U78: =T97 -> 1.205
B79: Total Heat Gain from Façade | C79: =C25*C28/1000 -> 50.09689111 | D79: kW
T80: = | U80: air change rate
B81: RTTV Calculation (Roof Heat Load)
B82: Total Heat Gain from Roof | C82: =C26*C29/1000 -> 2.368 | D82: kW | T82: = | V82: kg/kg
B84: Air Infiltration during AC hours (8am to 6pm - 10 hours everyday)
B86: Inside Average Temp during AC hours | C86: =C56 -> 24 | D86: Celcius
A87: Iterated | B87: Inside Average Temp during None AC Hours | C87: =E87 -> 25.51675224 | D87: Celcius | E87: =C190 -> 25.51675224 | F87: Celcius
B88: Outside Average Humidity during AC hours | C88: =C13 -> 0.01817402242 | D88: kg/kg | E88: Fixed
B89: Inside Average Humidity during AC hours | C89: =C59 -> 0.01218784321 | D89: kg/kg
B90: Latent Heat of Vaporisation of Water at Atmos | C90: 2257.92 | D90: kJ/kg | E90: Fixed
B91: Air Density at Room Condition | C91: =rho_t_g(C86,C89) -> 1.165668607 | D91: kg/m3 | E91: Fixed
B92: Specific heat of air at Room Condition | C92: 1.005 | D92: kJ/kg.K | E92: Fixed
B93: Delta Humidity Ratio during AC hours | C93: =C88-C89 -> 0.005986179205 | D93: kg/kg
B94: Delta Temperature diff during AC hours | C94: =C11-C86 -> 5.3 | D94: Celcius
B95: Floor Area | C95: =C22 -> 1200 | D95: m2 | R95: = | S95: 1.005 | T95: kJ/kg.K
B97: Flow Rate of Infiltrated Air | C97: =C24*C64 -> 5700 | D97: m3/h | S97: = | T97: 1.205 | U97: kg/m3
B99: Min Fresh Air Flow Rate required for occupants | C99: =C68*C71 -> 660 | D99: l/s
B100: Min Fresh Air Flow Rate required for occupants | C100: =C99*3.6 -> 2376 | D100: m3/h
Q101: = | R101: =H100 -> 0
A102: No Control of Fresh Air Intake (Infiltration + Mech Fresh Air)
B104: Flow rate of Fresh air is | C104: =C100+C97 -> 8076 | D104: m3/h
B105: Flow rate of Fresh air is | C105: =C104/3.6 -> 2243.333333 | D105: l/s
B106: Flow rate of Fresh air is | C106: =C104/C$24 -> 1.416842105 | D106: ach
A107: Heat due to Fresh air intake
B108: Q sensible air intake (AC Hours) | C108: =C$92*C$91*C104*C$94/3600 -> 13.92870823 | D108: kW | E108: 10 | F108: hours
B109: Q sensible air intake (none AC Hours) | C109: =C$92*C$91*C104*(C$12-C$87)/3600 -> -1.883666579 | D109: kW | E109: 14 | F109: hours
B110: Nett Sensible air intake | C110: =((C108*10)+(C109*14))/10 -> 11.29157502 | D110: kW | E110: =C110*1000/C$22 -> 9.409645853 | F110: W/m2
B111: Q latent air intake (AC Hours) | C111: =C$90*C$91*C104*C$93/3600 -> 35.34493394 | D111: kW | E111: =C111*1000/C$22 -> 29.45411162 | F111: W/m2
A114: Control of Fresh Air Intake wt CO2 sensor
B116: Flow rate of Fresh air intake is | C116: =IF(C100>C97,C100,C97) -> 5700 | D116: m3/h
B117: Flow rate of Fresh air intake is | C117: =C116/3.6 -> 1583.333333 | D117: l/s
B118: Flow rate of Fresh air intake is | C118: =C116/C24 -> 1 | D118: ach
A119: Heat due to Fresh air intake
B120: Q sensible air intake (AC Hours) | C120: =C$92*C$91*C116*C$94/3600 -> 9.830811904 | D120: kW
B121: Q sensible air intake (none AC Hours) | C121: =C$92*C$91*C97*(C$12-C$87)/3600 -> -1.329482355 | D121: kW
B122: Nett Sensible air intake | C122: =((C120*10)+(C121*14))/10 -> 7.969536606 | D122: kW | E122: =C122*1000/C$22 -> 6.641280505 | F122: W/m2
B123: Q latent air intake | C123: =C$90*C$91*C116*C$93/3600 -> 24.94627581 | D123: kW | E123: =C123*1000/C$22 -> 20.78856318 | F123: W/m2
B127: People Heat Gain
B129: Occupant Density | C129: =C67 -> 10 | D129: m2/person
B130: Floor Area | C130: =C22 -> 1200 | D130: m2
B131: No of Occupant | C131: =C130/C129 -> 120 | D131: persons
B132: People Sensible Heat | C132: =C69 -> 90 | D132: W/person
B133: People Latent Heat | C133: =C70 -> 60 | D133: W/person
B135: Total People Sensible Heat Gain | C135: =C132*C131/1000 -> 10.8 | D135: kW | E135: =C135*1000/C$22 -> 9 | F135: W/m2
B136: Total People Latent Heat Gain | C136: =C133*C131/1000 -> 7.2 | D136: kW | E136: =C136*1000/C$22 -> 6 | F136: W/m2
B140: Plug Load Heat Gain
B142: Plug Load Heat Gain during AC hours | C142: =C34 -> 15 | D142: W/m2 | E142: =C$9 -> 2700 | F142: hours | G142: =C142*E142*C144+C143*E143*C144 -> 59508000
B143: Plug Load Heat Gain during none AC hours | C143: =C35 -> 1.5 | D143: W/m2 | E143: =8760-E142 -> 6060 | F143: hours | G143: =G142/1000/1000 -> 59.508 | H143: MWh
B144: Floor Area | C144: =C130 -> 1200 | D144: m2
B146: Total Equip Sensible Heat Gain | C146: =(C142*C144*E142+C143*C144*E143)/1000/E142 -> 22.04 | D146: kW | E146: =C146*1000/C$22 -> 18.36666667 | F146: W/m2
B147: Occupant Density | C147: =C67 -> 10 | D147: m2/person
B148: No of Occupant | C148: =C144/C147 -> 120 | D148: persons
B149: Equip Heat Gain per person | C149: =C146*1000/C148 -> 183.6666667 | D149: W/person
B151: Heat Generated at night | C151: =C143*C144/1000 -> 1.8 | D151: kW
B154: Lighting Heat Gain
B156: Lighting Heat Gain during AC hours | C156: =C39 -> 12 | D156: W/m2 | E156: =C$9 -> 2700 | F156: hours
B157: Lighting Heat Gain during none AC hours | C157: =C40 -> 1.2 | D157: W/m2 | E157: =8760-E156 -> 6060 | F157: hours
B158: Floor Area | C158: =C144 -> 1200 | D158: m2
B159: Total Lighting Sensible Heat Gain | C159: =((C156*E156)+(C157*E157))/E156*C158/1000 -> 17.632 | D159: kW | E159: =C159*1000/C$22 -> 14.69333333 | F159: W/m2
B160: Daylighting | C160: ='Building Energy Proposed'!C160 -> 1 | D160: 1=Yes, 2=No
B161: Daylight Percentage | C161: ='Building Energy Proposed'!C161 -> 0.2
B162: Floor Area Not Daylighted | C162: =C22*(1-C161) -> 960 | D162: m2
B163: Floor Area Daylighted | C163: =C22*C161 -> 240 | D163: m2 | E163: =E156-E164 -> 810 | F163: hours | H163: =C7 -> 10 | I163: Hours per day
B164: Percentage of Daylight Hours during AC hours | C164: 0.7 | E164: =(C164)*H166 -> 1890 | F164: hours | G164: None Daylighted Hours | H164: =C8 -> 270 | I164: Work days per year
B165: Lighting Heat Gain during AC hours (None Daylight Area) | C165: =C162*C156*E156 -> 31104000 | D165: Wh | G165: Daylighted Hours | H165: =IF(H163>10,10,H163) -> 10 | I165: if condition
B166: Lighting Heat Gain during AC hours (Daylight Area) | C166: =C163*E163*C156 -> 2332800 | D166: Wh | H166: =H164*H165 -> 2700
B167: Average Lighting Heat Gain during AC hours | C167: =(C165+C166)/E156/C158 -> 10.32 | D167: W/m2 | E167: =E156 -> 2700 | F167: hours
B168: =B157 -> Lighting Heat Gain during none AC hours | C168: =C157 -> 1.2 | D168: W/m2 | E168: 6060 | F168: hours
B169: Floor Area | C169: =C158 -> 1200 | D169: m2
B170: Total Lighting Sensible Heat Gain wt Daylighting | C170: =((C167*E167)+(C168*E168))/E167*C169/1000 -> 15.616 | D170: kW | E170: =C170*1000/C$22 -> 13.01333333 | F170: W/m2
B171: Potential Saving Due to Daylighting | C171: =C159-C170 -> 2.016 | D171: kW | E171: 2900 | F171: hours
B173: Total Lighting Sensible Heat Gain | C173: =IF('Input Data'!D59=1,'BE 3.Daylight'!C170,'BE 3.Daylight'!C159) -> 15.616 | D173: kW | E173: =C173*1000/C$22 -> 13.01333333 | F173: W/m2
B174: Occupant Density | C174: =C147 -> 10 | D174: m2/person
B175: No of Occupant | C175: =C158/C174 -> 120 | D175: persons
B176: Equip Heat Gain per person | C176: =C173*1000/C175 -> 130.1333333 | D176: W/person
B178: Heat Generated at night | C178: =C157*C158/1000 -> 1.44 | D178: kW
B182: Estimated Average Night Temp
B183: Sensible (light+equip) heat | C183: =C178+C151 -> 3.24 | D183: kW
B184: Total Heat Internally Generated (excluding conduction) | C184: =(C178+C151+C121) -> 1.910517645 | D184: kW
B185: Volume of Air | C185: =C24 -> 5700 | D185: m3
B186: =B91 -> Air Density at Room Condition | C186: =C91 -> 1.165668607 | D186: kg/m3
B187: Specific heat of air at Room Condition | C187: =C92 -> 1.005 | D187: kJ/kg.K
B188: =B86 -> Inside Average Temp during AC hours | C188: =C86 -> 24 | D188: =D86 -> Celcius
B189: Delta Temp | C189: =C184/(C187*C186*C185/3600) -> 1.030000738 | D189: deg Celcius
B190: Inside Average Temp during NON AC hours | C190: =nt_t(C12,C92,C91,C97,C183,C185,C86) -> 25.51675224 | D190: deg Celcius
B194: Total Cooling Load
B195: CO2 used? | C195: =C45 -> 0
B197: =B79 -> Total Heat Gain from Façade | C197: =C79 -> 50.09689111 | D197: =D79 -> kW
B198: =B82 -> Total Heat Gain from Roof | C198: =C82 -> 2.368 | D198: =D82 -> kW | G198: est from below
B199: =B108 -> Q sensible air intake (AC Hours) | C199: =IF(C195=1,C120,C108) -> 13.92870823 | D199: =D108 -> kW
B200: =B111 -> Q latent air intake (AC Hours) | C200: =IF(C195=1,C123,C111) -> 35.34493394 | D200: =D111 -> kW
B201: =B135 -> Total People Sensible Heat Gain | C201: =C135 -> 10.8 | D201: kW
B202: Total People Latent Heat Gain | C202: =C136 -> 7.2 | D202: kW
B203: =B146 -> Total Equip Sensible Heat Gain | C203: =C146 -> 22.04 | D203: =D146 -> kW
B204: =B173 -> Total Lighting Sensible Heat Gain | C204: =C173 -> 15.616 | D204: =D173 -> kW
A205: Iterated | B205: Total Fan Sensible Heat Gain | C205: =f_p(C207,C229,C230,C234,C225,C224) -> 4.26452446 | D205: kW | E205: =C242 -> 4.269814428
B207: Sum of Sensible excluding Fan | C207: =C197+C198+C199+C201+C203+C204 -> 114.8495993 | D207: kW
B208: Total Average Load (AC hours) | C208: =SUM(C197:C205) -> 161.6590577 | D208: kW
B209: Latent Load | C209: =C200+C202 -> 42.54493394 | D209: kW
B210: Sensible Load | C210: =C208-C209 -> 119.1141238 | D210: kW | E210: =C207+C205 -> 119.1141238
B211: AC Load for full year | C211: =C208*C$9/1000 -> 436.4794559 | D211: MWh
B212: Cooling Index | C212: =C211*1000/C$22 -> 363.7328799 | D212: kWh/m2/year
B213: COSP | C213: =C$47 -> 3.63622
B214: Cooling Energy | C214: =C212/C213 -> 100.0304932 | D214: kWh/m2/year
B215: Cooling Energy | C215: =C214*C$22/1000 -> 120.0365918 | D215: MWh/year
B222: FAN Power Heat Gain - VAV system | G222: FAN Power Heat Gain - CAV system
B224: Combined Fan&Motor Efficiency | C224: =C50 -> 0.65 | D224: efficiency
B225: Static Pressure | C225: =C51 -> 350 | D225: Pa
B226: CO2 Used? | C226: =C45 -> 0
B227: =B86 -> Inside Average Temp during AC hours | C227: =C86 -> 24 | D227: =D86 -> Celcius
B228: Supply Air Temperature | C228: =C52 -> 13 | D228: Celcius | E228: Note: to reduce Chiller COP and room humidity if supply temp < 12 deg Celcius
B229: =B92 -> Specific heat of air at Room Condition | C229: =C92 -> 1.005 | D229: =D92 -> kJ/kg.K
B230: =B91 -> Air Density at Room Condition | C230: =C91 -> 1.165668607 | D230: =D91 -> kg/m3
B233: Total Average Sensible Load (AC hours) | C233: =C210 -> 119.1141238 | D233: kW
B234: Temperature Difference | C234: =C227-C228 -> 11 | D234: Celcius
B235: Volume to be cooled | C235: =C24 -> 5700 | D235: =D24 -> m3
B237: Flow Rate Required | C237: =C233*3600/(C229*C230*C234) -> 33276.06116 | D237: m3/h
B238: Flow Rate Required | C238: =C237/C235 -> 5.837905467 | D238: ach | E238: check figure
B239: Flow Rate Required | C239: =C237/3.6 -> 9243.350323 | D239: l/s
B240: Flow Rate Required | C240: =C237/3600 -> 9.243350323 | D240: m3/s
E241: Ave.
B242: Fan Power used | C242: =C240*C225/C224/1000/C230 -> 4.269814428 | D242: kW VAV | E242: =U12 -> 0.58 | G242: =B242 -> Fan Power used | H242: =C242/E242 -> 7.361749014 | I242: kW CAV
B247: Total Energy Use in Building
B248: =B226 -> CO2 Used? | C248: =C226 -> 0
B249: Cooling Energy | C249: =C215 -> 120.0365918 | D249: MWh/year
B250: Fan Energy | C250: =C242*C9/1000 -> 11.52849896 | D250: MWh/year
B251: Total Air-Conditioning Energy Used | C251: =C249+C250 -> 131.5650908 | D251: MWh/year
B253: Lighting Energy Used | C253: =C173*C9/1000 -> 42.1632 | D253: MWh/year
B254: Plug Load Energy Used | C254: =C146*C9/1000 -> 59.508 | D254: MWh/year
B255: Misc Load Energy Used | C255: =I16/1000 -> 14.3712 | D255: MWh/year
B257: Total Building Energy used | C257: =C251+C253+C254+C255 -> 247.6074908 | D257: =D254 -> MWh/year
B258: Building Energy Index | C258: =C257/C22*1000 -> 206.3395756 | D258: kWh/m2/year

Sheet BE 4.Lgt wtout Daylight (hidden)
A1: Energy & Cooling Load Calculation based on Steady State Conditions
A2: Assumptions | O2: Calculation Method based on UK Guidance for the use of the Carbon Emissions Calculation Method
G3: Misc Loads | H3: Non AC hrs | I3: =8760-C9 -> 6060
G4: Elevators and Escalators | I4: kWh/year | J4: Input Data | K4: Diversity Factor | O4: Full Load Chiller COP | Q4: =C46 -> 4.4
A5: Operating Hours | G5: Elevators and Escalators during AC hours (kW/building) | H5: =J5*K5 -> 1.125 | I5: =H5*8760 -> 9855 | J5: ='Input Data'!C77 -> 25 | K5: =(0.3*0.15) -> 0.045 | O5: 50% Capacity COP | Q5: =Q4*5/6 -> 3.666666667 | R5: Base on GPG59, Effi. Of screw compressor, 60% full load power at 50% capacity.
G6: Elevators and Escalators during non AC hours (kW/building) | H6: 0 | I6: =H6*$I$3 -> 0
B7: Hours of Operation | C7: ='Input Data'!C17 -> 10 | D7: hours/day | G7: Hydraulic systems | O7: %total load | P7: Compressor 1 | Q7: Compressor 2 | R7: Overall CoP | S7: ARI weighting 1st approximation
B8: Working Days | C8: ='Input Data'!C18 -> 270 | D8: days/year | G8: Hydraulic systems during AC hours (kW/building) | H8: =J8*K8 -> 0.3 | I8: =H8*$C$9 -> 810 | J8: ='Input Data'!C79 -> 2 | K8: 0.15 | O8: 1 | P8: 1 | Q8: 1 | R8: =(0.5*Q4)+(0.5*Q4) -> 4.4 | S8: 0.01 | T8: =R8*S8 -> 0.044 | U8: =O8*S8 -> 0.01
B9: AC operating Hours | C9: =C7*C8 -> 2700 | D9: hours/year | G9: Hydraulic systems during non AC hours (kW/building) | H9: 0 | I9: =H9*$I$3 -> 0 | O9: 0.75 | P9: 1 | Q9: 0.5 | R9: =(0.67*Q4)+(0.33*Q5) -> 4.158 | S9: 0.42 | T9: 1.74636 | U9: 0.315
A10: Outside Conditions | G10: External lighting | L10: hours/day | M10: Days | O10: 0.5 | P10: 1 | Q10: 0 | R10: =1*Q4 -> 4.4 | S10: 0.45 | T10: 1.98 | U10: 0.225
B11: Outside Average Temp during AC hours | C11: 29.3 | D11: Celcius | E11: Fixed | G11: External lighting prorated (kW/building) | H11: =J11 -> 2 | I11: =H11*K11*L11*M11+H11*K12*L12*M12 -> 3706.2 | J11: ='Input Data'!C81 -> 2 | K11: 1 | L11: 5 | M11: 261 | N11: 7-midnite | O11: 0.25 | P11: 0.5 | Q11: 0 | R11: =1*Q5 -> 3.666666667 | S11: 0.12 | T11: 0.44 | U11: 0.03
B12: Outside Average Temp during None AC hours | C12: 24.8 | D12: Celcius | E12: Fixed | G12: External lighting during non AC hours (kW/building) | H12: 0 | I12: =H12*$I$3 -> 0 | K12: 0.3 | L12: 7 | M12: 261 | N12: mid-7am | S12: =SUM(S8:S11) -> 1 | T12: 4.21036 | U12: 0.58 | W12: =T12/Q4 -> 0.9569
B13: Outside Average Humidity during AC hours | C13: 0.01817402242 | D13: kg/kg | E13: Fixed | G13: Others
G14: Others during AC hours (kW/building) | H14: 0 | I14: =H14*$C$9 -> 0
G15: Others during non AC hours (kW/building) | H15: 0 | I15: =H15*$I$3 -> 0 | O15: COSP | P15: =(P20*P18)/(1+T18) -> 3.63622
H16: Total Misc | I16: =SUM(I5:I15) -> 14371.2
O17: CD | P17: 1 | S17: Dist Losses | T17: Heat Rejection Power
O18: Fdl | P18: =1-S18 -> 0.95 | Q18: distribution losses | S18: 0.05 | T18: ='Input Data'!C90 -> 0.1
A19: Input Data | G19: Results Summary | O19: Fhr | P19: =T18 -> 0.1 | Q19: heat rejection losses base on GPG256. Water Pump load at 22W/kW of rejected heat. Fan power of dry cooler 25 W/kW of rejected Heat.
H20: Total Energy Used | J20: % | K20: Energy Index | O20: CoPav | P20: =T12 -> 4.21036
A21: Building Data | G21: =B249 -> Cooling Energy | H21: 115.9314432 | I21: MWh/year | J21: =H21/H$29 -> 0.5071933491 | K21: =J21*K$30 -> 96.60953601 | L21: =L30 -> kWh/m2/year
B22: AC Floor Area | C22: ='Input Data'!C4 -> 1200 | D22: m2 | G22: Fan Energy | H22: 10.99341149 | I22: MWh/year | J22: 0.04809553853 | K22: 9.161176245 | L22: =L21 -> kWh/m2/year
B23: Floor to Floor height | C23: ='OTTV Baseline'!D4 -> 4.75 | D23: m | G23: Total Air-Conditioning Energy Used | H23: 126.9248547 | I23: MWh/year | J23: 0.5552888877 | K23: 105.7707122 | L23: kWh/m2/year | O23: CD*Fdl/CoPav | P23: =P17*P18/P20 -> 0.2256339125
B24: AC Volume | C24: =C22*C23 -> 5700 | D24: m3 | O24: (1+1/CoPav) | P24: =(1/P20)+1 -> 1.237509382
B25: Total AC External Wall Area | C25: ='OTTV Baseline'!D11 -> 1710 | D25: m2 | E25: ='OTTV Baseline'!D11 -> 1710 | F25: m2 | G25: =B253 -> Lighting Energy Used | H25: =C253 -> 27.7704 | I25: MWh/year | J25: =H25/H$29 -> 0.1214938915 | K25: =J25*K$30 -> 23.142 | L25: =L23 -> kWh/m2/year | O25: CD*FDS*Fhr*add | P25: =P17*P18*P24*P19 -> 0.1175633913
B26: Total AC Roof Area | C26: ='OTTV Baseline'!D8 -> 200 | D26: m2 | G26: Plug Load Energy Used | H26: 59.508 | I26: MWh/year | J26: =H26/H$29 -> 0.2603440532 | K26: 49.59 | L26: kWh/m2/year
G27: Misc Load Energy Used | H27: =I16/1000 -> 14.3712 | I27: MWh/year | J27: =C255/H$29 -> 0.0628731676 | K27: 11.976 | L27: kWh/m2/year
B28: Calculated OTTV | C28: ='Input Data'!D39 -> 29.29642755 | D28: W/m2 | E28: ='OTTV Baseline'!G3 -> 50.090105 | F28: W/m2
B29: Calculated RTTV | C29: ='Building Energy Proposed'!C29 -> 11.84 | D29: W/m2 | G29: =B257 -> Total Building Energy used | H29: 228.5744547 | I29: MWh/year
G30: Building Energy Index | K30: =C258 -> 190.4787122 | L30: =D258 -> kWh/m2/year
A33: Plug Load Heat Gain | G33: =G21 -> Cooling Energy | H33: =K21 -> 96.60953601 | I33: =L30 -> kWh/m2/year
B34: Plug Load Heat Gain during AC hours | C34: ='Input Data'!C67 -> 15 | D34: W/m2 | G34: =G22 -> Fan Energy | H34: =K22 -> 9.161176245 | I34: =I33 -> kWh/m2/year
B35: Plug Load Heat Gain during none AC hours | C35: ='Input Data'!C68 -> 1.5 | D35: W/m2 | G35: =G25 -> Lighting Energy Used | H35: =K25 -> 23.142 | I35: kWh/m2/year
B36: Total Heat Gain during AC hours | C36: =C34*C$22/1000 -> 18 | D36: kW | G36: =G26 -> Plug Load Energy Used | H36: =K26 -> 49.59 | I36: kWh/m2/year
B37: Total Heat Gain during None AC hours | C37: 1.8 | D37: kW
A38: Lighting Heat Gain
B39: Lighting Heat Gain during AC hours | C39: ='Input Data'!D56 -> 7 | D39: W/m2
B40: Lighting Heat Gain during none AC hours | C40: ='Input Data'!D57 -> 0.7 | D40: W/m2
B41: Total Heat Gain during AC hours | C41: 8.4 | D41: kW
B42: Total Heat Gain during None AC hours | C42: 0.84 | D42: kW
A44: System Used
B45: CO2 control of Fresh Air Inlet used? | C45: =IF('Input Data'!C92=1,1,0) -> 0 | D45: 1=yes, 0=no
B46: COP of chiller | C46: ='Input Data'!C89 -> 4.4
B47: COSP (Coefficient of System Performance) | C47: =P15 -> 3.63622
A49: Fan Data
B50: Combined Fan&Motor Efficiency | C50: ='Input Data'!C97 -> 0.65 | D50: efficiency
B51: Static Pressure | C51: ='Input Data'!C98 -> 350 | D51: Pa
B52: Supply Air Temperature (off coil temperature) | C52: 13 | D52: Celcius | E52: Fixed Data
A55: Indoor Air Conditions
B56: Indoor AC Temperature | C56: ='Input Data'!C94 -> 24 | D56: Celcius
B57: Indoor AC Relative Humidity | C57: ='Input Data'!C95 -> 0.65 | D57: Percentage
B58: =B57 -> Indoor AC Relative Humidity | C58: =C57*100 -> 65 | D58: %
B59: Indoor Abs Humidity Ratio (kg/kg) | C59: =g_t_rh(C56,C58) -> 0.01218784321 | D59: kg/kg
A63: Infiltration
B64: ACH | C64: ='Input Data'!C105 -> 1 | D64: ach
A66: Occupants Data
B67: Occupant Density | C67: ='Input Data'!C13 -> 10 | D67: m2/person
B68: No of Occupants | C68: =C95/C67 -> 120 | D68: persons
B69: People Sensible Heat per person | C69: 90 | D69: W/person
B70: People Latent Heat per person | C70: 60 | D70: W/person
B71: Min Fresh Air per person | C71: =C72*C22/C68+C73 -> 5.5 | D71: l/s/person
B72: ASHRAE 62. Area requirement | C72: 0.3 | D72: l/s/m2
B73: People requirement | C73: 2.5 | D73: l/s/person
A76: CALCULATION DATA | T76: latent heat of vaprorization of water (kJ/kg) at atmos | U76: = | V76: 2257.92
B78: OTTV Calculation (Fabric Heat Load) | T78: = | U78: =T97 -> 1.205
B79: Total Heat Gain from Façade | C79: =C25*C28/1000 -> 50.09689111 | D79: kW
T80: = | U80: air change rate
B81: RTTV Calculation (Roof Heat Load)
B82: Total Heat Gain from Roof | C82: =C26*C29/1000 -> 2.368 | D82: kW | T82: = | V82: kg/kg
B84: Air Infiltration during AC hours (8am to 6pm - 10 hours everyday)
B86: Inside Average Temp during AC hours | C86: =C56 -> 24 | D86: Celcius
A87: Iterated | B87: Inside Average Temp during None AC Hours | C87: =E87 -> 25.35327911 | D87: Celcius | E87: =C190 -> 25.35327911 | F87: Celcius
B88: Outside Average Humidity during AC hours | C88: =C13 -> 0.01817402242 | D88: kg/kg | E88: Fixed
B89: Inside Average Humidity during AC hours | C89: =C59 -> 0.01218784321 | D89: kg/kg
B90: Latent Heat of Vaporisation of Water at Atmos | C90: 2257.92 | D90: kJ/kg | E90: Fixed
B91: Air Density at Room Condition | C91: =rho_t_g(C86,C89) -> 1.165668607 | D91: kg/m3 | E91: Fixed
B92: Specific heat of air at Room Condition | C92: 1.005 | D92: kJ/kg.K | E92: Fixed
B93: Delta Humidity Ratio during AC hours | C93: =C88-C89 -> 0.005986179205 | D93: kg/kg
B94: Delta Temperature diff during AC hours | C94: =C11-C86 -> 5.3 | D94: Celcius
B95: Floor Area | C95: =C22 -> 1200 | D95: m2 | R95: = | S95: 1.005 | T95: kJ/kg.K
B97: Flow Rate of Infiltrated Air | C97: =C24*C64 -> 5700 | D97: m3/h | S97: = | T97: 1.205 | U97: kg/m3
B99: Min Fresh Air Flow Rate required for occupants | C99: =C68*C71 -> 660 | D99: l/s
B100: Min Fresh Air Flow Rate required for occupants | C100: =C99*3.6 -> 2376 | D100: m3/h
Q101: = | R101: =H100 -> 0
A102: No Control of Fresh Air Intake (Infiltration + Mech Fresh Air)
B104: Flow rate of Fresh air is | C104: =C100+C97 -> 8076 | D104: m3/h
B105: Flow rate of Fresh air is | C105: =C104/3.6 -> 2243.333333 | D105: l/s
B106: Flow rate of Fresh air is | C106: =C104/C$24 -> 1.416842105 | D106: ach
A107: Heat due to Fresh air intake
B108: Q sensible air intake (AC Hours) | C108: =C$92*C$91*C104*C$94/3600 -> 13.92870823 | D108: kW | E108: 10 | F108: hours
B109: Q sensible air intake (none AC Hours) | C109: =C$92*C$91*C104*(C$12-C$87)/3600 -> -1.454049688 | D109: kW | E109: 14 | F109: hours
B110: Nett Sensible air intake | C110: =((C108*10)+(C109*14))/10 -> 11.89303867 | D110: kW | E110: =C110*1000/C$22 -> 9.910865559 | F110: W/m2
B111: Q latent air intake (AC Hours) | C111: =C$90*C$91*C104*C$93/3600 -> 35.34493394 | D111: kW | E111: =C111*1000/C$22 -> 29.45411162 | F111: W/m2
A114: Control of Fresh Air Intake wt CO2 sensor
B116: Flow rate of Fresh air intake is | C116: =IF(C100>C97,C100,C97) -> 5700 | D116: m3/h
B117: Flow rate of Fresh air intake is | C117: =C116/3.6 -> 1583.333333 | D117: l/s
B118: Flow rate of Fresh air intake is | C118: =C116/C24 -> 1 | D118: ach
A119: Heat due to Fresh air intake
B120: Q sensible air intake (AC Hours) | C120: =C$92*C$91*C116*C$94/3600 -> 9.830811904 | D120: kW
B121: Q sensible air intake (none AC Hours) | C121: =C$92*C$91*C97*(C$12-C$87)/3600 -> -1.026260924 | D121: kW
B122: Nett Sensible air intake | C122: =((C120*10)+(C121*14))/10 -> 8.39404661 | D122: kW | E122: =C122*1000/C$22 -> 6.995038842 | F122: W/m2
B123: Q latent air intake | C123: =C$90*C$91*C116*C$93/3600 -> 24.94627581 | D123: kW | E123: =C123*1000/C$22 -> 20.78856318 | F123: W/m2
B127: People Heat Gain
B129: Occupant Density | C129: =C67 -> 10 | D129: m2/person
B130: Floor Area | C130: =C22 -> 1200 | D130: m2
B131: No of Occupant | C131: =C130/C129 -> 120 | D131: persons
B132: People Sensible Heat | C132: =C69 -> 90 | D132: W/person
B133: People Latent Heat | C133: =C70 -> 60 | D133: W/person
B135: Total People Sensible Heat Gain | C135: =C132*C131/1000 -> 10.8 | D135: kW | E135: =C135*1000/C$22 -> 9 | F135: W/m2
B136: Total People Latent Heat Gain | C136: =C133*C131/1000 -> 7.2 | D136: kW | E136: =C136*1000/C$22 -> 6 | F136: W/m2
B140: Plug Load Heat Gain
B142: Plug Load Heat Gain during AC hours | C142: =C34 -> 15 | D142: W/m2 | E142: =C$9 -> 2700 | F142: hours | G142: =C142*E142*C144+C143*E143*C144 -> 59508000
B143: Plug Load Heat Gain during none AC hours | C143: =C35 -> 1.5 | D143: W/m2 | E143: =8760-E142 -> 6060 | F143: hours | G143: =G142/1000/1000 -> 59.508 | H143: MWh
B144: Floor Area | C144: =C130 -> 1200 | D144: m2
B146: Total Equip Sensible Heat Gain | C146: =(C142*C144*E142+C143*C144*E143)/1000/E142 -> 22.04 | D146: kW | E146: =C146*1000/C$22 -> 18.36666667 | F146: W/m2
B147: Occupant Density | C147: =C67 -> 10 | D147: m2/person
B148: No of Occupant | C148: =C144/C147 -> 120 | D148: persons
B149: Equip Heat Gain per person | C149: =C146*1000/C148 -> 183.6666667 | D149: W/person
B151: Heat Generated at night | C151: =C143*C144/1000 -> 1.8 | D151: kW
B154: Lighting Heat Gain
B156: Lighting Heat Gain during AC hours | C156: =C39 -> 7 | D156: W/m2 | E156: =C$9 -> 2700 | F156: hours
B157: Lighting Heat Gain during none AC hours | C157: =C40 -> 0.7 | D157: W/m2 | E157: =8760-E156 -> 6060 | F157: hours
B158: Floor Area | C158: =C144 -> 1200 | D158: m2
B159: Total Lighting Sensible Heat Gain | C159: =((C156*E156)+(C157*E157))/E156*C158/1000 -> 10.28533333 | D159: kW | E159: =C159*1000/C$22 -> 8.571111111 | F159: W/m2
B160: Daylighting | C160: ='Input Data'!C59 -> 2 | D160: 1=Yes, 2=No
B161: Daylight Percentage | C161: ='Input Data'!C60 -> 0
B162: Floor Area Not Daylighted | C162: =C22*(1-C161) -> 1200 | D162: m2
B163: Floor Area Daylighted | C163: =C22*C161 -> 0 | D163: m2 | E163: =E156-E164 -> 810 | F163: hours | H163: =C7 -> 10 | I163: Hours per day
B164: Percentage of Daylight Hours during AC hours | C164: 0.7 | E164: =(C164)*H166 -> 1890 | F164: hours | G164: None Daylighted Hours | H164: =C8 -> 270 | I164: Work days per year
B165: Lighting Heat Gain during AC hours (None Daylight Area) | C165: =C162*C156*E156 -> 22680000 | D165: Wh | G165: Daylighted Hours | H165: =IF(H163>10,10,H163) -> 10 | I165: if condition
B166: Lighting Heat Gain during AC hours (Daylight Area) | C166: =C163*E163*C156 -> 0 | D166: Wh | H166: =H164*H165 -> 2700
B167: Average Lighting Heat Gain during AC hours | C167: =(C165+C166)/E156/C158 -> 7 | D167: W/m2 | E167: =E156 -> 2700 | F167: hours
B168: =B157 -> Lighting Heat Gain during none AC hours | C168: =C157 -> 0.7 | D168: W/m2 | E168: 6060 | F168: hours
B169: Floor Area | C169: =C158 -> 1200 | D169: m2
B170: Total Lighting Sensible Heat Gain wt Daylighting | C170: =((C167*E167)+(C168*E168))/E167*C169/1000 -> 10.28533333 | D170: kW | E170: =C170*1000/C$22 -> 8.571111111 | F170: W/m2
B171: Potential Saving Due to Daylighting | C171: =C159-C170 -> 0 | D171: kW | E171: 2900 | F171: hours
B173: Total Lighting Sensible Heat Gain | C173: =IF('Input Data'!C59=1,'BE 4.Lgt wtout Daylight'!C170,'BE 4.Lgt wtout Daylight'!C159) -> 10.28533333 | D173: kW | E173: =C173*1000/C$22 -> 8.571111111 | F173: W/m2
B174: Occupant Density | C174: =C147 -> 10 | D174: m2/person
B175: No of Occupant | C175: =C158/C174 -> 120 | D175: persons
B176: Equip Heat Gain per person | C176: =C173*1000/C175 -> 85.71111111 | D176: W/person
B178: Heat Generated at night | C178: =C157*C158/1000 -> 0.84 | D178: kW
B182: Estimated Average Night Temp
B183: Sensible (light+equip) heat | C183: =C178+C151 -> 2.64 | D183: kW
B184: Total Heat Internally Generated (excluding conduction) | C184: =(C178+C151+C121) -> 1.613739076 | D184: kW
B185: Volume of Air | C185: =C24 -> 5700 | D185: m3
B186: =B91 -> Air Density at Room Condition | C186: =C91 -> 1.165668607 | D186: kg/m3
B187: Specific heat of air at Room Condition | C187: =C92 -> 1.005 | D187: kJ/kg.K
B188: =B86 -> Inside Average Temp during AC hours | C188: =C86 -> 24 | D188: =D86 -> Celcius
B189: Delta Temp | C189: =C184/(C187*C186*C185/3600) -> 0.8700010931 | D189: deg Celcius
B190: Inside Average Temp during NON AC hours | C190: =nt_t(C12,C92,C91,C97,C183,C185,C86) -> 25.35327911 | D190: deg Celcius
B194: Total Cooling Load
B195: CO2 used? | C195: =C45 -> 0
B197: =B79 -> Total Heat Gain from Façade | C197: =C79 -> 50.09689111 | D197: =D79 -> kW
B198: =B82 -> Total Heat Gain from Roof | C198: =C82 -> 2.368 | D198: =D82 -> kW | G198: est from below
B199: =B108 -> Q sensible air intake (AC Hours) | C199: =IF(C195=1,C120,C108) -> 13.92870823 | D199: =D108 -> kW
B200: =B111 -> Q latent air intake (AC Hours) | C200: =IF(C195=1,C123,C111) -> 35.34493394 | D200: =D111 -> kW
B201: =B135 -> Total People Sensible Heat Gain | C201: =C135 -> 10.8 | D201: kW
B202: Total People Latent Heat Gain | C202: =C136 -> 7.2 | D202: kW
B203: =B146 -> Total Equip Sensible Heat Gain | C203: =C146 -> 22.04 | D203: =D146 -> kW
B204: =B173 -> Total Lighting Sensible Heat Gain | C204: =C173 -> 10.28533333 | D204: =D173 -> kW
A205: Iterated | B205: Total Fan Sensible Heat Gain | C205: =f_p(C207,C229,C230,C234,C225,C224) -> 4.066589832 | D205: kW | E205: =C242 -> 4.071633886
B207: Sum of Sensible excluding Fan | C207: =C197+C198+C199+C201+C203+C204 -> 109.5189327 | D207: kW
B208: Total Average Load (AC hours) | C208: =SUM(C197:C205) -> 156.1304564 | D208: kW
B209: Latent Load | C209: =C200+C202 -> 42.54493394 | D209: kW
B210: Sensible Load | C210: =C208-C209 -> 113.5855225 | D210: kW | E210: =C207+C205 -> 113.5855225
B211: AC Load for full year | C211: =C208*C$9/1000 -> 421.5522324 | D211: MWh
B212: Cooling Index | C212: =C211*1000/C$22 -> 351.293527 | D212: kWh/m2/year
B213: COSP | C213: =C$47 -> 3.63622
B214: Cooling Energy | C214: =C212/C213 -> 96.60953601 | D214: kWh/m2/year
B215: Cooling Energy | C215: =C214*C$22/1000 -> 115.9314432 | D215: MWh/year
B222: FAN Power Heat Gain - VAV system | G222: FAN Power Heat Gain - CAV system
B224: Combined Fan&Motor Efficiency | C224: =C50 -> 0.65 | D224: efficiency
B225: Static Pressure | C225: =C51 -> 350 | D225: Pa
B226: CO2 Used? | C226: =C45 -> 0
B227: =B86 -> Inside Average Temp during AC hours | C227: =C86 -> 24 | D227: =D86 -> Celcius
B228: Supply Air Temperature | C228: =C52 -> 13 | D228: Celcius | E228: Note: to reduce Chiller COP and room humidity if supply temp < 12 deg Celcius
B229: =B92 -> Specific heat of air at Room Condition | C229: =C92 -> 1.005 | D229: =D92 -> kJ/kg.K
B230: =B91 -> Air Density at Room Condition | C230: =C91 -> 1.165668607 | D230: =D91 -> kg/m3
B233: Total Average Sensible Load (AC hours) | C233: =C210 -> 113.5855225 | D233: kW
B234: Temperature Difference | C234: =C227-C228 -> 11 | D234: Celcius
B235: Volume to be cooled | C235: =C24 -> 5700 | D235: =D24 -> m3
B237: Flow Rate Required | C237: =C233*3600/(C229*C230*C234) -> 31731.57535 | D237: m3/h
B238: Flow Rate Required | C238: =C237/C235 -> 5.566943043 | D238: ach | E238: check figure
B239: Flow Rate Required | C239: =C237/3.6 -> 8814.326485 | D239: l/s
B240: Flow Rate Required | C240: =C237/3600 -> 8.814326485 | D240: m3/s
E241: Ave.
B242: Fan Power used | C242: =C240*C225/C224/1000/C230 -> 4.071633886 | D242: kW VAV | E242: =U12 -> 0.58 | G242: =B242 -> Fan Power used | H242: =C242/E242 -> 7.020058425 | I242: kW CAV
B247: Total Energy Use in Building
B248: =B226 -> CO2 Used? | C248: =C226 -> 0
B249: Cooling Energy | C249: =C215 -> 115.9314432 | D249: MWh/year
B250: Fan Energy | C250: =C242*C9/1000 -> 10.99341149 | D250: MWh/year
B251: Total Air-Conditioning Energy Used | C251: =C249+C250 -> 126.9248547 | D251: MWh/year
B253: Lighting Energy Used | C253: =C173*C9/1000 -> 27.7704 | D253: MWh/year
B254: Plug Load Energy Used | C254: =C146*C9/1000 -> 59.508 | D254: MWh/year
B255: Misc Load Energy Used | C255: =I16/1000 -> 14.3712 | D255: MWh/year
B257: Total Building Energy used | C257: =C251+C253+C254+C255 -> 228.5744547 | D257: =D254 -> MWh/year
B258: Building Energy Index | C258: =C257/C22*1000 -> 190.4787122 | D258: kWh/m2/year

Sheet BE 5.Lgt wt Daylight (hidden)
A1: Energy & Cooling Load Calculation based on Steady State Conditions
A2: Assumptions | O2: Calculation Method based on UK Guidance for the use of the Carbon Emissions Calculation Method
G3: Misc Loads | H3: Non AC hrs | I3: =8760-C9 -> 6060
G4: Elevators and Escalators | I4: kWh/year | J4: Input Data | K4: Diversity Factor | O4: Full Load Chiller COP | Q4: =C46 -> 4.4
A5: Operating Hours | G5: Elevators and Escalators during AC hours (kW/building) | H5: =J5*K5 -> 1.125 | I5: =H5*8760 -> 9855 | J5: ='Input Data'!C77 -> 25 | K5: =(0.3*0.15) -> 0.045 | O5: 50% Capacity COP | Q5: =Q4*5/6 -> 3.666666667 | R5: Base on GPG59, Effi. Of screw compressor, 60% full load power at 50% capacity.
G6: Elevators and Escalators during non AC hours (kW/building) | H6: 0 | I6: =H6*$I$3 -> 0
B7: Hours of Operation | C7: ='Input Data'!C17 -> 10 | D7: hours/day | G7: Hydraulic systems | O7: %total load | P7: Compressor 1 | Q7: Compressor 2 | R7: Overall CoP | S7: ARI weighting 1st approximation
B8: Working Days | C8: ='Input Data'!C18 -> 270 | D8: days/year | G8: Hydraulic systems during AC hours (kW/building) | H8: =J8*K8 -> 0.3 | I8: =H8*$C$9 -> 810 | J8: ='Input Data'!C79 -> 2 | K8: 0.15 | O8: 1 | P8: 1 | Q8: 1 | R8: =(0.5*Q4)+(0.5*Q4) -> 4.4 | S8: 0.01 | T8: =R8*S8 -> 0.044 | U8: =O8*S8 -> 0.01
B9: AC operating Hours | C9: =C7*C8 -> 2700 | D9: hours/year | G9: Hydraulic systems during non AC hours (kW/building) | H9: 0 | I9: =H9*$I$3 -> 0 | O9: 0.75 | P9: 1 | Q9: 0.5 | R9: =(0.67*Q4)+(0.33*Q5) -> 4.158 | S9: 0.42 | T9: 1.74636 | U9: 0.315
A10: Outside Conditions | G10: External lighting | L10: hours/day | M10: Days | O10: 0.5 | P10: 1 | Q10: 0 | R10: =1*Q4 -> 4.4 | S10: 0.45 | T10: 1.98 | U10: 0.225
B11: Outside Average Temp during AC hours | C11: 29.3 | D11: Celcius | E11: Fixed | G11: External lighting prorated (kW/building) | H11: =J11 -> 2 | I11: =H11*K11*L11*M11+H11*K12*L12*M12 -> 3706.2 | J11: ='Input Data'!C81 -> 2 | K11: 1 | L11: 5 | M11: 261 | N11: 7-midnite | O11: 0.25 | P11: 0.5 | Q11: 0 | R11: =1*Q5 -> 3.666666667 | S11: 0.12 | T11: 0.44 | U11: 0.03
B12: Outside Average Temp during None AC hours | C12: 24.8 | D12: Celcius | E12: Fixed | G12: External lighting during non AC hours (kW/building) | H12: 0 | I12: =H12*$I$3 -> 0 | K12: 0.3 | L12: 7 | M12: 261 | N12: mid-7am | S12: =SUM(S8:S11) -> 1 | T12: 4.21036 | U12: 0.58 | W12: =T12/Q4 -> 0.9569
B13: Outside Average Humidity during AC hours | C13: 0.01817402242 | D13: kg/kg | E13: Fixed | G13: Others
G14: Others during AC hours (kW/building) | H14: 0 | I14: =H14*$C$9 -> 0
G15: Others during non AC hours (kW/building) | H15: 0 | I15: =H15*$I$3 -> 0 | O15: COSP | P15: =(P20*P18)/(1+T18) -> 3.63622
H16: Total Misc | I16: =SUM(I5:I15) -> 14371.2
O17: CD | P17: 1 | S17: Dist Losses | T17: Heat Rejection Power
O18: Fdl | P18: =1-S18 -> 0.95 | Q18: distribution losses | S18: 0.05 | T18: ='Input Data'!C90 -> 0.1
A19: Input Data | G19: Results Summary | O19: Fhr | P19: =T18 -> 0.1 | Q19: heat rejection losses base on GPG256. Water Pump load at 22W/kW of rejected heat. Fan power of dry cooler 25 W/kW of rejected Heat.
H20: Total Energy Used | J20: % | K20: Energy Index | O20: CoPav | P20: =T12 -> 4.21036
A21: Building Data | G21: =B249 -> Cooling Energy | H21: 115.0258045 | I21: MWh/year | J21: =H21/H$29 -> 0.5126485224 | K21: =J21*K$30 -> 95.85483704 | L21: =L30 -> kWh/m2/year
B22: AC Floor Area | C22: ='Input Data'!C4 -> 1200 | D22: m2 | G22: Fan Energy | H22: 10.8753656 | I22: MWh/year | J22: 0.04846947284 | K22: 9.062804665 | L22: =L21 -> kWh/m2/year
B23: Floor to Floor height | C23: ='OTTV Baseline'!D4 -> 4.75 | D23: m | G23: Total Air-Conditioning Energy Used | H23: 125.90117 | I23: MWh/year | J23: 0.5611179953 | K23: 104.9176417 | L23: kWh/m2/year | O23: CD*Fdl/CoPav | P23: =P17*P18/P20 -> 0.2256339125
B24: AC Volume | C24: =C22*C23 -> 5700 | D24: m3 | O24: (1+1/CoPav) | P24: =(1/P20)+1 -> 1.237509382
B25: Total AC External Wall Area | C25: ='OTTV Baseline'!D11 -> 1710 | D25: m2 | E25: ='OTTV Baseline'!D11 -> 1710 | F25: m2 | G25: =B253 -> Lighting Energy Used | H25: =C253 -> 24.5952 | I25: MWh/year | J25: =H25/H$29 -> 0.1096162118 | K25: =J25*K$30 -> 20.496 | L25: =L23 -> kWh/m2/year | O25: CD*FDS*Fhr*add | P25: =P17*P18*P24*P19 -> 0.1175633913
B26: Total AC Roof Area | C26: ='OTTV Baseline'!D8 -> 200 | D26: m2 | G26: Plug Load Energy Used | H26: 59.508 | I26: MWh/year | J26: =H26/H$29 -> 0.2652160393 | K26: 49.59 | L26: kWh/m2/year
G27: Misc Load Energy Used | H27: =I16/1000 -> 14.3712 | I27: MWh/year | J27: =C255/H$29 -> 0.06404975371 | K27: 11.976 | L27: kWh/m2/year
B28: Calculated OTTV | C28: ='Input Data'!D39 -> 29.29642755 | D28: W/m2 | E28: ='OTTV Baseline'!G3 -> 50.090105 | F28: W/m2
B29: Calculated RTTV | C29: ='Building Energy Proposed'!C29 -> 11.84 | D29: W/m2 | G29: =B257 -> Total Building Energy used | H29: 224.37557 | I29: MWh/year
G30: Building Energy Index | K30: =C258 -> 186.9796417 | L30: =D258 -> kWh/m2/year
A33: Plug Load Heat Gain | G33: =G21 -> Cooling Energy | H33: =K21 -> 95.85483704 | I33: =L30 -> kWh/m2/year
B34: Plug Load Heat Gain during AC hours | C34: ='Input Data'!C67 -> 15 | D34: W/m2 | G34: =G22 -> Fan Energy | H34: =K22 -> 9.062804665 | I34: =I33 -> kWh/m2/year
B35: Plug Load Heat Gain during none AC hours | C35: ='Input Data'!C68 -> 1.5 | D35: W/m2 | G35: =G25 -> Lighting Energy Used | H35: =K25 -> 20.496 | I35: kWh/m2/year
B36: Total Heat Gain during AC hours | C36: =C34*C$22/1000 -> 18 | D36: kW | G36: =G26 -> Plug Load Energy Used | H36: =K26 -> 49.59 | I36: kWh/m2/year
B37: Total Heat Gain during None AC hours | C37: 1.8 | D37: kW
A38: Lighting Heat Gain
B39: Lighting Heat Gain during AC hours | C39: ='Input Data'!D56 -> 7 | D39: W/m2
B40: Lighting Heat Gain during none AC hours | C40: ='Input Data'!D57 -> 0.7 | D40: W/m2
B41: Total Heat Gain during AC hours | C41: 8.4 | D41: kW
B42: Total Heat Gain during None AC hours | C42: 0.84 | D42: kW
A44: System Used
B45: CO2 control of Fresh Air Inlet used? | C45: =IF('Input Data'!C92=1,1,0) -> 0 | D45: 1=yes, 0=no
B46: COP of chiller | C46: ='Input Data'!C89 -> 4.4
B47: COSP (Coefficient of System Performance) | C47: =P15 -> 3.63622
A49: Fan Data
B50: Combined Fan&Motor Efficiency | C50: ='Input Data'!C97 -> 0.65 | D50: efficiency
B51: Static Pressure | C51: ='Input Data'!C98 -> 350 | D51: Pa
B52: Supply Air Temperature (off coil temperature) | C52: 13 | D52: Celcius | E52: Fixed Data
A55: Indoor Air Conditions
B56: Indoor AC Temperature | C56: ='Input Data'!C94 -> 24 | D56: Celcius
B57: Indoor AC Relative Humidity | C57: ='Input Data'!C95 -> 0.65 | D57: Percentage
B58: =B57 -> Indoor AC Relative Humidity | C58: =C57*100 -> 65 | D58: %
B59: Indoor Abs Humidity Ratio (kg/kg) | C59: =g_t_rh(C56,C58) -> 0.01218784321 | D59: kg/kg
A63: Infiltration
B64: ACH | C64: ='Input Data'!C105 -> 1 | D64: ach
A66: Occupants Data
B67: Occupant Density | C67: ='Input Data'!C13 -> 10 | D67: m2/person
B68: No of Occupants | C68: =C95/C67 -> 120 | D68: persons
B69: People Sensible Heat per person | C69: 90 | D69: W/person
B70: People Latent Heat per person | C70: 60 | D70: W/person
B71: Min Fresh Air per person | C71: =C72*C22/C68+C73 -> 5.5 | D71: l/s/person
B72: ASHRAE 62. Area requirement | C72: 0.3 | D72: l/s/m2
B73: People requirement | C73: 2.5 | D73: l/s/person
A76: CALCULATION DATA | T76: latent heat of vaprorization of water (kJ/kg) at atmos | U76: = | V76: 2257.92
B78: OTTV Calculation (Fabric Heat Load) | T78: = | U78: =T97 -> 1.205
B79: Total Heat Gain from Façade | C79: =C25*C28/1000 -> 50.09689111 | D79: kW
T80: = | U80: air change rate
B81: RTTV Calculation (Roof Heat Load)
B82: Total Heat Gain from Roof | C82: =C26*C29/1000 -> 2.368 | D82: kW | T82: = | V82: kg/kg
B84: Air Infiltration during AC hours (8am to 6pm - 10 hours everyday)
B86: Inside Average Temp during AC hours | C86: =C56 -> 24 | D86: Celcius
A87: Iterated | B87: Inside Average Temp during None AC Hours | C87: =E87 -> 25.35327911 | D87: Celcius | E87: =C190 -> 25.35327911 | F87: Celcius
B88: Outside Average Humidity during AC hours | C88: =C13 -> 0.01817402242 | D88: kg/kg | E88: Fixed
B89: Inside Average Humidity during AC hours | C89: =C59 -> 0.01218784321 | D89: kg/kg
B90: Latent Heat of Vaporisation of Water at Atmos | C90: 2257.92 | D90: kJ/kg | E90: Fixed
B91: Air Density at Room Condition | C91: =rho_t_g(C86,C89) -> 1.165668607 | D91: kg/m3 | E91: Fixed
B92: Specific heat of air at Room Condition | C92: 1.005 | D92: kJ/kg.K | E92: Fixed
B93: Delta Humidity Ratio during AC hours | C93: =C88-C89 -> 0.005986179205 | D93: kg/kg
B94: Delta Temperature diff during AC hours | C94: =C11-C86 -> 5.3 | D94: Celcius
B95: Floor Area | C95: =C22 -> 1200 | D95: m2 | R95: = | S95: 1.005 | T95: kJ/kg.K
B97: Flow Rate of Infiltrated Air | C97: =C24*C64 -> 5700 | D97: m3/h | S97: = | T97: 1.205 | U97: kg/m3
B99: Min Fresh Air Flow Rate required for occupants | C99: =C68*C71 -> 660 | D99: l/s
B100: Min Fresh Air Flow Rate required for occupants | C100: =C99*3.6 -> 2376 | D100: m3/h
Q101: = | R101: =H100 -> 0
A102: No Control of Fresh Air Intake (Infiltration + Mech Fresh Air)
B104: Flow rate of Fresh air is | C104: =C100+C97 -> 8076 | D104: m3/h
B105: Flow rate of Fresh air is | C105: =C104/3.6 -> 2243.333333 | D105: l/s
B106: Flow rate of Fresh air is | C106: =C104/C$24 -> 1.416842105 | D106: ach
A107: Heat due to Fresh air intake
B108: Q sensible air intake (AC Hours) | C108: =C$92*C$91*C104*C$94/3600 -> 13.92870823 | D108: kW | E108: 10 | F108: hours
B109: Q sensible air intake (none AC Hours) | C109: =C$92*C$91*C104*(C$12-C$87)/3600 -> -1.454049688 | D109: kW | E109: 14 | F109: hours
B110: Nett Sensible air intake | C110: =((C108*10)+(C109*14))/10 -> 11.89303867 | D110: kW | E110: =C110*1000/C$22 -> 9.910865559 | F110: W/m2
B111: Q latent air intake (AC Hours) | C111: =C$90*C$91*C104*C$93/3600 -> 35.34493394 | D111: kW | E111: =C111*1000/C$22 -> 29.45411162 | F111: W/m2
A114: Control of Fresh Air Intake wt CO2 sensor
B116: Flow rate of Fresh air intake is | C116: =IF(C100>C97,C100,C97) -> 5700 | D116: m3/h
B117: Flow rate of Fresh air intake is | C117: =C116/3.6 -> 1583.333333 | D117: l/s
B118: Flow rate of Fresh air intake is | C118: =C116/C24 -> 1 | D118: ach
A119: Heat due to Fresh air intake
B120: Q sensible air intake (AC Hours) | C120: =C$92*C$91*C116*C$94/3600 -> 9.830811904 | D120: kW
B121: Q sensible air intake (none AC Hours) | C121: =C$92*C$91*C97*(C$12-C$87)/3600 -> -1.026260924 | D121: kW
B122: Nett Sensible air intake | C122: =((C120*10)+(C121*14))/10 -> 8.39404661 | D122: kW | E122: =C122*1000/C$22 -> 6.995038842 | F122: W/m2
B123: Q latent air intake | C123: =C$90*C$91*C116*C$93/3600 -> 24.94627581 | D123: kW | E123: =C123*1000/C$22 -> 20.78856318 | F123: W/m2
B127: People Heat Gain
B129: Occupant Density | C129: =C67 -> 10 | D129: m2/person
B130: Floor Area | C130: =C22 -> 1200 | D130: m2
B131: No of Occupant | C131: =C130/C129 -> 120 | D131: persons
B132: People Sensible Heat | C132: =C69 -> 90 | D132: W/person
B133: People Latent Heat | C133: =C70 -> 60 | D133: W/person
B135: Total People Sensible Heat Gain | C135: =C132*C131/1000 -> 10.8 | D135: kW | E135: =C135*1000/C$22 -> 9 | F135: W/m2
B136: Total People Latent Heat Gain | C136: =C133*C131/1000 -> 7.2 | D136: kW | E136: =C136*1000/C$22 -> 6 | F136: W/m2
B140: Plug Load Heat Gain
B142: Plug Load Heat Gain during AC hours | C142: =C34 -> 15 | D142: W/m2 | E142: =C$9 -> 2700 | F142: hours | G142: =C142*E142*C144+C143*E143*C144 -> 59508000
B143: Plug Load Heat Gain during none AC hours | C143: =C35 -> 1.5 | D143: W/m2 | E143: =8760-E142 -> 6060 | F143: hours | G143: =G142/1000/1000 -> 59.508 | H143: MWh
B144: Floor Area | C144: =C130 -> 1200 | D144: m2
B146: Total Equip Sensible Heat Gain | C146: =(C142*C144*E142+C143*C144*E143)/1000/E142 -> 22.04 | D146: kW | E146: =C146*1000/C$22 -> 18.36666667 | F146: W/m2
B147: Occupant Density | C147: =C67 -> 10 | D147: m2/person
B148: No of Occupant | C148: =C144/C147 -> 120 | D148: persons
B149: Equip Heat Gain per person | C149: =C146*1000/C148 -> 183.6666667 | D149: W/person
B151: Heat Generated at night | C151: =C143*C144/1000 -> 1.8 | D151: kW
B154: Lighting Heat Gain
B156: Lighting Heat Gain during AC hours | C156: =C39 -> 7 | D156: W/m2 | E156: =C$9 -> 2700 | F156: hours
B157: Lighting Heat Gain during none AC hours | C157: =C40 -> 0.7 | D157: W/m2 | E157: =8760-E156 -> 6060 | F157: hours
B158: Floor Area | C158: =C144 -> 1200 | D158: m2
B159: Total Lighting Sensible Heat Gain | C159: =((C156*E156)+(C157*E157))/E156*C158/1000 -> 10.28533333 | D159: kW | E159: =C159*1000/C$22 -> 8.571111111 | F159: W/m2
B160: Daylighting | C160: ='Building Energy Proposed'!C160 -> 1 | D160: 1=Yes, 2=No
B161: Daylight Percentage | C161: ='Building Energy Proposed'!C161 -> 0.2
B162: Floor Area Not Daylighted | C162: =C22*(1-C161) -> 960 | D162: m2
B163: Floor Area Daylighted | C163: =C22*C161 -> 240 | D163: m2 | E163: =E156-E164 -> 810 | F163: hours | H163: =C7 -> 10 | I163: Hours per day
B164: Percentage of Daylight Hours during AC hours | C164: 0.7 | E164: =(C164)*H166 -> 1890 | F164: hours | G164: None Daylighted Hours | H164: =C8 -> 270 | I164: Work days per year
B165: Lighting Heat Gain during AC hours (None Daylight Area) | C165: =C162*C156*E156 -> 18144000 | D165: Wh | G165: Daylighted Hours | H165: =IF(H163>10,10,H163) -> 10 | I165: if condition
B166: Lighting Heat Gain during AC hours (Daylight Area) | C166: =C163*E163*C156 -> 1360800 | D166: Wh | H166: =H164*H165 -> 2700
B167: Average Lighting Heat Gain during AC hours | C167: =(C165+C166)/E156/C158 -> 6.02 | D167: W/m2 | E167: =E156 -> 2700 | F167: hours
B168: =B157 -> Lighting Heat Gain during none AC hours | C168: =C157 -> 0.7 | D168: W/m2 | E168: 6060 | F168: hours
B169: Floor Area | C169: =C158 -> 1200 | D169: m2
B170: Total Lighting Sensible Heat Gain wt Daylighting | C170: =((C167*E167)+(C168*E168))/E167*C169/1000 -> 9.109333333 | D170: kW | E170: =C170*1000/C$22 -> 7.591111111 | F170: W/m2
B171: Potential Saving Due to Daylighting | C171: =C159-C170 -> 1.176 | D171: kW | E171: 2900 | F171: hours
B173: Total Lighting Sensible Heat Gain | C173: =IF('Input Data'!D59=1,'BE 5.Lgt wt Daylight'!C170,'BE 5.Lgt wt Daylight'!C159) -> 9.109333333 | D173: kW | E173: =C173*1000/C$22 -> 7.591111111 | F173: W/m2
B174: Occupant Density | C174: =C147 -> 10 | D174: m2/person
B175: No of Occupant | C175: =C158/C174 -> 120 | D175: persons
B176: Equip Heat Gain per person | C176: =C173*1000/C175 -> 75.91111111 | D176: W/person
B178: Heat Generated at night | C178: =C157*C158/1000 -> 0.84 | D178: kW
B182: Estimated Average Night Temp
B183: Sensible (light+equip) heat | C183: =C178+C151 -> 2.64 | D183: kW
B184: Total Heat Internally Generated (excluding conduction) | C184: =(C178+C151+C121) -> 1.613739076 | D184: kW
B185: Volume of Air | C185: =C24 -> 5700 | D185: m3
B186: =B91 -> Air Density at Room Condition | C186: =C91 -> 1.165668607 | D186: kg/m3
B187: Specific heat of air at Room Condition | C187: =C92 -> 1.005 | D187: kJ/kg.K
B188: =B86 -> Inside Average Temp during AC hours | C188: =C86 -> 24 | D188: =D86 -> Celcius
B189: Delta Temp | C189: =C184/(C187*C186*C185/3600) -> 0.8700010931 | D189: deg Celcius
B190: Inside Average Temp during NON AC hours | C190: =nt_t(C12,C92,C91,C97,C183,C185,C86) -> 25.35327911 | D190: deg Celcius
B194: Total Cooling Load
B195: CO2 used? | C195: =C45 -> 0
B197: =B79 -> Total Heat Gain from Façade | C197: =C79 -> 50.09689111 | D197: =D79 -> kW
B198: =B82 -> Total Heat Gain from Roof | C198: =C82 -> 2.368 | D198: =D82 -> kW | G198: est from below
B199: =B108 -> Q sensible air intake (AC Hours) | C199: =IF(C195=1,C120,C108) -> 13.92870823 | D199: =D108 -> kW
B200: =B111 -> Q latent air intake (AC Hours) | C200: =IF(C195=1,C123,C111) -> 35.34493394 | D200: =D111 -> kW
B201: =B135 -> Total People Sensible Heat Gain | C201: =C135 -> 10.8 | D201: kW
B202: Total People Latent Heat Gain | C202: =C136 -> 7.2 | D202: kW
B203: =B146 -> Total Equip Sensible Heat Gain | C203: =C146 -> 22.04 | D203: =D146 -> kW
B204: =B173 -> Total Lighting Sensible Heat Gain | C204: =C173 -> 9.109333333 | D204: =D173 -> kW
A205: Iterated | B205: Total Fan Sensible Heat Gain | C205: =f_p(C207,C229,C230,C234,C225,C224) -> 4.022922516 | D205: kW | E205: =C242 -> 4.027913185
B207: Sum of Sensible excluding Fan | C207: =C197+C198+C199+C201+C203+C204 -> 108.3429327 | D207: kW
B208: Total Average Load (AC hours) | C208: =SUM(C197:C205) -> 154.9107891 | D208: kW
B209: Latent Load | C209: =C200+C202 -> 42.54493394 | D209: kW
B210: Sensible Load | C210: =C208-C209 -> 112.3658552 | D210: kW | E210: =C207+C205 -> 112.3658552
B211: AC Load for full year | C211: =C208*C$9/1000 -> 418.2591307 | D211: MWh
B212: Cooling Index | C212: =C211*1000/C$22 -> 348.5492756 | D212: kWh/m2/year
B213: COSP | C213: =C$47 -> 3.63622
B214: Cooling Energy | C214: =C212/C213 -> 95.85483704 | D214: kWh/m2/year
B215: Cooling Energy | C215: =C214*C$22/1000 -> 115.0258045 | D215: MWh/year
B222: FAN Power Heat Gain - VAV system | G222: FAN Power Heat Gain - CAV system
B224: Combined Fan&Motor Efficiency | C224: =C50 -> 0.65 | D224: efficiency
B225: Static Pressure | C225: =C51 -> 350 | D225: Pa
B226: CO2 Used? | C226: =C45 -> 0
B227: =B86 -> Inside Average Temp during AC hours | C227: =C86 -> 24 | D227: =D86 -> Celcius
B228: Supply Air Temperature | C228: =C52 -> 13 | D228: Celcius | E228: Note: to reduce Chiller COP and room humidity if supply temp < 12 deg Celcius
B229: =B92 -> Specific heat of air at Room Condition | C229: =C92 -> 1.005 | D229: =D92 -> kJ/kg.K
B230: =B91 -> Air Density at Room Condition | C230: =C91 -> 1.165668607 | D230: =D91 -> kg/m3
B233: Total Average Sensible Load (AC hours) | C233: =C210 -> 112.3658552 | D233: kW
B234: Temperature Difference | C234: =C227-C228 -> 11 | D234: Celcius
B235: Volume to be cooled | C235: =C24 -> 5700 | D235: =D24 -> m3
B237: Flow Rate Required | C237: =C233*3600/(C229*C230*C234) -> 31390.84561 | D237: m3/h
B238: Flow Rate Required | C238: =C237/C235 -> 5.507165896 | D238: ach | E238: check figure
B239: Flow Rate Required | C239: =C237/3.6 -> 8719.679336 | D239: l/s
B240: Flow Rate Required | C240: =C237/3600 -> 8.719679336 | D240: m3/s
E241: Ave.
B242: Fan Power used | C242: =C240*C225/C224/1000/C230 -> 4.027913185 | D242: kW VAV | E242: =U12 -> 0.58 | G242: =B242 -> Fan Power used | H242: =C242/E242 -> 6.944677904 | I242: kW CAV
B247: Total Energy Use in Building
B248: =B226 -> CO2 Used? | C248: =C226 -> 0
B249: Cooling Energy | C249: =C215 -> 115.0258045 | D249: MWh/year
B250: Fan Energy | C250: =C242*C9/1000 -> 10.8753656 | D250: MWh/year
B251: Total Air-Conditioning Energy Used | C251: =C249+C250 -> 125.90117 | D251: MWh/year
B253: Lighting Energy Used | C253: =C173*C9/1000 -> 24.5952 | D253: MWh/year
B254: Plug Load Energy Used | C254: =C146*C9/1000 -> 59.508 | D254: MWh/year
B255: Misc Load Energy Used | C255: =I16/1000 -> 14.3712 | D255: MWh/year
B257: Total Building Energy used | C257: =C251+C253+C254+C255 -> 224.37557 | D257: =D254 -> MWh/year
B258: Building Energy Index | C258: =C257/C22*1000 -> 186.9796417 | D258: kWh/m2/year

Sheet BE 6.Plug Load (hidden)
A1: Energy & Cooling Load Calculation based on Steady State Conditions
A2: Assumptions | O2: Calculation Method based on UK Guidance for the use of the Carbon Emissions Calculation Method
G3: Misc Loads | H3: Non AC hrs | I3: =8760-C9 -> 6060
G4: Elevators and Escalators | I4: kWh/year | J4: Input Data | K4: Diversity Factor | O4: Full Load Chiller COP | Q4: =C46 -> 4.4
A5: Operating Hours | G5: Elevators and Escalators during AC hours (kW/building) | H5: =J5*K5 -> 1.125 | I5: =H5*8760 -> 9855 | J5: ='Input Data'!C77 -> 25 | K5: =(0.3*0.15) -> 0.045 | O5: 50% Capacity COP | Q5: =Q4*5/6 -> 3.666666667 | R5: Base on GPG59, Effi. Of screw compressor, 60% full load power at 50% capacity.
G6: Elevators and Escalators during non AC hours (kW/building) | H6: 0 | I6: =H6*$I$3 -> 0
B7: Hours of Operation | C7: ='Input Data'!C17 -> 10 | D7: hours/day | G7: Hydraulic systems | O7: %total load | P7: Compressor 1 | Q7: Compressor 2 | R7: Overall CoP | S7: ARI weighting 1st approximation
B8: Working Days | C8: ='Input Data'!C18 -> 270 | D8: days/year | G8: Hydraulic systems during AC hours (kW/building) | H8: =J8*K8 -> 0.3 | I8: =H8*$C$9 -> 810 | J8: ='Input Data'!C79 -> 2 | K8: 0.15 | O8: 1 | P8: 1 | Q8: 1 | R8: =(0.5*Q4)+(0.5*Q4) -> 4.4 | S8: 0.01 | T8: =R8*S8 -> 0.044 | U8: =O8*S8 -> 0.01
B9: AC operating Hours | C9: =C7*C8 -> 2700 | D9: hours/year | G9: Hydraulic systems during non AC hours (kW/building) | H9: 0 | I9: =H9*$I$3 -> 0 | O9: 0.75 | P9: 1 | Q9: 0.5 | R9: =(0.67*Q4)+(0.33*Q5) -> 4.158 | S9: 0.42 | T9: 1.74636 | U9: 0.315
A10: Outside Conditions | G10: External lighting | L10: hours/day | M10: Days | O10: 0.5 | P10: 1 | Q10: 0 | R10: =1*Q4 -> 4.4 | S10: 0.45 | T10: 1.98 | U10: 0.225
B11: Outside Average Temp during AC hours | C11: 29.3 | D11: Celcius | E11: Fixed | G11: External lighting prorated (kW/building) | H11: =J11 -> 2 | I11: =H11*K11*L11*M11+H11*K12*L12*M12 -> 3706.2 | J11: ='Input Data'!C81 -> 2 | K11: 1 | L11: 5 | M11: 261 | N11: 7-midnite | O11: 0.25 | P11: 0.5 | Q11: 0 | R11: =1*Q5 -> 3.666666667 | S11: 0.12 | T11: 0.44 | U11: 0.03
B12: Outside Average Temp during None AC hours | C12: 24.8 | D12: Celcius | E12: Fixed | G12: External lighting during non AC hours (kW/building) | H12: 0 | I12: =H12*$I$3 -> 0 | K12: 0.3 | L12: 7 | M12: 261 | N12: mid-7am | S12: =SUM(S8:S11) -> 1 | T12: 4.21036 | U12: 0.58 | W12: =T12/Q4 -> 0.9569
B13: Outside Average Humidity during AC hours | C13: 0.01817402242 | D13: kg/kg | E13: Fixed | G13: Others
G14: Others during AC hours (kW/building) | H14: 0 | I14: =H14*$C$9 -> 0
G15: Others during non AC hours (kW/building) | H15: 0 | I15: =H15*$I$3 -> 0 | O15: COSP | P15: =(P20*P18)/(1+T18) -> 3.63622
H16: Total Misc | I16: =SUM(I5:I15) -> 14371.2
O17: CD | P17: 1 | S17: Dist Losses | T17: Heat Rejection Power
O18: Fdl | P18: =1-S18 -> 0.95 | Q18: distribution losses | S18: 0.05 | T18: ='Input Data'!C90 -> 0.1
A19: Input Data | G19: Results Summary | O19: Fhr | P19: =T18 -> 0.1 | Q19: heat rejection losses base on GPG256. Water Pump load at 22W/kW of rejected heat. Fan power of dry cooler 25 W/kW of rejected Heat.
H20: Total Energy Used | J20: % | K20: Energy Index | O20: CoPav | P20: =T12 -> 4.21036
A21: Building Data | G21: =B249 -> Cooling Energy | H21: 109.3681334 | I21: MWh/year | J21: =H21/H$29 -> 0.5519616365 | K21: =J21*K$30 -> 91.14011114 | L21: =L30 -> kWh/m2/year
B22: AC Floor Area | C22: ='Input Data'!C4 -> 1200 | D22: m2 | G22: Fan Energy | H22: 10.13791389 | I22: MWh/year | J22: 0.05116425935 | K22: 8.448261574 | L22: =L21 -> kWh/m2/year
B23: Floor to Floor height | C23: ='OTTV Baseline'!D4 -> 4.75 | D23: m | G23: Total Air-Conditioning Energy Used | H23: 119.5060473 | I23: MWh/year | J23: 0.6031258958 | K23: 99.58837271 | L23: kWh/m2/year | O23: CD*Fdl/CoPav | P23: =P17*P18/P20 -> 0.2256339125
B24: AC Volume | C24: =C22*C23 -> 5700 | D24: m3 | O24: (1+1/CoPav) | P24: =(1/P20)+1 -> 1.237509382
B25: Total AC External Wall Area | C25: ='OTTV Baseline'!D11 -> 1710 | D25: m2 | E25: ='OTTV Baseline'!D11 -> 1710 | F25: m2 | G25: =B253 -> Lighting Energy Used | H25: =C253 -> 24.5952 | I25: MWh/year | J25: =H25/H$29 -> 0.1241276268 | K25: =J25*K$30 -> 20.496 | L25: =L23 -> kWh/m2/year | O25: CD*FDS*Fhr*add | P25: =P17*P18*P24*P19 -> 0.1175633913
B26: Total AC Roof Area | C26: ='OTTV Baseline'!D8 -> 200 | D26: m2 | G26: Plug Load Energy Used | H26: 39.672 | I26: MWh/year | J26: =H26/H$29 -> 0.2002175713 | K26: 33.06 | L26: kWh/m2/year
G27: Misc Load Energy Used | H27: =I16/1000 -> 14.3712 | I27: MWh/year | J27: =C255/H$29 -> 0.07252890605 | K27: 11.976 | L27: kWh/m2/year
B28: Calculated OTTV | C28: ='Input Data'!D39 -> 29.29642755 | D28: W/m2 | E28: ='OTTV Baseline'!G3 -> 50.090105 | F28: W/m2
B29: Calculated RTTV | C29: ='Building Energy Proposed'!C29 -> 11.84 | D29: W/m2 | G29: =B257 -> Total Building Energy used | H29: 198.1444473 | I29: MWh/year
G30: Building Energy Index | K30: =C258 -> 165.1203727 | L30: =D258 -> kWh/m2/year
A33: Plug Load Heat Gain | G33: =G21 -> Cooling Energy | H33: =K21 -> 91.14011114 | I33: =L30 -> kWh/m2/year
B34: Plug Load Heat Gain during AC hours | C34: ='Input Data'!D67 -> 10 | D34: W/m2 | G34: =G22 -> Fan Energy | H34: =K22 -> 8.448261574 | I34: =I33 -> kWh/m2/year
B35: Plug Load Heat Gain during none AC hours | C35: ='Input Data'!D68 -> 1 | D35: W/m2 | G35: =G25 -> Lighting Energy Used | H35: =K25 -> 20.496 | I35: kWh/m2/year
B36: Total Heat Gain during AC hours | C36: =C34*C$22/1000 -> 12 | D36: kW | G36: =G26 -> Plug Load Energy Used | H36: =K26 -> 33.06 | I36: kWh/m2/year
B37: Total Heat Gain during None AC hours | C37: 1.2 | D37: kW
A38: Lighting Heat Gain
B39: Lighting Heat Gain during AC hours | C39: ='Input Data'!D56 -> 7 | D39: W/m2
B40: Lighting Heat Gain during none AC hours | C40: ='Input Data'!D57 -> 0.7 | D40: W/m2
B41: Total Heat Gain during AC hours | C41: 8.4 | D41: kW
B42: Total Heat Gain during None AC hours | C42: 0.84 | D42: kW
A44: System Used
B45: CO2 control of Fresh Air Inlet used? | C45: =IF('Input Data'!C92=1,1,0) -> 0 | D45: 1=yes, 0=no
B46: COP of chiller | C46: ='Input Data'!C89 -> 4.4
B47: COSP (Coefficient of System Performance) | C47: =P15 -> 3.63622
A49: Fan Data
B50: Combined Fan&Motor Efficiency | C50: ='Input Data'!C97 -> 0.65 | D50: efficiency
B51: Static Pressure | C51: ='Input Data'!C98 -> 350 | D51: Pa
B52: Supply Air Temperature (off coil temperature) | C52: 13 | D52: Celcius | E52: Fixed Data
A55: Indoor Air Conditions
B56: Indoor AC Temperature | C56: ='Input Data'!C94 -> 24 | D56: Celcius
B57: Indoor AC Relative Humidity | C57: ='Input Data'!C95 -> 0.65 | D57: Percentage
B58: =B57 -> Indoor AC Relative Humidity | C58: =C57*100 -> 65 | D58: %
B59: Indoor Abs Humidity Ratio (kg/kg) | C59: =g_t_rh(C56,C58) -> 0.01218784321 | D59: kg/kg
A63: Infiltration
B64: ACH | C64: ='Input Data'!C105 -> 1 | D64: ach
A66: Occupants Data
B67: Occupant Density | C67: ='Input Data'!C13 -> 10 | D67: m2/person
B68: No of Occupants | C68: =C95/C67 -> 120 | D68: persons
B69: People Sensible Heat per person | C69: 90 | D69: W/person
B70: People Latent Heat per person | C70: 60 | D70: W/person
B71: Min Fresh Air per person | C71: =C72*C22/C68+C73 -> 5.5 | D71: l/s/person
B72: ASHRAE 62. Area requirement | C72: 0.3 | D72: l/s/m2
B73: People requirement | C73: 2.5 | D73: l/s/person
A76: CALCULATION DATA | T76: latent heat of vaprorization of water (kJ/kg) at atmos | U76: = | V76: 2257.92
B78: OTTV Calculation (Fabric Heat Load) | T78: = | U78: =T97 -> 1.205
B79: Total Heat Gain from Façade | C79: =C25*C28/1000 -> 50.09689111 | D79: kW
T80: = | U80: air change rate
B81: RTTV Calculation (Roof Heat Load)
B82: Total Heat Gain from Roof | C82: =C26*C29/1000 -> 2.368 | D82: kW | T82: = | V82: kg/kg
B84: Air Infiltration during AC hours (8am to 6pm - 10 hours everyday)
B86: Inside Average Temp during AC hours | C86: =C56 -> 24 | D86: Celcius
A87: Iterated | B87: Inside Average Temp during None AC Hours | C87: =E87 -> 25.19980621 | D87: Celcius | E87: =C190 -> 25.19980621 | F87: Celcius
B88: Outside Average Humidity during AC hours | C88: =C13 -> 0.01817402242 | D88: kg/kg | E88: Fixed
B89: Inside Average Humidity during AC hours | C89: =C59 -> 0.01218784321 | D89: kg/kg
B90: Latent Heat of Vaporisation of Water at Atmos | C90: 2257.92 | D90: kJ/kg | E90: Fixed
B91: Air Density at Room Condition | C91: =rho_t_g(C86,C89) -> 1.165668607 | D91: kg/m3 | E91: Fixed
B92: Specific heat of air at Room Condition | C92: 1.005 | D92: kJ/kg.K | E92: Fixed
B93: Delta Humidity Ratio during AC hours | C93: =C88-C89 -> 0.005986179205 | D93: kg/kg
B94: Delta Temperature diff during AC hours | C94: =C11-C86 -> 5.3 | D94: Celcius
B95: Floor Area | C95: =C22 -> 1200 | D95: m2 | R95: = | S95: 1.005 | T95: kJ/kg.K
B97: Flow Rate of Infiltrated Air | C97: =C24*C64 -> 5700 | D97: m3/h | S97: = | T97: 1.205 | U97: kg/m3
B99: Min Fresh Air Flow Rate required for occupants | C99: =C68*C71 -> 660 | D99: l/s
B100: Min Fresh Air Flow Rate required for occupants | C100: =C99*3.6 -> 2376 | D100: m3/h
Q101: = | R101: =H100 -> 0
A102: No Control of Fresh Air Intake (Infiltration + Mech Fresh Air)
B104: Flow rate of Fresh air is | C104: =C100+C97 -> 8076 | D104: m3/h
B105: Flow rate of Fresh air is | C105: =C104/3.6 -> 2243.333333 | D105: l/s
B106: Flow rate of Fresh air is | C106: =C104/C$24 -> 1.416842105 | D106: ach
A107: Heat due to Fresh air intake
B108: Q sensible air intake (AC Hours) | C108: =C$92*C$91*C104*C$94/3600 -> 13.92870823 | D108: kW | E108: 10 | F108: hours
B109: Q sensible air intake (none AC Hours) | C109: =C$92*C$91*C104*(C$12-C$87)/3600 -> -1.05071398 | D109: kW | E109: 14 | F109: hours
B110: Nett Sensible air intake | C110: =((C108*10)+(C109*14))/10 -> 12.45770866 | D110: kW | E110: =C110*1000/C$22 -> 10.38142388 | F110: W/m2
B111: Q latent air intake (AC Hours) | C111: =C$90*C$91*C104*C$93/3600 -> 35.34493394 | D111: kW | E111: =C111*1000/C$22 -> 29.45411162 | F111: W/m2
A114: Control of Fresh Air Intake wt CO2 sensor
B116: Flow rate of Fresh air intake is | C116: =IF(C100>C97,C100,C97) -> 5700 | D116: m3/h
B117: Flow rate of Fresh air intake is | C117: =C116/3.6 -> 1583.333333 | D117: l/s
B118: Flow rate of Fresh air intake is | C118: =C116/C24 -> 1 | D118: ach
A119: Heat due to Fresh air intake
B120: Q sensible air intake (AC Hours) | C120: =C$92*C$91*C116*C$94/3600 -> 9.830811904 | D120: kW
B121: Q sensible air intake (none AC Hours) | C121: =C$92*C$91*C97*(C$12-C$87)/3600 -> -0.7415886192 | D121: kW
B122: Nett Sensible air intake | C122: =((C120*10)+(C121*14))/10 -> 8.792587837 | D122: kW | E122: =C122*1000/C$22 -> 7.327156531 | F122: W/m2
B123: Q latent air intake | C123: =C$90*C$91*C116*C$93/3600 -> 24.94627581 | D123: kW | E123: =C123*1000/C$22 -> 20.78856318 | F123: W/m2
B127: People Heat Gain
B129: Occupant Density | C129: =C67 -> 10 | D129: m2/person
B130: Floor Area | C130: =C22 -> 1200 | D130: m2
B131: No of Occupant | C131: =C130/C129 -> 120 | D131: persons
B132: People Sensible Heat | C132: =C69 -> 90 | D132: W/person
B133: People Latent Heat | C133: =C70 -> 60 | D133: W/person
B135: Total People Sensible Heat Gain | C135: =C132*C131/1000 -> 10.8 | D135: kW | E135: =C135*1000/C$22 -> 9 | F135: W/m2
B136: Total People Latent Heat Gain | C136: =C133*C131/1000 -> 7.2 | D136: kW | E136: =C136*1000/C$22 -> 6 | F136: W/m2
B140: Plug Load Heat Gain
B142: Plug Load Heat Gain during AC hours | C142: =C34 -> 10 | D142: W/m2 | E142: =C$9 -> 2700 | F142: hours | G142: =C142*E142*C144+C143*E143*C144 -> 39672000
B143: Plug Load Heat Gain during none AC hours | C143: =C35 -> 1 | D143: W/m2 | E143: =8760-E142 -> 6060 | F143: hours | G143: =G142/1000/1000 -> 39.672 | H143: MWh
B144: Floor Area | C144: =C130 -> 1200 | D144: m2
B146: Total Equip Sensible Heat Gain | C146: =(C142*C144*E142+C143*C144*E143)/1000/E142 -> 14.69333333 | D146: kW | E146: =C146*1000/C$22 -> 12.24444444 | F146: W/m2
B147: Occupant Density | C147: =C67 -> 10 | D147: m2/person
B148: No of Occupant | C148: =C144/C147 -> 120 | D148: persons
B149: Equip Heat Gain per person | C149: =C146*1000/C148 -> 122.4444444 | D149: W/person
B151: Heat Generated at night | C151: =C143*C144/1000 -> 1.2 | D151: kW
B154: Lighting Heat Gain
B156: Lighting Heat Gain during AC hours | C156: =C39 -> 7 | D156: W/m2 | E156: =C$9 -> 2700 | F156: hours
B157: Lighting Heat Gain during none AC hours | C157: =C40 -> 0.7 | D157: W/m2 | E157: =8760-E156 -> 6060 | F157: hours
B158: Floor Area | C158: =C144 -> 1200 | D158: m2
B159: Total Lighting Sensible Heat Gain | C159: =((C156*E156)+(C157*E157))/E156*C158/1000 -> 10.28533333 | D159: kW | E159: =C159*1000/C$22 -> 8.571111111 | F159: W/m2
B160: Daylighting | C160: ='Building Energy Proposed'!C160 -> 1 | D160: 1=Yes, 2=No
B161: Daylight Percentage | C161: ='Building Energy Proposed'!C161 -> 0.2
B162: Floor Area Not Daylighted | C162: =C22*(1-C161) -> 960 | D162: m2
B163: Floor Area Daylighted | C163: =C22*C161 -> 240 | D163: m2 | E163: =E156-E164 -> 810 | F163: hours | H163: =C7 -> 10 | I163: Hours per day
B164: Percentage of Daylight Hours during AC hours | C164: 0.7 | E164: =(C164)*H166 -> 1890 | F164: hours | G164: None Daylighted Hours | H164: =C8 -> 270 | I164: Work days per year
B165: Lighting Heat Gain during AC hours (None Daylight Area) | C165: =C162*C156*E156 -> 18144000 | D165: Wh | G165: Daylighted Hours | H165: =IF(H163>10,10,H163) -> 10 | I165: if condition
B166: Lighting Heat Gain during AC hours (Daylight Area) | C166: =C163*E163*C156 -> 1360800 | D166: Wh | H166: =H164*H165 -> 2700
B167: Average Lighting Heat Gain during AC hours | C167: =(C165+C166)/E156/C158 -> 6.02 | D167: W/m2 | E167: =E156 -> 2700 | F167: hours
B168: =B157 -> Lighting Heat Gain during none AC hours | C168: =C157 -> 0.7 | D168: W/m2 | E168: 6060 | F168: hours
B169: Floor Area | C169: =C158 -> 1200 | D169: m2
B170: Total Lighting Sensible Heat Gain wt Daylighting | C170: =((C167*E167)+(C168*E168))/E167*C169/1000 -> 9.109333333 | D170: kW | E170: =C170*1000/C$22 -> 7.591111111 | F170: W/m2
B171: Potential Saving Due to Daylighting | C171: =C159-C170 -> 1.176 | D171: kW | E171: 2900 | F171: hours
B173: Total Lighting Sensible Heat Gain | C173: =IF('Input Data'!D59=1,'BE 6.Plug Load'!C170,'BE 6.Plug Load'!C159) -> 9.109333333 | D173: kW | E173: =C173*1000/C$22 -> 7.591111111 | F173: W/m2
B174: Occupant Density | C174: =C147 -> 10 | D174: m2/person
B175: No of Occupant | C175: =C158/C174 -> 120 | D175: persons
B176: Equip Heat Gain per person | C176: =C173*1000/C175 -> 75.91111111 | D176: W/person
B178: Heat Generated at night | C178: =C157*C158/1000 -> 0.84 | D178: kW
B182: Estimated Average Night Temp
B183: Sensible (light+equip) heat | C183: =C178+C151 -> 2.04 | D183: kW
B184: Total Heat Internally Generated (excluding conduction) | C184: =(C178+C151+C121) -> 1.298411381 | D184: kW
B185: Volume of Air | C185: =C24 -> 5700 | D185: m3
B186: =B91 -> Air Density at Room Condition | C186: =C91 -> 1.165668607 | D186: kg/m3
B187: Specific heat of air at Room Condition | C187: =C92 -> 1.005 | D187: kJ/kg.K
B188: =B86 -> Inside Average Temp during AC hours | C188: =C86 -> 24 | D188: =D86 -> Celcius
B189: Delta Temp | C189: =C184/(C187*C186*C185/3600) -> 0.7000012192 | D189: deg Celcius
B190: Inside Average Temp during NON AC hours | C190: =nt_t(C12,C92,C91,C97,C183,C185,C86) -> 25.19980621 | D190: deg Celcius
B194: Total Cooling Load
B195: CO2 used? | C195: =C45 -> 0
B197: =B79 -> Total Heat Gain from Façade | C197: =C79 -> 50.09689111 | D197: =D79 -> kW
B198: =B82 -> Total Heat Gain from Roof | C198: =C82 -> 2.368 | D198: =D82 -> kW | G198: est from below
B199: =B108 -> Q sensible air intake (AC Hours) | C199: =IF(C195=1,C120,C108) -> 13.92870823 | D199: =D108 -> kW
B200: =B111 -> Q latent air intake (AC Hours) | C200: =IF(C195=1,C123,C111) -> 35.34493394 | D200: =D111 -> kW
B201: =B135 -> Total People Sensible Heat Gain | C201: =C135 -> 10.8 | D201: kW
B202: Total People Latent Heat Gain | C202: =C136 -> 7.2 | D202: kW
B203: =B146 -> Total Equip Sensible Heat Gain | C203: =C146 -> 14.69333333 | D203: =D146 -> kW
B204: =B173 -> Total Lighting Sensible Heat Gain | C204: =C173 -> 9.109333333 | D204: =D173 -> kW
A205: Iterated | B205: Total Fan Sensible Heat Gain | C205: =f_p(C207,C229,C230,C234,C225,C224) -> 3.75013113 | D205: kW | E205: =C242 -> 3.754782922
B207: Sum of Sensible excluding Fan | C207: =C197+C198+C199+C201+C203+C204 -> 100.996266 | D207: kW
B208: Total Average Load (AC hours) | C208: =SUM(C197:C205) -> 147.2913311 | D208: kW
B209: Latent Load | C209: =C200+C202 -> 42.54493394 | D209: kW
B210: Sensible Load | C210: =C208-C209 -> 104.7463971 | D210: kW | E210: =C207+C205 -> 104.7463971
B211: AC Load for full year | C211: =C208*C$9/1000 -> 397.6865939 | D211: MWh
B212: Cooling Index | C212: =C211*1000/C$22 -> 331.4054949 | D212: kWh/m2/year
B213: COSP | C213: =C$47 -> 3.63622
B214: Cooling Energy | C214: =C212/C213 -> 91.14011114 | D214: kWh/m2/year
B215: Cooling Energy | C215: =C214*C$22/1000 -> 109.3681334 | D215: MWh/year
B222: FAN Power Heat Gain - VAV system | G222: FAN Power Heat Gain - CAV system
B224: Combined Fan&Motor Efficiency | C224: =C50 -> 0.65 | D224: efficiency
B225: Static Pressure | C225: =C51 -> 350 | D225: Pa
B226: CO2 Used? | C226: =C45 -> 0
B227: =B86 -> Inside Average Temp during AC hours | C227: =C86 -> 24 | D227: =D86 -> Celcius
B228: Supply Air Temperature | C228: =C52 -> 13 | D228: Celcius | E228: Note: to reduce Chiller COP and room humidity if supply temp < 12 deg Celcius
B229: =B92 -> Specific heat of air at Room Condition | C229: =C92 -> 1.005 | D229: =D92 -> kJ/kg.K
B230: =B91 -> Air Density at Room Condition | C230: =C91 -> 1.165668607 | D230: =D91 -> kg/m3
B233: Total Average Sensible Load (AC hours) | C233: =C210 -> 104.7463971 | D233: kW
B234: Temperature Difference | C234: =C227-C228 -> 11 | D234: Celcius
B235: Volume to be cooled | C235: =C24 -> 5700 | D235: =D24 -> m3
B237: Flow Rate Required | C237: =C233*3600/(C229*C230*C234) -> 29262.25209 | D237: m3/h
B238: Flow Rate Required | C238: =C237/C235 -> 5.133728436 | D238: ach | E238: check figure
B239: Flow Rate Required | C239: =C237/3.6 -> 8128.403358 | D239: l/s
B240: Flow Rate Required | C240: =C237/3600 -> 8.128403358 | D240: m3/s
E241: Ave.
B242: Fan Power used | C242: =C240*C225/C224/1000/C230 -> 3.754782922 | D242: kW VAV | E242: =U12 -> 0.58 | G242: =B242 -> Fan Power used | H242: =C242/E242 -> 6.473763658 | I242: kW CAV
B247: Total Energy Use in Building
B248: =B226 -> CO2 Used? | C248: =C226 -> 0
B249: Cooling Energy | C249: =C215 -> 109.3681334 | D249: MWh/year
B250: Fan Energy | C250: =C242*C9/1000 -> 10.13791389 | D250: MWh/year
B251: Total Air-Conditioning Energy Used | C251: =C249+C250 -> 119.5060473 | D251: MWh/year
B253: Lighting Energy Used | C253: =C173*C9/1000 -> 24.5952 | D253: MWh/year
B254: Plug Load Energy Used | C254: =C146*C9/1000 -> 39.672 | D254: MWh/year
B255: Misc Load Energy Used | C255: =I16/1000 -> 14.3712 | D255: MWh/year
B257: Total Building Energy used | C257: =C251+C253+C254+C255 -> 198.1444473 | D257: =D254 -> MWh/year
B258: Building Energy Index | C258: =C257/C22*1000 -> 165.1203727 | D258: kWh/m2/year

Sheet BE 7.ACMV (hidden)
A1: Energy & Cooling Load Calculation based on Steady State Conditions
A2: Assumptions | O2: Calculation Method based on UK Guidance for the use of the Carbon Emissions Calculation Method
G3: Misc Loads | H3: Non AC hrs | I3: =8760-C9 -> 6060
G4: Elevators and Escalators | I4: kWh/year | J4: Input Data | K4: Diversity Factor | O4: Full Load Chiller COP | Q4: =C46 -> 4.4
A5: Operating Hours | G5: Elevators and Escalators during AC hours (kW/building) | H5: =J5*K5 -> 1.125 | I5: =H5*8760 -> 9855 | J5: ='Input Data'!C77 -> 25 | K5: =(0.3*0.15) -> 0.045 | O5: 50% Capacity COP | Q5: =Q4*5/6 -> 3.666666667 | R5: Base on GPG59, Effi. Of screw compressor, 60% full load power at 50% capacity.
G6: Elevators and Escalators during non AC hours (kW/building) | H6: 0 | I6: =H6*$I$3 -> 0
B7: Hours of Operation | C7: ='Input Data'!C17 -> 10 | D7: hours/day | G7: Hydraulic systems | O7: %total load | P7: Compressor 1 | Q7: Compressor 2 | R7: Overall CoP | S7: ARI weighting 1st approximation
B8: Working Days | C8: ='Input Data'!C18 -> 270 | D8: days/year | G8: Hydraulic systems during AC hours (kW/building) | H8: =J8*K8 -> 0.3 | I8: =H8*$C$9 -> 810 | J8: ='Input Data'!C79 -> 2 | K8: 0.15 | O8: 1 | P8: 1 | Q8: 1 | R8: =(0.5*Q4)+(0.5*Q4) -> 4.4 | S8: 0.01 | T8: =R8*S8 -> 0.044 | U8: =O8*S8 -> 0.01
B9: AC operating Hours | C9: =C7*C8 -> 2700 | D9: hours/year | G9: Hydraulic systems during non AC hours (kW/building) | H9: 0 | I9: =H9*$I$3 -> 0 | O9: 0.75 | P9: 1 | Q9: 0.5 | R9: =(0.67*Q4)+(0.33*Q5) -> 4.158 | S9: 0.42 | T9: 1.74636 | U9: 0.315
A10: Outside Conditions | G10: External lighting | L10: hours/day | M10: Days | O10: 0.5 | P10: 1 | Q10: 0 | R10: =1*Q4 -> 4.4 | S10: 0.45 | T10: 1.98 | U10: 0.225
B11: Outside Average Temp during AC hours | C11: 29.3 | D11: Celcius | E11: Fixed | G11: External lighting prorated (kW/building) | H11: =J11 -> 2 | I11: =H11*K11*L11*M11+H11*K12*L12*M12 -> 3706.2 | J11: ='Input Data'!C81 -> 2 | K11: 1 | L11: 5 | M11: 261 | N11: 7-midnite | O11: 0.25 | P11: 0.5 | Q11: 0 | R11: =1*Q5 -> 3.666666667 | S11: 0.12 | T11: 0.44 | U11: 0.03
B12: Outside Average Temp during None AC hours | C12: 24.8 | D12: Celcius | E12: Fixed | G12: External lighting during non AC hours (kW/building) | H12: 0 | I12: =H12*$I$3 -> 0 | K12: 0.3 | L12: 7 | M12: 261 | N12: mid-7am | S12: =SUM(S8:S11) -> 1 | T12: 4.21036 | U12: 0.58 | W12: =T12/Q4 -> 0.9569
B13: Outside Average Humidity during AC hours | C13: 0.01817402242 | D13: kg/kg | E13: Fixed | G13: Others
G14: Others during AC hours (kW/building) | H14: 0 | I14: =H14*$C$9 -> 0
G15: Others during non AC hours (kW/building) | H15: 0 | I15: =H15*$I$3 -> 0 | O15: COSP | P15: =(P20*P18)/(1+T18) -> 3.63622
H16: Total Misc | I16: =SUM(I5:I15) -> 14371.2
O17: CD | P17: 1 | S17: Dist Losses | T17: Heat Rejection Power
O18: Fdl | P18: =1-S18 -> 0.95 | Q18: distribution losses | S18: 0.05 | T18: ='Input Data'!D90 -> 0.1
A19: Input Data | G19: Results Summary | O19: Fhr | P19: =T18 -> 0.1 | Q19: heat rejection losses base on GPG256. Water Pump load at 22W/kW of rejected heat. Fan power of dry cooler 25 W/kW of rejected Heat.
H20: Total Energy Used | J20: % | K20: Energy Index | O20: CoPav | P20: =T12 -> 4.21036
A21: Building Data | G21: =B249 -> Cooling Energy | H21: 109.3681334 | I21: MWh/year | J21: =H21/H$29 -> 0.5519616365 | K21: =J21*K$30 -> 91.14011114 | L21: =L30 -> kWh/m2/year
B22: AC Floor Area | C22: ='Input Data'!C4 -> 1200 | D22: m2 | G22: Fan Energy | H22: 10.13791389 | I22: MWh/year | J22: 0.05116425935 | K22: 8.448261574 | L22: =L21 -> kWh/m2/year
B23: Floor to Floor height | C23: ='OTTV Baseline'!D4 -> 4.75 | D23: m | G23: Total Air-Conditioning Energy Used | H23: 119.5060473 | I23: MWh/year | J23: 0.6031258958 | K23: 99.58837271 | L23: kWh/m2/year | O23: CD*Fdl/CoPav | P23: =P17*P18/P20 -> 0.2256339125
B24: AC Volume | C24: =C22*C23 -> 5700 | D24: m3 | O24: (1+1/CoPav) | P24: =(1/P20)+1 -> 1.237509382
B25: Total AC External Wall Area | C25: ='OTTV Baseline'!D11 -> 1710 | D25: m2 | E25: ='OTTV Baseline'!D11 -> 1710 | F25: m2 | G25: =B253 -> Lighting Energy Used | H25: =C253 -> 24.5952 | I25: MWh/year | J25: =H25/H$29 -> 0.1241276268 | K25: =J25*K$30 -> 20.496 | L25: =L23 -> kWh/m2/year | O25: CD*FDS*Fhr*add | P25: =P17*P18*P24*P19 -> 0.1175633913
B26: Total AC Roof Area | C26: ='OTTV Baseline'!D8 -> 200 | D26: m2 | G26: Plug Load Energy Used | H26: 39.672 | I26: MWh/year | J26: =H26/H$29 -> 0.2002175713 | K26: 33.06 | L26: kWh/m2/year
G27: Misc Load Energy Used | H27: =I16/1000 -> 14.3712 | I27: MWh/year | J27: =C255/H$29 -> 0.07252890605 | K27: 11.976 | L27: kWh/m2/year
B28: Calculated OTTV | C28: ='Input Data'!D39 -> 29.29642755 | D28: W/m2 | E28: ='OTTV Baseline'!G3 -> 50.090105 | F28: W/m2
B29: Calculated RTTV | C29: ='Building Energy Proposed'!C29 -> 11.84 | D29: W/m2 | G29: =B257 -> Total Building Energy used | H29: 198.1444473 | I29: MWh/year
G30: Building Energy Index | K30: =C258 -> 165.1203727 | L30: =D258 -> kWh/m2/year
A33: Plug Load Heat Gain | G33: =G21 -> Cooling Energy | H33: =K21 -> 91.14011114 | I33: =L30 -> kWh/m2/year
B34: Plug Load Heat Gain during AC hours | C34: ='Input Data'!D67 -> 10 | D34: W/m2 | G34: =G22 -> Fan Energy | H34: =K22 -> 8.448261574 | I34: =I33 -> kWh/m2/year
B35: Plug Load Heat Gain during none AC hours | C35: ='Input Data'!D68 -> 1 | D35: W/m2 | G35: =G25 -> Lighting Energy Used | H35: =K25 -> 20.496 | I35: kWh/m2/year
B36: Total Heat Gain during AC hours | C36: =C34*C$22/1000 -> 12 | D36: kW | G36: =G26 -> Plug Load Energy Used | H36: =K26 -> 33.06 | I36: kWh/m2/year
B37: Total Heat Gain during None AC hours | C37: 1.2 | D37: kW
A38: Lighting Heat Gain
B39: Lighting Heat Gain during AC hours | C39: ='Input Data'!D56 -> 7 | D39: W/m2
B40: Lighting Heat Gain during none AC hours | C40: ='Input Data'!D57 -> 0.7 | D40: W/m2
B41: Total Heat Gain during AC hours | C41: 8.4 | D41: kW
B42: Total Heat Gain during None AC hours | C42: 0.84 | D42: kW
A44: System Used
B45: CO2 control of Fresh Air Inlet used? | C45: =IF('Input Data'!D92=1,1,0) -> 0 | D45: 1=yes, 0=no
B46: COP of chiller | C46: ='Input Data'!D89 -> 4.4
B47: COSP (Coefficient of System Performance) | C47: =P15 -> 3.63622
A49: Fan Data
B50: Combined Fan&Motor Efficiency | C50: ='Input Data'!D97 -> 0.65 | D50: efficiency
B51: Static Pressure | C51: ='Input Data'!D98 -> 350 | D51: Pa
B52: Supply Air Temperature (off coil temperature) | C52: 13 | D52: Celcius | E52: Fixed Data
A55: Indoor Air Conditions
B56: Indoor AC Temperature | C56: ='Input Data'!D94 -> 24 | D56: Celcius
B57: Indoor AC Relative Humidity | C57: ='Input Data'!D95 -> 0.65 | D57: Percentage
B58: =B57 -> Indoor AC Relative Humidity | C58: =C57*100 -> 65 | D58: %
B59: Indoor Abs Humidity Ratio (kg/kg) | C59: =g_t_rh(C56,C58) -> 0.01218784321 | D59: kg/kg
A63: Infiltration
B64: ACH | C64: ='Input Data'!C105 -> 1 | D64: ach
A66: Occupants Data
B67: Occupant Density | C67: ='Input Data'!C13 -> 10 | D67: m2/person
B68: No of Occupants | C68: =C95/C67 -> 120 | D68: persons
B69: People Sensible Heat per person | C69: 90 | D69: W/person
B70: People Latent Heat per person | C70: 60 | D70: W/person
B71: Min Fresh Air per person | C71: =C72*C22/C68+C73 -> 5.5 | D71: l/s/person
B72: ASHRAE 62. Area requirement | C72: 0.3 | D72: l/s/m2
B73: People requirement | C73: 2.5 | D73: l/s/person
A76: CALCULATION DATA | T76: latent heat of vaprorization of water (kJ/kg) at atmos | U76: = | V76: 2257.92
B78: OTTV Calculation (Fabric Heat Load) | T78: = | U78: =T97 -> 1.205
B79: Total Heat Gain from Façade | C79: =C25*C28/1000 -> 50.09689111 | D79: kW
T80: = | U80: air change rate
B81: RTTV Calculation (Roof Heat Load)
B82: Total Heat Gain from Roof | C82: =C26*C29/1000 -> 2.368 | D82: kW | T82: = | V82: kg/kg
B84: Air Infiltration during AC hours (8am to 6pm - 10 hours everyday)
B86: Inside Average Temp during AC hours | C86: =C56 -> 24 | D86: Celcius
A87: Iterated | B87: Inside Average Temp during None AC Hours | C87: =E87 -> 25.19980621 | D87: Celcius | E87: =C190 -> 25.19980621 | F87: Celcius
B88: Outside Average Humidity during AC hours | C88: =C13 -> 0.01817402242 | D88: kg/kg | E88: Fixed
B89: Inside Average Humidity during AC hours | C89: =C59 -> 0.01218784321 | D89: kg/kg
B90: Latent Heat of Vaporisation of Water at Atmos | C90: 2257.92 | D90: kJ/kg | E90: Fixed
B91: Air Density at Room Condition | C91: =rho_t_g(C86,C89) -> 1.165668607 | D91: kg/m3 | E91: Fixed
B92: Specific heat of air at Room Condition | C92: 1.005 | D92: kJ/kg.K | E92: Fixed
B93: Delta Humidity Ratio during AC hours | C93: =C88-C89 -> 0.005986179205 | D93: kg/kg
B94: Delta Temperature diff during AC hours | C94: =C11-C86 -> 5.3 | D94: Celcius
B95: Floor Area | C95: =C22 -> 1200 | D95: m2 | R95: = | S95: 1.005 | T95: kJ/kg.K
B97: Flow Rate of Infiltrated Air | C97: =C24*C64 -> 5700 | D97: m3/h | S97: = | T97: 1.205 | U97: kg/m3
B99: Min Fresh Air Flow Rate required for occupants | C99: =C68*C71 -> 660 | D99: l/s
B100: Min Fresh Air Flow Rate required for occupants | C100: =C99*3.6 -> 2376 | D100: m3/h
Q101: = | R101: =H100 -> 0
A102: No Control of Fresh Air Intake (Infiltration + Mech Fresh Air)
B104: Flow rate of Fresh air is | C104: =C100+C97 -> 8076 | D104: m3/h
B105: Flow rate of Fresh air is | C105: =C104/3.6 -> 2243.333333 | D105: l/s
B106: Flow rate of Fresh air is | C106: =C104/C$24 -> 1.416842105 | D106: ach
A107: Heat due to Fresh air intake
B108: Q sensible air intake (AC Hours) | C108: =C$92*C$91*C104*C$94/3600 -> 13.92870823 | D108: kW | E108: 10 | F108: hours
B109: Q sensible air intake (none AC Hours) | C109: =C$92*C$91*C104*(C$12-C$87)/3600 -> -1.05071398 | D109: kW | E109: 14 | F109: hours
B110: Nett Sensible air intake | C110: =((C108*10)+(C109*14))/10 -> 12.45770866 | D110: kW | E110: =C110*1000/C$22 -> 10.38142388 | F110: W/m2
B111: Q latent air intake (AC Hours) | C111: =C$90*C$91*C104*C$93/3600 -> 35.34493394 | D111: kW | E111: =C111*1000/C$22 -> 29.45411162 | F111: W/m2
A114: Control of Fresh Air Intake wt CO2 sensor
B116: Flow rate of Fresh air intake is | C116: =IF(C100>C97,C100,C97) -> 5700 | D116: m3/h
B117: Flow rate of Fresh air intake is | C117: =C116/3.6 -> 1583.333333 | D117: l/s
B118: Flow rate of Fresh air intake is | C118: =C116/C24 -> 1 | D118: ach
A119: Heat due to Fresh air intake
B120: Q sensible air intake (AC Hours) | C120: =C$92*C$91*C116*C$94/3600 -> 9.830811904 | D120: kW
B121: Q sensible air intake (none AC Hours) | C121: =C$92*C$91*C97*(C$12-C$87)/3600 -> -0.7415886192 | D121: kW
B122: Nett Sensible air intake | C122: =((C120*10)+(C121*14))/10 -> 8.792587837 | D122: kW | E122: =C122*1000/C$22 -> 7.327156531 | F122: W/m2
B123: Q latent air intake | C123: =C$90*C$91*C116*C$93/3600 -> 24.94627581 | D123: kW | E123: =C123*1000/C$22 -> 20.78856318 | F123: W/m2
B127: People Heat Gain
B129: Occupant Density | C129: =C67 -> 10 | D129: m2/person
B130: Floor Area | C130: =C22 -> 1200 | D130: m2
B131: No of Occupant | C131: =C130/C129 -> 120 | D131: persons
B132: People Sensible Heat | C132: =C69 -> 90 | D132: W/person
B133: People Latent Heat | C133: =C70 -> 60 | D133: W/person
B135: Total People Sensible Heat Gain | C135: =C132*C131/1000 -> 10.8 | D135: kW | E135: =C135*1000/C$22 -> 9 | F135: W/m2
B136: Total People Latent Heat Gain | C136: =C133*C131/1000 -> 7.2 | D136: kW | E136: =C136*1000/C$22 -> 6 | F136: W/m2
B140: Plug Load Heat Gain
B142: Plug Load Heat Gain during AC hours | C142: =C34 -> 10 | D142: W/m2 | E142: =C$9 -> 2700 | F142: hours | G142: =C142*E142*C144+C143*E143*C144 -> 39672000
B143: Plug Load Heat Gain during none AC hours | C143: =C35 -> 1 | D143: W/m2 | E143: =8760-E142 -> 6060 | F143: hours | G143: =G142/1000/1000 -> 39.672 | H143: MWh
B144: Floor Area | C144: =C130 -> 1200 | D144: m2
B146: Total Equip Sensible Heat Gain | C146: =(C142*C144*E142+C143*C144*E143)/1000/E142 -> 14.69333333 | D146: kW | E146: =C146*1000/C$22 -> 12.24444444 | F146: W/m2
B147: Occupant Density | C147: =C67 -> 10 | D147: m2/person
B148: No of Occupant | C148: =C144/C147 -> 120 | D148: persons
B149: Equip Heat Gain per person | C149: =C146*1000/C148 -> 122.4444444 | D149: W/person
B151: Heat Generated at night | C151: =C143*C144/1000 -> 1.2 | D151: kW
B154: Lighting Heat Gain
B156: Lighting Heat Gain during AC hours | C156: =C39 -> 7 | D156: W/m2 | E156: =C$9 -> 2700 | F156: hours
B157: Lighting Heat Gain during none AC hours | C157: =C40 -> 0.7 | D157: W/m2 | E157: =8760-E156 -> 6060 | F157: hours
B158: Floor Area | C158: =C144 -> 1200 | D158: m2
B159: Total Lighting Sensible Heat Gain | C159: =((C156*E156)+(C157*E157))/E156*C158/1000 -> 10.28533333 | D159: kW | E159: =C159*1000/C$22 -> 8.571111111 | F159: W/m2
B160: Daylighting | C160: ='Building Energy Proposed'!C160 -> 1 | D160: 1=Yes, 2=No
B161: Daylight Percentage | C161: ='Building Energy Proposed'!C161 -> 0.2
B162: Floor Area Not Daylighted | C162: =C22*(1-C161) -> 960 | D162: m2
B163: Floor Area Daylighted | C163: =C22*C161 -> 240 | D163: m2 | E163: =E156-E164 -> 810 | F163: hours | H163: =C7 -> 10 | I163: Hours per day
B164: Percentage of Daylight Hours during AC hours | C164: 0.7 | E164: =(C164)*H166 -> 1890 | F164: hours | G164: None Daylighted Hours | H164: =C8 -> 270 | I164: Work days per year
B165: Lighting Heat Gain during AC hours (None Daylight Area) | C165: =C162*C156*E156 -> 18144000 | D165: Wh | G165: Daylighted Hours | H165: =IF(H163>10,10,H163) -> 10 | I165: if condition
B166: Lighting Heat Gain during AC hours (Daylight Area) | C166: =C163*E163*C156 -> 1360800 | D166: Wh | H166: =H164*H165 -> 2700
B167: Average Lighting Heat Gain during AC hours | C167: =(C165+C166)/E156/C158 -> 6.02 | D167: W/m2 | E167: =E156 -> 2700 | F167: hours
B168: =B157 -> Lighting Heat Gain during none AC hours | C168: =C157 -> 0.7 | D168: W/m2 | E168: 6060 | F168: hours
B169: Floor Area | C169: =C158 -> 1200 | D169: m2
B170: Total Lighting Sensible Heat Gain wt Daylighting | C170: =((C167*E167)+(C168*E168))/E167*C169/1000 -> 9.109333333 | D170: kW | E170: =C170*1000/C$22 -> 7.591111111 | F170: W/m2
B171: Potential Saving Due to Daylighting | C171: =C159-C170 -> 1.176 | D171: kW | E171: 2900 | F171: hours
B173: Total Lighting Sensible Heat Gain | C173: =IF('Input Data'!D59=1,'BE 7.ACMV'!C170,'BE 7.ACMV'!C159) -> 9.109333333 | D173: kW | E173: =C173*1000/C$22 -> 7.591111111 | F173: W/m2
B174: Occupant Density | C174: =C147 -> 10 | D174: m2/person
B175: No of Occupant | C175: =C158/C174 -> 120 | D175: persons
B176: Equip Heat Gain per person | C176: =C173*1000/C175 -> 75.91111111 | D176: W/person
B178: Heat Generated at night | C178: =C157*C158/1000 -> 0.84 | D178: kW
B182: Estimated Average Night Temp
B183: Sensible (light+equip) heat | C183: =C178+C151 -> 2.04 | D183: kW
B184: Total Heat Internally Generated (excluding conduction) | C184: =(C178+C151+C121) -> 1.298411381 | D184: kW
B185: Volume of Air | C185: =C24 -> 5700 | D185: m3
B186: =B91 -> Air Density at Room Condition | C186: =C91 -> 1.165668607 | D186: kg/m3
B187: Specific heat of air at Room Condition | C187: =C92 -> 1.005 | D187: kJ/kg.K
B188: =B86 -> Inside Average Temp during AC hours | C188: =C86 -> 24 | D188: =D86 -> Celcius
B189: Delta Temp | C189: =C184/(C187*C186*C185/3600) -> 0.7000012192 | D189: deg Celcius
B190: Inside Average Temp during NON AC hours | C190: =nt_t(C12,C92,C91,C97,C183,C185,C86) -> 25.19980621 | D190: deg Celcius
B194: Total Cooling Load
B195: CO2 used? | C195: =C45 -> 0
B197: =B79 -> Total Heat Gain from Façade | C197: =C79 -> 50.09689111 | D197: =D79 -> kW
B198: =B82 -> Total Heat Gain from Roof | C198: =C82 -> 2.368 | D198: =D82 -> kW | G198: est from below
B199: =B108 -> Q sensible air intake (AC Hours) | C199: =IF(C195=1,C120,C108) -> 13.92870823 | D199: =D108 -> kW
B200: =B111 -> Q latent air intake (AC Hours) | C200: =IF(C195=1,C123,C111) -> 35.34493394 | D200: =D111 -> kW
B201: =B135 -> Total People Sensible Heat Gain | C201: =C135 -> 10.8 | D201: kW
B202: Total People Latent Heat Gain | C202: =C136 -> 7.2 | D202: kW
B203: =B146 -> Total Equip Sensible Heat Gain | C203: =C146 -> 14.69333333 | D203: =D146 -> kW
B204: =B173 -> Total Lighting Sensible Heat Gain | C204: =C173 -> 9.109333333 | D204: =D173 -> kW
A205: Iterated | B205: Total Fan Sensible Heat Gain | C205: =f_p(C207,C229,C230,C234,C225,C224) -> 3.75013113 | D205: kW | E205: =C242 -> 3.754782922
B207: Sum of Sensible excluding Fan | C207: =C197+C198+C199+C201+C203+C204 -> 100.996266 | D207: kW
B208: Total Average Load (AC hours) | C208: =SUM(C197:C205) -> 147.2913311 | D208: kW
B209: Latent Load | C209: =C200+C202 -> 42.54493394 | D209: kW
B210: Sensible Load | C210: =C208-C209 -> 104.7463971 | D210: kW | E210: =C207+C205 -> 104.7463971
B211: AC Load for full year | C211: =C208*C$9/1000 -> 397.6865939 | D211: MWh
B212: Cooling Index | C212: =C211*1000/C$22 -> 331.4054949 | D212: kWh/m2/year
B213: COSP | C213: =C$47 -> 3.63622
B214: Cooling Energy | C214: =C212/C213 -> 91.14011114 | D214: kWh/m2/year
B215: Cooling Energy | C215: =C214*C$22/1000 -> 109.3681334 | D215: MWh/year
B222: FAN Power Heat Gain - VAV system | G222: FAN Power Heat Gain - CAV system
B224: Combined Fan&Motor Efficiency | C224: =C50 -> 0.65 | D224: efficiency
B225: Static Pressure | C225: =C51 -> 350 | D225: Pa
B226: CO2 Used? | C226: =C45 -> 0
B227: =B86 -> Inside Average Temp during AC hours | C227: =C86 -> 24 | D227: =D86 -> Celcius
B228: Supply Air Temperature | C228: =C52 -> 13 | D228: Celcius | E228: Note: to reduce Chiller COP and room humidity if supply temp < 12 deg Celcius
B229: =B92 -> Specific heat of air at Room Condition | C229: =C92 -> 1.005 | D229: =D92 -> kJ/kg.K
B230: =B91 -> Air Density at Room Condition | C230: =C91 -> 1.165668607 | D230: =D91 -> kg/m3
B233: Total Average Sensible Load (AC hours) | C233: =C210 -> 104.7463971 | D233: kW
B234: Temperature Difference | C234: =C227-C228 -> 11 | D234: Celcius
B235: Volume to be cooled | C235: =C24 -> 5700 | D235: =D24 -> m3
B237: Flow Rate Required | C237: =C233*3600/(C229*C230*C234) -> 29262.25209 | D237: m3/h
B238: Flow Rate Required | C238: =C237/C235 -> 5.133728436 | D238: ach | E238: check figure
B239: Flow Rate Required | C239: =C237/3.6 -> 8128.403358 | D239: l/s
B240: Flow Rate Required | C240: =C237/3600 -> 8.128403358 | D240: m3/s
E241: Ave.
B242: Fan Power used | C242: =C240*C225/C224/1000/C230 -> 3.754782922 | D242: kW VAV | E242: =U12 -> 0.58 | G242: =B242 -> Fan Power used | H242: =C242/E242 -> 6.473763658 | I242: kW CAV
B247: Total Energy Use in Building
B248: =B226 -> CO2 Used? | C248: =C226 -> 0
B249: Cooling Energy | C249: =C215 -> 109.3681334 | D249: MWh/year
B250: Fan Energy | C250: =C242*C9/1000 -> 10.13791389 | D250: MWh/year
B251: Total Air-Conditioning Energy Used | C251: =C249+C250 -> 119.5060473 | D251: MWh/year
B253: Lighting Energy Used | C253: =C173*C9/1000 -> 24.5952 | D253: MWh/year
B254: Plug Load Energy Used | C254: =C146*C9/1000 -> 39.672 | D254: MWh/year
B255: Misc Load Energy Used | C255: =I16/1000 -> 14.3712 | D255: MWh/year
B257: Total Building Energy used | C257: =C251+C253+C254+C255 -> 198.1444473 | D257: =D254 -> MWh/year
B258: Building Energy Index | C258: =C257/C22*1000 -> 165.1203727 | D258: kWh/m2/year

Sheet BE 8.infil (hidden)
A1: Energy & Cooling Load Calculation based on Steady State Conditions
A2: Assumptions | O2: Calculation Method based on UK Guidance for the use of the Carbon Emissions Calculation Method
G3: Misc Loads | H3: Non AC hrs | I3: =8760-C9 -> 6060
G4: Elevators and Escalators | I4: kWh/year | J4: Input Data | K4: Diversity Factor | O4: Full Load Chiller COP | Q4: =C46 -> 4.4
A5: Operating Hours | G5: Elevators and Escalators during AC hours (kW/building) | H5: =J5*K5 -> 1.125 | I5: =H5*8760 -> 9855 | J5: ='Input Data'!C77 -> 25 | K5: =(0.3*0.15) -> 0.045 | O5: 50% Capacity COP | Q5: =Q4*5/6 -> 3.666666667 | R5: Base on GPG59, Effi. Of screw compressor, 60% full load power at 50% capacity.
G6: Elevators and Escalators during non AC hours (kW/building) | H6: 0 | I6: =H6*$I$3 -> 0
B7: Hours of Operation | C7: ='Input Data'!C17 -> 10 | D7: hours/day | G7: Hydraulic systems | O7: %total load | P7: Compressor 1 | Q7: Compressor 2 | R7: Overall CoP | S7: ARI weighting 1st approximation
B8: Working Days | C8: ='Input Data'!C18 -> 270 | D8: days/year | G8: Hydraulic systems during AC hours (kW/building) | H8: =J8*K8 -> 0.3 | I8: =H8*$C$9 -> 810 | J8: ='Input Data'!C79 -> 2 | K8: 0.15 | O8: 1 | P8: 1 | Q8: 1 | R8: =(0.5*Q4)+(0.5*Q4) -> 4.4 | S8: 0.01 | T8: =R8*S8 -> 0.044 | U8: =O8*S8 -> 0.01
B9: AC operating Hours | C9: =C7*C8 -> 2700 | D9: hours/year | G9: Hydraulic systems during non AC hours (kW/building) | H9: 0 | I9: =H9*$I$3 -> 0 | O9: 0.75 | P9: 1 | Q9: 0.5 | R9: =(0.67*Q4)+(0.33*Q5) -> 4.158 | S9: 0.42 | T9: 1.74636 | U9: 0.315
A10: Outside Conditions | G10: External lighting | L10: hours/day | M10: Days | O10: 0.5 | P10: 1 | Q10: 0 | R10: =1*Q4 -> 4.4 | S10: 0.45 | T10: 1.98 | U10: 0.225
B11: Outside Average Temp during AC hours | C11: 29.3 | D11: Celcius | E11: Fixed | G11: External lighting prorated (kW/building) | H11: =J11 -> 2 | I11: =H11*K11*L11*M11+H11*K12*L12*M12 -> 3706.2 | J11: ='Input Data'!C81 -> 2 | K11: 1 | L11: 5 | M11: 261 | N11: 7-midnite | O11: 0.25 | P11: 0.5 | Q11: 0 | R11: =1*Q5 -> 3.666666667 | S11: 0.12 | T11: 0.44 | U11: 0.03
B12: Outside Average Temp during None AC hours | C12: 24.8 | D12: Celcius | E12: Fixed | G12: External lighting during non AC hours (kW/building) | H12: 0 | I12: =H12*$I$3 -> 0 | K12: 0.3 | L12: 7 | M12: 261 | N12: mid-7am | S12: =SUM(S8:S11) -> 1 | T12: 4.21036 | U12: 0.58 | W12: =T12/Q4 -> 0.9569
B13: Outside Average Humidity during AC hours | C13: 0.01817402242 | D13: kg/kg | E13: Fixed | G13: Others
G14: Others during AC hours (kW/building) | H14: 0 | I14: =H14*$C$9 -> 0
G15: Others during non AC hours (kW/building) | H15: 0 | I15: =H15*$I$3 -> 0 | O15: COSP | P15: =(P20*P18)/(1+T18) -> 3.63622
H16: Total Misc | I16: =SUM(I5:I15) -> 14371.2
O17: CD | P17: 1 | S17: Dist Losses | T17: Heat Rejection Power
O18: Fdl | P18: =1-S18 -> 0.95 | Q18: distribution losses | S18: 0.05 | T18: ='Input Data'!D90 -> 0.1
A19: Input Data | G19: Results Summary | O19: Fhr | P19: =T18 -> 0.1 | Q19: heat rejection losses base on GPG256. Water Pump load at 22W/kW of rejected heat. Fan power of dry cooler 25 W/kW of rejected Heat.
H20: Total Energy Used | J20: % | K20: Energy Index | O20: CoPav | P20: =T12 -> 4.21036
A21: Building Data | G21: =B249 -> Cooling Energy | H21: 109.3681334 | I21: MWh/year | J21: =H21/H$29 -> 0.5519616365 | K21: =J21*K$30 -> 91.14011114 | L21: =L30 -> kWh/m2/year
B22: AC Floor Area | C22: ='Input Data'!C4 -> 1200 | D22: m2 | G22: Fan Energy | H22: 10.13791389 | I22: MWh/year | J22: 0.05116425935 | K22: 8.448261574 | L22: =L21 -> kWh/m2/year
B23: Floor to Floor height | C23: ='OTTV Baseline'!D4 -> 4.75 | D23: m | G23: Total Air-Conditioning Energy Used | H23: 119.5060473 | I23: MWh/year | J23: 0.6031258958 | K23: 99.58837271 | L23: kWh/m2/year | O23: CD*Fdl/CoPav | P23: =P17*P18/P20 -> 0.2256339125
B24: AC Volume | C24: =C22*C23 -> 5700 | D24: m3 | O24: (1+1/CoPav) | P24: =(1/P20)+1 -> 1.237509382
B25: Total AC External Wall Area | C25: ='OTTV Baseline'!D11 -> 1710 | D25: m2 | E25: ='OTTV Baseline'!D11 -> 1710 | F25: m2 | G25: =B253 -> Lighting Energy Used | H25: =C253 -> 24.5952 | I25: MWh/year | J25: =H25/H$29 -> 0.1241276268 | K25: =J25*K$30 -> 20.496 | L25: =L23 -> kWh/m2/year | O25: CD*FDS*Fhr*add | P25: =P17*P18*P24*P19 -> 0.1175633913
B26: Total AC Roof Area | C26: ='OTTV Baseline'!D8 -> 200 | D26: m2 | G26: Plug Load Energy Used | H26: 39.672 | I26: MWh/year | J26: =H26/H$29 -> 0.2002175713 | K26: 33.06 | L26: kWh/m2/year
G27: Misc Load Energy Used | H27: =I16/1000 -> 14.3712 | I27: MWh/year | J27: =C255/H$29 -> 0.07252890605 | K27: 11.976 | L27: kWh/m2/year
B28: Calculated OTTV | C28: ='Input Data'!D39 -> 29.29642755 | D28: W/m2 | E28: ='OTTV Baseline'!G3 -> 50.090105 | F28: W/m2
B29: Calculated RTTV | C29: ='Building Energy Proposed'!C29 -> 11.84 | D29: W/m2 | G29: =B257 -> Total Building Energy used | H29: 198.1444473 | I29: MWh/year
G30: Building Energy Index | K30: =C258 -> 165.1203727 | L30: =D258 -> kWh/m2/year
A33: Plug Load Heat Gain | G33: =G21 -> Cooling Energy | H33: =K21 -> 91.14011114 | I33: =L30 -> kWh/m2/year
B34: Plug Load Heat Gain during AC hours | C34: ='Input Data'!D67 -> 10 | D34: W/m2 | G34: =G22 -> Fan Energy | H34: =K22 -> 8.448261574 | I34: =I33 -> kWh/m2/year
B35: Plug Load Heat Gain during none AC hours | C35: ='Input Data'!D68 -> 1 | D35: W/m2 | G35: =G25 -> Lighting Energy Used | H35: =K25 -> 20.496 | I35: kWh/m2/year
B36: Total Heat Gain during AC hours | C36: =C34*C$22/1000 -> 12 | D36: kW | G36: =G26 -> Plug Load Energy Used | H36: =K26 -> 33.06 | I36: kWh/m2/year
B37: Total Heat Gain during None AC hours | C37: 1.2 | D37: kW
A38: Lighting Heat Gain
B39: Lighting Heat Gain during AC hours | C39: ='Input Data'!D56 -> 7 | D39: W/m2
B40: Lighting Heat Gain during none AC hours | C40: ='Input Data'!D57 -> 0.7 | D40: W/m2
B41: Total Heat Gain during AC hours | C41: 8.4 | D41: kW
B42: Total Heat Gain during None AC hours | C42: 0.84 | D42: kW
A44: System Used
B45: CO2 control of Fresh Air Inlet used? | C45: =IF('Input Data'!D92=1,1,0) -> 0 | D45: 1=yes, 0=no
B46: COP of chiller | C46: ='Input Data'!D89 -> 4.4
B47: COSP (Coefficient of System Performance) | C47: =P15 -> 3.63622
A49: Fan Data
B50: Combined Fan&Motor Efficiency | C50: ='Input Data'!D97 -> 0.65 | D50: efficiency
B51: Static Pressure | C51: ='Input Data'!D98 -> 350 | D51: Pa
B52: Supply Air Temperature (off coil temperature) | C52: 13 | D52: Celcius | E52: Fixed Data
A55: Indoor Air Conditions
B56: Indoor AC Temperature | C56: ='Input Data'!D94 -> 24 | D56: Celcius
B57: Indoor AC Relative Humidity | C57: ='Input Data'!D95 -> 0.65 | D57: Percentage
B58: =B57 -> Indoor AC Relative Humidity | C58: =C57*100 -> 65 | D58: %
B59: Indoor Abs Humidity Ratio (kg/kg) | C59: =g_t_rh(C56,C58) -> 0.01218784321 | D59: kg/kg
A63: Infiltration
B64: ACH | C64: ='Input Data'!D105 -> 1 | D64: ach
A66: Occupants Data
B67: Occupant Density | C67: ='Input Data'!C13 -> 10 | D67: m2/person
B68: No of Occupants | C68: =C95/C67 -> 120 | D68: persons
B69: People Sensible Heat per person | C69: 90 | D69: W/person
B70: People Latent Heat per person | C70: 60 | D70: W/person
B71: Min Fresh Air per person | C71: =C72*C22/C68+C73 -> 5.5 | D71: l/s/person
B72: ASHRAE 62. Area requirement | C72: 0.3 | D72: l/s/m2
B73: People requirement | C73: 2.5 | D73: l/s/person
A76: CALCULATION DATA | T76: latent heat of vaprorization of water (kJ/kg) at atmos | U76: = | V76: 2257.92
B78: OTTV Calculation (Fabric Heat Load) | T78: = | U78: =T97 -> 1.205
B79: Total Heat Gain from Façade | C79: =C25*C28/1000 -> 50.09689111 | D79: kW
T80: = | U80: air change rate
B81: RTTV Calculation (Roof Heat Load)
B82: Total Heat Gain from Roof | C82: =C26*C29/1000 -> 2.368 | D82: kW | T82: = | V82: kg/kg
B84: Air Infiltration during AC hours (8am to 6pm - 10 hours everyday)
B86: Inside Average Temp during AC hours | C86: =C56 -> 24 | D86: Celcius
A87: Iterated | B87: Inside Average Temp during None AC Hours | C87: =E87 -> 25.19980621 | D87: Celcius | E87: =C190 -> 25.19980621 | F87: Celcius
B88: Outside Average Humidity during AC hours | C88: =C13 -> 0.01817402242 | D88: kg/kg | E88: Fixed
B89: Inside Average Humidity during AC hours | C89: =C59 -> 0.01218784321 | D89: kg/kg
B90: Latent Heat of Vaporisation of Water at Atmos | C90: 2257.92 | D90: kJ/kg | E90: Fixed
B91: Air Density at Room Condition | C91: =rho_t_g(C86,C89) -> 1.165668607 | D91: kg/m3 | E91: Fixed
B92: Specific heat of air at Room Condition | C92: 1.005 | D92: kJ/kg.K | E92: Fixed
B93: Delta Humidity Ratio during AC hours | C93: =C88-C89 -> 0.005986179205 | D93: kg/kg
B94: Delta Temperature diff during AC hours | C94: =C11-C86 -> 5.3 | D94: Celcius
B95: Floor Area | C95: =C22 -> 1200 | D95: m2 | R95: = | S95: 1.005 | T95: kJ/kg.K
B97: Flow Rate of Infiltrated Air | C97: =C24*C64 -> 5700 | D97: m3/h | S97: = | T97: 1.205 | U97: kg/m3
B99: Min Fresh Air Flow Rate required for occupants | C99: =C68*C71 -> 660 | D99: l/s
B100: Min Fresh Air Flow Rate required for occupants | C100: =C99*3.6 -> 2376 | D100: m3/h
Q101: = | R101: =H100 -> 0
A102: No Control of Fresh Air Intake (Infiltration + Mech Fresh Air)
B104: Flow rate of Fresh air is | C104: =C100+C97 -> 8076 | D104: m3/h
B105: Flow rate of Fresh air is | C105: =C104/3.6 -> 2243.333333 | D105: l/s
B106: Flow rate of Fresh air is | C106: =C104/C$24 -> 1.416842105 | D106: ach
A107: Heat due to Fresh air intake
B108: Q sensible air intake (AC Hours) | C108: =C$92*C$91*C104*C$94/3600 -> 13.92870823 | D108: kW | E108: 10 | F108: hours
B109: Q sensible air intake (none AC Hours) | C109: =C$92*C$91*C104*(C$12-C$87)/3600 -> -1.05071398 | D109: kW | E109: 14 | F109: hours
B110: Nett Sensible air intake | C110: =((C108*10)+(C109*14))/10 -> 12.45770866 | D110: kW | E110: =C110*1000/C$22 -> 10.38142388 | F110: W/m2
B111: Q latent air intake (AC Hours) | C111: =C$90*C$91*C104*C$93/3600 -> 35.34493394 | D111: kW | E111: =C111*1000/C$22 -> 29.45411162 | F111: W/m2
A114: Control of Fresh Air Intake wt CO2 sensor
B116: Flow rate of Fresh air intake is | C116: =IF(C100>C97,C100,C97) -> 5700 | D116: m3/h
B117: Flow rate of Fresh air intake is | C117: =C116/3.6 -> 1583.333333 | D117: l/s
B118: Flow rate of Fresh air intake is | C118: =C116/C24 -> 1 | D118: ach
A119: Heat due to Fresh air intake
B120: Q sensible air intake (AC Hours) | C120: =C$92*C$91*C116*C$94/3600 -> 9.830811904 | D120: kW
B121: Q sensible air intake (none AC Hours) | C121: =C$92*C$91*C97*(C$12-C$87)/3600 -> -0.7415886192 | D121: kW
B122: Nett Sensible air intake | C122: =((C120*10)+(C121*14))/10 -> 8.792587837 | D122: kW | E122: =C122*1000/C$22 -> 7.327156531 | F122: W/m2
B123: Q latent air intake | C123: =C$90*C$91*C116*C$93/3600 -> 24.94627581 | D123: kW | E123: =C123*1000/C$22 -> 20.78856318 | F123: W/m2
B127: People Heat Gain
B129: Occupant Density | C129: =C67 -> 10 | D129: m2/person
B130: Floor Area | C130: =C22 -> 1200 | D130: m2
B131: No of Occupant | C131: =C130/C129 -> 120 | D131: persons
B132: People Sensible Heat | C132: =C69 -> 90 | D132: W/person
B133: People Latent Heat | C133: =C70 -> 60 | D133: W/person
B135: Total People Sensible Heat Gain | C135: =C132*C131/1000 -> 10.8 | D135: kW | E135: =C135*1000/C$22 -> 9 | F135: W/m2
B136: Total People Latent Heat Gain | C136: =C133*C131/1000 -> 7.2 | D136: kW | E136: =C136*1000/C$22 -> 6 | F136: W/m2
B140: Plug Load Heat Gain
B142: Plug Load Heat Gain during AC hours | C142: =C34 -> 10 | D142: W/m2 | E142: =C$9 -> 2700 | F142: hours | G142: =C142*E142*C144+C143*E143*C144 -> 39672000
B143: Plug Load Heat Gain during none AC hours | C143: =C35 -> 1 | D143: W/m2 | E143: =8760-E142 -> 6060 | F143: hours | G143: =G142/1000/1000 -> 39.672 | H143: MWh
B144: Floor Area | C144: =C130 -> 1200 | D144: m2
B146: Total Equip Sensible Heat Gain | C146: =(C142*C144*E142+C143*C144*E143)/1000/E142 -> 14.69333333 | D146: kW | E146: =C146*1000/C$22 -> 12.24444444 | F146: W/m2
B147: Occupant Density | C147: =C67 -> 10 | D147: m2/person
B148: No of Occupant | C148: =C144/C147 -> 120 | D148: persons
B149: Equip Heat Gain per person | C149: =C146*1000/C148 -> 122.4444444 | D149: W/person
B151: Heat Generated at night | C151: =C143*C144/1000 -> 1.2 | D151: kW
B154: Lighting Heat Gain
B156: Lighting Heat Gain during AC hours | C156: =C39 -> 7 | D156: W/m2 | E156: =C$9 -> 2700 | F156: hours
B157: Lighting Heat Gain during none AC hours | C157: =C40 -> 0.7 | D157: W/m2 | E157: =8760-E156 -> 6060 | F157: hours
B158: Floor Area | C158: =C144 -> 1200 | D158: m2
B159: Total Lighting Sensible Heat Gain | C159: =((C156*E156)+(C157*E157))/E156*C158/1000 -> 10.28533333 | D159: kW | E159: =C159*1000/C$22 -> 8.571111111 | F159: W/m2
B160: Daylighting | C160: ='Building Energy Proposed'!C160 -> 1 | D160: 1=Yes, 2=No
B161: Daylight Percentage | C161: ='Building Energy Proposed'!C161 -> 0.2
B162: Floor Area Not Daylighted | C162: =C22*(1-C161) -> 960 | D162: m2
B163: Floor Area Daylighted | C163: =C22*C161 -> 240 | D163: m2 | E163: =E156-E164 -> 810 | F163: hours | H163: =C7 -> 10 | I163: Hours per day
B164: Percentage of Daylight Hours during AC hours | C164: 0.7 | E164: =(C164)*H166 -> 1890 | F164: hours | G164: None Daylighted Hours | H164: =C8 -> 270 | I164: Work days per year
B165: Lighting Heat Gain during AC hours (None Daylight Area) | C165: =C162*C156*E156 -> 18144000 | D165: Wh | G165: Daylighted Hours | H165: =IF(H163>10,10,H163) -> 10 | I165: if condition
B166: Lighting Heat Gain during AC hours (Daylight Area) | C166: =C163*E163*C156 -> 1360800 | D166: Wh | H166: =H164*H165 -> 2700
B167: Average Lighting Heat Gain during AC hours | C167: =(C165+C166)/E156/C158 -> 6.02 | D167: W/m2 | E167: =E156 -> 2700 | F167: hours
B168: =B157 -> Lighting Heat Gain during none AC hours | C168: =C157 -> 0.7 | D168: W/m2 | E168: 6060 | F168: hours
B169: Floor Area | C169: =C158 -> 1200 | D169: m2
B170: Total Lighting Sensible Heat Gain wt Daylighting | C170: =((C167*E167)+(C168*E168))/E167*C169/1000 -> 9.109333333 | D170: kW | E170: =C170*1000/C$22 -> 7.591111111 | F170: W/m2
B171: Potential Saving Due to Daylighting | C171: =C159-C170 -> 1.176 | D171: kW | E171: 2900 | F171: hours
B173: Total Lighting Sensible Heat Gain | C173: =IF('Input Data'!D59=1,'BE 8.infil'!C170,'BE 8.infil'!C159) -> 9.109333333 | D173: kW | E173: =C173*1000/C$22 -> 7.591111111 | F173: W/m2
B174: Occupant Density | C174: =C147 -> 10 | D174: m2/person
B175: No of Occupant | C175: =C158/C174 -> 120 | D175: persons
B176: Equip Heat Gain per person | C176: =C173*1000/C175 -> 75.91111111 | D176: W/person
B178: Heat Generated at night | C178: =C157*C158/1000 -> 0.84 | D178: kW
B182: Estimated Average Night Temp
B183: Sensible (light+equip) heat | C183: =C178+C151 -> 2.04 | D183: kW
B184: Total Heat Internally Generated (excluding conduction) | C184: =(C178+C151+C121) -> 1.298411381 | D184: kW
B185: Volume of Air | C185: =C24 -> 5700 | D185: m3
B186: =B91 -> Air Density at Room Condition | C186: =C91 -> 1.165668607 | D186: kg/m3
B187: Specific heat of air at Room Condition | C187: =C92 -> 1.005 | D187: kJ/kg.K
B188: =B86 -> Inside Average Temp during AC hours | C188: =C86 -> 24 | D188: =D86 -> Celcius
B189: Delta Temp | C189: =C184/(C187*C186*C185/3600) -> 0.7000012192 | D189: deg Celcius
B190: Inside Average Temp during NON AC hours | C190: =nt_t(C12,C92,C91,C97,C183,C185,C86) -> 25.19980621 | D190: deg Celcius
B194: Total Cooling Load
B195: CO2 used? | C195: =C45 -> 0
B197: =B79 -> Total Heat Gain from Façade | C197: =C79 -> 50.09689111 | D197: =D79 -> kW
B198: =B82 -> Total Heat Gain from Roof | C198: =C82 -> 2.368 | D198: =D82 -> kW | G198: est from below
B199: =B108 -> Q sensible air intake (AC Hours) | C199: =IF(C195=1,C120,C108) -> 13.92870823 | D199: =D108 -> kW
B200: =B111 -> Q latent air intake (AC Hours) | C200: =IF(C195=1,C123,C111) -> 35.34493394 | D200: =D111 -> kW
B201: =B135 -> Total People Sensible Heat Gain | C201: =C135 -> 10.8 | D201: kW
B202: Total People Latent Heat Gain | C202: =C136 -> 7.2 | D202: kW
B203: =B146 -> Total Equip Sensible Heat Gain | C203: =C146 -> 14.69333333 | D203: =D146 -> kW
B204: =B173 -> Total Lighting Sensible Heat Gain | C204: =C173 -> 9.109333333 | D204: =D173 -> kW
A205: Iterated | B205: Total Fan Sensible Heat Gain | C205: =f_p(C207,C229,C230,C234,C225,C224) -> 3.75013113 | D205: kW | E205: =C242 -> 3.754782922
B207: Sum of Sensible excluding Fan | C207: =C197+C198+C199+C201+C203+C204 -> 100.996266 | D207: kW
B208: Total Average Load (AC hours) | C208: =SUM(C197:C205) -> 147.2913311 | D208: kW
B209: Latent Load | C209: =C200+C202 -> 42.54493394 | D209: kW
B210: Sensible Load | C210: =C208-C209 -> 104.7463971 | D210: kW | E210: =C207+C205 -> 104.7463971
B211: AC Load for full year | C211: =C208*C$9/1000 -> 397.6865939 | D211: MWh
B212: Cooling Index | C212: =C211*1000/C$22 -> 331.4054949 | D212: kWh/m2/year
B213: COSP | C213: =C$47 -> 3.63622
B214: Cooling Energy | C214: =C212/C213 -> 91.14011114 | D214: kWh/m2/year
B215: Cooling Energy | C215: =C214*C$22/1000 -> 109.3681334 | D215: MWh/year
B222: FAN Power Heat Gain - VAV system | G222: FAN Power Heat Gain - CAV system
B224: Combined Fan&Motor Efficiency | C224: =C50 -> 0.65 | D224: efficiency
B225: Static Pressure | C225: =C51 -> 350 | D225: Pa
B226: CO2 Used? | C226: =C45 -> 0
B227: =B86 -> Inside Average Temp during AC hours | C227: =C86 -> 24 | D227: =D86 -> Celcius
B228: Supply Air Temperature | C228: =C52 -> 13 | D228: Celcius | E228: Note: to reduce Chiller COP and room humidity if supply temp < 12 deg Celcius
B229: =B92 -> Specific heat of air at Room Condition | C229: =C92 -> 1.005 | D229: =D92 -> kJ/kg.K
B230: =B91 -> Air Density at Room Condition | C230: =C91 -> 1.165668607 | D230: =D91 -> kg/m3
B233: Total Average Sensible Load (AC hours) | C233: =C210 -> 104.7463971 | D233: kW
B234: Temperature Difference | C234: =C227-C228 -> 11 | D234: Celcius
B235: Volume to be cooled | C235: =C24 -> 5700 | D235: =D24 -> m3
B237: Flow Rate Required | C237: =C233*3600/(C229*C230*C234) -> 29262.25209 | D237: m3/h
B238: Flow Rate Required | C238: =C237/C235 -> 5.133728436 | D238: ach | E238: check figure
B239: Flow Rate Required | C239: =C237/3.6 -> 8128.403358 | D239: l/s
B240: Flow Rate Required | C240: =C237/3600 -> 8.128403358 | D240: m3/s
E241: Ave.
B242: Fan Power used | C242: =C240*C225/C224/1000/C230 -> 3.754782922 | D242: kW VAV | E242: =U12 -> 0.58 | G242: =B242 -> Fan Power used | H242: =C242/E242 -> 6.473763658 | I242: kW CAV
B247: Total Energy Use in Building
B248: =B226 -> CO2 Used? | C248: =C226 -> 0
B249: Cooling Energy | C249: =C215 -> 109.3681334 | D249: MWh/year
B250: Fan Energy | C250: =C242*C9/1000 -> 10.13791389 | D250: MWh/year
B251: Total Air-Conditioning Energy Used | C251: =C249+C250 -> 119.5060473 | D251: MWh/year
B253: Lighting Energy Used | C253: =C173*C9/1000 -> 24.5952 | D253: MWh/year
B254: Plug Load Energy Used | C254: =C146*C9/1000 -> 39.672 | D254: MWh/year
B255: Misc Load Energy Used | C255: =I16/1000 -> 14.3712 | D255: MWh/year
B257: Total Building Energy used | C257: =C251+C253+C254+C255 -> 198.1444473 | D257: =D254 -> MWh/year
B258: Building Energy Index | C258: =C257/C22*1000 -> 165.1203727 | D258: kWh/m2/year

Sheet Menu (hidden)
A2: Orientation | B2: CF | E2: Roof Type | F2: Tdeq | I2: Yes/No | J2: Number
A3: North | B3: 0.9 | E3: Light Weight | F3: 24 | I3: Yes | J3: 1 | V3: Between | AA3: OTTV Very High remarks
A4: Northeast | B4: 1.09 | E4: Heavy Weight | F4: 20 | I4: No | J4: 0 | U4: OTTV (W/m2) | V4: Low number | W4: High Number
A5: East | B5: 1.23 | U5: Very High | V5: > | W5: 55
A6: Southeast | B6: 1.13 | U6: High | V6: 45 | W6: 55
A7: South | B7: 0.92 | I7: Yes/No | J7: Message | U7: Medium | V7: 35 | W7: 45
A8: Southwest | B8: 0.9 | I8: Yes | J8: Data below is used for façades in all 4 orientations | U8: Low | V8: < | W8: 35
A9: West | B9: 0.94 | I9: No | J9: Data in OTTV Folder is used for each façade orientation. Will NOT use data below ! | AA9: OTTV High remarks
A10: Northwest | B10: 0.9 | U10: RTTV (W/m2)
A11: North | B11: 0.9 | I11: Yes/No | J11: Message | U11: Very High | V11: > | W11: 25
A12: Northeast | B12: 1.09 | I12: Yes | J12: OTTV cals is based on same data input for all 4 façades. | U12: High | V12: 19 | W12: 25
A13: East | B13: 1.23 | I13: No | J13: Please remember to use Folder OTTV Baseline & Proposed to compute OTTV here! | U13: Medium | V13: 12 | W13: 19
A14: Southeast | B14: 1.13 | U14: Low | V14: < | W14: 12 | AA14: OTTV Medium remarks
A15: South | B15: 0.92
A16: Southwest | B16: 0.9 | J16: Message | U16: Lighting (kWh/m2/year)
A17: West | B17: 0.94 | J17: OTTV cals is DEPENDENT on This Page input | U17: Very High | V17: > | W17: 60
A18: Northwest | B18: 0.9 | J18: OTTV cals is NOT DEPENDENT on This Page input | U18: High | V18: 50 | W18: 60
U19: Medium | V19: 40 | W19: 50 | AA19: OTTV Low remarks
J20: NA | U20: Low | V20: < | W20: =V19 -> 40
J21: Free
U22: Plug Load (kWh/m2/year)
U23: Very High | V23: > | W23: 60
U24: High | V24: 50 | W24: 60
O25: very high | U25: Medium | V25: 40 | W25: 50
B26: x | C26: y | O26: high | U26: Low | V26: < | W26: =V25 -> 40
B27: 0 | C27: 0 | O27: moderate
B28: ='Input Data'!$C$10 -> 20 | C28: 0 | O28: low | U28: ACMV (kWh/m2/year)
B29: =B28 -> 20 | C29: ='Input Data'!$C$11 -> 10 | O29: very low | U29: Very High | V29: > | W29: =W30 -> 140 | X29: =W29+W23+W17 -> 260
B30: 0 | C30: =C29 -> 10 | U30: High | V30: 120 | W30: 140 | X30: =V30+V24+V18 -> 220
B31: 0 | C31: 0 | U31: Medium | V31: 70 | W31: 115 | X31: =V31+V25+V19 -> 150
B32: =MAX(B27:B31) -> 20 | C32: =MAX(C27:C31) -> 10 | U32: Low | V32: < | W32: =V31 -> 70
B33: =B32/200 -> 0.1 | C33: =C32/200 -> 0.05
B34: =MAX(B33:C33) -> 0.1 | U34: Infiltration (ach)
C35: Local North | U35: Very High | V35: > | W35: 1.2
B36: =B27/$B$34 -> 0 | C36: 0 | U36: High | V36: 0.7 | W36: 1.2
B37: 200 | C37: 0 | U37: Medium | V37: 0.3 | W37: 0.7
B38: 200 | C38: 100 | U38: Low | V38: < | W38: =V37 -> 0.3
B39: 0 | C39: 100
B40: 0 | C40: 0 | U40: BEI
U41: Very High | V41: > | W41: 260
U42: High | V42: 220 | W42: 260
U43: Medium | V43: 150 | W43: 220
U44: Low | V44: < | W44: =V43 -> 150
B45: North | C45: =IF('Input Data'!$C$8=Menu!D45,50,0) -> 50 | D45: 1
B46: North-East | C46: =IF('Input Data'!$C$8=Menu!D46,50,0) -> 0 | D46: 2
B47: East | C47: =IF('Input Data'!$C$8=Menu!D47,50,0) -> 0 | D47: 3
B48: South-East | C48: =IF('Input Data'!$C$8=Menu!D48,50,0) -> 0 | D48: 4
B49: South | C49: =IF('Input Data'!$C$8=Menu!D49,50,0) -> 0 | D49: 5 | T49: 1 | U49: Summary
B50: South-West | C50: =IF('Input Data'!$C$8=Menu!D50,50,0) -> 0 | D50: 6 | U50: kWh/m2/year represents a building with very high energy consumption.
B51: West | C51: =IF('Input Data'!$C$8=Menu!D51,50,0) -> 0 | D51: 7 | U51: kWh/m2/year represents a building with high energy consumption.
B52: North-West | C52: =IF('Input Data'!$C$8=Menu!D52,50,0) -> 0 | D52: 8 | U52: kWh/m2/year represents a building with average energy consumption.
U53: kWh/m2/year represents a building with low energy consumption.
T55: 2 | U55: BEI
U56: kWh/m2/year represents a building with very high energy consumption.
U57: kWh/m2/year represents a building with high energy consumption.
U58: kWh/m2/year represents a building with average energy consumption.
U59: kWh/m2/year represents a building with low energy consumption.
T61: 3 | U61: OTTV 1
U62: W/m2 indicates a building with very poor façade insulation.
U63: W/m2 indicates a building with poor façade insulation.
U64: W/m2 indicates a building with average façade insulation.
U65: W/m2 indicates a building with good façade insulation.
T67: 3 | U67: OTTV 2
U68: be made with improved glazing properties, shading, lighter colour of walls and wall insulation.
T71: 4 | U71: RTTV 1
U72: W/m2 indicates a roof that is very poorly insulated. Increasing insulation of the roof is
U73: W/m2 indicates a roof that is poorly insulated. Increasing insulation of the roof is
U74: W/m2 indicates a roof that is averagely insulated. Increasing insulation of the roof is
U75: W/m2 indicates a roof that is well insulated.
U77: RTTV 2
U78: recommended.
U79: -
T81: 5 | U81: Lighting 1
U82: kWh/m2/year indicates very high energy use by lighting in the building.
U83: kWh/m2/year indicates high energy use by lighting in the building.
U84: kWh/m2/year indicates average energy use by lighting in the building.
U85: kWh/m2/year indicates low energy use by lighting in the building.
U87: Lighting 2
U88: building. It is possible to reduce lighting energy use in this building by recircuiting switches, delamping,
U89: building.
U90: Lighting 3
U91: retrofitting with higher performance lamps and use of daylighting.
T94: 6 | U94: Plug Load 1
U95: kWh/m2/year indicates very high energy use of plug loads in the building.
U96: kWh/m2/year indicates high energy use of plug loads in the building.
U97: kWh/m2/year indicate average energy use of plug loads in the building.
U98: kWh/m2/year indicates low energy use of plug loads in the building.
U100: Plug Load 2
U101: building. It is possible to reduce plug loads by careful management of equipment in the building,
U102: building.
U104: Plug Load 3
U105: ensuring that only equipment in need are switched on while others are properly switched off. Further
U108: Plug Load 4
U109: improvement can be made such as replacing high energy consuming equipment with low energy consuming
U112: Plug Load 5
U113: equipment.
T116: 7 | U116: ACMV 1
U117: kWh/m2/year indicates very high energy use by cooling system
U118: kWh/m2/year indicates high energy use by cooling system
U119: kWh/m2/year indicates average energy use by cooling system
U120: kWh/m2/year indicates low energy use by cooling system
U122: ACMV 2
U123: serving the building. It is possible to reduce energy use of the cooling system by installing EE chiller/s, improve
U124: in the building.
U125: -
U126: ACMV 3
U127: fan efficiency, reduce fan static pressure by enlarging the duct or reducing cooling load, reducing infiltration,
U130: ACMV 4
U131: use of CO2 sensor/s to control fresh air inlet and etc.

Sheet Uvalues Walls
A1: U-values of Typical Wall Constructions - Type 1 | F1: U-values of Typical Wall Constructions - Type 2
A3: BRICK WALL | F3: ALUMINIUM COMPOSITE PANELS & BRICK WALL
A4: Component (outside to inside) | B4: Thickness | C4: Conducitvity | D4: Resistance | F4: Component (outside to inside) | G4: Thickness | H4: Conducitvity | I4: Resistance
B5: mm | C5: w/(m.K) | D5: T/C | G5: mm | H5: w/(m.K) | I5: T/C
A7: Outside Surface Resistance | D7: 0.04 | F7: Outside Surface Resistance | I7: 0.04
A8: Cement sand plaster | B8: 12 | C8: 0.533 | D8: =B8/1000/C8 -> 0.02251407129 | F8: Aluminium Composite | G8: 4 | H8: 211 | I8: =G8/1000/H8 -> 1.895734597e-05
A9: Brickwall (dry) | B9: 115 | C9: 0.807 | D9: 0.1425030979 | F9: Air gap | I9: 0.16
A10: Cement sand plaster | B10: 12 | C10: 0.533 | D10: 0.02251407129 | F10: Brickwall (dry) | G10: 115 | H10: 0.807 | I10: 0.1425030979
A11: Inside Surface Resistance | D11: 0.13 | F11: Cement sand plaster | G11: 12 | H11: 0.533 | I11: 0.02251407129
A12: Total Thermal resistance | D12: =SUM(D7:D11) -> 0.3575312405 | F12: Inside Surface Resistance | I12: 0.13
A13: U-value (W/m2K) | D13: =1/D12 -> 2.796958382 | F13: Total Thermal resistance | I13: =SUM(I7:I12) -> 0.4950361265
F14: U-value (W/m2K) | I14: =1/I13 -> 2.020054591
A16: BRICK WALL WITH INSIDE INSULATION
A17: Component (outside to inside) | B17: Thickness | C17: Conducitvity | D17: Resistance | F17: ALUMINIUM COMPOSITE PANEL WITH INSIDE INSULATION
B18: mm | C18: w/(m.K) | D18: T/C | F18: Component (outside to inside) | G18: Thickness | H18: Conducitvity | I18: Resistance
G19: mm | H19: w/(m.K) | I19: T/C
A20: Outside Surface Resistance | D20: 0.04
A21: Mosaic tiles | B21: 12 | C21: 1.298 | D21: =B21/1000/C21 -> 0.009244992296 | F21: Outside Surface Resistance | I21: 0.04
A22: Brickwall (dry) | B22: 115 | C22: 0.807 | D22: 0.1425030979 | F22: Aluminium Composite | G22: 4 | H22: 211 | I22: =G22/1000/H22 -> 1.895734597e-05
A23: Cement sand plaster | B23: 12 | C23: 0.533 | D23: 0.02251407129 | F23: Air gap | I23: 0.16
A24: Fiberglass | B24: 50 | C24: 0.035 | D24: 1.428571429 | F24: Fiberglass | G24: 75 | H24: 0.035 | I24: 2.142857143
A25: Gypsum Board | B25: 12 | C25: 0.17 | D25: 0.07058823529 | F25: Gypsum Board | G25: 12 | H25: 0.17 | I25: 0.07058823529
A26: Inside Surface Resistance | D26: 0.13 | F26: Inside Surface Resistance | I26: 0.13
A27: Total Thermal resistance | D27: =SUM(D20:D26) -> 1.843421825 | F27: Total Thermal resistance | I27: =SUM(I21:I26) -> 2.543464335
A28: U-value (W/m2K) | D28: =1/D27 -> 0.5424694371 | F28: U-value (W/m2K) | I28: =1/I27 -> 0.3931645457
A31: CONCRETE BEAM / WALL | F31: LIGHTWEIGHT BLOCK WALL
A32: Component (outside to inside) | B32: Thickness | C32: Conducitvity | D32: Resistance | F32: Component (outside to inside) | G32: Thickness | H32: Conducitvity | I32: Resistance
B33: mm | C33: w/(m.K) | D33: T/C | G33: mm | H33: w/(m.K) | I33: T/C
A35: Outside Surface Resistance | D35: 0.04 | F35: Outside Surface Resistance | I35: 0.04
A36: Cement sand plaster | B36: 12 | C36: 0.533 | D36: =B36/1000/C36 -> 0.02251407129 | F36: Cement sand plaster | G36: 12 | H36: 0.533 | I36: =G36/1000/H36 -> 0.02251407129
A37: Reinforced Concrete | B37: 250 | C37: 1.442 | D37: 0.173370319 | F37: Lightweight Blocks 64 kg/m3 | G37: 150 | H37: 0.144 | I37: 1.041666667
A38: Cement sand plaster | B38: 12 | C38: 0.533 | D38: 0.02251407129 | F38: Cement sand plaster | G38: 12 | H38: 0.533 | I38: 0.02251407129
A39: Inside Surface Resistance | D39: 0.13 | F39: Inside Surface Resistance | I39: 0.13
A40: Total Thermal resistance | D40: =SUM(D35:D39) -> 0.3883984616 | F40: Total Thermal resistance | I40: =SUM(I35:I39) -> 1.256694809
A41: U-value (W/m2K) | D41: =1/D40 -> 2.574675492 | F41: U-value (W/m2K) | I41: =1/I40 -> 0.7957381479
A44: SINGLE GLAZED WINDOW
A45: Component (outside to inside) | B45: Thickness | C45: Conducitvity | D45: Resistance
B46: mm | C46: w/(m.K) | D46: T/C
A48: Outside Surface Resistance | D48: 0.04
A49: Glass | B49: 12 | C49: 1.053 | D49: =B49/1000/C49 -> 0.0113960114
A50: Inside Surface Resistance | D50: 0.13
A51: Total Thermal resistance | D51: =SUM(D48:D50) -> 0.1813960114
A52: U-value (W/m2K) | D52: =1/D51 -> 5.512800377
A55: DOUBLE GLAZED WINDOW
A56: Component (outside to inside) | B56: Thickness | C56: Conducitvity | D56: Resistance
B57: mm | C57: w/(m.K) | D57: T/C
A59: Outside Surface Resistance | D59: 0.04
A60: Outside Glass | B60: 12 | C60: 1.053 | D60: =B60/1000/C60 -> 0.0113960114
A61: Air gap | D61: 0.16
A62: Inside Glass | B62: 6 | C62: 1.053 | D62: =B62/1000/C62 -> 0.005698005698
A63: Inside Surface Resistance | D63: 0.13
A64: Total Thermal resistance | D64: =SUM(D59:D63) -> 0.3470940171
A65: U-value (W/m2K) | D65: =1/D64 -> 2.881063777

Sheet UvaluesRoof
A1: U-values of Typical Roof Constructions
A3: CONCRETE ROOF TILES
A4: Component (outside to inside) | B4: Thickness | C4: Conducitvity | D4: Resistance
B5: mm | C5: w/(m.K) | D5: T/C
A7: Outside Surface Resistance | D7: 0.044
A8: Roof tile | B8: 12 | C8: 0.836 | D8: =B8/1000/C8 -> 0.01435406699
A9: Inside Surface Resistance | D9: 0.16
A10: Total Thermal resistance | D10: =SUM(D7:D9) -> 0.218354067
A11: U-value (W/m2K) | D11: =1/D10 -> 4.579717767
A14: CONCRETE ROOF TILES WITH INSULATION
A15: Component (outside to inside) | B15: Thickness | C15: Conducitvity | D15: Resistance
B16: mm | C16: w/(m.K) | D16: T/C
A18: Outside Surface Resistance | D18: 0.044
A19: Roof tile | B19: 12 | C19: 0.836 | D19: =B19/1000/C19 -> 0.01435406699
A20: Air space | D20: 0.09
A21: Fiberglass | B21: 80 | C21: 0.035 | D21: 2.285714286
A22: Inside Surface Resistance | D22: 0.16
A23: Total Thermal resistance | D23: =SUM(D18:D22) -> 2.594068353
A24: U-value (W/m2K) | D24: =1/D23 -> 0.3854948537
A27: CONCRETE SLAB ROOF
A28: Component (outside to inside) | B28: Thickness | C28: Conducitvity | D28: Resistance
B29: mm | C29: w/(m.K) | D29: T/C
A31: Outside Surface Resistance | D31: 0.044
A32: Cement sand screed | B32: 25 | C32: 0.533 | D32: =B32/1000/C32 -> 0.0469043152
A33: Reinforced Concrete slab | B33: 100 | C33: 1.442 | D33: 0.0693481276
A34: Inside Surface Resistance | D34: 0.16
A35: Total Thermal resistance | D35: =SUM(D31:D34) -> 0.3202524428
A36: U-value (W/m2K) | D36: =1/D35 -> 3.122536682
A39: CONCRETE SLAB ROOF WITH INSULATION
A40: Component (outside to inside) | B40: Thickness | C40: Conducitvity | D40: Resistance
B41: mm | C41: w/(m.K) | D41: T/C
A43: Outside Surface Resistance | D43: 0.044
A44: Cement sand screed | B44: 25 | C44: 0.533 | D44: =B44/1000/C44 -> 0.0469043152
A45: Polystyrene Foam | B45: 100 | C45: 0.035 | D45: 2.857142857
A46: Bitumen Felt Layer | B46: 5 | C46: 0.5 | D46: 0.01
A47: Reinforced Concrete slab | B47: 100 | C47: 1.442 | D47: 0.0693481276
A48: Inside Surface Resistance | D48: 0.16
A49: Total Thermal resistance | D49: =SUM(D43:D48) -> 3.1873953
A50: U-value (W/m2K) | D50: =1/D49 -> 0.3137357955

Sheet SCglass
A1: GLASS SHADING COFFICIENTS & U-VALUES
A3: SHGC (Solar Heat Gain Coefficient)
A4: COLOUR | B4: TINTED | C4: SOLAR CONTROL | D4: U-value | E4: U-value(with Eclad)
A5: Clear | B5: 0.7 | C5: 0.54 | D5: 0.58 | E5: 0.35
A6: Grey | B6: 0.45 | C6: 0.33 | D6: 0.58 | E6: 0.35
A7: Bronze | B7: 0.5 | C7: 0.38 | D7: 0.58 | E7: 0.35
A8: Blue-Green | B8: 0.5 | C8: 0.38 | D8: 0.58 | E8: 0.35
A9: Artic Blue | B9: 0.4 | C9: 0.3 | D9: 0.58 | E9: 0.35
A10: Evergreen | B10: 0.39 | C10: 0.29 | D10: 0.58 | E10: 0.35
A13: SC=SHGC/0.87
A14: COLOUR | B14: TINTED | C14: SOLAR CONTROL | D14: U-value | E14: U-value(with Eclad)
A15: Clear | B15: =B5/0.87 -> 0.8045977011 | C15: =C5/0.87 -> 0.6206896552 | D15: 0.58 | E15: 0.35
A16: Grey | B16: =B6/0.87 -> 0.5172413793 | C16: 0.3793103448 | D16: 0.58 | E16: 0.35
A17: Bronze | B17: 0.5747126437 | C17: 0.4367816092 | D17: 0.58 | E17: 0.35
A18: Blue-Green | B18: 0.5747126437 | C18: 0.4367816092 | D18: 0.58 | E18: 0.35
A19: Artic Blue | B19: 0.4597701149 | C19: 0.3448275862 | D19: 0.58 | E19: 0.35
A20: Evergreen | B20: 0.4482758621 | C20: 0.3333333333 | D20: 0.58 | E20: 0.35
A22: Note:
A23: 1. Above are general indicative values only as extracted from one typical glass manufacturer
A24: 2. For exact values, please refer to individual glass manufacturer

Sheet Shading CF (hidden)
B4: Horizontal Projection Table 5 (MS 1525)
C5: North/South | D5: East | E5: West | F5: Northeast/ Southeast | G5: Northwest / Southwest | J5: 4 Direction Only
B6: R1 | J6: R1 | K6: ='OTTV Baseline'!D14 -> North | L6: ='OTTV Baseline'!E14 -> South | M6: ='OTTV Baseline'!F14 -> East | N6: ='OTTV Baseline'!G14 -> West | R6: R1 | S6: North | T6: Northeast | U6: East | V6: Southeast | W6: South | X6: Southwest | Y6: West | Z6: Northwest | AA6: North | AB6: Northeast | AC6: East | AD6: Southeast | AE6: South | AF6: Southwest | AG6: West | AH6: Northwest
B7: 0 | C7: 1 | D7: 1 | E7: 1 | F7: 1 | G7: 1 | J7: =R7 -> 0 | K7: =INDEX($S7:$AH7,'OTTV Baseline'!$D$6) -> 1 | L7: =INDEX($S7:$AH7,'OTTV Baseline'!$D$6+4) -> 1 | M7: =INDEX($S7:$AH7,'OTTV Baseline'!$D$6+2) -> 1 | N7: =INDEX($S7:$AH7,'OTTV Baseline'!$D$6+6) -> 1 | R7: =B7 -> 0 | S7: 1 | T7: =F7 -> 1 | U7: =D7 -> 1 | V7: 1 | W7: =C7 -> 1 | X7: =G7 -> 1 | Y7: =E7 -> 1 | Z7: =G7 -> 1 | AA7: =S7 -> 1 | AB7: =T7 -> 1 | AC7: 1 | AD7: 1 | AE7: 1 | AF7: 1 | AG7: 1 | AH7: 1
B8: 0.3 | C8: 0.77 | D8: 0.77 | E8: 0.79 | F8: 0.77 | G8: 0.79 | J8: =R8 -> 0.3 | K8: =INDEX($S8:$AH8,'OTTV Baseline'!$D$6) -> 0.77 | L8: =INDEX($S8:$AH8,'OTTV Baseline'!$D$6+4) -> 0.77 | M8: =INDEX($S8:$AH8,'OTTV Baseline'!$D$6+2) -> 0.77 | N8: =INDEX($S8:$AH8,'OTTV Baseline'!$D$6+6) -> 0.79 | R8: =B8 -> 0.3 | S8: =C8 -> 0.77 | T8: =F8 -> 0.77 | U8: =D8 -> 0.77 | V8: =F8 -> 0.77 | W8: =C8 -> 0.77 | X8: =G8 -> 0.79 | Y8: =E8 -> 0.79 | Z8: =G8 -> 0.79 | AA8: =S8 -> 0.77 | AB8: =T8 -> 0.77 | AC8: =U8 -> 0.77 | AD8: =V8 -> 0.77 | AE8: =W8 -> 0.77 | AF8: =X8 -> 0.79 | AG8: =Y8 -> 0.79 | AH8: =Z8 -> 0.79
B9: 0.4 | C9: 0.77 | D9: 0.77 | E9: 0.79 | F9: 0.77 | G9: 0.79 | J9: 0.4 | K9: =INDEX($S9:$AH9,'OTTV Baseline'!$D$6) -> 0.77 | L9: =INDEX($S9:$AH9,'OTTV Baseline'!$D$6+4) -> 0.77 | M9: =INDEX($S9:$AH9,'OTTV Baseline'!$D$6+2) -> 0.77 | N9: =INDEX($S9:$AH9,'OTTV Baseline'!$D$6+6) -> 0.79 | R9: 0.4 | S9: =C9 -> 0.77 | T9: =F9 -> 0.77 | U9: =D9 -> 0.77 | V9: 0.77 | W9: 0.77 | X9: 0.79 | Y9: 0.79 | Z9: 0.79 | AA9: 0.77 | AB9: 0.77 | AC9: 0.77 | AD9: 0.77 | AE9: 0.77 | AF9: 0.79 | AG9: 0.79 | AH9: 0.79
B10: 0.5 | C10: 0.71 | D10: 0.68 | E10: 0.71 | F10: 0.69 | G10: 0.72 | J10: 0.5 | K10: =INDEX($S10:$AH10,'OTTV Baseline'!$D$6) -> 0.71 | L10: =INDEX($S10:$AH10,'OTTV Baseline'!$D$6+4) -> 0.71 | M10: =INDEX($S10:$AH10,'OTTV Baseline'!$D$6+2) -> 0.68 | N10: =INDEX($S10:$AH10,'OTTV Baseline'!$D$6+6) -> 0.71 | R10: 0.5 | S10: 0.71 | T10: 0.69 | U10: 0.68 | V10: 0.69 | W10: 0.71 | X10: 0.72 | Y10: 0.71 | Z10: 0.72 | AA10: 0.71 | AB10: 0.69 | AC10: 0.68 | AD10: 0.69 | AE10: 0.71 | AF10: 0.72 | AG10: 0.71 | AH10: 0.72
B11: 0.7 | C11: 0.71 | D11: 0.68 | E11: 0.71 | F11: 0.69 | G11: 0.72 | J11: 0.7 | K11: =INDEX($S11:$AH11,'OTTV Baseline'!$D$6) -> 0.71 | L11: =INDEX($S11:$AH11,'OTTV Baseline'!$D$6+4) -> 0.71 | M11: =INDEX($S11:$AH11,'OTTV Baseline'!$D$6+2) -> 0.68 | N11: =INDEX($S11:$AH11,'OTTV Baseline'!$D$6+6) -> 0.71 | R11: 0.7 | S11: 0.71 | T11: 0.69 | U11: 0.68 | V11: 0.69 | W11: 0.71 | X11: 0.72 | Y11: 0.71 | Z11: 0.72 | AA11: 0.71 | AB11: 0.69 | AC11: 0.68 | AD11: 0.69 | AE11: 0.71 | AF11: 0.72 | AG11: 0.71 | AH11: 0.72
B12: 0.8 | C12: 0.67 | D12: 0.6 | E12: 0.65 | F12: 0.63 | G12: 0.66 | J12: 0.8 | K12: =INDEX($S12:$AH12,'OTTV Baseline'!$D$6) -> 0.67 | L12: =INDEX($S12:$AH12,'OTTV Baseline'!$D$6+4) -> 0.67 | M12: =INDEX($S12:$AH12,'OTTV Baseline'!$D$6+2) -> 0.6 | N12: =INDEX($S12:$AH12,'OTTV Baseline'!$D$6+6) -> 0.65 | R12: 0.8 | S12: 0.67 | T12: 0.63 | U12: 0.6 | V12: 0.63 | W12: 0.67 | X12: 0.66 | Y12: 0.65 | Z12: 0.66 | AA12: 0.67 | AB12: 0.63 | AC12: 0.6 | AD12: 0.63 | AE12: 0.67 | AF12: 0.66 | AG12: 0.65 | AH12: 0.66
B13: 1.2 | C13: 0.67 | D13: 0.6 | E13: 0.65 | F13: 0.63 | G13: 0.66 | J13: 1.2 | K13: =INDEX($S13:$AH13,'OTTV Baseline'!$D$6) -> 0.67 | L13: =INDEX($S13:$AH13,'OTTV Baseline'!$D$6+4) -> 0.67 | M13: =INDEX($S13:$AH13,'OTTV Baseline'!$D$6+2) -> 0.6 | N13: =INDEX($S13:$AH13,'OTTV Baseline'!$D$6+6) -> 0.65 | R13: 1.2 | S13: 0.67 | T13: 0.63 | U13: 0.6 | V13: 0.63 | W13: 0.67 | X13: 0.66 | Y13: 0.65 | Z13: 0.66 | AA13: 0.67 | AB13: 0.63 | AC13: 0.6 | AD13: 0.63 | AE13: 0.67 | AF13: 0.66 | AG13: 0.65 | AH13: 0.66
B14: 1.3 | C14: 0.65 | D14: 0.55 | E14: 0.61 | F14: 0.6 | G14: 0.63 | J14: 1.3 | K14: =INDEX($S14:$AH14,'OTTV Baseline'!$D$6) -> 0.65 | L14: =INDEX($S14:$AH14,'OTTV Baseline'!$D$6+4) -> 0.65 | M14: =INDEX($S14:$AH14,'OTTV Baseline'!$D$6+2) -> 0.55 | N14: =INDEX($S14:$AH14,'OTTV Baseline'!$D$6+6) -> 0.61 | R14: 1.3 | S14: 0.65 | T14: 0.6 | U14: 0.55 | V14: 0.6 | W14: 0.65 | X14: 0.63 | Y14: 0.61 | Z14: 0.63 | AA14: 0.65 | AB14: 0.6 | AC14: 0.55 | AD14: 0.6 | AE14: 0.65 | AF14: 0.63 | AG14: 0.61 | AH14: 0.63
B15: 2 | C15: 0.65 | D15: 0.55 | E15: 0.61 | F15: 0.6 | G15: 0.63 | J15: 2 | K15: =INDEX($S15:$AH15,'OTTV Baseline'!$D$6) -> 0.65 | L15: =INDEX($S15:$AH15,'OTTV Baseline'!$D$6+4) -> 0.65 | M15: =INDEX($S15:$AH15,'OTTV Baseline'!$D$6+2) -> 0.55 | N15: =INDEX($S15:$AH15,'OTTV Baseline'!$D$6+6) -> 0.61 | R15: 2 | S15: 0.65 | T15: 0.6 | U15: 0.55 | V15: 0.6 | W15: 0.65 | X15: 0.63 | Y15: 0.61 | Z15: 0.63 | AA15: 0.65 | AB15: 0.6 | AC15: 0.55 | AD15: 0.6 | AE15: 0.65 | AF15: 0.63 | AG15: 0.61 | AH15: 0.63
B17: Vertical Projection Table 6 (MS 1525)
C18: North/South | D18: East | E18: West | F18: Northeast/ Southeast | G18: Northwest / Southwest
B19: R2 | J19: R2 | K19: =K6 -> North | L19: South | M19: East | N19: West | R19: R2 | S19: North | T19: Northeast | U19: East | V19: Southeast | W19: South | X19: Southwest | Y19: West | Z19: Northwest | AA19: North | AB19: Northeast | AC19: East | AD19: Southeast | AE19: South | AF19: Southwest | AG19: West | AH19: Northwest
B20: 0 | C20: 1 | D20: 1 | E20: 1 | F20: 1 | G20: 1 | J20: =R20 -> 0 | K20: =INDEX($S20:$AH20,'OTTV Baseline'!$D$6) -> 1 | L20: =INDEX($S20:$AH20,'OTTV Baseline'!$D$6+4) -> 1 | M20: =INDEX($S20:$AH20,'OTTV Baseline'!$D$6+2) -> 1 | N20: =INDEX($S20:$AH20,'OTTV Baseline'!$D$6+6) -> 1 | R20: =B20 -> 0 | S20: 1 | T20: =F20 -> 1 | U20: =D20 -> 1 | V20: 1 | W20: =C20 -> 1 | X20: =G20 -> 1 | Y20: =E20 -> 1 | Z20: =G20 -> 1 | AA20: =S20 -> 1 | AB20: 1 | AC20: 1 | AD20: 1 | AE20: 1 | AF20: 1 | AG20: 1 | AH20: 1
B21: 0.3 | C21: 0.82 | D21: 0.87 | E21: 0.86 | F21: 0.83 | G21: 0.84 | J21: =R21 -> 0.3 | K21: =INDEX($S21:$AH21,'OTTV Baseline'!$D$6) -> 0.82 | L21: =INDEX($S21:$AH21,'OTTV Baseline'!$D$6+4) -> 0.82 | M21: =INDEX($S21:$AH21,'OTTV Baseline'!$D$6+2) -> 0.87 | N21: =INDEX($S21:$AH21,'OTTV Baseline'!$D$6+6) -> 0.86 | R21: =B21 -> 0.3 | S21: =C21 -> 0.82 | T21: =F21 -> 0.83 | U21: =D21 -> 0.87 | V21: =F21 -> 0.83 | W21: =C21 -> 0.82 | X21: =G21 -> 0.84 | Y21: =E21 -> 0.86 | Z21: =G21 -> 0.84 | AA21: =S21 -> 0.82 | AB21: =T21 -> 0.83 | AC21: =U21 -> 0.87 | AD21: =V21 -> 0.83 | AE21: =W21 -> 0.82 | AF21: =X21 -> 0.84 | AG21: =Y21 -> 0.86 | AH21: =Z21 -> 0.84
B22: 0.4 | C22: 0.82 | D22: 0.87 | E22: 0.86 | F22: 0.83 | G22: 0.84 | J22: =R22 -> 0.4 | K22: =INDEX($S22:$AH22,'OTTV Baseline'!$D$6) -> 0.82 | L22: =INDEX($S22:$AH22,'OTTV Baseline'!$D$6+4) -> 0.82 | M22: =INDEX($S22:$AH22,'OTTV Baseline'!$D$6+2) -> 0.87 | N22: =INDEX($S22:$AH22,'OTTV Baseline'!$D$6+6) -> 0.86 | R22: 0.4 | S22: 0.82 | T22: 0.83 | U22: 0.87 | V22: 0.83 | W22: 0.82 | X22: 0.84 | Y22: 0.86 | Z22: 0.84 | AA22: 0.82 | AB22: 0.83 | AC22: 0.87 | AD22: 0.83 | AE22: 0.82 | AF22: 0.84 | AG22: 0.86 | AH22: 0.84
B23: 0.5 | C23: 0.77 | D23: 0.82 | E23: 0.81 | F23: 0.77 | G23: 0.79 | J23: 0.5 | K23: =INDEX($S23:$AH23,'OTTV Baseline'!$D$6) -> 0.77 | L23: =INDEX($S23:$AH23,'OTTV Baseline'!$D$6+4) -> 0.77 | M23: =INDEX($S23:$AH23,'OTTV Baseline'!$D$6+2) -> 0.82 | N23: =INDEX($S23:$AH23,'OTTV Baseline'!$D$6+6) -> 0.81 | R23: 0.5 | S23: 0.77 | T23: 0.77 | U23: 0.82 | V23: 0.77 | W23: 0.77 | X23: 0.79 | Y23: 0.81 | Z23: 0.79 | AA23: 0.77 | AB23: 0.77 | AC23: 0.82 | AD23: 0.77 | AE23: 0.77 | AF23: 0.79 | AG23: 0.81 | AH23: 0.79
B24: 0.7 | C24: 0.77 | D24: 0.82 | E24: 0.81 | F24: 0.77 | G24: 0.79 | J24: 0.7 | K24: =INDEX($S24:$AH24,'OTTV Baseline'!$D$6) -> 0.77 | L24: =INDEX($S24:$AH24,'OTTV Baseline'!$D$6+4) -> 0.77 | M24: =INDEX($S24:$AH24,'OTTV Baseline'!$D$6+2) -> 0.82 | N24: =INDEX($S24:$AH24,'OTTV Baseline'!$D$6+6) -> 0.81 | R24: 0.7 | S24: 0.77 | T24: 0.77 | U24: 0.82 | V24: 0.77 | W24: 0.77 | X24: 0.79 | Y24: 0.81 | Z24: 0.79 | AA24: 0.77 | AB24: 0.77 | AC24: 0.82 | AD24: 0.77 | AE24: 0.77 | AF24: 0.79 | AG24: 0.81 | AH24: 0.79
B25: 0.8 | C25: 0.73 | D25: 0.78 | E25: 0.77 | F25: 0.72 | G25: 0.74 | J25: 0.8 | K25: =INDEX($S25:$AH25,'OTTV Baseline'!$D$6) -> 0.73 | L25: =INDEX($S25:$AH25,'OTTV Baseline'!$D$6+4) -> 0.73 | M25: =INDEX($S25:$AH25,'OTTV Baseline'!$D$6+2) -> 0.78 | N25: =INDEX($S25:$AH25,'OTTV Baseline'!$D$6+6) -> 0.77 | R25: 0.8 | S25: 0.73 | T25: 0.72 | U25: 0.78 | V25: 0.72 | W25: 0.73 | X25: 0.74 | Y25: 0.77 | Z25: 0.74 | AA25: 0.73 | AB25: 0.72 | AC25: 0.78 | AD25: 0.72 | AE25: 0.73 | AF25: 0.74 | AG25: 0.77 | AH25: 0.74
B26: 1.2 | C26: 0.73 | D26: 0.78 | E26: 0.77 | F26: 0.72 | G26: 0.74 | J26: 1.2 | K26: =INDEX($S26:$AH26,'OTTV Baseline'!$D$6) -> 0.73 | L26: =INDEX($S26:$AH26,'OTTV Baseline'!$D$6+4) -> 0.73 | M26: =INDEX($S26:$AH26,'OTTV Baseline'!$D$6+2) -> 0.78 | N26: =INDEX($S26:$AH26,'OTTV Baseline'!$D$6+6) -> 0.77 | R26: 1.2 | S26: 0.73 | T26: 0.72 | U26: 0.78 | V26: 0.72 | W26: 0.73 | X26: 0.74 | Y26: 0.77 | Z26: 0.74 | AA26: 0.73 | AB26: 0.72 | AC26: 0.78 | AD26: 0.72 | AE26: 0.73 | AF26: 0.74 | AG26: 0.77 | AH26: 0.74
B27: 1.3 | C27: 0.7 | D27: 0.75 | E27: 0.74 | F27: 0.69 | G27: 0.71 | J27: 1.3 | K27: =INDEX($S27:$AH27,'OTTV Baseline'!$D$6) -> 0.7 | L27: =INDEX($S27:$AH27,'OTTV Baseline'!$D$6+4) -> 0.7 | M27: =INDEX($S27:$AH27,'OTTV Baseline'!$D$6+2) -> 0.75 | N27: =INDEX($S27:$AH27,'OTTV Baseline'!$D$6+6) -> 0.74 | R27: 1.3 | S27: 0.7 | T27: 0.69 | U27: 0.75 | V27: 0.69 | W27: 0.7 | X27: 0.71 | Y27: 0.74 | Z27: 0.71 | AA27: 0.7 | AB27: 0.69 | AC27: 0.75 | AD27: 0.69 | AE27: 0.7 | AF27: 0.71 | AG27: 0.74 | AH27: 0.71
B28: 2 | C28: 0.7 | D28: 0.75 | E28: 0.74 | F28: 0.69 | G28: 0.71 | J28: 2 | K28: =INDEX($S28:$AH28,'OTTV Baseline'!$D$6) -> 0.7 | L28: =INDEX($S28:$AH28,'OTTV Baseline'!$D$6+4) -> 0.7 | M28: =INDEX($S28:$AH28,'OTTV Baseline'!$D$6+2) -> 0.75 | N28: =INDEX($S28:$AH28,'OTTV Baseline'!$D$6+6) -> 0.74 | R28: 2 | S28: 0.7 | T28: 0.69 | U28: 0.75 | V28: 0.69 | W28: 0.7 | X28: 0.71 | Y28: 0.74 | Z28: 0.71 | AA28: 0.7 | AB28: 0.69 | AC28: 0.75 | AD28: 0.69 | AE28: 0.7 | AF28: 0.71 | AG28: 0.74 | AH28: 0.71
B31: Ratios | D31: Orientation
B32: R1 | C32: R2 | D32: North/ | E32: East | F32: West | G32: Northeast/ | H32: Northwest/ Southwest
D33: South | G33: Southeast | I33: R1 | J33: R2 | K33: =K19 -> North | L33: South | M33: East | N33: West | Q33: R1 | R33: R2 | S33: North | T33: Northeast | U33: East | V33: Southeast | W33: South | X33: Southwest | Y33: West | Z33: Northwest | AA33: North | AB33: Northeast | AC33: East | AD33: Southeast | AE33: South | AF33: Southwest | AG33: West | AH33: Northwest
B34: 0.2 | C34: 0 | D34: =(C8+C7)/2 -> 0.885 | E34: 0.885 | F34: 0.895 | G34: 0.885 | H34: 0.895 | I34: =Q34 -> 0.2 | J34: =R34 -> 0 | K34: =INDEX($S34:$AH34,'OTTV Baseline'!$D$6) -> 0.885 | L34: =INDEX($S34:$AH34,'OTTV Baseline'!$D$6+4) -> 0.885 | M34: =INDEX($S34:$AH34,'OTTV Baseline'!$D$6+2) -> 0.885 | N34: =INDEX($S34:$AH34,'OTTV Baseline'!$D$6+6) -> 0.895 | Q34: 0.2 | R34: =C34 -> 0 | S34: 0.885 | T34: =G34 -> 0.885 | U34: =E34 -> 0.885 | V34: 0.885 | W34: =D34 -> 0.885 | X34: =H34 -> 0.895 | Y34: =F34 -> 0.895 | Z34: =H34 -> 0.895 | AA34: =S34 -> 0.885 | AB34: =T34 -> 0.885 | AC34: 0.885 | AD34: 0.885 | AE34: 0.885 | AF34: 0.895 | AG34: 0.895 | AH34: 0.895
C35: 0.2 | D35: 0.71 | E35: 0.77 | F35: 0.77 | G35: 0.73 | H35: 0.75 | I35: =Q35 -> 0.2 | J35: =R35 -> 0.2 | K35: =INDEX($S35:$AH35,'OTTV Baseline'!$D$6) -> 0.71 | L35: =INDEX($S35:$AH35,'OTTV Baseline'!$D$6+4) -> 0.71 | M35: =INDEX($S35:$AH35,'OTTV Baseline'!$D$6+2) -> 0.77 | N35: =INDEX($S35:$AH35,'OTTV Baseline'!$D$6+6) -> 0.77 | Q35: 0.2 | R35: =C35 -> 0.2 | S35: =D35 -> 0.71 | T35: =G35 -> 0.73 | U35: =E35 -> 0.77 | V35: =G35 -> 0.73 | W35: =D35 -> 0.71 | X35: =H35 -> 0.75 | Y35: =F35 -> 0.77 | Z35: =H35 -> 0.75 | AA35: =S35 -> 0.71 | AB35: =T35 -> 0.73 | AC35: =U35 -> 0.77 | AD35: =V35 -> 0.73 | AE35: =W35 -> 0.71 | AF35: =X35 -> 0.75 | AG35: =Y35 -> 0.77 | AH35: =Z35 -> 0.75
